Workbook

Sheet Cover Page
A1: Project Name: | B1: Clinton Creek LTMP
A2: Project Number: | B2: 307071-01056
A3: AAM contact: | B3: Josée Perron
A5: Disclaimer:
A6: The information presented in this document was compiled and interpreted exclusively for the purposes stated in
A7: Section 1 of the accompanying report (Clinton Creek Long-Term Monitoring Program - 2015 Survey Results, Advisian, 2015).
A8: Advisian provided this report for AAM solely for the purpose noted therein.
A10: Advisian has exercised reasonable skill, care, and diligence to assess the information acquired during the compilation of the following data.
A11: Advisian does not accept any responsibility for the use of this report for any purpose other than that stated in Section 1 of the accompanying report
A12: and does not accept responsibility to any third party for the use in whole or in part of the contents of this report. Any alternative use, including that
A13: by a third party, or any reliance on, or decisions based on this document, is the responsibility of the alternative user or third party
A15: Prepared by | B15: JG
A16: Checked by | B16: AT
A17: Approved by | B17: AT
A19: Date
A21: Notes:
A22: Results included in this spreadsheet correspond to movement rates over the specific time frames discussed in the report inclusive of movement between 2003-2014 (Clinton Creek Waste Rock and Porcupine Pit) and 2006-2014 (Wolverine Tailings Pile)
A23: These timeframes were selected as they represent significant periods of change to the mine site, specifically the 2010 extreme flow
A24: Results are presented in centimetres
A25: Relative Percent Change (RPC) is calculated as (Value 2 - Value 1) / Value 1 * 100%

Sheet Clinton Movement
A1: Upper | F1: 2003-2010 | H1: =(B4-B3)/365 -> 6.920547945 | I1: Upper
A2: Monitor | B2: Date | C2: Northing (m) | D2: Easting (m) | F2: Point | G2: dN | H2: dE | I2: Movement | J2: N/S | K2: E/W | L2: Quadrant | M2: Azimuth | N2: Max | V2: =(11.7-5.42)/5.42 -> 1.158671587
A3: 81-1 | B3: 2003-08-20 | C3: 7147034.82 | D3: 512978.93 | F3: =A3 -> 81-1 | G3: =C4-C3 -> 0.01999999955 | H3: =D4-D3 -> 0 | I3: =(G3^2+H3^2)^0.5*100 -> 1.999999955 | J3: =IF(G3>0,2,0) -> 2 | K3: =IF(H3>0,1,0) -> 0 | L3: =SUM(J3:K3) -> 2 | M3: 0 | N3: =MAX(I3:I10) -> 19.23538405 | O3: =N3/H1 -> 2.779459691 | P3: cm/yr | Q3: =I3/$H$1 -> 0.2889944512
A4: 81-1 | B4: 2010-07-20 | C4: 7147034.84 | D4: 512978.93 | F4: =A9 -> 223 | G4: =C10-C9 -> 0.1400000006 | H4: =D10-D9 -> 0.01000000001 | I4: 14.03566891 | J4: 2 | K4: 1 | L4: 3 | M4: =IF(L4=3,(ATAN(H4/G4)*180/PI()),IF(L4=1,(90+ATAN(ABS(G4)/ABS(H4))*180/PI()),IF(L4=0,(180+ATAN(ABS(H4)/ABS(G4))*180/PI()),IF(L4=2,(270+ATAN(ABS(G4)/ABS(H4))*180/PI()),"ERROR")))) -> 4.085616766 | Q4: =I4/$H$1 -> 2.028115262
A5: 81-1 | B5: 2010-09-25 | C5: 7147034.83 | D5: 512978.94 | F5: =A15 -> 225 | G5: =C16-C15 -> 0.1100000003 | H5: =D16-D15 -> -0.02999999997 | I5: 11.40175428 | J5: 2 | K5: 0 | L5: 2 | M5: 344.7448814 | Q5: 1.647521898
A6: 81-1 | B6: 2012-08-06 | C6: 7147034.86 | D6: 512978.94 | F6: =A21 -> 1195 | G6: =C22-C21 -> 0.1099999994 | H6: =D22-D21 -> -0.01000000001 | I6: 11.04536096 | J6: 2 | K6: 0 | L6: 2 | M6: 354.8055711 | Q6: 1.59602405
A7: 81-1 | B7: 2014-09-11 | C7: 7147034.843 | D7: 512978.964 | F7: =A27 -> 1834 | G7: =C28-C27 -> 0.1699999999 | H7: =D28-D27 -> -0.08999999997 | I7: 19.23538405 | J7: 2 | K7: 0 | L7: 2 | M7: 332.102729 | Q7: 2.779459691 | R7: North
A8: 81-1 | B8: 2015-09-17 | C8: 7147034.85 | D8: 512978.971
A9: 223 | B9: 2003-08-20 | C9: 7146978.05 | D9: 512942.74 | S9: Upper | V9: 186 | X9: 2836 | AB9: BH-4 | AD9: BH-4 Cable
A10: 223 | B10: 2010-07-20 | C10: 7146978.19 | D10: 512942.75 | S10: Avg | T10: Azimuth | U10: Max | V10: Movement | W10: Azimuth | X10: Movement | Y10: Azimuth | Z10: Delta Movement | AA10: Delta Azimuth | AB10: Movement | AC10: Azimuth | AD10: Movement | AE10: Azimuth | AF10: Delta Movement | AG10: Delta Azimuth
A11: 223 | B11: 2010-09-25 | C11: 7146978.17 | D11: 512942.78 | R11: TF-WR-A | S11: =I15 -> 1.66802307 | T11: =O13 -> 347.6919842 | U11: =O3 -> 2.779459691
A12: 223 | B12: 2012-08-06 | C12: 7146978.25 | D12: 512942.76 | R12: TF-WR-B | S12: =I30 -> 19.83153611 | T12: =O29 -> 108.4349488 | U12: =O18 -> 33.13743764
A13: 223 | B13: 2014-09-11 | C13: 7146978.271 | D13: 512942.787 | G13: =SUM(G3:G10) -> 0.5499999998 | H13: =SUM(H3:H10) -> -0.1199999999 | I13: =AVERAGE(I3:I10) -> 11.54363363 | J13: =_xlfn.STDEV.S(I3:I7) -> 6.259445134 | N13: avg bearing | O13: =270+ATAN(G13/ABS(H13))*180/PI() -> 347.6919842 | R13: TF-WR-C | S13: =I45 -> 2.758565736 | T13: =O44 -> 338.6293777 | U13: =O34 -> 4.419775491
A14: 223 | B14: 2015-09-17 | C14: 7146978.298 | D14: 512942.771 | R14: TF-WR-D | S14: =I60 -> 3.123899046 | T14: =O59 -> 78.85968133 | U14: =O49 -> 8.924705357 | V14: =I56/H47 -> 8.924705357 | W14: =M56 -> 83.25442039 | X14: =I55/H47 -> 6.611015583 | Y14: =M55 -> 76.6648938 | Z14: =V14-X14 -> 2.313689774 | AA14: =W14-Y14 -> 6.589526591 | AB14: =I54/H47 -> 1.467902446 | AC14: =M54 -> 125.7538861 | AD14: =I58/H47 -> 6.056067276 | AE14: =M58 -> 238.1857614 | AF14: =AB14-AD14 -> -4.58816483 | AG14: =AC14-AE14 -> -112.4318753
A15: 225 | B15: 2003-08-20 | C15: 7146918.72 | D15: 512905.22 | I15: =I13/H1 -> 1.66802307 | J15: cm/yr | R15: TF-WR-E | S15: =I75 -> 4.921645229 | T15: =O74 -> 42.38665379 | U15: =O64 -> 14.67882493 | V15: =I71/H62 -> 5.419094729 | W15: =M71 -> 93.12213001 | X15: =I70/H62 -> 11.74386764 | Y15: =M70 -> 74.45019599 | Z15: =V15-X15 -> -6.324772907 | AA15: =W15-Y15 -> 18.67193402 | AB15: =I69/H62 -> 1.940411158 | AC15: =M69 -> 239.5344533 | AD15: =I73/H62 -> 14.67882493 | AE15: =M73 -> 44.72845788 | AF15: =AB15-AD15 -> -12.73841377 | AG15: =AC15-AE15 -> 194.8059954
A16: 225 | B16: 2010-07-20 | C16: 7146918.83 | D16: 512905.19 | F16: 2010 to 2010 | H16: =(B5-B4)/365 -> 0.1835616438 | I16: Upper | W16: Without BH-4 Cable and 2836
A17: 225 | B17: 2010-09-25 | C17: 7146918.84 | D17: 512905.24 | F17: Point | G17: dN | H17: dE | I17: Movement | J17: N/S | K17: E/W | L17: Quadrant | M17: Azimuth | N17: Max | S17: RPC | T17: Δ° | U17: RPC | X17: RPC | Y17: Δ° | Z17: RPC
A18: 225 | B18: 2012-08-06 | C18: 7146918.89 | D18: 512905.21 | F18: =A4 -> 81-1 | G18: =C5-C4 -> -0.009999999776 | H18: =D5-D4 -> 0.01000000001 | I18: =(G18^2+H18^2)^0.5*100 -> 1.414213547 | J18: =IF(G18>0,2,0) -> 0 | K18: =IF(H18>0,1,0) -> 1 | L18: =SUM(J18:K18) -> 1 | M18: =IF(L18=3,(ATAN(H18/G18)*180/PI()),IF(L18=1,(90+ATAN(ABS(G18)/ABS(H18))*180/PI()),IF(L18=0,(180+ATAN(ABS(H18)/ABS(G18))*180/PI()),IF(L18=2,(270+ATAN(ABS(G18)/ABS(H18))*180/PI()),"ERROR")))) -> 134.9999993 | N18: =MAX(I18:I25) -> 6.082762526 | O18: =N18/H16 -> 33.13743764 | P18: cm/yr | Q18: =I18/$H$16 -> 7.704297683 | R18: A to B | S18: =(S12-S11)/S11 -> 10.8892457 | T18: =360-T11+T12 -> 120.7429646 | U18: =(U12-U11)/U11 -> 10.92225876
A19: 225 | B19: 2014-09-11 | C19: 7146918.9 | D19: 512905.205 | F19: =A10 -> 223 | G19: =C11-C10 -> -0.02000000048 | H19: =D11-D10 -> 0.03000000003 | I19: 3.605551305 | J19: 0 | K19: 1 | L19: 1 | M19: 123.6900681 | Q19: =I19/$H$16 -> 19.64218248 | R19: B to C | S19: =(S13-S12)/S12 -> -0.8609000472 | T19: =360-T13+T12 -> 129.8055711 | U19: =(U13-U12)/U12 -> -0.8666228953
A20: 225 | B20: 2015-09-17 | C20: 7146918.916 | D20: 512905.227 | F20: =A16 -> 225 | G20: =C17-C16 -> 0.009999999776 | H20: =D17-D16 -> 0.04999999999 | I20: =(G20^2+H20^2)^0.5*100 -> 5.099019508 | J20: =IF(G20>0,2,0) -> 2 | K20: =IF(H20>0,1,0) -> 1 | L20: =SUM(J20:K20) -> 3 | M20: =IF(L20=3,(ATAN(H20/G20)*180/PI()),IF(L20=1,(90+ATAN(ABS(G20)/ABS(H20))*180/PI()),IF(L20=0,(180+ATAN(ABS(H20)/ABS(G20))*180/PI()),IF(L20=2,(270+ATAN(ABS(G20)/ABS(H20))*180/PI()),"ERROR")))) -> 78.69006777 | Q20: 27.7782406 | R20: C to D | S20: =(S14-S13)/S13 -> 0.1324359629 | T20: =360-T13+T14 -> 100.2303036 | U20: =(U14-U13)/U13 -> 1.019266674 | W20: C to D | X20: =(T54-S13)/S13 -> -0.1584436726 | Y20: =360-T13+T55 -> 92.97062232 | Z20: =U20 -> 1.019266674
A21: 1195 | B21: 2003-08-20 | C21: 7147111.94 | D21: 512899.53 | F21: =A22 -> 1195 | G21: =C23-C22 -> -0.01999999955 | H21: =D23-D22 -> 0 | I21: =(G21^2+H21^2)^0.5*100 -> 1.999999955 | J21: =IF(G21>0,2,0) -> 0 | K21: =IF(H21>0,1,0) -> 0 | L21: =SUM(J21:K21) -> 0 | M21: =IF(L21=3,(ATAN(H21/G21)*180/PI()),IF(L21=1,(90+ATAN(ABS(G21)/ABS(H21))*180/PI()),IF(L21=0,(180+ATAN(ABS(H21)/ABS(G21))*180/PI()),IF(L21=2,(270+ATAN(ABS(G21)/ABS(H21))*180/PI()),"ERROR")))) -> 180 | Q21: 10.89552214 | R21: D to E | S21: =(S15-S14)/S14 -> 0.5754815237 | T21: =T14-T15 -> 36.47302754 | U21: =(U15-U14)/U14 -> 0.6447405651 | W21: D to E | X21: =(T69-T54)/T54 -> 789.0103918 | Y21: =T55-T70 ->  | Z21: =(T71-O49)/O49 -> 316.7695942
A22: 1195 | B22: 2010-07-20 | C22: 7147112.05 | D22: 512899.52 | F22: =A28 -> 1834 | G22: =C29-C28 -> -0.009999999776 | H22: =D29-D28 -> 0.06 | I22: =(G22^2+H22^2)^0.5*100 -> 6.082762526 | J22: =IF(G22>0,2,0) -> 0 | K22: =IF(H22>0,1,0) -> 1 | L22: =SUM(J22:K22) -> 1 | M22: =IF(L22=3,(ATAN(H22/G22)*180/PI()),IF(L22=1,(90+ATAN(ABS(G22)/ABS(H22))*180/PI()),IF(L22=0,(180+ATAN(ABS(H22)/ABS(G22))*180/PI()),IF(L22=2,(270+ATAN(ABS(G22)/ABS(H22))*180/PI()),"ERROR")))) -> 99.462322 | Q22: 33.13743764
A23: 1195 | B23: 2010-09-25 | C23: 7147112.03 | D23: 512899.52 | F23: BH-4
A24: 1195 | B24: 2012-08-06 | C24: 7147112.06 | D24: 512899.52
A25: 1195 | B25: 2014-09-11 | C25: 7147112.086 | D25: 512899.548
A26: 1195 | B26: 2015-09-17 | C26: 7147112.112 | D26: 512899.527
A27: 1834 | B27: 2003-08-20 | C27: 7146973.62 | D27: 512893.43
A28: 1834 | B28: 2010-07-20 | C28: 7146973.79 | D28: 512893.34 | S28: Upper Slope
A29: 1834 | B29: 2010-09-25 | C29: 7146973.78 | D29: 512893.4 | G29: =SUM(G18:G25) -> -0.04999999981 | H29: =SUM(H18:H25) -> 0.15 | I29: =AVERAGE(I18:I25) -> 3.640309368 | J29: =_xlfn.STDEV.S(I18:I22) -> 1.983729972 | N29: avg bearing | O29: =90+ATAN(ABS(G29)/H29)*180/PI() -> 108.4349488 | R29: =B3 -> 2003-08-20 | S29: =S11 -> 1.66802307
A30: 1834 | B30: 2012-08-06 | C30: 7146973.82 | D30: 512893.36 | I30: =I29/H16 -> 19.83153611 | J30: cm/yr | R30: 2010-07-20 | S30: =S11 -> 1.66802307
A31: 1834 | B31: 2014-09-11 | C31: 7146973.857 | D31: 512893.361 | R31: 2010-07-20 | S31: =S12 -> 19.83153611
A32: 1834 | B32: 2015-09-17 | C32: 7146973.87 | D32: 512893.358 | F32: 2010 to 2012 | H32: =(B6-B5)/365 -> 1.865753425 | I32: Upper | R32: 2010-09-25 | S32: =S12 -> 19.83153611
A33: BH-4 | B33: 2003-08-20 | C33: N/A | D33: N/A | F33: Point | G33: dN | H33: dE | I33: Movement | J33: N/S | K33: E/W | L33: Quadrant | M33: Azimuth | N33: Max | R33: 2010-09-25 | S33: =S13 -> 2.758565736
A34: BH-4 | B34: 2010-07-20 | C34: N/A | D34: N/A | F34: =A5 -> 81-1 | G34: =C6-C5 -> 0.03000000026 | H34: =D6-D5 -> 0 | I34: =(G34^2+H34^2)^0.5*100 -> 3.000000026 | J34: =IF(G34>0,2,0) -> 2 | K34: =IF(H34>0,1,0) -> 0 | L34: =SUM(J34:K34) -> 2 | M34: 0 | N34: =MAX(I34:I40) -> 8.246211259 | O34: =N34/H32 -> 4.419775491 | P34: cm/yr | Q34: =I34/$H$32 -> 1.607929529 | R34: 2012-08-06 | S34: =S13 -> 2.758565736
A35: BH-4 | B35: 2010-09-25 | C35: N/A | D35: N/A | F35: =A11 -> 223 | G35: =C12-C11 -> 0.08000000007 | H35: =D12-D11 -> -0.02000000002 | I35: 8.246211259 | J35: 2 | K35: 0 | L35: 2 | M35: =IF(L35=3,(ATAN(H35/G35)*180/PI()),IF(L35=1,(90+ATAN(ABS(G35)/ABS(H35))*180/PI()),IF(L35=0,(180+ATAN(ABS(H35)/ABS(G35))*180/PI()),IF(L35=2,(270+ATAN(ABS(G35)/ABS(H35))*180/PI()),"ERROR")))) -> 345.9637565 | Q35: =I35/$H$32 -> 4.419775491 | R35: 2012-08-06 | S35: =S14 -> 3.123899046
A36: BH-4 | B36: 2012-08-06 | C36: 7146871.287 | D36: 513025.113 | F36: =A17 -> 225 | G36: =C18-C17 -> 0.04999999981 | H36: =D18-D17 -> -0.02999999997 | I36: 5.830951877 | J36: 2 | K36: 0 | L36: 2 | M36: =IF(L36=3,(ATAN(H36/G36)*180/PI()),IF(L36=1,(90+ATAN(ABS(G36)/ABS(H36))*180/PI()),IF(L36=0,(180+ATAN(ABS(H36)/ABS(G36))*180/PI()),IF(L36=2,(270+ATAN(ABS(G36)/ABS(H36))*180/PI()),"ERROR")))) -> 329.0362434 | Q36: 3.125253209 | R36: 2014-09-11 | S36: =S14 -> 3.123899046
A37: BH-4 | B37: 2014-09-11 | C37: 7146871.269 | D37: 513025.138 | F37: =A23 -> 1195 | G37: =C24-C23 -> 0.02999999933 | H37: =D24-D23 -> 0 | I37: 2.999999933 | J37: 2 | K37: 0 | L37: 2 | M37: 0 | Q37: 1.607929479 | R37: 2014-09-11 | S37: =S38 -> 4.921645229
A38: BH-4 | B38: 2015-09-17 | C38: 7146871.259 | D38: 513025.121 | F38: =A29 -> 1834 | G38: =C30-C29 -> 0.04000000004 | H38: =D30-D29 -> -0.04000000004 | I38: 5.656854255 | J38: 2 | K38: 0 | L38: 2 | M38: =IF(L38=3,(ATAN(H38/G38)*180/PI()),IF(L38=1,(90+ATAN(ABS(G38)/ABS(H38))*180/PI()),IF(L38=0,(180+ATAN(ABS(H38)/ABS(G38))*180/PI()),IF(L38=2,(270+ATAN(ABS(G38)/ABS(H38))*180/PI()),"ERROR")))) -> 315 | Q38: 3.031940974 | R38: 2015-09-17 | S38: =S15 -> 4.921645229
A39: 2836 | B39: 2003-08-20 | C39: N/A | D39: N/A
A40: 2836 | B40: 2010-07-20 | C40: N/A | D40: N/A
A41: 2836 | B41: 2010-09-25 | C41: N/A | D41: N/A
A42: 2836 | B42: 2012-08-06 | C42: 7146814.712 | D42: 513092.919
A43: 2836 | B43: 2014-09-11 | C43: 7146814.744 | D43: 513093.054
A44: 2836 | B44: 2015-09-17 | C44: 7146814.776 | D44: 513093.169 | G44: =SUM(G34:G40) -> 0.2299999995 | H44: =SUM(H34:H40) -> -0.09000000003 | I44: =AVERAGE(I34:I40) -> 5.14680347 | J44: =_xlfn.STDEV.S(I34:I38) -> 2.210886131 | N44: avg bearing | O44: =270+ATAN(G44/ABS(H44))*180/PI() -> 338.6293777
A45: 186 | B45: 2003-08-20 | C45: N/A | D45: N/A | I45: =I44/H32 -> 2.758565736 | J45: cm/yr
A46: 186 | B46: 2010-07-20 | C46: N/A | D46: N/A | T46: 7146814.776 | U46: 513093.169 | V46: =T47-T46 -> 3.73 | X46: =U47-U46 -> -4.309
A47: 186 | B47: 2010-09-25 | C47: N/A | D47: N/A | F47: 2012 to 2014 | H47: =(B7-B6)/365 -> 2.098630137 | I47: Upper | T47: 7146818.506 | U47: 513088.86
A48: 186 | B48: 2012-08-06 | C48: 7146818.487 | D48: 513088.619 | F48: Point | G48: dN | H48: dE | I48: Movement | J48: N/S | K48: E/W | L48: Quadrant | M48: Azimuth | N48: Max | V48: Diff
A49: 186 | B49: 2014-09-11 | C49: 7146818.509 | D49: 513088.805 | F49: =A6 -> 81-1 | G49: =C7-C6 -> -0.01699999999 | H49: =D7-D6 -> 0.02399999998 | I49: =(G49^2+H49^2)^0.5*100 -> 2.941088232 | J49: =IF(G49>0,2,0) -> 0 | K49: =IF(H49>0,1,0) -> 1 | L49: =SUM(J49:K49) -> 1 | M49: =IF(L49=3,(ATAN(H49/G49)*180/PI()),IF(L49=1,(90+ATAN(ABS(G49)/ABS(H49))*180/PI()),IF(L49=0,(180+ATAN(ABS(H49)/ABS(G49))*180/PI()),IF(L49=2,(270+ATAN(ABS(G49)/ABS(H49))*180/PI()),"ERROR")))) -> 125.3112135 | N49: =MAX(I49:L58) -> 18.72965563 | O49: =N49/H47 -> 8.924705357 | P49: cm/yr | Q49: =I49/$H$47 -> 1.401432382 | R49: Average W/O BH-4 | T49: =AVERAGE(I49:I53,I55:I58) -> 6.942055835 | U49: =I54 -> 3.080584312 | V49: =ABS(T49-U49) -> 3.861471523
A50: 186 | B50: 2015-09-17 | C50: 7146818.506 | D50: 513088.86 | F50: =A12 -> 223 | G50: =C13-C12 -> 0.02099999972 | H50: =D13-D12 -> 0.027 | I50: 3.420526258 | J50: 2 | K50: 1 | L50: 3 | M50: 52.12501673 | Q50: =I50/$H$47 -> 1.629885227 | R50: Average W/O BH-4 Cable | T50: =AVERAGE(I49:I57) -> 5.872182392 | U50: =I58 -> 12.7094453 | V50: =ABS(T50-U50) -> 6.837262905
A51: 300 | B51: 2003-08-20 | C51: N/A | D51: N/A | F51: =A18 -> 225 | G51: =C19-C18 -> 0.01000000071 | H51: =D19-D18 -> -0.005000000005 | I51: 1.118034052 | J51: 2 | K51: 0 | L51: 2 | M51: 333.4349504 | Q51: 0.5327446855 | R51: Average W/O 186 | T51: =AVERAGE(I49:I55,I57:I58) -> 5.203270133 | U51: =I56 -> 18.72965563 | V51: =ABS(T51-U51) -> 13.52638549
A52: 300 | B52: 2010-07-20 | C52: N/A | D52: N/A | F52: =A24 -> 1195 | G52: =C25-C24 -> 0.02600000054 | H52: =D25-D24 -> 0.02799999999 | I52: 3.820994671 | J52: 2 | K52: 1 | L52: 3 | M52: 47.1210958 | Q52: 1.820708949 | R52: Average W/O 2836 | T52: =AVERAGE(I49:I54,I56:I58) -> 5.742778921 | U52: =I55 -> 13.87407654 | V52: =ABS(T52-U52) -> 8.131297618
A53: 300 | B53: 2010-09-25 | C53: N/A | D53: N/A | F53: =A30 -> 1834 | G53: =C31-C30 -> 0.03699999955 | H53: =D31-D30 -> 0.0009999999893 | I53: 3.701351059 | J53: 2 | K53: 1 | L53: 3 | M53: 1.548157701 | Q53: 1.763698612
A54: 300 | B54: 2012-08-06 | C54: 7146927.556 | D54: 513026.964 | F54: =A36 -> BH-4 | G54: =C37-C36 -> -0.01799999923 | H54: =D37-D36 -> 0.02499999997 | I54: =(G54^2+H54^2)^0.5*100 -> 3.080584312 | J54: =IF(G54>0,2,0) -> 0 | K54: =IF(H54>0,1,0) -> 1 | L54: =SUM(J54:K54) -> 1 | M54: 125.7538861 | Q54: 1.467902446 | R54: Average w/o BH-4 Cable and 2836 | T54: =AVERAGE(I49:I54,I56:I57)/H47 -> 2.32148845
A55: 300 | B55: 2014-09-11 | C55: 7146927.574 | D55: 513026.976 | F55: =A42 -> 2836 | G55: =C43-C42 -> 0.03199999966 | H55: =D43-D42 -> 0.135 | I55: =(G55^2+H55^2)^0.5*100 -> 13.87407654 | J55: 2 | K55: 1 | L55: 3 | M55: 76.6648938 | Q55: 6.611015583 | R55: Average bearing | T55: 71.6
A56: 300 | B56: 2015-09-17 | C56: 7146927.612 | D56: 513026.959 | F56: =A48 -> 186 | G56: =C49-C48 -> 0.02199999988 | H56: =D49-D48 -> 0.186 | I56: =(G56^2+H56^2)^0.5*100 -> 18.72965563 | J56: 2 | K56: 1 | L56: 3 | M56: 83.25442039 | Q56: 8.924705357
A57: BH-4 Cable | B57: 2012-08-06 | C57: 7146871.327 | D57: 513025.215 | F57: =A54 -> 300 | G57: =C55-C54 -> 0.01800000016 | H57: =D55-D54 -> 0.01200000005 | I57: =(G57^2+H57^2)^0.5*100 -> 2.163330781 | J57: 2 | K57: 1 | L57: 3 | M57: 33.6900674 | Q57: 1.030829941
A58: BH-4 Cable | B58: 2014-09-11 | C58: 7146871.26 | D58: 513025.107 | F58: BH-4 Cable | G58: =C58-C57 -> -0.06699999981 | H58: =D58-D57 -> -0.108 | I58: =(G58^2+H58^2)^0.5*100 -> 12.7094453 | J58: =IF(G58>0,2,0) -> 0 | K58: =IF(H58>0,1,0) -> 0 | L58: =SUM(J58:K58) -> 0 | M58: 238.1857614 | Q58: 6.056067276
A59: BH-4 Cable | B59: 2015-09-17 | C59: 7146871.366 | D59: 513025.212 | G59: =SUM(G49:G58) -> 0.06400000118 | H59: =SUM(H49:H58) -> 0.325 | I59: =AVERAGE(I49:I58) -> 6.555908683 | J59: =_xlfn.STDEV.S(I49:I58) -> 6.138137725 | N59: avg bearing | O59: =ATAN(H59/G59)*180/PI() -> 78.85968133
I60: =I59/H47 -> 3.123899046 | J60: cm/yr
F62: 2014 to 2015 | H62: =(B8-B7)/365 -> 1.016438356 | I62: Upper
F63: Point | G63: dN | H63: dE | I63: Movement | J63: N/S | K63: E/W | L63: Quadrant | M63: Azimuth | N63: Max | T63: 2012 to 2014 | V63: 2.098630137 | W63: Upper
F64: =A8 -> 81-1 | G64: =C8-C7 -> 0.006999999285 | H64: =D8-D7 -> 0.007000000041 | I64: =(G64^2+H64^2)^0.5*100 -> 0.989949446 | J64: =IF(G64>0,2,0) -> 2 | K64: =IF(H64>0,1,0) -> 1 | L64: =SUM(J64:K64) -> 3 | M64: =IF(L64=3,(ATAN(H64/G64)*180/PI()),IF(L64=1,(90+ATAN(ABS(G64)/ABS(H64))*180/PI()),IF(L64=0,(180+ATAN(ABS(H64)/ABS(G64))*180/PI()),IF(L64=2,(270+ATAN(ABS(G64)/ABS(H64))*180/PI()),"ERROR")))) -> 45.0000031 | N64: =MAX(I64:L73) -> 14.92012069 | O64: =N64/H62 -> 14.67882493 | P64: cm/yr | T64: Point | U64: dN | V64: dE | W64: Movement | X64: N/S | Y64: E/W | Z64: Quadrant | AA64: Azimuth | AB64: Max | AG64: Upper Slope | AH64: Std Dev | AI64: Control Limit
F65: =A14 -> 223 | G65: =C14-C13 -> 0.0270000007 | H65: =D14-D13 -> -0.016 | I65: 3.138471026 | J65: 2 | K65: 0 | L65: 2 | M65: =IF(L65=3,(ATAN(H65/G65)*180/PI()),IF(L65=1,(90+ATAN(ABS(G65)/ABS(H65))*180/PI()),IF(L65=0,(180+ATAN(ABS(H65)/ABS(G65))*180/PI()),IF(L65=2,(270+ATAN(ABS(G65)/ABS(H65))*180/PI()),"ERROR")))) -> 329.3493327 | T65: 81-1 | U65: -0.01699999999 | V65: 0.02399999998 | W65: 2.941088232 | X65: 0 | Y65: 1 | Z65: 1 | AA65: 125.3112135 | AB65: =MAX(W65:Z74) -> 18.72965563 | AC65: =AB65/V63 -> 8.924705357 | AD65: =W65/$V$63 -> 1.401432382 | AF65: =B3 -> 2003-08-20 | AG65: =S29 -> 1.66802307 | AH65: =_xlfn.STDEV.S(Q3:Q7) -> 0.9044724758 | AI65: =AG65+AH65 -> 2.572495546
F66: =A20 -> 225 | G66: =C20-C19 -> 0.01599999983 | H66: =D20-D19 -> 0.022 | I66: 2.720294091 | J66: 2 | K66: 1 | L66: 3 | M66: 53.9726269 | T66: 223 | U66: 0.02099999972 | V66: 0.027 | W66: 3.420526258 | X66: 2 | Y66: 1 | Z66: 3 | AA66: 52.12501673 | AD66: =W66/$V$63 -> 1.629885227 | AF66: 2010-07-20 | AG66: =S30 -> 1.66802307 | AH66: =AH65 -> 0.9044724758 | AI66: =AG66+AH66 -> 2.572495546
F67: =A26 -> 1195 | G67: =C26-C25 -> 0.02599999961 | H67: =D26-D25 -> -0.02100000001 | I67: 3.342154963 | J67: 2 | K67: 0 | L67: 2 | M67: 321.072456 | T67: 225 | U67: 0.01000000071 | V67: -0.005000000005 | W67: 1.118034052 | X67: 2 | Y67: 0 | Z67: 2 | AA67: 333.4349504 | AD67: 0.5327446855 | AF67: 2010-07-20 | AG67: 19.83153611 | AH67: =_xlfn.STDEV.S(Q18:Q22) -> 10.80688716 | AI67: 30.63842327
F68: =A32 -> 1834 | G68: =C32-C31 -> 0.01300000027 | H68: =D32-D31 -> -0.002999999968 | I68: 1.334166432 | J68: 2 | K68: 0 | L68: 2 | M68: 347.0053836 | T68: 1195 | U68: 0.02600000054 | V68: 0.02799999999 | W68: 3.820994671 | X68: 2 | Y68: 1 | Z68: 3 | AA68: 47.1210958 | AD68: 1.820708949 | AF68: 2010-09-25 | AG68: 19.83153611 | AH68: =AH67 -> 10.80688716 | AI68: 30.63842327
F69: =A37 -> BH-4 | G69: =C38-C37 -> -0.01000000071 | H69: =D38-D37 -> -0.01699999999 | I69: =(G69^2+H69^2)^0.5*100 -> 1.972308328 | J69: 0 | K69: 0 | L69: 0 | M69: 239.5344533 | T69: 1834 | U69: 0.03699999955 | V69: 0.0009999999893 | W69: 3.701351059 | X69: 2 | Y69: 1 | Z69: 3 | AA69: 1.548157701 | AD69: 1.763698612 | AF69: 2010-09-25 | AG69: 2.758565736 | AH69: =_xlfn.STDEV.S(Q34:Q38) -> 1.184983022 | AI69: 3.943548758
F70: =A43 -> 2836 | G70: =C44-C43 -> 0.03199999966 | H70: =D44-D43 -> 0.115 | I70: =(G70^2+H70^2)^0.5*100 -> 11.93691751 | J70: 2 | K70: 1 | L70: 3 | M70: 74.45019599 | T70: BH-4 | U70: -0.01799999923 | V70: 0.02499999997 | W70: 3.080584312 | X70: 0 | Y70: 1 | Z70: 1 | AA70: 125.7538861 | AD70: 1.467902446 | AF70: 2012-08-06 | AG70: 2.758565736 | AH70: =AH69 -> 1.184983022 | AI70: 3.943548758
F71: =A49 -> 186 | G71: =C50-C49 -> -0.00299999956 | H71: =D50-D49 -> 0.05499999999 | I71: =(G71^2+H71^2)^0.5*100 -> 5.508175738 | J71: 0 | K71: 1 | L71: 1 | M71: 93.12213001 | T71: 2836 | U71: 0.03199999966 | V71: 0.135 | W71: 13.87407654 | X71: 2 | Y71: 1 | Z71: 3 | AA71: 76.6648938 | AD71: 6.611015583 | AF71: 2012-08-06 | AG71: =W76 -> 2.798102576 | AH71: =_xlfn.STDEV.S(AD65:AD73) -> 2.903420565 | AI71: 5.701523141
F72: =A55 -> 300 | G72: =C56-C55 -> 0.03799999971 | H72: =D56-D55 -> -0.01700000005 | I72: =(G72^2+H72^2)^0.5*100 -> 4.162931635 | J72: 2 | K72: 0 | L72: 2 | M72: 335.8977653 | T72: 186 | U72: 0.02199999988 | V72: 0.186 | W72: 18.72965563 | X72: 2 | Y72: 1 | Z72: 3 | AA72: 83.25442039 | AD72: 8.924705357 | AF72: 2014-09-11 | AG72: =W76 -> 2.798102576 | AH72: =AH71 -> 2.903420565 | AI72: 5.701523141
F73: BH-4 Cable | G73: =C59-C58 -> 0.1060000006 | H73: =D59-D58 -> 0.105 | I73: =(G73^2+H73^2)^0.5*100 -> 14.92012069 | J73: =IF(G73>0,2,0) -> 2 | K73: =IF(H73>0,1,0) -> 1 | L73: =SUM(J73:K73) -> 3 | M73: 44.72845788 | T73: 300 | U73: 0.01800000016 | V73: 0.01200000005 | W73: 2.163330781 | X73: 2 | Y73: 1 | Z73: 3 | AA73: 33.6900674 | AD73: 1.030829941 | AF73: 2014-09-11 | AG73: =W91 -> 3.837514151 | AH73: =_xlfn.STDEV.S(AD80:AD88) -> 3.268508979 | AI73: 7.10602313
G74: =SUM(G64:G73) -> 0.2519999994 | H74: =SUM(H64:H73) -> 0.23 | I74: =AVERAGE(I64:I73) -> 5.002548986 | J74: =_xlfn.STDEV.S(I64:I73) -> 4.685498165 | N74: avg bearing | O74: =ATAN(H74/G74)*180/PI() -> 42.38665379 | AF74: 2015-09-17 | AG74: =W91 -> 3.837514151 | AH74: =AH73 -> 3.268508979 | AI74: 7.10602313
I75: =I74/H62 -> 4.921645229 | J75: cm/yr | U75: =SUM(U65:U74) -> 0.131000001 | V75: =SUM(V65:V74) -> 0.433 | W75: =AVERAGE(W65:W74) -> 5.872182392 | X75: =_xlfn.STDEV.S(W65:W74) -> 6.093205899 | AB75: avg bearing | AC75: =ATAN(V75/U75)*180/PI() -> 73.1673124
W76: =W75/V63 -> 2.798102576 | X76: cm/yr | AF76: =AF65 -> 2003-08-20 | AI76: =_xlfn.STDEV.S(Q3:Q38,AD65:AD88) -> 7.618809366
AF77: 2015-09-17 | AI77: =AI76 -> 7.618809366
T78: 2014 to 2015 | V78: 1.016438356 | W78: Upper
T79: Point | U79: dN | V79: dE | W79: Movement | X79: N/S | Y79: E/W | Z79: Quadrant | AA79: Azimuth | AB79: Max
T80: 81-1 | U80: 0.006999999285 | V80: 0.007000000041 | W80: 0.989949446 | X80: 2 | Y80: 1 | Z80: 3 | AA80: 45.0000031 | AB80: =MAX(W80:Z89) -> 11.93691751 | AC80: =AB80/V78 -> 11.74386764 | AD80: =W80/$V$78 -> 0.9739394819 | AF80: =(AG71-AG70)/AG70 -> 0.01433238981
T81: 223 | U81: 0.0270000007 | V81: -0.016 | W81: 3.138471026 | X81: 2 | Y81: 0 | Z81: 2 | AA81: 329.3493327 | AD81: =W81/$V$78 -> 3.087714082
T82: 225 | U82: 0.01599999983 | V82: 0.022 | W82: 2.720294091 | X82: 2 | Y82: 1 | Z82: 3 | AA82: 53.9726269 | AD82: 2.676300117
T83: 1195 | U83: 0.02599999961 | V83: -0.02100000001 | W83: 3.342154963 | X83: 2 | Y83: 0 | Z83: 2 | AA83: 321.072456 | AD83: 3.28810394
T84: 1834 | U84: 0.01300000027 | V84: -0.002999999968 | W84: 1.334166432 | X84: 2 | Y84: 0 | Z84: 2 | AA84: 347.0053836 | AD84: 1.312589616
T85: BH-4 | U85: -0.01000000071 | V85: -0.01699999999 | W85: 1.972308328 | X85: 0 | Y85: 0 | Z85: 0 | AA85: 239.5344533 | AD85: 1.940411158
T86: 2836 | U86: 0.03199999966 | V86: 0.115 | W86: 11.93691751 | X86: 2 | Y86: 1 | Z86: 3 | AA86: 74.45019599 | AD86: 11.74386764 | AI86: =(5.7-3.3)/3.3 -> 0.7272727273
T87: 186 | U87: -0.00299999956 | V87: 0.05499999999 | W87: 5.508175738 | X87: 0 | Y87: 1 | Z87: 1 | AA87: 93.12213001 | AD87: 5.419094729
T88: 300 | U88: 0.03799999971 | V88: -0.01700000005 | W88: 4.162931635 | X88: 2 | Y88: 0 | Z88: 2 | AA88: 335.8977653 | AD88: 4.095606595
AF89: =AVERAGE(AF65:AF66) -> 2007-02-03 | AG89: =AG65 -> 1.66802307 | AI89: =AI76 -> 7.618809366
U90: =SUM(U80:U89) -> 0.1459999988 | V90: =SUM(V80:V89) -> 0.125 | W90: =AVERAGE(W80:W89) -> 3.900596575 | X90: =_xlfn.STDEV.S(W80:W89) -> 3.322237894 | AB90: avg bearing | AC90: =ATAN(V90/U90)*180/PI() -> 40.56896092 | AF90: =AVERAGE(AF67:AF68) -> 2010-08-22T12:00:00 | AG90: =AG67 -> 19.83153611 | AI90: =AI89 -> 7.618809366
W91: =W90/V78 -> 3.837514151 | X91: cm/yr | AF91: =AVERAGE(AF69:AF70) -> 2011-08-31T12:00:00 | AG91: =AG69 -> 2.758565736 | AI91: =AI90 -> 7.618809366
AF92: =AVERAGE(AF71:AF72) -> 2013-08-24 | AG92: =AG71 -> 2.798102576 | AI92: 7.618809366
AF93: =AVERAGE(AF73:AF74) -> 2015-03-15T12:00:00 | AG93: =AG73 -> 3.837514151 | AI93: 7.618809366
Y94: =_xlfn.STDEV.S(AD80:AD88) -> 3.268508979
AA95: =(8.92-4.42)/4.42 -> 1.018099548
AA96: =(11.7-8.92)/8.92 -> 0.3116591928
T98: Elevation Change
T99: Point | U99: 2012 | V99: 2014 | W99: 2015 | X99: 2012-2014 | Y99: 2014-2015
T100: 2836 | U100: 477.532 | V100: 477.32 | W100: 477.309 | X100: =V100-U100 -> -0.212 | Y100: =W100-V100 -> -0.011
T101: 186 | U101: 477.658 | V101: 477.504 | W101: 477.445 | X101: =V101-U101 -> -0.154 | Y101: -0.059 | AF101: =_xlfn.STDEV.S(AD65:AD88,Q3:Q7,Q34:Q38) -> 2.563782515
T102: BH-4 | U102: 470.979 | V102: 470.963 | W102: 470.989 | X102: -0.016 | Y102: 0.026
T103: BH-4 Cable | U103: 470.96 | V103: 470.96 | W103: 470.953 | X103: 0 | Y103: -0.007

Sheet Wolverine Movement
A1: North Upper | F1: 2003 to 2010 | H1: =(B4-B3)/365 -> 6.917808219 | J1: North Upper
A2: Monitor | B2: Date | C2: Northing (m) | D2: Easting (m) | E2: Elevation | F2: Point | G2: dN | H2: dE | I2: dz | J2: Movement | K2: N/S | L2: E/W | M2: Quadrant | N2: Azimuth | O2: Max
A3: 1483 | B3: 2003-08-21 | C3: 7148233.01 | D3: 513412.67 | E3: 609.08 | F3: =A3 -> 1483 | G3: =C4-C3 -> 0.03000000026 | H3: =D4-D3 -> 0.04000000004 | I3: =E4-E3 -> -0.18 | J3: =(G3^2+H3^2)^0.5*100 -> 5.000000019 | K3: =IF(G3>0,2,0) -> 2 | L3: =IF(H3>0,1,0) -> 1 | M3: =SUM(K3:L3) -> 3 | N3: =IF(M3=3,(ATAN(H3/G3)*180/PI()),IF(M3=1,(90+ATAN(ABS(G3)/ABS(H3))*180/PI()),IF(M3=0,(180+ATAN(ABS(H3)/ABS(G3))*180/PI()),IF(M3=2,(270+ATAN(ABS(G3)/ABS(H3))*180/PI()),"ERROR")))) -> 53.13010214 | O3: =MAX(J3:J10) -> 34.23448554 | P3: =O3/H1 -> 4.948747415 | Q3: =J3/$H$1 -> 0.7227722799
A4: 1483 | B4: 2010-07-20 | C4: 7148233.04 | D4: 513412.71 | E4: 608.9 | F4: =A9 -> 26 | G4: =C10-C9 -> 0.04000000004 | H4: =D10-D9 -> 0.08999999997 | I4: =E10-E9 -> -0.1 | J4: 9.8488578 | K4: 2 | L4: 1 | M4: 3 | N4: 66.037511 | Q4: =J4/$H$1 -> 1.423696276
A5: 1483 | B5: 2010-09-25 | C5: 7148233.05 | D5: 513412.74 | E5: 608.87 | F5: =A15 -> 80-2 | G5: =C16-C15 -> 0.04000000004 | H5: =D16-D15 -> 0.34 | I5: =E16-E15 -> -0.41 | J5: 34.23448554 | K5: 2 | L5: 1 | M5: 3 | N5: 83.29016319 | Q5: 4.948747415
A6: 1483 | B6: 2012-08-06 | C6: 7148233.06 | D6: 513412.77 | E6: 608.79 | F6: =A21 -> 26-A | G6: =C22-C21 -> 0.06000000052 | H6: =D22-D21 -> 0.07000000001 | I6: =E22-E21 -> -0.21 | J6: 9.219544492 | K6: 2 | L6: 1 | M6: 3 | N6: 49.39870511 | Q6: 1.332726233
A7: 1483 | B7: 2014-09-13 | C7: 7148233.054 | D7: 513412.781 | E7: 608.719 | F7: =A27 -> 80-1 | G7: =C28-C27 -> 0.04999999981 | H7: =D28-D27 -> 0.2 | I7: =E28-E27 -> -0.28 | J7: 20.61552812 | K7: 2 | L7: 1 | M7: 3 | N7: 75.96375658 | Q7: 2.980066442 | S7: North
A8: 1483 | B8: 2015-09-17 | C8: 7148233.078 | D8: 513412.789 | E8: 608.695 | Q8: 0
A9: 26 | B9: 2003-08-21 | C9: 7148341.45 | D9: 513483.53 | E9: 575.11 | F9: =A33 -> BH-14 | G9: =C34-C33 -> 0 | H9: =D34-D33 -> -0.13 | J9: 13 | K9: 0 | L9: 0 | M9: 0 | N9: 270 | Q9: 1.879207921 | T9: Upper | AH9: TP-A | AI9: TP-B | AJ9: TP-C | AK9: TP-D | AL9: TP-E
A10: 26 | B10: 2010-07-20 | C10: 7148341.49 | D10: 513483.62 | E10: 575.01 | F10: =A39 -> 1495 | G10: =C40-C39 -> 0.1200000001 | H10: =D40-D39 -> 0.18 | I10: =E40-E39 -> 0 | J10: 21.63330766 | K10: 2 | L10: 1 | M10: 3 | N10: 56.30993245 | Q10: 3.127191008 | T10: Avg | U10: Azimuth | AG10: Upper | AH10: =T11 -> 2.344915368 | AI10: =T12 -> 16.39256573 | AJ10: =T13 -> 2.733311752 | AK10: =T15 -> 4.078789883
A11: 26 | B11: 2010-09-25 | C11: 7148341.49 | D11: 513483.66 | E11: 574.97 | G11: =SUM(G3:G10) -> 0.3400000008 | H11: =SUM(H3:H10) -> 0.79 | I11: =AVERAGE(I3:I10) -> -0.1966666667 | J11: =AVERAGE(J3:J10) -> 16.2216748 | O11: avg bearing | P11: =ATAN(H11/G11)*180/PI() -> 66.71393503 | S11: TP-A | T11: =J12 -> 2.344915368 | U11: =P11 -> 66.71393503
A12: 26 | B12: 2012-08-06 | C12: 7148341.53 | D12: 513483.69 | E12: 574.91 | I12: =I11/H1 -> -0.0284290429 | J12: =J11/H1 -> 2.344915368 | K12: cm/yr | S12: TP-B | T12: =J25 -> 16.39256573 | U12: =P24 -> 87.1375951 | V12: =(T12-T11)/T11 -> 5.990685444 | W12: =U12-U11 -> 20.42366007
A13: 26 | B13: 2014-09-13 | C13: 7148341.515 | D13: 513483.722 | E13: 574.907 | F13: 2010 to 2010 | H13: =(B5-B4)/365 -> 0.1835616438 | J13: North Upper | S13: TP-C | T13: =J40 -> 2.733311752 | U13: =P39 -> 64.23067228 | V13: =(T13-T12)/T12 -> -0.8332590641 | W13: =U12-U13 -> 22.90692282 | AA13: =(3.8-2.73)/2.73 -> 0.3919413919
A14: 26 | B14: 2015-09-17 | C14: 7148341.558 | D14: 513483.729 | E14: 574.834
A15: 80-2 | B15: 2003-08-21 | C15: 7148290.05 | D15: 513549.41 | E15: 552.78 | F15: Point | G15: dN | H15: dE | I15: dz | J15: Movement | K15: N/S | L15: E/W | M15: Quadrant | N15: Azimuth | O15: Max | S15: TP-D | T15: =J51 -> 4.078789883 | U15: =P50 -> 80.21387477 | V15: =(T15-T13)/T13 -> 0.4922519836 | W15: =U15-U13 -> 15.98320249 | AG15: Mid | AH15: =W11 -> 0 | AI15: =W12 -> 20.42366007 | AJ15: =W13 -> 22.90692282 | AK15: =W15 -> 15.98320249
A16: 80-2 | B16: 2010-07-20 | C16: 7148290.09 | D16: 513549.75 | E16: 552.37 | F16: =A4 -> 1483 | G16: =C5-C4 -> 0.009999999776 | H16: =D5-D4 -> 0.02999999997 | I16: =E5-E4 -> -0.03 | J16: =(G16^2+H16^2)^0.5*100 -> 3.16227765 | K16: =IF(G16>0,2,0) -> 2 | L16: =IF(H16>0,1,0) -> 1 | M16: =SUM(K16:L16) -> 3 | N16: =IF(M16=3,(ATAN(H16/G16)*180/PI()),IF(M16=1,(90+ATAN(ABS(G16)/ABS(H16))*180/PI()),IF(M16=0,(180+ATAN(ABS(H16)/ABS(G16))*180/PI()),IF(M16=2,(270+ATAN(ABS(G16)/ABS(H16))*180/PI()),"ERROR")))) -> 71.56505154 | O16: =MAX(J16:J23) -> 3.999999998 | P16: =O16/H13 -> 21.79104476 | Q16: =J16/$H$13 -> 17.22733347 | S16: TP-E | T16: =J63 -> 3.825292567 | U16: =P62 -> 340.2011238 | V16: -0.06215012883 | W16: =360-U16+U15 -> 100.012751 | AG16: Lower | AH16: =Y11 -> 0 | AI16: =Y12 -> 0 | AJ16: =Y13 -> 0 | AK16: =Y15 -> 0
A17: 80-2 | B17: 2010-09-25 | C17: 7148290.08 | D17: 513549.78 | E17: 552.33 | F17: =A10 -> 26 | G17: =C11-C10 -> 0 | H17: =D11-D10 -> 0.03999999998 | I17: =E11-E10 -> -0.04 | J17: 3.999999998 | K17: 0 | L17: 1 | M17: 1 | N17: 90 | Q17: =J17/$H$13 -> 21.79104476 | AG17: RPC Upper | AI17: =(AI10-AH10)/AH10 -> 5.990685444 | AJ17: =(AJ10-AI10)/AI10 -> -0.8332590641 | AK17: =(AK10-AJ10)/AJ10 -> 0.4922519836
A18: 80-2 | B18: 2012-08-06 | C18: 7148290.08 | D18: 513549.88 | E18: 552.23 | F18: =A16 -> 80-2 | G18: =C17-C16 -> -0.009999999776 | H18: =D17-D16 -> 0.03000000003 | I18: =E17-E16 -> -0.04 | J18: 3.162277656 | K18: 0 | L18: 1 | M18: 1 | N18: 108.4349484 | Q18: 17.2273335 | AG18: RPC Mid | AI18: =(AI11-AH11)/AH11 ->  | AJ18: =(AJ11-AI11)/AI11 ->  | AK18: =(AK11-AJ11)/AJ11 -> 
A19: 80-2 | B19: 2014-09-13 | C19: 7148290.073 | D19: 513550.021 | E19: 552.138 | F19: =A22 -> 26-A | G19: =C23-C22 -> -0.01000000071 | H19: =D23-D22 -> 0.02999999997 | I19: =E23-E22 -> -0.01 | J19: 3.16227768 | K19: 0 | L19: 1 | M19: 1 | N19: 108.4349501 | Q19: 17.22733363 | AG19: RPC Lower | AI19: =(AI12-AH12)/AH12 ->  | AJ19: =(AJ12-AI12)/AI12 ->  | AK19: =(AK12-AJ12)/AJ12 -> 
A20: 80-2 | B20: 2015-09-17 | C20: 7148290.108 | D20: 513549.993 | E20: 552.073 | Q20: 0
A21: 26-A | B21: 2003-08-21 | C21: 7148339.3 | D21: 513540.5 | E21: 557.82 | F21: =A28 -> 80-1 | G21: =C29-C28 -> 0.009999999776 | H21: =D29-D28 -> 0.03000000003 | I21: =E29-E28 -> -0.03 | J21: 3.162277656 | K21: 2 | L21: 1 | M21: 3 | N21: 71.56505158 | Q21: 17.2273335 | AG21: Upper | AI21: =AI13-AH13 -> 0 | AJ21: =AJ13-AI13 -> 0 | AK21: 0
A22: 26-A | B22: 2010-07-20 | C22: 7148339.36 | D22: 513540.57 | E22: 557.61 | F22: =A34 -> BH-14 | G22: =C35-C34 -> 0 | H22: =D35-D34 -> 0.02999999997 | I22: =E35-E34 -> -0.03 | J22: 2.999999997 | K22: 0 | L22: 1 | M22: 1 | N22: 90 | Q22: 16.34328357 | AG22: Mid | AI22: =AI15-AH15 -> 20.42366007 | AJ22: 2.483262752 | AK22: -6.923720332
A23: 26-A | B23: 2010-09-25 | C23: 7148339.35 | D23: 513540.6 | E23: 557.6 | F23: =A40 -> 1495 | G23: =C41-C40 -> 0.009999999776 | H23: =D41-D40 -> 0.01000000001 | I23: =E41-E40 -> -0.03 | J23: 1.414213547 | K23: 2 | L23: 1 | M23: 3 | N23: 45.00000067 | Q23: 7.704297683 | AG23: Lower | AI23: =AI16-AH16 -> 0 | AJ23: 0 | AK23: 0
A24: 26-A | B24: 2012-08-06 | C24: 7148339.37 | D24: 513540.63 | E24: 557.56 | G24: =SUM(G16:G23) -> 0.009999998845 | H24: =SUM(H16:H23) -> 0.2 | I24: =AVERAGE(I16:I23) -> -0.03 | J24: =AVERAGE(J16:J23) -> 3.009046312 | O24: avg bearing | P24: =ATAN(H24/G24)*180/PI() -> 87.1375951
A25: 26-A | B25: 2014-09-13 | C25: 7148339.339 | D25: 513540.672 | E25: 557.529 | I25: =I24/H13 -> -0.1634328358 | J25: =J24/H13 -> 16.39256573 | K25: cm/yr
A26: 26-A | B26: 2015-09-17 | C26: 7148339.4 | D26: 513540.633 | E26: 557.507
A27: 80-1 | B27: 2003-08-21 | C27: 7148407.98 | D27: 513543.04 | E27: 555.71
A28: 80-1 | B28: 2010-07-20 | C28: 7148408.03 | D28: 513543.24 | E28: 555.43 | F28: 2010 to 2012 | H28: =(B6-B5)/365 -> 1.865753425 | J28: North Upper | T28: Upper Slope | U28: Stdev | V28: Avg + Stdev
A29: 80-1 | B29: 2010-09-25 | C29: 7148408.04 | D29: 513543.27 | E29: 555.4 | F29: Point | G29: dN | H29: dE | I29: dz | J29: Movement | K29: N/S | L29: E/W | M29: Quadrant | N29: Azimuth | O29: Max | S29: =B3 -> 2003-08-21 | T29: =T11 -> 2.344915368 | U29: =_xlfn.STDEV.S(Q3:Q10) -> 1.573350204 | V29: =T29+U29 -> 3.918265572
A30: 80-1 | B30: 2012-08-06 | C30: 7148408.07 | D30: 513543.32 | E30: 555.33 | F30: =A5 -> 1483 | G30: =C6-C5 -> 0.009999999776 | H30: =D6-D5 -> 0.03000000003 | I30: =E6-E5 -> -0.08 | J30: =(G30^2+H30^2)^0.5*100 -> 3.162277656 | K30: =IF(G30>0,2,0) -> 2 | L30: =IF(H30>0,1,0) -> 1 | M30: =SUM(K30:L30) -> 3 | N30: =IF(M30=3,(ATAN(H30/G30)*180/PI()),IF(M30=1,(90+ATAN(ABS(G30)/ABS(H30))*180/PI()),IF(M30=0,(180+ATAN(ABS(H30)/ABS(G30))*180/PI()),IF(M30=2,(270+ATAN(ABS(G30)/ABS(H30))*180/PI()),"ERROR")))) -> 71.56505158 | O30: =MAX(J30:J37) -> 9.999999998 | P30: =O30/H28 -> 5.35976505 | Q30: =J30/$H$28 -> 1.694906526 | S30: 2010-07-20 | T30: =T11 -> 2.344915368 | U30: =U29 -> 1.573350204 | V30: =T30+U30 -> 3.918265572
A31: 80-1 | B31: 2014-09-13 | C31: 7148408.059 | D31: 513543.397 | E31: 555.263 | F31: =A11 -> 26 | G31: =C12-C11 -> 0.04000000004 | H31: =D12-D11 -> 0.03000000003 | I31: =E12-E11 -> -0.06 | J31: 5.000000005 | K31: 2 | L31: 1 | M31: 3 | N31: =IF(M31=3,(ATAN(H31/G31)*180/PI()),IF(M31=1,(90+ATAN(ABS(G31)/ABS(H31))*180/PI()),IF(M31=0,(180+ATAN(ABS(H31)/ABS(G31))*180/PI()),IF(M31=2,(270+ATAN(ABS(G31)/ABS(H31))*180/PI()),"ERROR")))) -> 36.86989765 | Q31: =J31/$H$28 -> 2.679882528 | S31: 2010-07-20 | T31: =T12 -> 16.39256573 | U31: =_xlfn.STDEV.S(Q16:Q23) -> 6.995366223 | V31: 23.38793195
A32: 80-1 | B32: 2015-09-17 | C32: 7148408.099 | D32: 513543.374 | E32: 555.249 | Q32: 0 | V32: 0
A33: BH-14 | B33: 2003-08-21 | C33: 7148488.36 | D33: 513563.01 | F33: =A17 -> 80-2 | G33: =C18-C17 -> 0 | H33: =D18-D17 -> 0.09999999998 | I33: =E18-E17 -> -0.1 | J33: 9.999999998 | K33: 0 | L33: 1 | M33: 1 | N33: =IF(M33=3,(ATAN(H33/G33)*180/PI()),IF(M33=1,(90+ATAN(ABS(G33)/ABS(H33))*180/PI()),IF(M33=0,(180+ATAN(ABS(H33)/ABS(G33))*180/PI()),IF(M33=2,(270+ATAN(ABS(G33)/ABS(H33))*180/PI()),"ERROR")))) -> 90 | Q33: 5.35976505 | S33: 2010-09-25 | T33: =T12 -> 16.39256573 | U33: =U31 -> 6.995366223 | V33: 23.38793195
A34: BH-14 | B34: 2010-07-20 | C34: 7148488.36 | D34: 513562.88 | E34: 530.38 | F34: =A23 -> 26-A | G34: =C24-C23 -> 0.02000000048 | H34: =D24-D23 -> 0.03000000003 | I34: =E24-E23 -> -0.04 | J34: 3.605551305 | K34: 2 | L34: 1 | M34: 3 | N34: =IF(M34=3,(ATAN(H34/G34)*180/PI()),IF(M34=1,(90+ATAN(ABS(G34)/ABS(H34))*180/PI()),IF(M34=0,(180+ATAN(ABS(H34)/ABS(G34))*180/PI()),IF(M34=2,(270+ATAN(ABS(G34)/ABS(H34))*180/PI()),"ERROR")))) -> 56.30993186 | Q34: 1.932490787 | S34: 2010-09-25 | T34: =T13 -> 2.733311752 | U34: =_xlfn.STDEV.S(Q30:Q37) -> 1.538920481 | V34: 4.272232233
A35: BH-14 | B35: 2010-09-25 | C35: 7148488.36 | D35: 513562.91 | E35: 530.35 | F35: =A29 -> 80-1 | G35: =C30-C29 -> 0.03000000026 | H35: =D30-D29 -> 0.04999999999 | I35: =E30-E29 -> -0.07 | J35: 5.830951907 | K35: 2 | L35: 1 | M35: 3 | N35: =IF(M35=3,(ATAN(H35/G35)*180/PI()),IF(M35=1,(90+ATAN(ABS(G35)/ABS(H35))*180/PI()),IF(M35=0,(180+ATAN(ABS(H35)/ABS(G35))*180/PI()),IF(M35=2,(270+ATAN(ABS(G35)/ABS(H35))*180/PI()),"ERROR")))) -> 59.03624324 | Q35: 3.125253225 | S35: 2012-08-06 | T35: =T13 -> 2.733311752 | U35: =U34 -> 1.538920481 | V35: 4.272232233
A36: BH-14 | B36: 2012-08-06 | C36: 7148488.39 | D36: 513562.91 | E36: 530.33 | F36: =A35 -> BH-14 | G36: =C36-C35 -> 0.02999999933 | H36: =D36-D35 -> 0 | I36: =E36-E35 -> -0.02 | J36: 2.999999933 | K36: 2 | L36: 0 | M36: 2 | N36: 0 | Q36: 1.607929479 | S36: 2012-08-06 | T36: =T15 -> 4.078789883 | U36: =_xlfn.STDEV.S(Q43:Q50) -> 3.168175384 | V36: 7.246965267
A37: BH-14 | B37: 2014-09-13 | C37: 7148488.478 | D37: 513563.096 | E37: 530.313 | F37: =A41 -> 1495 | G37: =C42-C41 -> 0.01000000071 | H37: =D42-D41 -> 0.04999999999 | I37: =E42-E41 -> -0.03 | J37: 5.099019526 | K37: 2 | L37: 1 | M37: 3 | N37: =IF(M37=3,(ATAN(H37/G37)*180/PI()),IF(M37=1,(90+ATAN(ABS(G37)/ABS(H37))*180/PI()),IF(M37=0,(180+ATAN(ABS(H37)/ABS(G37))*180/PI()),IF(M37=2,(270+ATAN(ABS(G37)/ABS(H37))*180/PI()),"ERROR")))) -> 78.69006674 | Q37: 2.732954665 | S37: 2014-09-11 | T37: =T15 -> 4.078789883 | U37: =U36 -> 3.168175384 | V37: 7.246965267
A38: BH-14 | B38: 2015-09-17 | C38: 7148488.508 | D38: 513563.091 | E38: 530.315 | S38: 2014-09-11 | T38: =J63 -> 3.825292567 | U38: =_xlfn.STDEV.S(Q55:Q61) -> 1.99443579 | V38: 5.819728357
A39: 1495 | B39: 2003-08-21 | C39: 7148526.59 | D39: 513528.92 | E39: 529.06 | G39: =SUM(G30:G37) -> 0.1400000006 | H39: =SUM(H30:H37) -> 0.29 | I39: =AVERAGE(I31:I38) -> -0.05333333333 | J39: =AVERAGE(J30:J37) -> 5.099685761 | O39: avg bearing | P39: =ATAN(H39/G39)*180/PI() -> 64.23067228 | S39: =B44 -> 2015-09-17 | T39: =T38 -> 3.825292567 | U39: =U38 -> 1.99443579 | V39: 5.819728357
A40: 1495 | B40: 2010-07-20 | C40: 7148526.71 | D40: 513529.1 | E40: 529.06 | I40: =I39/H28 -> -0.02858541361 | J40: =J39/H28 -> 2.733311752 | K40: cm/yr
A41: 1495 | B41: 2010-09-25 | C41: 7148526.72 | D41: 513529.11 | E41: 529.03 | F41: 2012 to 2014 | H41: =(B7-B6)/365 -> 2.104109589 | J41: North Upper
A42: 1495 | B42: 2012-08-06 | C42: 7148526.73 | D42: 513529.16 | E42: 529 | F42: Point | G42: dN | H42: dE | I42: dz | J42: Movement | K42: N/S | L42: E/W | M42: Quadrant | N42: Azimuth | O42: Max
A43: 1495 | B43: 2014-09-13 | C43: 7148526.801 | D43: 513529.187 | E43: 529 | F43: =A6 -> 1483 | G43: =C7-C6 -> -0.006000000052 | H43: =D7-D6 -> 0.011 | I43: =E7-E6 -> -0.071 | J43: =(G43^2+H43^2)^0.5*100 -> 1.252996411 | K43: =IF(G43>0,2,0) -> 0 | L43: =IF(H43>0,1,0) -> 1 | M43: =SUM(K43:L43) -> 1 | N43: =IF(M43=3,(ATAN(H43/G43)*180/PI()),IF(M43=1,(90+ATAN(ABS(G43)/ABS(H43))*180/PI()),IF(M43=0,(180+ATAN(ABS(H43)/ABS(G43))*180/PI()),IF(M43=2,(270+ATAN(ABS(G43)/ABS(H43))*180/PI()),"ERROR")))) -> 118.6104599 | O43: =MAX(J43:J49) -> 20.57668586 | P43: =O43/H41 -> 9.779284295 | Q43: =J43/$H$41 -> 0.5954995964 | S43: =AVERAGE(S29:S30) -> 2007-02-03T12:00:00 | T43: =T29 -> 2.344915368 | U43: =_xlfn.STDEV.S(Q3:Q61) -> 5.909426263
A44: 1495 | B44: 2015-09-17 | C44: 7148526.793 | D44: 513529.186 | E44: 528.976 | F44: =A12 -> 26 | G44: =C13-C12 -> -0.0150000006 | H44: =D13-D12 -> 0.03200000001 | I44: =E13-E12 -> -0.003 | J44: 3.534119435 | K44: 0 | L44: 1 | M44: 1 | N44: 115.1148358 | Q44: =J44/$H$41 -> 1.679627075 | S44: =AVERAGE(S31:S33) -> 2010-08-22T12:00:00 | T44: =T31 -> 16.39256573 | U44: =U43 -> 5.909426263
F45: =A18 -> 80-2 | G45: =C19-C18 -> -0.007000000216 | H45: =D19-D18 -> 0.141 | I45: =E19-E18 -> -0.092 | J45: 14.11736519 | K45: 0 | L45: 1 | M45: 1 | N45: 92.84213797 | Q45: 6.709424865 | S45: =AVERAGE(S34:S35) -> 2011-08-31T12:00:00 | T45: =T34 -> 2.733311752 | U45: =U43 -> 5.909426263
F46: =A24 -> 26-A | G46: =C25-C24 -> -0.03100000042 | H46: =D25-D24 -> 0.04200000002 | I46: =E25-E24 -> -0.031 | J46: 5.220153281 | K46: 0 | L46: 1 | M46: 1 | N46: 126.4308585 | Q46: 2.480932223 | S46: =AVERAGE(S36:S37) -> 2013-08-24 | T46: =T36 -> 4.078789883 | U46: =U44 -> 5.909426263
F47: =A30 -> 80-1 | G47: =C31-C30 -> -0.01099999994 | H47: =D31-D30 -> 0.07699999999 | I47: =E31-E30 -> -0.067 | J47: 7.778174591 | K47: 0 | L47: 1 | M47: 1 | N47: 98.13010231 | Q47: 3.696658497 | S47: =AVERAGE(S38:S39) -> 2015-03-15T12:00:00 | T47: =T38 -> 3.825292567 | U47: 5.909426263
F48: =A36 -> BH-14 | G48: =C37-C36 -> 0.08800000045 | H48: =D37-D36 -> 0.186 | I48: =E37-E36 -> -0.017 | J48: 20.57668586 | K48: 2 | L48: 1 | M48: 3 | N48: 64.68031298 | Q48: 9.779284295
F49: =A42 -> 1495 | G49: =C43-C42 -> 0.07099999953 | H49: =D43-D42 -> 0.027 | I49: =E43-E42 -> 0 | J49: 7.596051562 | K49: 2 | L49: 1 | M49: 3 | N49: 20.82089298 | Q49: 3.61010263
G50: =SUM(G43:G49) -> 0.08899999876 | H50: =SUM(H43:H49) -> 0.5160000001 | I50: =AVERAGE(I42:I49) -> -0.04014285714 | J50: =AVERAGE(J43:J49) -> 8.582220905 | O50: avg bearing | P50: =ATAN(H50/G50)*180/PI() -> 80.21387477
I51: =I50/H41 -> -0.01907831101 | J51: =J50/H41 -> 4.078789883 | K51: cm/yr | T51: =_xlfn.STDEV.S(Q3:Q10,Q30:Q37,Q43:Q49,Q55:Q61) -> 2.205312364
F53: 2014 to 2015 | H53: =(B44-B43)/365 -> 1.010958904 | J53: North Upper
F54: Point | G54: dN | H54: dE | I54: dz | J54: Movement | K54: N/S | L54: E/W | M54: Quadrant | N54: Azimuth | O54: Max
F55: =A8 -> 1483 | G55: =C8-C7 -> 0.02400000021 | H55: =D8-D7 -> 0.007999999973 | I55: =E8-E7 -> -0.024 | J55: =(G55^2+H55^2)^0.5*100 -> 2.529822147 | K55: =IF(G55>0,2,0) -> 2 | L55: =IF(H55>0,1,0) -> 1 | M55: =SUM(K55:L55) -> 3 | N55: =IF(M55=3,(ATAN(H55/G55)*180/PI()),IF(M55=1,(90+ATAN(ABS(G55)/ABS(H55))*180/PI()),IF(M55=0,(180+ATAN(ABS(H55)/ABS(G55))*180/PI()),IF(M55=2,(270+ATAN(ABS(G55)/ABS(H55))*180/PI()),"ERROR")))) -> 18.43494861 | O55: =MAX(J55:J61) -> 7.240165804 | P55: =O55/H53 -> 7.161681622 | Q55: =J55/$H$53 -> 2.502398601
F56: =A14 -> 26 | G56: =C14-C13 -> 0.04300000053 | H56: =D14-D13 -> 0.006999999983 | I56: =E14-E13 -> -0.073 | J56: 4.356604234 | K56: 2 | L56: 1 | M56: 3 | N56: 9.246112612 | Q56: =J56/$H$53 -> 4.309378172
F57: =A20 -> 80-2 | G57: =C20-C19 -> 0.03500000015 | H57: =D20-D19 -> -0.02799999999 | I57: =E20-E19 -> -0.065 | J57: 4.482186977 | K57: 2 | L57: 0 | M57: 2 | N57: 321.3401919 | Q57: 4.433599585
F58: =A26 -> 26-A | G58: =C26-C25 -> 0.06100000069 | H58: =D26-D25 -> -0.03900000005 | I58: =E26-E25 -> -0.022 | J58: 7.240165804 | K58: 2 | L58: 0 | M58: 2 | N58: 327.4074188 | Q58: 7.161681622
F59: =A32 -> 80-1 | G59: =C32-C31 -> 0.04000000004 | H59: =D32-D31 -> -0.02299999999 | I59: =E32-E31 -> -0.014 | J59: 4.614108801 | K59: 2 | L59: 0 | M59: 2 | N59: 330.1010982 | Q59: 4.564091361
F60: =A38 -> BH-14 | G60: =C38-C37 -> 0.03000000026 | H60: =D38-D37 -> -0.005000000005 | I60: =E38-E37 -> 0.002 | J60: 3.041381291 | K60: 2 | L60: 0 | M60: 2 | N60: 350.5376779 | Q60: 3.008412388
F61: =A44 -> 1495 | G61: =C44-C43 -> -0.00800000038 | H61: =D44-D43 -> -0.0009999999893 | I61: =E44-E43 -> -0.024 | J61: 0.8062258124 | K61: 0 | L61: 0 | M61: 0 | N61: 187.1250159 | Q61: 0.7974862372
G62: =SUM(G55:G61) -> 0.2250000015 | H62: =SUM(H55:H61) -> -0.08100000006 | I62: =AVERAGE(I54:I61) -> -0.03142857143 | J62: =AVERAGE(J55:J61) -> 3.867213581 | O62: avg bearing | P62: =270+ATAN(G62/ABS(H62))*180/PI() -> 340.2011238
I63: =I62/H53 -> -0.03108788231 | J63: =J62/H53 -> 3.825292567 | K63: cm/yr
S171: South
T172: Upper | V172: Mid | X172: Lower | Z172: U-M RPC | AA172: U-M Angle | AB172: U-L RPC | AC172: U-L Angle | AD172: M-L RPC | AE172: M-L Angle | AH172: TF3 | AI172: TF5 | AJ172: TF6 | AK172: TF8
T173: Avg | U173: Azimuth | V173: Avg | W173: Azimuth | X173: Avg | Y173: Azimuth | AG173: Upper | AH173: =T174 -> 0 | AI173: =T175 -> 0 | AJ173: =T176 -> 0 | AK173: =T177 -> 0
S174: TF3 | T174: =J176 -> 0 | U174: =P175 -> 0 | V174: =J214 -> 0 | W174: =P213 -> 0 | X174: =J282 -> 0 | Y174: =P281 -> 0 | Z174: =(V174-T174)/T174 ->  | AA174: =W174-U174 -> 0 | AB174: =(X174-T174)/T174 ->  | AC174: =Y174-U174 -> 0 | AD174: =(X174-V174)/V174 ->  | AE174: =Y174-W174 -> 0 | AG174: Mid | AH174: =V174 -> 0 | AI174: =V175 -> 0 | AJ174: =V176 -> 0 | AK174: =V177 -> 0
S175: TF5 | T175: =J183 -> 0 | U175: =P182 -> 0 | V175: =J231 -> 0 | W175: =P230 -> 0 | X175: =J301 -> 0 | Y175: =P300 -> 0 | Z175: =(V175-T175)/T175 ->  | AA175: =W175-U175 -> 0 | AB175: =(X175-T175)/T175 ->  | AC175: =Y175-U175 -> 0 | AD175: =(X175-V175)/V175 ->  | AE175: =Y175-W175 -> 0 | AG175: Lower | AH175: =X174 -> 0 | AI175: =X175 -> 0 | AJ175: =X176 -> 0 | AK175: =X177 -> 0
S176: TF6 | T176: =J190 -> 0 | U176: =P189 -> 0 | V176: =J248 -> 0 | W176: =P247 -> 0 | X176: =J320 -> 0 | Y176: =P319 -> 0 | Z176: =(V176-T176)/T176 ->  | AA176: =W176-U176 -> 0 | AC176: =Y176-U176 -> 0 | AD176: =(X176-V176)/V176 ->  | AE176: =Y176-W176 -> 0 | AG176: Upper | AH176: =U174 -> 0 | AI176: =U175 -> 0 | AJ176: =U176 -> 0 | AK176: =U177 -> 0
S177: TF8 | T177: =J197 -> 0 | U177: =P196 -> 0 | V177: =J265 -> 0 | W177: =P264 -> 0 | X177: =J339 -> 0 | Y177: =P338 -> 0 | Z177: =(V177-T177)/T177 ->  | AA177: =W177-U177 -> 0 | AC177: =Y177-U177 -> 0 | AD177: =(X177-V177)/V177 ->  | AE177: =Y177-W177 -> 0 | AG177: Mid | AH177: =W174 -> 0 | AI177: =W175 -> 0 | AJ177: =W176 -> 0 | AK177: =W177 -> 0
AG178: Lower | AH178: =Y174 -> 0 | AI178: =Y175 -> 0 | AJ178: =Y176 -> 0 | AK178: =Y177 -> 0
AG179: RPC Upper | AI179: =(AI173-AH173)/AH173 ->  | AJ179: =(AJ173-AI173)/AI173 ->  | AK179: =(AK173-AJ173)/AJ173 -> 
AG180: RPC Mid | AI180: =(AI174-AH174)/AH174 -> 
AG181: RPC Lower | AI181: =(AI175-AH175)/AH175 -> 
AG182: Upper | AI182: =AI176-AH176 -> 0 | AJ182: =AJ176-AI176 -> 0 | AK182: 0
AG183: Mid | AI183: =AI177-AH177 -> 0 | AJ183: 0 | AK183: 0
AG184: Lower | AI184: =AI178-AH178 -> 0 | AJ184: 0 | AK184: 0
T188: Upper Slope | U188: Mid Slope | V188: Lower Slope
S189: 2006-07-28 | T189: =T174 -> 0 | U189: =V174 -> 0 | V189: =X174 -> 0
S190: 2010-07-20 | T190: =T174 -> 0 | U190: =V174 -> 0 | V190: =X174 -> 0
S191: 2010-07-20 | T191: =T175 -> 0 | U191: =V175 -> 0 | V191: =X175 -> 0
S192: 2010-09-25 | T192: =T175 -> 0 | U192: =V175 -> 0 | V192: =X175 -> 0
S193: 2010-09-25 | T193: =T176 -> 0 | U193: =V176 -> 0 | V193: =X176 -> 0
S194: 2012-08-06 | T194: =T176 -> 0 | U194: =V176 -> 0 | V194: =X176 -> 0
S195: 2012-08-06 | T195: =T177 -> 0 | U195: =V177 -> 0 | V195: =X177 -> 0
S196: 2014-09-11 | T196: =T177 -> 0 | U196: =V177 -> 0 | V196: =X177 -> 0

Sheet Access Road Cracks
B1: 2015 | F1: 2014 | I1: 2013 | L1: 2012 | O1: Movement from 2012 to 2013
A2: Point ID | B2: Northing | C2: Easting | D2: Elevation | E2: Distance to adjacent Baseline Point (2012) | F2: Northing | G2: Easting | H2: Elevation | L2: Northing | M2: Easting | N2: Elevation | O2: dN | P2: dE | Q2: dZ | R2: Movement (mm) | Y2: year | Z2: 2D Surface area between baseline and embankment (m2) | AA2: Length of Baseline | AB2: Average Offset
A3: 5001 | B3: 7147308.689 | C3: 513168.756 | D3: 415.439 | F3: 7147308.679 | G3: 513168.762 | H3: 415.41 | I3: 7147308.673 | J3: 513168.757 | K3: 415.436 | L3: 7147308.666 | M3: 513168.765 | N3: 415.425 | O3: =I3-L3 -> 0.007000000216 | P3: =J3-M3 -> -0.008000000031 | Q3: =K3-N3 -> 0.011 | R3: =(O3^2+P3^2)^0.5 -> 0.01063014598 | S3: =IF(O3>0,2,0) -> 2 | T3: =IF(P3>0,1,0) -> 0 | U3: =SUM(S3:T3) -> 2 | V3: =IF(U3=3,(ATAN(P3/O3)*180/PI()),IF(U3=1,(90+ATAN(ABS(O3)/ABS(P3))*180/PI()),IF(U3=0,(180+ATAN(ABS(P3)/ABS(O3))*180/PI()),IF(U3=2,(270+ATAN(ABS(O3)/ABS(P3))*180/PI()),"ERROR")))) -> 311.1859259 | Y3: 2012 | Z3: 387.689 | AA3: 65.979 | AB3: =Z3/AA3 -> 5.875945377
A4: 5002 | B4: 7147307.846 | C4: 513171.701 | D4: 415.289 | F4: 7147307.829 | G4: 513171.7 | H4: 415.255 | I4: 7147307.833 | J4: 513171.702 | K4: 415.266 | L4: 7147307.824 | M4: 513171.713 | N4: 415.274 | O4: 0.008999999613 | P4: -0.011 | Q4: -0.008 | R4: =(O4^2+P4^2)^0.5 -> 0.01421267016 | S4: 2 | T4: 0 | U4: 2 | V4: 309.2894057 | Y4: 2014 | Z4: 366.66 | AA4: 65.971 | AB4: =Z4/AA4 -> 5.557896652
A5: 5003 | B5: 7147307.02 | C5: 513174.518 | D5: 415.097 | F5: 7147307.001 | G5: 513174.5 | H5: 415.062 | I5: 7147306.998 | J5: 513174.518 | K5: 415.084 | L5: 7147307 | M5: 513174.523 | N5: 415.09 | O5: -0.002000000328 | P5: -0.005000000005 | Q5: -0.006 | R5: 0.005385164933 | S5: 0 | T5: 0 | U5: 0 | V5: 248.1985873 | Y5: 2015 | Z5: 626.537 | AA5: 95.979 | AB5: =Z5/AA5 -> 6.527855052
A6: 5004 | B6: 7147306.141 | C6: 513177.388 | D6: 414.839 | F6: 7147306.123 | G6: 513177.385 | H6: 414.814 | I6: 7147306.13 | J6: 513177.388 | K6: 414.831 | L6: 7147306.119 | M6: 513177.395 | N6: 414.829 | O6: 0.01099999994 | P6: -0.007000000041 | Q6: 0.002 | R6: 0.01303840478 | S6: 2 | T6: 0 | U6: 2 | V6: 327.5288074 | Z6: =(Z3-Z4)/66 -> 0.3186212121
A7: 5005 | B7: 7147305.335 | C7: 513180.255 | D7: 414.555 | F7: 7147305.326 | G7: 513180.248 | H7: 414.542 | I7: 7147305.319 | J7: 513180.26 | K7: 414.558 | L7: 7147305.309 | M7: 513180.266 | N7: 414.54 | O7: 0.009999999776 | P7: -0.005999999994 | Q7: 0.018 | R7: 0.01166190359 | S7: 2 | T7: 0 | U7: 2 | V7: 329.0362429 | Z7: =Z6/2.1 -> 0.1517243867
A8: 5006 | B8: 7147304.475 | C8: 513183.164 | D8: 414.222 | F8: 7147304.464 | G8: 513183.154 | H8: 414.216 | I8: 7147304.475 | J8: 513183.16 | K8: 414.222 | L8: 7147304.458 | M8: 513183.169 | N8: 414.237 | O8: 0.01699999999 | P8: -0.00900000002 | Q8: -0.015 | R8: 0.01923538406 | S8: 2 | T8: 0 | U8: 2 | V8: 332.1027289
A9: 5007 | B9: 7147303.63 | C9: 513186.034 | D9: 413.893 | F9: 7147303.617 | G9: 513186.036 | H9: 413.88 | I9: 7147303.623 | J9: 513186.037 | K9: 413.89 | L9: 7147303.604 | M9: 513186.039 | N9: 413.903 | O9: 0.01899999939 | P9: -0.001999999979 | Q9: -0.013 | R9: 0.01910497256 | S9: 2 | T9: 0 | U9: 2 | V9: 353.9909939 | Y9: 2015 Stats
A10: 5008 | B10: 7147302.775 | C10: 513188.917 | D10: 413.573 | F10: 7147302.779 | G10: 513188.915 | H10: 413.567 | I10: 7147302.76 | J10: 513188.917 | K10: 413.581 | L10: 7147302.744 | M10: 513188.92 | N10: 413.577 | O10: 0.01599999983 | P10: -0.002999999968 | Q10: 0.004 | R10: 0.01627882042 | S10: 2 | T10: 0 | U10: 2 | V10: 349.3803447
A11: 5009 | B11: 7147301.92 | C11: 513191.791 | D11: 413.261 | F11: 7147301.906 | G11: 513191.787 | H11: 413.247 | I11: 7147301.905 | J11: 513191.789 | K11: 413.266 | L11: 7147301.88 | M11: 513191.787 | N11: 413.269 | O11: 0.02500000037 | P11: 0.001999999979 | Q11: -0.003 | R11: 0.02507987278 | S11: 2 | T11: 1 | U11: 3 | V11: 4.573921143 | W11: Edge lost 96m baseline | Z11: 33.216 | AA11: sq.m | AB11: =Z11/96 -> 0.346
A12: 5010 | B12: 7147301.078 | C12: 513194.664 | D12: 412.91 | F12: 7147301.077 | G12: 513194.648 | H12: 412.902 | I12: 7147301.066 | J12: 513194.661 | K12: 412.93 | L12: 7147301.049 | M12: 513194.659 | N12: 412.938 | O12: 0.01699999999 | P12: 0.002000000037 | Q12: -0.008 | R12: 0.01711724277 | S12: 2 | T12: 1 | U12: 3 | V12: 6.709836933 | W12: Edge lost 66m baseline | Z12: 23.65 | AA12: sq.m | AB12: =Z12/66 -> 0.3583333333
A13: 5011 | B13: 7147300.259 | C13: 513197.554 | D13: 412.595 | F13: 7147300.252 | G13: 513197.528 | H13: 412.579 | I13: 7147300.242 | J13: 513197.538 | K13: 412.602 | L13: 7147300.218 | M13: 513197.54 | N13: 412.606 | O13: 0.02399999928 | P13: -0.001999999979 | Q13: -0.004 | R13: 0.02408318844 | S13: 2 | T13: 0 | U13: 2 | V13: 355.2363582
A14: 5012 | B14: 7147299.413 | C14: 513200.432 | D14: 412.233 | F14: 7147299.401 | G14: 513200.41 | H14: 412.222 | I14: 7147299.386 | J14: 513200.418 | K14: 412.251 | L14: 7147299.371 | M14: 513200.414 | N14: 412.264 | O14: 0.01499999966 | P14: 0.004000000015 | Q14: -0.013 | R14: 0.01552417438 | S14: 2 | T14: 1 | U14: 3 | V14: 14.93141755
A15: 5013 | B15: 7147298.576 | C15: 513203.319 | D15: 411.864 | F15: 7147298.56 | G15: 513203.32 | H15: 411.855 | I15: 7147298.544 | J15: 513203.3 | K15: 411.884 | L15: 7147298.521 | M15: 513203.297 | N15: 411.894 | O15: 0.02300000004 | P15: 0.002999999968 | Q15: -0.01 | R15: 0.02319482705 | S15: 2 | T15: 1 | U15: 3 | V15: 7.431407878 | W15: Max edge lost | Z15: 2.054 | AA15: m
A16: 5014 | B16: 7147297.752 | C16: 513206.179 | D16: 411.493 | F16: 7147297.733 | G16: 513206.182 | H16: 411.486 | I16: 7147297.722 | J16: 513206.162 | K16: 411.524 | L16: 7147297.686 | M16: 513206.156 | N16: 411.55 | O16: 0.03600000031 | P16: 0.005999999994 | Q16: -0.026 | R16: 0.03649657549 | S16: 2 | T16: 1 | U16: 3 | V16: 9.462322118 | W16: Surface area baseline to edge (96m base) | Z16: =Z5 -> 626.537 | AA16: sq.m
A17: 5015 | B17: 7147296.896 | C17: 513209.065 | D17: 411.122 | F17: 7147296.882 | G17: 513209.085 | H17: 411.125 | I17: 7147296.855 | J17: 513209.06 | K17: 411.149 | L17: 7147296.824 | M17: 513209.054 | N17: 411.168 | O17: 0.03100000042 | P17: 0.005999999994 | Q17: -0.019 | R17: 0.03157530722 | S17: 2 | T17: 1 | U17: 3 | V17: 10.95406249 | W17: Average offset (96m base) | Z17: =AB5 -> 6.527855052 | AA17: m
A18: 5016 | B18: 7147296.042 | C18: 513211.948 | D18: 410.765 | F18: 7147296.038 | G18: 513211.935 | H18: 410.769 | I18: 7147296.013 | J18: 513211.931 | K18: 410.788 | L18: 7147295.993 | M18: 513211.935 | N18: 410.811 | O18: 0.02000000048 | P18: -0.004000000015 | Q18: -0.023 | R18: 0.02039607853 | S18: 2 | T18: 0 | U18: 2 | V18: 348.6900678 | W18: Surface area baseline to edge (66m base) | Z18: 339.562 | AA18: sq.m
A19: 5017 | B19: 7147295.197 | C19: 513214.799 | D19: 410.417 | F19: 7147295.192 | G19: 513214.802 | H19: 410.427 | I19: 7147295.154 | J19: 513214.797 | K19: 410.451 | L19: 7147295.129 | M19: 513214.795 | N19: 410.453 | O19: 0.02500000037 | P19: 0.002000000037 | Q19: -0.002 | R19: 0.02507987278 | S19: 2 | T19: 1 | U19: 3 | V19: 4.573921276 | W19: Average offset (66m base) | Z19: =Z18/65.989 -> 5.145736411 | AA19: m
A20: 5018 | B20: 7147294.349 | C20: 513217.671 | D20: 410.082 | F20: 7147294.339 | G20: 513217.668 | H20: 410.079 | I20: 7147294.304 | J20: 513217.677 | K20: 410.113 | L20: 7147294.296 | M20: 513217.669 | N20: 410.11 | O20: 0.007999999449 | P20: 0.008000000031 | Q20: 0.003 | R20: 0.01131370813 | S20: 2 | T20: 1 | U20: 3 | V20: 45.00000208 | W20: Total crack length | Z20: =B78 -> 123.9975
A21: 5019 | B21: 7147293.501 | C21: 513220.537 | D21: 409.753 | F21: 7147293.479 | G21: 513220.561 | H21: 409.755 | I21: 7147293.468 | J21: 513220.544 | K21: 409.771 | L21: 7147293.444 | M21: 513220.549 | N21: 409.774 | O21: 0.02400000021 | P21: -0.005000000005 | Q21: -0.003 | R21: 0.02451530155 | S21: 2 | T21: 0 | U21: 2 | V21: 348.2317112 | W21: Weighted average crack length | Z21: =D79 -> 0.1576515252
A22: 5020 | B22: 7147292.65 | C22: 513223.421 | D22: 409.412 | F22: 7147292.637 | G22: 513223.418 | H22: 409.405 | I22: 7147292.621 | J22: 513223.42 | K22: 409.417 | L22: 7147292.591 | M22: 513223.431 | N22: 409.422 | O22: 0.03000000026 | P22: -0.011 | Q22: -0.005 | R22: 0.03195309086 | S22: 2 | T22: 0 | U22: 2 | V22: 339.8636967
A23: 5021 | B23: 7147291.799 | C23: 513226.309 | D23: 409.047 | F23: 7147291.792 | G23: 513226.306 | H23: 409.041 | I23: 7147291.767 | J23: 513226.314 | K23: 409.051 | L23: 7147291.755 | M23: 513226.324 | N23: 409.056 | O23: 0.0120000001 | P23: -0.01000000001 | Q23: -0.005 | R23: 0.01562049944 | S23: 2 | T23: 0 | U23: 2 | V23: 320.1944291 | W23: Number of cracks | Z23: 30
A24: 5022 | B24: 7147290.951 | C24: 513229.177 | D24: 408.734 | F24: 7147290.93 | G24: 513229.193 | H24: 408.722 | I24: 7147290.92 | J24: 513229.191 | K24: 408.748 | L24: 7147290.913 | M24: 513229.195 | N24: 408.744 | O24: 0.007000000216 | P24: -0.004000000015 | Q24: 0.004 | R24: 0.008062257944 | S24: 2 | T24: 0 | U24: 2 | V24: 330.2551194
A25: 5000 | B25: 7147290.088 | C25: 513232.068 | D25: 408.452 | F25: 7147290.078 | G25: 513232.055 | H25: 408.463 | I25: 7147290.076 | J25: 513232.061 | K25: 408.458 | L25: 7147290.065 | M25: 513232.067 | N25: 408.454 | O25: 0.01099999994 | P25: -0.005999999994 | Q25: 0.004 | R25: 0.01252996403 | S25: 2 | T25: 0 | U25: 2 | V25: 331.3895402 | Y25: Control point | Z25: 3819
A26: 6027 | B26: 7147289.238 | C26: 513234.934 | D26: 408.128 | Y26: Std dev N | Z26: 0.0056
A27: 6026 | B27: 7147288.411 | C27: 513237.815 | D27: 407.861 | Y27: Std dev E | Z27: 0.0036
A28: 6025 | B28: 7147287.553 | C28: 513240.696 | D28: 407.582 | Y28: Avg accuracy | Z28: =(Z26^2+Z27^2)^0.5*100 -> 0.6657326791
A29: 6024 | B29: 7147286.718 | C29: 513243.573 | D29: 407.364 | AA29: 2.1 yrs | AB29: 1 yr | AD29: RPC
A30: 6023 | B30: 7147285.873 | C30: 513246.465 | D30: 407.113 | AA30: 2012-2014 | AB30: 2014-2015
A31: 6032 | B31: 7147312.909 | C31: 513154.374 | D31: 415.331 | Y31: baseline | Z31: Horizontal avg | AA31: =S64 -> 1.552769454 | AB31: =S92/1.02 -> 1.643016538 | AC31: cm/y | AD31: =(AB31-AA31)/AA31 -> 0.05812007993
A32: 6031 | B32: 7147312.082 | C32: 513157.252 | D32: 415.365 | Z32: horizontal azimuth | AA32: =X64 -> 354.4193487 | AB32: =X92 -> 14.43796003 | AD32: =360-AA32+AB32 -> 20.01861135
A33: 6030 | B33: 7147311.217 | C33: 513160.124 | D33: 415.422 | Z33: horizontal max | AA33: =S65 -> 3.131653922 | AB33: =S93/1.02 -> 3.191925597 | AC33: cm/y | AD33: =(AB33-AA33)/AA33 -> 0.01924595648
A34: 6029 | B34: 7147310.38 | C34: 513163.007 | D34: 415.506 | Z34: Vertical avg | AA34: =Q64*100/2.1 -> -1.169772257 | AB34: =Q92*100/1.02 -> 0.9548167093 | AC34: cm/y | AD34: =(AB34-AA34)/AA34 -> -1.816241541
A35: 6028 | B35: 7147309.536 | C35: 513165.888 | D35: 415.489 | Z35: vertical max | AA35: =Q65*100/2.1 -> -3.047619048 | AB35: =Q93*100/1.02 -> 3.431372549 | AD35: =(AB35-AA35)/AA35 -> -2.125919118
O36: =SUM(O3:O25) -> 0.3949999996 | P36: =SUM(P3:P25) -> -0.06 | Q36: =AVERAGE(Q3:Q25)/'[1]Gabion Structures movement'!$AJ$30*100 -> -0.2423941424 | R36: =AVERAGE(R3:R25) -> 0.01878649686 | S36: =R36*100 -> 1.878649686 | W36: Avg Bearing | X36: =270+ATAN(O36/ABS(P36))*180/PI() -> 351.3628686 | Y36: Edge | Z36: Edge lost avg | AA36: =(Z3-Z4)/66/2.1*100 -> 15.17243867 | AB36: =23.65/66/1.02*100 -> 35.13071895 | AC36: m/y | AD36: =(AB36-AA36)/AA36 -> 1.315429952
Q37: =MIN((Q3:Q25))*100 -> -2.6 | R37: =MAX(R3:R25) -> 0.03649657549 | S37: =R37*100 -> 3.649657549 | Z37: Edge lost max | AA37: =2.14/2.1*100 -> 101.9047619 | AB37: =2.06/1.02*100 -> 201.9607843 | AC37: m/y | AD37: =(AB37-AA37)/AA37 -> 0.9818581638
O39: Movement from 2012 to 2014
O40: dN | P40: dE | Q40: dZ | R40: Movement'
F41: NOTES: | O41: =F3-L3 -> 0.01299999934 | P41: =G3-M3 -> -0.003000000026 | Q41: =H3-N3 -> -0.015 | R41: =(O41^2+P41^2)^0.5 -> 0.01334166342 | S41: =IF(O41>0,2,0) -> 2 | T41: =IF(P41>0,1,0) -> 0 | U41: =SUM(S41:T41) -> 2 | V41: =IF(U41=3,(ATAN(P41/O41)*180/PI()),IF(U41=1,(90+ATAN(ABS(O41)/ABS(P41))*180/PI()),IF(U41=0,(180+ATAN(ABS(P41)/ABS(O41))*180/PI()),IF(U41=2,(270+ATAN(ABS(O41)/ABS(P41))*180/PI()),"ERROR")))) -> 347.0053825 | Z41: =(42-112)/112 -> -0.625
F42: 1 | G42: General movement trend from 2012 - 2014 is towards the NE | O42: =F4-L4 -> 0.004999999888 | P42: -0.01299999998 | Q42: -0.019 | R42: =(O42^2+P42^2)^0.5 -> 0.01392838822 | S42: 2 | T42: 0 | U42: 2 | V42: 291.0375106
F43: 2 | G43: Surface area is considered 2D | O43: =F5-L5 -> 0.001000000164 | P43: -0.02299999999 | Q43: -0.028 | R43: 0.02302172886 | S43: 2 | T43: 0 | U43: 2 | V43: 272.4895533
F44: 3 | G44: Exact crack location is not provided in the 2014 survey | O44: =F6-L6 -> 0.003999999724 | P44: -0.01000000001 | Q44: -0.015 | R44: 0.01077032952 | S44: 2 | T44: 0 | U44: 2 | V44: 291.8014081
O45: =F7-L7 -> 0.01699999999 | P45: -0.01799999998 | Q45: 0.002 | R45: 0.02475883679 | S45: 2 | T45: 0 | U45: 2 | V45: 313.363423
O46: =F8-L8 -> 0.006000000052 | P46: -0.01500000001 | Q46: -0.021 | R46: 0.01615549445 | S46: 2 | T46: 0 | U46: 2 | V46: 291.8014096
A47: Crack | B47: Length | C47: Width | D47: Product | O47: =F9-L9 -> 0.01299999934 | P47: -0.002999999968 | Q47: -0.023 | R47: 0.01334166341 | S47: 2 | T47: 0 | U47: 2 | V47: 347.0053827
A48: 6386-6388 | B48: 0.834 | C48: 0.1 | D48: =B48*C48 -> 0.0834 | O48: =F10-L10 -> 0.03500000015 | P48: -0.005000000005 | Q48: -0.01 | R48: 0.03535533921 | S48: 2 | T48: 0 | U48: 2 | V48: 351.8698977
A49: 6389 | B49: 0.2 | C49: 0.07 | D49: =B49*C49 -> 0.014 | O49: =F11-L11 -> 0.02600000054 | P49: 0 | Q49: -0.022 | R49: 0.02600000054 | S49: 2 | T49: 0 | U49: 2
A50: 6390 | B50: 0.15 | C50: 0.04 | D50: 0.006 | O50: =F12-L12 -> 0.02799999993 | P50: -0.011 | Q50: -0.036 | R50: 0.03008321785 | S50: 2 | T50: 0 | U50: 2 | V50: 338.5522636
A51: 6392-6393 | B51: 0.33 | C51: 0.2 | D51: 0.066 | O51: =F13-L13 -> 0.03399999999 | P51: -0.01199999999 | Q51: -0.027 | R51: 0.03605551274 | S51: 2 | T51: 0 | U51: 2 | V51: 340.5599652
A52: 6394-6409 | B52: 6.107 | C52: 0.1 | D52: 0.6107 | O52: =F14-L14 -> 0.02999999933 | P52: -0.004000000015 | Q52: -0.042 | R52: 0.03026549124 | S52: 2 | T52: 0 | U52: 2 | V52: 352.4053564
A53: 6410-6412 | B53: 0.579 | C53: 0.28 | D53: 0.16212 | O53: =F15-L15 -> 0.03899999987 | P53: 0.02299999999 | Q53: -0.039 | R53: 0.04527692557 | S53: 2 | T53: 1 | U53: 3 | V53: 30.52970597
A54: 6413-6415 | B54: 1.753 | C54: 0.15 | D54: 0.26295 | O54: =F16-L16 -> 0.04700000025 | P54: 0.02599999995 | Q54: -0.064 | R54: 0.05371219621 | S54: 2 | T54: 1 | U54: 3 | V54: 28.95099503
A55: 6427-6446 | B55: 1.0615 | C55: =(0.12+0.34)/2 -> 0.23 | D55: 0.244145 | O55: =F17-L17 -> 0.05800000019 | P55: 0.03100000002 | Q55: -0.043 | R55: 0.06576473237 | S55: 2 | T55: 1 | U55: 3 | V55: 28.12373532
A56: 6416-6426 | B56: 4.08 | C56: 0.12 | D56: 0.4896 | O56: =F18-L18 -> 0.04499999993 | P56: 0 | Q56: -0.042 | R56: 0.04499999993 | S56: 2 | T56: 0 | U56: 2
A57: 6455-6458 | B57: 1.187 | C57: 0.09 | D57: 0.10683 | O57: =F19-L19 -> 0.06300000008 | P57: 0.007000000041 | Q57: -0.026 | R57: 0.06338769605 | S57: 2 | T57: 1 | U57: 3 | V57: 6.340191775
A58: 6459-6471 | B58: 5.289 | C58: 0.1 | D58: 0.5289 | O58: =F20-L20 -> 0.0429999996 | P58: -0.0009999999893 | Q58: -0.031 | R58: 0.04301162593 | S58: 2 | T58: 0 | U58: 2 | V58: 358.6677801
A59: 6472-6499 | B59: 11.759 | C59: 0.17 | D59: 1.99903 | O59: =F21-L21 -> 0.03500000015 | P59: 0.01199999999 | Q59: -0.019 | R59: 0.03700000014 | S59: 2 | T59: 1 | U59: 3 | V59: 18.92464432
A60: 6503-6485 | B60: 3.766 | C60: 0.12 | D60: 0.45192 | O60: =F22-L22 -> 0.04600000009 | P60: -0.01299999998 | Q60: -0.017 | R60: 0.04780167369 | S60: 2 | T60: 0 | U60: 2 | V60: 344.2192467
A61: 6488-6491 | B61: 0.959 | C61: 0.12 | D61: 0.11508 | O61: =F23-L23 -> 0.03700000048 | P61: -0.01800000004 | Q61: -0.015 | R61: 0.04114608167 | S61: 2 | T61: 0 | U61: 2 | V61: 334.0577048
A62: 6500-6502 | B62: 1.039 | C62: 0.13 | D62: 0.13507 | O62: =F24-L24 -> 0.01699999999 | P62: -0.001999999979 | Q62: -0.022 | R62: 0.01711724276 | S62: 2 | T62: 0 | U62: 2 | V62: 353.2901633
A63: 6449-6447 | B63: 1.357 | C63: 0.13 | D63: 0.17641 | O63: =F25-L25 -> 0.01299999934 | P63: -0.01199999999 | Q63: 0.009 | R63: 0.01769180552 | S63: 2 | T63: 0 | U63: 2 | V63: 317.2906086
A64: 6450-6454 | B64: 2.557 | C64: 0.13 | D64: 0.33241 | O64: =SUM(O41:O63) -> 0.6549999984 | P64: =SUM(P41:P63) -> -0.06399999995 | Q64: =AVERAGE(Q41:Q63) -> -0.02456521739 | R64: =AVERAGE(R41:R63) -> 0.03260815853 | S64: =R64*100/2.1 -> 1.552769454 | W64: average bearting | X64: =270+ATAN(O64/ABS(P64))*180/PI() -> 354.4193487
A65: 6510-6528 | B65: 30.521 | C65: 0.25 | D65: 7.63025 | Q65: =MIN(Q41:Q63) -> -0.064 | R65: =MAX(R41:R63) -> 0.06576473237 | S65: =R65*100/2.1 -> 3.131653922
A66: 6523-6525 | B66: 3.247 | C66: 0.25 | D66: 0.81175 | Q66: =MIN(Q41:Q63) -> -0.064 | R66: =Q64*100/2.1 -> -1.169772257
A67: 6529-6531 | B67: 1.177 | C67: 0.1 | D67: 0.1177 | O67: Movement from 2014 to 2015
A68: 6532-6541 | B68: 9.56 | C68: 0.06 | D68: 0.5736 | O68: dN | P68: dE | Q68: dZ | R68: Movement'
A69: 6542-6546 | B69: 2.1 | C69: 0.07 | D69: 0.147 | O69: =B3-F3 -> 0.01000000071 | P69: =C3-G3 -> -0.005999999994 | Q69: =D3-H3 -> 0.029 | R69: =(O69^2+P69^2)^0.5 -> 0.01166190439 | S69: =IF(O69>0,2,0) -> 2 | T69: =IF(P69>0,1,0) -> 0 | U69: =SUM(S69:T69) -> 2 | V69: =IF(U69=3,(ATAN(P69/O69)*180/PI()),IF(U69=1,(90+ATAN(ABS(O69)/ABS(P69))*180/PI()),IF(U69=0,(180+ATAN(ABS(P69)/ABS(O69))*180/PI()),IF(U69=2,(270+ATAN(ABS(O69)/ABS(P69))*180/PI()),"ERROR")))) -> 329.0362453
A70: 6547-6551 | B70: 2.691 | C70: 0.15 | D70: 0.40365 | O70: =B4-F4 -> 0.01699999999 | P70: 0.0009999999893 | Q70: 0.034 | R70: =(O70^2+P70^2)^0.5 -> 0.01702938636 | S70: 2 | T70: 1 | U70: 3 | V70: 3.366460629
A71: 6552-6556 | B71: 2.196 | C71: 0.2 | D71: 0.4392 | O71: =B5-F5 -> 0.01899999939 | P71: 0.01799999998 | Q71: 0.035 | R71: 0.0261725042 | S71: 2 | T71: 1 | U71: 3 | V71: 43.45184319
A72: 6557-6566 | B72: 4.763 | C72: 0.2 | D72: 0.9526 | O72: =B6-F6 -> 0.01800000016 | P72: 0.002999999968 | Q72: 0.025 | R72: 0.01824828774 | S72: 2 | T72: 1 | U72: 3 | V72: 9.462322028
A73: 6567-6592 | B73: 12.118 | C73: 0.12 | D73: 1.45416 | O73: =B7-F7 -> 0.008999999613 | P73: 0.006999999983 | Q73: 0.013 | R73: 0.01140175393 | S73: 2 | T73: 1 | U73: 3 | V73: 37.87498478
A74: 6593-6595 | B74: 2.077 | C74: 0.1 | D74: 0.2077 | O74: =B8-F8 -> 0.01099999994 | P74: 0.01000000001 | Q74: 0.006 | R74: 0.01486606871 | S74: 2 | T74: 1 | U74: 3 | V74: 42.27368919
A75: 6596-6598 | B75: 0.926 | C75: 0.07 | D75: 0.06482 | O75: =B9-F9 -> 0.01300000027 | P75: -0.002000000037 | Q75: 0.013 | R75: 0.01315294671 | S75: 2 | T75: 0 | U75: 2 | V75: 351.2538378
A76: 6599-6607 | B76: 6.078 | C76: 0.1 | D76: 0.6078 | O76: =B10-F10 -> -0.003999999724 | P76: 0.002000000037 | Q76: 0.006 | R76: 0.004472135725 | S76: 0 | T76: 1 | U76: 1 | V76: 153.4349468
A77: 6608-6613 | B77: 3.536 | C77: 0.1 | D77: 0.3536 | O77: =B11-F11 -> 0.0139999995 | P77: 0.004000000015 | Q77: 0.014 | R77: 0.0145602193 | S77: 2 | T77: 1 | U77: 3 | V77: 15.9453965
A78: Total | B78: =SUM(B48:B77) -> 123.9975 | D78: =SUM(D48:D77) -> 19.548395 | O78: =B12-F12 -> 0.001000000164 | P78: 0.016 | Q78: 0.008 | R78: 0.01603121956 | S78: 2 | T78: 1 | U78: 3 | V78: 86.42366504
A79: Average | B79: =AVERAGE(B48:B77) -> 4.13325 | D79: =D78/B78 -> 0.1576515252 | O79: =B13-F13 -> 0.006999999285 | P79: 0.02600000001 | Q79: 0.016 | R79: 0.02692582386 | S79: 2 | T79: 1 | U79: 3 | V79: 74.93151332
A80: Max | B80: =MAX(B48:B77) -> 30.521 | O80: =B14-F14 -> 0.0120000001 | P80: 0.022 | Q80: 0.011 | R80: 0.02505992822 | S80: 2 | T80: 1 | U80: 3 | V80: 61.38954012
O81: =B15-F15 -> 0.01600000076 | P81: -0.0009999999893 | Q81: 0.009 | R81: 0.0160312203 | S81: 2 | T81: 0 | U81: 2 | V81: 356.4236658
O82: =B16-F16 -> 0.01900000032 | P82: -0.002999999968 | Q82: 0.007 | R82: 0.01923538437 | S82: 2 | T82: 0 | U82: 2 | V82: 351.0273736
B83: Offset from baseline | C83: Average | O83: =B17-F17 -> 0.0139999995 | P83: -0.02000000002 | Q83: -0.003 | R83: 0.02441311096 | S83: 2 | T83: 0 | U83: 2 | V83: 304.9920192
A84: 2012 | B84: 386.7 | C84: =B84/66 -> 5.859090909 | O84: =B18-F18 -> 0.004000000656 | P84: 0.01299999998 | Q84: -0.004 | R84: 0.01360147068 | S84: 2 | T84: 1 | U84: 3 | V84: 72.89726836
A85: 2014 | B85: 363.6 | C85: =B85/66 -> 5.509090909 | D85: =(C84-C85)/2.1*100 -> 16.66666667 | O85: =B19-F19 -> 0.004999999888 | P85: -0.003000000026 | Q85: -0.01 | R85: 0.005830951812 | S85: 2 | T85: 0 | U85: 2 | V85: 329.0362427
A86: 2015 | B86: 339.6 | C86: =B86/66 -> 5.145454545 | D86: =(C85-C86)/1.02*100 -> 35.65062389 | E86: =(D86-D85)/D85 -> 1.139037433 | O86: =B20-F20 -> 0.01000000071 | P86: 0.002999999968 | Q86: 0.003 | R86: 0.01044030718 | S86: 2 | T86: 1 | U86: 3 | V86: 16.69924295
O87: =B21-F21 -> 0.02199999988 | P87: -0.02399999998 | Q87: -0.002 | R87: 0.03255764109 | S87: 2 | T87: 0 | U87: 2 | V87: 312.510447
O88: =B22-F22 -> 0.01300000027 | P88: 0.002999999968 | Q88: 0.007 | R88: 0.01334166432 | S88: 2 | T88: 1 | U88: 3 | V88: 12.9946164
O89: =B23-F23 -> 0.006999999285 | P89: 0.003000000026 | Q89: 0.006 | R89: 0.007615772459 | S89: 2 | T89: 1 | U89: 3 | V89: 23.19859281
O90: =B24-F24 -> 0.02100000065 | P90: -0.016 | Q90: 0.012 | R90: 0.02640075808 | S90: 2 | T90: 0 | U90: 2 | V90: 322.6960526
O91: =B25-F25 -> 0.01000000071 | P91: 0.01300000004 | Q91: -0.011 | R91: 0.01640121993 | S91: 2 | T91: 1 | U91: 3 | V91: 52.43140609
O92: =SUM(O69:O91) -> 0.268000002 | P92: =SUM(P69:P91) -> 0.06899999996 | Q92: =AVERAGE(Q69:Q91) -> 0.009739130435 | R92: =AVERAGE(R69:R91) -> 0.01675876869 | S92: =R92*100 -> 1.675876869 | W92: average bearting | X92: =ATAN(P92/O92)*180/PI() -> 14.43796003
Q93: =MAX(Q69:Q91) -> 0.035 | R93: =MAX(R69:R91) -> 0.03255764109 | S93: =R93*100 -> 3.255764109
Q94: =MIN(Q69:Q91) -> -0.011

Sheet Downcutting
G1: 2006-2012 | J1: 2012-2014
A2: From | B2: To | C2: Downcutting 2006-2014 | D2: Downcutting 2006-2012 | F2: Creek Segment | G2: Upper | H2: Mid | I2: Lower | J2: Upper | K2: Mid | L2: Lower
A3: 0+000 | B3: 0+100 | C3: -2.5 | D3: -1 | F3: Max Downcutting (m) | G3: 4.56 | H3: 4.24 | I3: No 2012 data | J3: 2.45 | K3: 1.34 | L3: No 2012 data
A4: =B3 -> 0+100 | B4: 0+200 | C4: -5.4 | D4: -3.9 | F4: Downcutting Station | G4: 0+200 | H4: 0+200 | I4: No 2012 data | J4: 0+194.1 | K4: 0+864.2 | L4: No 2012 data
A5: =B4 -> 0+200 | B5: 0+300 | C5: -25.7 | D5: -26 | F5: Max Deposition (m) | G5: 0.35 | H5: 0.79 | I5: No 2012 data | J5: 1.21 | K5: 0.64 | L5: No 2012 data | U5: Days | V5: Yrs
A6: 0+300 | B6: 0+400 | C6: -15.9 | D6: -15.2 | F6: Deposition Station | G6: 0+036.6 | H6: 0+833 | I6: No 2012 data | J6: 0+197.3 | K6: 0+379.4 | L6: No 2012 data | O6: =(0.4*220+0.9*260)/480 -> 0.6708333333 | T6: 2004-2010 | U6: =[1]Bearing!C324-[1]Bearing!C319 -> 2250 | V6: =U6/365 -> 6.164383562
A7: 0+400 | B7: 0+500 | C7: -6.4 | D7: -1.7 | F7: Average Downcutting | G7: 3.95 | H7: 6.83 | I7: No 2012 data | J7: 1.54 | K7: 1.22 | L7: No 2012 data | T7: 2010 to 2012 | U7: 681 | V7: =U7/365 -> 1.865753425
A8: 0+500 | B8: 0+600 | C8: -6.5 | D8: -5.8 | F8: Average Deposition | G8: 0.27 | H8: 0.39 | I8: No 2012 data | J8: =0.6 -> 0.6 | K8: 0.35 | L8: No 2012 data | T8: 2012 to 2014 | U8: 766 | V8: =U8/365 -> 2.098630137
A9: 0+600 | B9: 0+700 | C9: -3.1 | D9: 4.3 | F9: Avg Horiz. Invert Shift | G9: 2.3 | H9: 28.3 | I9: No 2012 data | J9: 1.47 | K9: 2.9 | L9: No 2012 data | T9: 2003-2012 | U9: 3273 | V9: =U9/365 -> 8.967123288
A10: 0+700 | B10: 0+800 | C10: -2.1 | D10: 3.1 | F10: Max Horiz Invert Shift | G10: 7.3 | H10: 66.4 | I10: No 2012 data | J10: 3.9 | K10: 13.6 | L10: No 2012 data | T10: 2003-2014 | U10: 4041 | V10: =U10/365 -> 11.07123288
A11: 0+800 | B11: 0+900 | C11: -7.3 | D11: 3.1 | T11: 2014 to 2015 | V11: ='Clinton Movement'!H62 -> 1.016438356
A13: Average | C13: =AVERAGE(C3:C11) -> -8.322222222 | D13: =AVERAGE(D3:D11) -> -4.788888889
A14: Max | C14: =MAX(C3:C11) -> -2.1 | D14: =MAX(D3:D11) -> 4.3
A15: Min | C15: =MIN(C3:C11) -> -25.7 | D15: =MIN(D3:D11) -> -26
A16: Downcutting (2004-2010) | G16: Deposition (2004-2010) | M16: Horizontal Shift 2004-2010 | T16: Average Downcutting | Z16: RPC
A17: From | C17: Length | D17: Area | E17: Depth | G17: From | I17: Length | J17: Area | K17: Depth | M17: From | N17: Length | O17: Length | P17: Area | Q17: Shift | U17: 2004-2010 | V17: 2010-2012 | W17: 2012 to 2014 | X17: 2014 to 2015 | Z17: 2004-2010 | AA17: 2012 to 2014 | AB17: 2014-04-01
A18: 200 | B18: 420 | C18: =B18-A18 -> 220 | D18: 381 | E18: =D18/C18 -> 1.731818182 | F18: =(E18*C18+E19*C19)/480 -> 0.8504166667 | G18: 200 | H18: 420 | I18: 0 | J18: 0 | K18: 0 | M18: 200 | N18: 420 | O18: =N18-M18 -> 220 | P18: =2000-152 -> 1848 | Q18: =P18/O18 -> 8.4 | R18: South | T18: Upper Creek | U18: =(E18*C18+E19*C19)/480/V6*100 -> 13.79564815 | V18: =(E23*C23+E24*C24)/480/V7*100 -> 5.091776799 | W18: =(E28*C28+E29*C29)/480/V8*100 -> 6.462548956 | X18: =(C34*E34+C35*E35)/450/V11*100 -> 3.957172806 | Z18: =(V18-U18)/U18 -> -0.630914275 | AA18: =(W18-V18)/V18 -> 0.2692129312 | AB18: =(X18-W18)/W18 -> -0.3876761579
A19: 420 | B19: 680 | C19: =260-I19 -> 72 | D19: 27.2 | E19: =D19/C19 -> 0.3777777778 | G19: 420 | H19: 680 | I19: 188 | J19: 135 | K19: =J19/I19 -> 0.7180851064 | M19: 420 | N19: 680 | O19: =N19-M19 -> 260 | P19: 229 | Q19: =P19/O19 -> 0.8807692308 | T19: Mid Creek | U19: N/A | V19: =(E25*C25)/233/V7*100 -> 10.09844145 | W19: =(E30*C30)/233/V8*100 -> 30.90100741 | X19: =C36*E36/(B36-A36)/V11*100 -> 3.708669085 | AA19: =(W19-V19)/V19 -> 2.059977875 | AB19: =(X19-W19)/W19 -> -0.8799822596
A20: Max | C20: Sta | M20: Max | O20: Sta
A21: Downcutting (2010-2012) | G21: Deposition (2010-2012) | M21: Horizontal Shift 2010-2012 | T21: Average Deposition
A22: From | C22: Length | D22: Area | E22: Depth | G22: From | I22: Length | J22: Area | K22: Depth | M22: From | N22: Length | O22: Length | P22: Area | Q22: Shift | U22: 2006-2010 | V22: 2010-2012 | W22: 2012 to 2014 | X22: 2014 to 2015
A23: 200 | B23: 420 | C23: 76.5 | D23: 10.8 | E23: =D23/C23 -> 0.1411764706 | G23: 200 | H23: 420 | I23: =C18-C23 -> 143.5 | J23: 18.83 | K23: =J23/I23 -> 0.1312195122 | M23: 200 | N23: 420 | O23: =N23-M23 -> 220 | P23: 397.5 | Q23: =P23/O23 -> 1.806818182 | T23: Upper Creek | U23: =(K19*I19)/480/V6*100 -> 4.5625 | V23: =(K23*I23+K24*I24)/480/V7*100 -> 4.612747797 | W23: =(K28*I28+K29*I29)/480/V8*100 -> 2.203818538 | X23: =(I34*K34+I35*K35)/450/V11*100 -> 13.31446541 | Z23: =(V23-U23)/U23 -> 0.01101321586 | AA23: =(W23-V23)/V23 -> -0.5222330301 | AB23: =(X23-W23)/W23 -> 5.04154343
A24: 420 | B24: 680 | C24: 156.7 | D24: 34.8 | E24: =D24/C24 -> 0.2220804084 | G24: 420 | H24: 680 | I24: =H24-G24-C24 -> 103.3 | J24: 22.48 | K24: =J24/I24 -> 0.2176185866 | M24: 420 | N24: 680 | O24: =N24-M24 -> 260 | P24: 91.8 | Q24: =P24/O24 -> 0.3530769231 | T24: Mid Creek | U24: N/A | V24: =K25*I25/233/V7*100 -> 0.204729223 | W24: =K30*I30/233/V8*100 -> 0.5112674952 | X24: =(I36*K36)/(H36-G36)/V11*100 -> 8.189977562 | AA24: =(W24-V24)/V24 -> 1.497286356 | AB24: =(X24-W24)/W24 -> 15.01896784
A25: 680 | B25: 913 | C25: 222.4 | D25: 43.9 | E25: =D25/C25 -> 0.1973920863 | G25: 680 | H25: 913 | I25: =B25-A25-C25 -> 10.6 | J25: 0.89 | K25: =J25/I25 -> 0.08396226415 | M25: 680 | N25: 913 | O25: =N25-M25 -> 233 | P25: 232.5 | Q25: =P25/O25 -> 0.9978540773
A26: Downcutting (2012-2014) | G26: Deposition (2012-2014) | M26: Horizontal Shift 2012-2014 | T26: Average Shift
A27: From | C27: Length | D27: Area | E27: Depth | G27: From | I27: Length | J27: Area | K27: Depth | M27: From | N27: Length | O27: Length | P27: Area | Q27: Shift | U27: 2006-2010 | V27: 2010-2012 | W27: 2012 to 2014 | X27: 2014 to 2015
A28: 200 | B28: 420 | C28: 99.3 | D28: 11.9 | E28: =D28/C28 -> 0.1198388721 | G28: 200 | H28: 420 | I28: =C18-C28 -> 120.7 | J28: 17.1 | K28: =J28/I28 -> 0.1416735708 | M28: 200 | N28: 420 | O28: =O23 -> 220 | P28: 163.2 | Q28: =P28/O28 -> 0.7418181818 | T28: Upper Creek | U28: =(Q18*O18+Q19*O19)/480/V6 -> 0.7019490741 | V28: =(Q23*O23+Q24*O24)/480/V7 -> 0.5463610499 | W28: =(Q28*O28+Q29*O29)/480/V8 -> 0.5114447346 | X28: =(O34*Q34+O35*Q35)/450/V11 -> 0.7017969452 | Z28: =(V28-U28)/U28 -> -0.2216514415 | AA28: =(W28-V28)/V28 -> -0.06390703616 | AB28: =(W28-U28)/U28 -> -0.271393391
A29: 420 | B29: 680 | C29: 222.6 | D29: 53.2 | E29: =D29/C29 -> 0.2389937107 | G29: 420 | H29: 680 | I29: =H29-G29-C29 -> 37.4 | J29: 5.1 | K29: =J29/I29 -> 0.1363636364 | M29: 420 | N29: 680 | O29: =N29-M29 -> 260 | P29: 352 | Q29: =P29/O29 -> 1.353846154 | T29: Mid Creek | U29: N/A | V29: =Q25/V7 -> 0.534826341 | W29: =Q30/V8 -> 0.5550319927 | X29: =Q36/V11 -> 0.3914706256 | AA29: =(W29-V29)/V29 -> 0.0377798366
A30: 680 | B30: 913 | C30: 224.7 | D30: 151.1 | E30: =D30/C30 -> 0.6724521584 | G30: 680 | H30: 913 | I30: =B30-A30-C30 -> 8.3 | J30: 2.5 | K30: =J30/I30 -> 0.3012048193 | M30: 680 | N30: 913 | O30: =N30-M30 -> 233 | P30: 271.4 | Q30: =P30/O30 -> 1.164806867
A32: Downcutting (2014-2015) | G32: Deposition (2014-2015) | M32: Horizontal Shift 2014-2015
A33: From | C33: Length | D33: Area | E33: Depth | G33: From | I33: Length | J33: Area | K33: Depth | M33: From | N33: Length | O33: Length | P33: Area | Q33: Shift
A34: 230 | B34: 420 | C34: =B34-A34-I34 -> 95.1 | D34: 10.3 | E34: =D34/C34 -> 0.1083070452 | G34: 230 | H34: 420 | I34: 94.9 | J34: 11.1 | K34: =J34/I34 -> 0.1169652266 | M34: 230 | N34: 420 | O34: =N34-M34 -> 190 | P34: =195-119 -> 76 | Q34: =P34/O34 -> 0.4 | R34: south
A35: 420 | B35: 680 | C35: 69.8 | D35: 7.8 | E35: =D35/C35 -> 0.111747851 | G35: 420 | H35: 680 | I35: =H35-G35-C35 -> 190.2 | J35: 49.8 | K35: =J35/I35 -> 0.261829653 | M35: 420 | N35: 680 | O35: =N35-M35 -> 260 | P35: 245 | Q35: =P35/O35 -> 0.9423076923 | R35: south
A36: 680 | B36: 871 | C36: 101.2 | D36: 7.2 | E36: =D36/C36 -> 0.07114624506 | G36: 680 | H36: 871 | I36: =H36-G36-C36 -> 89.8 | J36: 15.9 | K36: =J36/I36 -> 0.1770601336 | M36: 680 | N36: 871 | O36: =N36-M36 -> 191 | P36: 76 | Q36: =P36/O36 -> 0.3979057592 | R36: south

Sheet Drop Structures - TF
A1: Point | B1: Date | C1: Northing | D1: Easting | E1: Distance | G1: dn | H1: de | I1: Movement | J1: Timeframe | K1: Average | M1: Period | N1: Duration | O1: DS-1 US | P1: DS-1 DS | Q1: DS-1 | R1: DS-2 US | S1: DS-2 DS | T1: DS-2 | U1: DS-3 US | V1: DS-3 DS | W1: DS-3 | AD1: 26.5
A2: 1450 | B2: 2006-07-28 | C2: 7147441.3 | D2: 512890.12 | E2: =((C8-C2)^2+(D8-D2)^2)^0.5 -> 27.57902464 | G2: =C3-C2 -> -0.01999999955 | H2: =D3-D2 -> 0.01000000001 | I2: =(G2^2+H2^2)^0.5*100 -> 2.236067938 | J2: DS-A | K2: =(I2+I8)/2/$N$2 -> 0.9913684098 | M2: DS-A | N2: =(B3-B2)/365 -> 3.980821918 | O2: =K2 -> 0.9913684098 | P2: =K14 -> 1.3781736 | Q2: =(O2+P2)/2 -> 1.184771005 | R2: =K26 -> 0.9835848028 | S2: =K38 -> 2.474403225 | T2: =(R2+S2)/2 -> 1.728994014 | U2: =K50 -> 2.977648714 | V2: =K62 -> 0.9057303674 | W2: =(U2+V2)/2 -> 1.941689541 | AD2: 26.4
A3: 1450 | B3: 2010-07-20 | C3: 7147441.28 | D3: 512890.13 | G3: =C4-C3 -> -0.02000000048 | H3: =D4-D3 -> 0.01000000001 | I3: =(G3^2+H3^2)^0.5*100 -> 2.236068021 | J3: DS-B | K3: =(I3+I9)/2/$N$3 -> 12.18156459 | M3: DS-B | N3: =(B4-B3)/365 -> 0.1835616438 | O3: =K3 -> 12.18156459 | P3: =K15 -> 5.447761199 | Q3: =(O3+P3)/2 -> 8.814662896 | R3: =K27 -> 12.18156459 | S3: =K39 -> 9.942931176 | T3: =(R3+S3)/2 -> 11.06224788 | U3: =K51 -> 13.7950801 | V3: =K63 -> 7.704297683 | W3: =AVERAGE(I45,I51,I69)/N3 -> 11.76481923 | AD3: =(AD2-AD1)/AD1 -> -0.003773584906
A4: 1450 | B4: 2010-09-25 | C4: 7147441.26 | D4: 512890.14 | G4: =C5-C4 -> -0.04399999976 | H4: =D5-D4 -> 0.005999999994 | I4: =(G4^2+H4^2)^0.5*100 -> 4.440720639 | J4: DS-C | K4: =(I4+I10)/2/$N$4 -> 2.556538313 | M4: DS-C | N4: =(B5-B4)/365 -> 1.865753425 | O4: 2.556538313 | P4: 1.071953036 | Q4: 1.814245675 | R4: 3.789926241 | S4: 5.676266945 | T4: 4.733096593 | U4: 2.273955739 | V4: 0 | W4: =(U4+V4)/2 -> 1.136977869
A5: 1450 | B5: 2012-08-06 | C5: 7147441.216 | D5: 512890.146 | G5: 0.04700000025 | H5: -0.002000000037 | I5: =(G5^2+H5^2)^0.5*100 -> 4.70425342 | J5: DS-D | K5: =(I5+I11)/2/$N$5 -> 2.026457377 | M5: DS-D | N5: =(B6-B5)/365 -> 2.098630137 | O5: 2.026457377 | P5: 1.574171617 | Q5: 1.800314497 | R5: 1.995802784 | S5: 3.581648097 | T5: 2.78872544 | U5: 2.39786604 | V5: 2.041088842 | W5: 2.219477441
A6: 1450 | B6: 2014-09-11 | C6: 7147441.263 | D6: 512890.144 | G6: -0.0290000001 | H6: -0.007999999973 | I6: =(G6^2+H6^2)^0.5*100 -> 3.0083218 | J6: DS-E | K6: =(I6+I12)/2/$N$6 -> 1.69982535 | M6: DS-E | N6: =(B7-B6)/365 -> 1.016438356 | O6: 1.69982535 | P6: 1.555885146 | Q6: 1.627855248 | R6: 2.913301151 | S6: 5.411302966 | T6: 4.162302059 | U6: 5.294242267 | V6: 4.535220688 | W6: 4.914731477
A7: 1450 | B7: 2015-09-17 | C7: 7147441.234 | D7: 512890.136 | E7: =((C13-C7)^2+(D13-D7)^2)^0.5 -> 27.48907174 | Q7: =(Q6-Q5)/Q5 -> -0.0957939564 | T7: =(T6-T5)/T5 -> 0.4925463792 | W7: =(W6-W5)/W5 -> 1.21436424
A8: 1451 | B8: 2006-07-28 | C8: 7147413.79 | D8: 512888.17 | G8: =C9-C8 -> 0.04000000004 | H8: =D9-D8 -> -0.03999999998 | I8: =(G8^2+H8^2)^0.5*100 -> 5.656854251 | J8: DS-A
A9: 1451 | B9: 2010-07-20 | C9: 7147413.83 | D9: 512888.13 | G9: =C10-C9 -> -0.02000000048 | H9: =D10-D9 -> 0.01000000001 | I9: =(G9^2+H9^2)^0.5*100 -> 2.236068021 | J9: DS-B | N9: DS-1 | O9: DS-2 | P9: DS-3
A10: 1451 | B10: 2010-09-25 | C10: 7147413.81 | D10: 512888.14 | G10: 0.05000000075 | H10: -0.01000000001 | I10: =(G10^2+H10^2)^0.5*100 -> 5.099019587 | J10: DS-C | M10: 2006-07-28 | N10: =Q2 -> 1.184771005 | O10: =T2 -> 1.728994014 | P10: =W2 -> 1.941689541
A11: 1451 | B11: 2012-08-06 | C11: 7147413.86 | D11: 512888.13 | G11: -0.03800000064 | H11: 0.0009999999893 | I11: =(G11^2+H11^2)^0.5*100 -> 3.801315626 | J11: DS-D | M11: 2010-07-20 | N11: =Q2 -> 1.184771005 | O11: =T2 -> 1.728994014 | P11: =W2 -> 1.941689541
A12: 1451 | B12: 2014-09-11 | C12: 7147413.822 | D12: 512888.131 | G12: -0.003999999724 | H12: 0.001999999979 | I12: =(G12^2+H12^2)^0.5*100 -> 0.4472135699 | J12: DS-E | M12: 2010-07-20 | N12: =Q3 -> 8.814662896 | O12: =T3 -> 11.06224788 | P12: =W3 -> 11.76481923
A13: 1451 | B13: 2015-09-17 | C13: 7147413.818 | D13: 512888.133 | M13: 2010-09-25 | N13: =Q3 -> 8.814662896 | O13: =T3 -> 11.06224788 | P13: =W3 -> 11.76481923
A14: 1452 | B14: 2006-07-28 | C14: 7147411.88 | D14: 512892.07 | E14: =((C20-C14)^2+(D20-D14)^2)^0.5 -> 28.8231747 | G14: =C15-C14 -> 0.04999999981 | H14: =D15-D14 -> -0.06 | I14: =(G14^2+H14^2)^0.5*100 -> 7.810249664 | J14: DS-A | K14: =(I14+I20)/2/$N$2 -> 1.3781736 | M14: 2010-09-25 | N14: =Q4 -> 1.814245675 | O14: =T4 -> 4.733096593 | P14: =W4 -> 1.136977869
A15: 1452 | B15: 2010-07-20 | C15: 7147411.93 | D15: 512892.01 | G15: =C16-C15 -> 0 | H15: =D16-D15 -> -0.01000000001 | I15: =(G15^2+H15^2)^0.5*100 -> 1.000000001 | J15: DS-B | K15: =(I15+I21)/2/$N$3 -> 5.447761199 | M15: 2012-08-06 | N15: =Q4 -> 1.814245675 | O15: =T4 -> 4.733096593 | P15: =W4 -> 1.136977869
A16: 1452 | B16: 2010-09-25 | C16: 7147411.93 | D16: 512892 | G16: 0.02000000048 | H16: 0 | I16: =(G16^2+H16^2)^0.5*100 -> 2.000000048 | J16: DS-C | K16: =(I16+I22)/$N$4 -> 1.071953036 | M16: 2012-08-06 | N16: =Q5 -> 1.800314497 | O16: =T5 -> 2.78872544 | P16: =W5 -> 2.219477441
A17: 1452 | B17: 2012-08-06 | C17: 7147411.95 | D17: 512892 | E17: =((C23-C17)^2+(D23-D17)^2)^0.5 -> 28.68858484 | G17: -0.02199999988 | H17: -0.02799999999 | I17: =(G17^2+H17^2)^0.5*100 -> 3.560898755 | J17: DS-D | K17: =(I17+I23)/2/$N$5 -> 1.574171617 | M17: 2014-09-11 | N17: =Q5 -> 1.800314497 | O17: =T5 -> 2.78872544 | P17: =W5 -> 2.219477441
A18: 1452 | B18: 2014-09-11 | C18: 7147411.928 | D18: 512891.972 | G18: 0.01099999994 | H18: 0.007999999973 | I18: =(G18^2+H18^2)^0.5*100 -> 1.360147044 | J18: DS-E | K18: =(I18+I24)/2/$N$6 -> 1.555885146 | M18: 2014-09-11 | N18: =Q6 -> 1.627855248 | O18: =T6 -> 4.162302059 | P18: =W6 -> 4.914731477
A19: 1452 | B19: 2015-09-17 | C19: 7147411.939 | D19: 512891.98 | E19: =((C25-C19)^2+(D25-D19)^2)^0.5 -> 28.66114952 | M19: 2015-09-17 | N19: =Q6 -> 1.627855248 | O19: =T6 -> 4.162302059 | P19: =W6 -> 4.914731477
A20: 1453 | B20: 2006-07-28 | C20: 7147439.11 | D20: 512901.52 | G20: =C21-C20 -> -0.03000000026 | H20: =D21-D20 -> -0.01000000001 | I20: =(G20^2+H20^2)^0.5*100 -> 3.162277685 | J20: DS-A
A21: 1453 | B21: 2010-07-20 | C21: 7147439.08 | D21: 512901.51 | G21: =C22-C21 -> 0 | H21: =D22-D21 -> -0.01000000001 | I21: =(G21^2+H21^2)^0.5*100 -> 1.000000001 | J21: DS-B
A22: 1453 | B22: 2010-09-25 | C22: 7147439.08 | D22: 512901.5 | J22: DS-C
A23: 1453 | B23: 2012-08-06 | C23: 7147439.02 | D23: 512901.5 | F23: Reestablished | G23: -0.02799999993 | H23: -0.01199999999 | I23: =(G23^2+H23^2)^0.5*100 -> 3.046309236 | J23: DS-D
A24: 1453 | B24: 2014-09-11 | C24: 7147438.992 | D24: 512901.488 | G24: -0.01699999999 | H24: 0.005999999994 | I24: =(G24^2+H24^2)^0.5*100 -> 1.802775637 | J24: DS-E
A25: 1453 | B25: 2015-09-17 | C25: 7147438.975 | D25: 512901.494
A26: 1454 | B26: 2006-07-28 | C26: 7147423.24 | D26: 512948.59 | E26: =((C32-C26)^2+(D32-D26)^2)^0.5 -> 27.62249989 | G26: =C27-C26 -> 0 | H26: =D27-D26 -> -0.02000000002 | I26: =(G26^2+H26^2)^0.5*100 -> 2.000000002 | J26: DS-A | K26: =(I26+I32)/2/$N$2 -> 0.9835848028
A27: 1454 | B27: 2010-07-20 | C27: 7147423.24 | D27: 512948.57 | G27: =C28-C27 -> -0.02000000048 | H27: =D28-D27 -> 0.01000000001 | I27: =(G27^2+H27^2)^0.5*100 -> 2.236068021 | J27: DS-B | K27: =(I27+I33)/2/$N$3 -> 12.18156459
A28: 1454 | B28: 2010-09-25 | C28: 7147423.22 | D28: 512948.58 | J28: DS-C | K28: =(I28+I34)/$N$4 -> 3.789926241
A29: 1454 | B29: 2012-08-06 | C29: 7147423.17 | D29: 512948.56 | E29: =((C35-C29)^2+(D35-D29)^2)^0.5 -> 27.44864295 | F29: Reestablished | G29: 0.03299999982 | H29: 0.01699999999 | I29: =(G29^2+H29^2)^0.5*100 -> 3.712142222 | J29: DS-D | K29: =(I29+I35)/2/$N$5 -> 1.995802784
A30: 1454 | B30: 2014-09-11 | C30: 7147423.203 | D30: 512948.577 | G30: -0.02300000004 | H30: -0.01500000001 | I30: =(G30^2+H30^2)^0.5*100 -> 2.745906048 | J30: DS-E | K30: =(I30+I36)/2/$N$6 -> 2.913301151 | O30: 1900-01-01
A31: 1454 | B31: 2015-09-17 | C31: 7147423.18 | D31: 512948.562 | E31: =((C37-C31)^2+(D37-D31)^2)^0.5 -> 27.48124722 | O31: =B7-O30 -> 42263
A32: 1455 | B32: 2006-07-28 | C32: 7147397.03 | D32: 512939.87 | G32: =C33-C32 -> 0.04999999981 | H32: =D33-D32 -> 0.03000000003 | I32: =(G32^2+H32^2)^0.5*100 -> 5.83095188 | J32: DS-A
A33: 1455 | B33: 2010-07-20 | C33: 7147397.08 | D33: 512939.9 | G33: =C34-C33 -> -0.02000000048 | H33: =D34-D33 -> -0.01000000001 | I33: =(G33^2+H33^2)^0.5*100 -> 2.236068021 | J33: DS-B
A34: 1455 | B34: 2010-09-25 | C34: 7147397.06 | D34: 512939.89 | G34: 0.05000000075 | H34: 0.04999999999 | I34: =(G34^2+H34^2)^0.5*100 -> 7.071067864 | J34: DS-C
A35: 1455 | B35: 2012-08-06 | C35: 7147397.11 | D35: 512939.94 | G35: -0.04000000004 | H35: -0.02399999998 | I35: =(G35^2+H35^2)^0.5*100 -> 4.664761518 | J35: DS-D | M35: 2015
A36: 1455 | B36: 2014-09-11 | C36: 7147397.07 | D36: 512939.916 | G36: 0.01499999966 | H36: 0.02799999999 | I36: =(G36^2+H36^2)^0.5*100 -> 3.176476018 | J36: DS-E | M36: Parameter | N36: DS-1 US | O36: DS-1 DS | P36: DS-1 | Q36: DS-2 US | R36: DS-2 DS | S36: DS-2 | T36: DS-3 US | U36: DS-3 DS | V36: DS-3
A37: 1455 | B37: 2015-09-17 | C37: 7147397.085 | D37: 512939.944 | M37: Bottom Width | N37: 6.5 | O37: 6.37 | P37: =(N37+O37)/2 -> 6.435 | Q37: 6.9 | R37: 6.4 | S37: =(Q37+R37)/2 -> 6.65 | T37: 7.06 | U37: 5.7 | V37: =(T37+U37)/2 -> 6.38
A38: 1456 | B38: 2006-07-28 | C38: 7147392.7 | D38: 512951.21 | E38: =((C44-C38)^2+(D44-D38)^2)^0.5 -> 28.61719937 | G38: =C39-C38 -> 0.1600000001 | H38: =D39-D38 -> 0.07000000001 | I38: =(G38^2+H38^2)^0.5*100 -> 17.46424921 | J38: DS-A | K38: =(I38+I44)/2/$N$2 -> 2.474403225 | M38: Left Side Slope | N38: 3.3 | O38: 3.9 | Q38: 2.5 | R38: 2.9 | T38: 2.7 | U38: 3.2
A39: 1456 | B39: 2010-07-20 | C39: 7147392.86 | D39: 512951.28 | G39: =C40-C39 -> -0.01000000071 | H39: =D40-D39 -> -0.01000000001 | I39: =(G39^2+H39^2)^0.5*100 -> 1.414213613 | J39: DS-B | K39: =(I39+I45)/2/$N$3 -> 9.942931176 | M39: Right Side Slope | N39: 3 | O39: 4 | Q39: 3.56 | R39: 3.5 | T39: 3.2 | U39: 4.1
A40: 1456 | B40: 2010-09-25 | C40: 7147392.85 | D40: 512951.27 | G40: 0.1500000004 | H40: 0.03999999998 | I40: =(G40^2+H40^2)^0.5*100 -> 15.52417473 | J40: DS-C | K40: =(I40+I46)/2/$N$4 -> 5.676266945 | M40: Average | P40: =AVERAGE(N38:O39) -> 3.55 | S40: =AVERAGE(Q38:R39) -> 3.115 | V40: =AVERAGE(T38:U39) -> 3.3
A41: 1456 | B41: 2012-08-06 | C41: 7147393 | D41: 512951.31 | G41: 0.09499999974 | H41: 0.02100000001 | I41: =(G41^2+H41^2)^0.5*100 -> 9.729337054 | J41: DS-D | K41: =(I41+I47)/2/$N$5 -> 3.581648097 | M41: US Invert | P41: 411.11 | S41: 409.54 | V41: 406.66
A42: 1456 | B42: 2014-09-11 | C42: 7147393.095 | D42: 512951.331 | G42: 0.06600000057 | H42: 0.02299999999 | I42: =(G42^2+H42^2)^0.5*100 -> 6.989277556 | J42: DS-E | K42: =(I42+I48)/2/$N$6 -> 5.411302966 | M42: DS Invert | P42: 409.79 | S42: 406.97 | V42: 404.53
A43: 1456 | B43: 2015-09-17 | C43: 7147393.161 | D43: 512951.354 | E43: =((C49-C43)^2+(D49-D43)^2)^0.5 -> 28.07355213 | M43: End Area | N43: =64.3/2 -> 32.15 | O43: =43.4/2 -> 21.7 | P43: =AVERAGE(N43:O43) -> 26.925 | Q43: =65.4/2 -> 32.7 | R43: =61.5/2 -> 30.75 | S43: =AVERAGE(Q43:R43) -> 31.725 | T43: =66.1/2 -> 33.05 | U43: =62/2 -> 31 | V43: =AVERAGE(T43:U43) -> 32.025
A44: 1457 | B44: 2006-07-28 | C44: 7147420.5 | D44: 512958 | F44: =((C44-C38)^2+(D44-D38)^2)^0.5 -> 28.61719937 | G44: =C45-C44 -> -0.009999999776 | H44: =D45-D44 -> 0.02000000002 | I44: =(G44^2+H44^2)^0.5*100 -> 2.236067969 | J44: DS-A
A45: 1457 | B45: 2010-07-20 | C45: 7147420.49 | D45: 512958.02 | F45: 28.44019163 | G45: =C46-C45 -> -0.009999999776 | H45: =D46-D45 -> -0.02000000002 | I45: =(G45^2+H45^2)^0.5*100 -> 2.236067969 | J45: DS-B | M45: 2014
A46: 1457 | B46: 2010-09-25 | C46: 7147420.48 | D46: 512958 | F46: 28.43782341 | G46: -0.04000000004 | H46: -0.03999999998 | I46: =(G46^2+H46^2)^0.5*100 -> 5.656854251 | J46: DS-C | M46: Parameter | N46: DS-1 US | O46: DS-1 DS | P46: DS-1 | Q46: DS-2 US | R46: DS-2 DS | S46: DS-2 | T46: DS-3 US | U46: DS-3 DS | V46: DS-3
A47: 1457 | B47: 2012-08-06 | C47: 7147420.44 | D47: 512957.96 | F47: 28.23430715 | G47: 0.03799999971 | H47: 0.03699999995 | I47: =(G47^2+H47^2)^0.5*100 -> 5.303772218 | J47: DS-D | M47: Bottom Width | N47: 7.7 | O47: 9.8 | P47: 8.2 | S47: 7.7 | V47: 7.8
A48: 1457 | B48: 2014-09-11 | C48: 7147420.478 | D48: 512957.997 | F48: 28.18269407 | G48: -0.04000000004 | H48: -0.002999999968 | I48: =(G48^2+H48^2)^0.5*100 -> 4.011234228 | J48: DS-E | M48: Left Side Slope
A49: 1457 | B49: 2015-09-17 | C49: 7147420.438 | D49: 512957.994 | F49: 28.07355213 | M49: Right Side Slope
A50: 1458 | B50: 2006-07-28 | C50: 7147412.17 | D50: 512986.91 | E50: =((C56-C50)^2+(D56-D50)^2)^0.5 -> 27.2725283 | G50: =C51-C50 -> -0.01999999955 | H50: =D51-D50 -> 0.01000000001 | I50: =(G50^2+H50^2)^0.5*100 -> 2.236067938 | J50: DS-A | K50: =(I50+I56)/2/$N$2 -> 2.977648714 | M50: Average | P50: 3.7 | S50: 3.5 | V50: 3.6
A51: 1458 | B51: 2010-07-20 | C51: 7147412.15 | D51: 512986.92 | G51: =C52-C51 -> -0.02000000048 | H51: =D52-D51 -> -0.01999999996 | I51: =(G51^2+H51^2)^0.5*100 -> 2.828427156 | J51: DS-B | K51: =(I51+I57)/2/$N$3 -> 13.7950801 | M51: US Invert | P51: 411.15 | S51: 409.5 | V51: 406.69
A52: 1458 | B52: 2010-09-25 | C52: 7147412.13 | D52: 512986.9 | G52: -0.03000000026 | H52: -0.03000000003 | I52: =(G52^2+H52^2)^0.5*100 -> 4.242640708 | J52: DS-C | K52: =(I52+I58)/$N$4 -> 2.273955739 | M52: DS Invert | P52: 409.9 | S52: 406.99 | V52: 404.42
A53: 1458 | B53: 2012-08-06 | C53: 7147412.1 | D53: 512986.87 | E53: =((C59-C53)^2+(D59-D53)^2)^0.5 -> 26.46588748 | G53: 0.04300000053 | H53: 0.02399999998 | I53: =(G53^2+H53^2)^0.5*100 -> 4.924428946 | J53: DS-D | K53: =(I53+I59)/2/$N$5 -> 2.39786604 | M53: End Area | N53: =66.3/2 -> 33.15 | O53: 22.2 | P53: =AVERAGE(N53:O53) -> 27.675 | Q53: =67.6/2 -> 33.8 | R53: =58/2 -> 29 | S53: =AVERAGE(Q53:R53) -> 31.4 | T53: =66.1/2 -> 33.05 | U53: =59/2 -> 29.5 | V53: =AVERAGE(T53:U53) -> 31.275
A54: 1458 | B54: 2014-09-11 | C54: 7147412.143 | D54: 512986.894 | G54: -0.05099999998 | H54: 0.002000000037 | I54: =(G54^2+H54^2)^0.5*100 -> 5.10392006 | J54: DS-E | K54: =(I54+I60)/2/$N$6 -> 5.294242267
A55: 1458 | B55: 2015-09-17 | C55: 7147412.092 | D55: 512986.896 | E55: =((C61-C55)^2+(D61-D55)^2)^0.5 -> 26.36779771 | M55: 2006
A56: 1459 | B56: 2006-07-28 | C56: 7147385.79 | D56: 512979.99 | G56: =C57-C56 -> 0.1900000004 | H56: =D57-D56 -> 0.1 | I56: =(G56^2+H56^2)^0.5*100 -> 21.47091059 | J56: DS-A | M56: Parameter | P56: DS-1 | S56: DS-2 | V56: DS-3
A57: 1459 | B57: 2010-07-20 | C57: 7147385.98 | D57: 512980.09 | G57: =C58-C57 -> -0.01000000071 | H57: =D58-D57 -> 0.01999999996 | I57: =(G57^2+H57^2)^0.5*100 -> 2.236068006 | J57: DS-B | M57: Bottom Width | P57: 6.9 | S57: 6.3 | V57: 6.3
A58: 1459 | B58: 2010-09-25 | C58: 7147385.97 | D58: 512980.11 | J58: DS-C | M58: Left Side Slope
A59: 1459 | B59: 2012-08-06 | C59: 7147386.46 | D59: 512980.31 | F59: Reestablished | G59: 0.0410000002 | H59: 0.03100000002 | I59: =(G59^2+H59^2)^0.5*100 -> 5.140038927 | J59: DS-D | M59: Right Side Slope
A60: 1459 | B60: 2014-09-11 | C60: 7147386.501 | D60: 512980.341 | G60: 0.0410000002 | H60: 0.03899999999 | I60: =(G60^2+H60^2)^0.5*100 -> 5.658621754 | J60: DS-E | M60: Average | P60: 3.2 | S60: 3.1 | V60: 3.2
A61: 1459 | B61: 2015-09-17 | C61: 7147386.542 | D61: 512980.38 | M61: US Invert | P61: 406.7 | S61: 409.76 | V61: 406.97
A62: 1460 | B62: 2006-07-28 | C62: 7147382.48 | D62: 512988.03 | E62: =((C68-C62)^2+(D68-D62)^2)^0.5 -> 28.82515915 | I62: =(G62^2+H62^2)^0.5*100 -> 0 | J62: DS-A | K62: =(I62+I68)/$N$2 -> 0.9057303674 | M62: DS Invert | P62: 409.76 | S62: 407.14 | V62: 404.83
A63: 1460 | B63: 2010-07-20 | C63: n.a | D63: n.a | I63: =(G63^2+H63^2)^0.5*100 -> 0 | J63: DS-B | K63: =(I63+I69)/$N$3 -> 7.704297683 | M63: End Area | P63: 30.6 | S63: 34.5 | V63: 36
A64: 1460 | B64: 2010-09-25 | C64: n.a | D64: n.a | I64: =(G64^2+H64^2)^0.5*100 -> 0 | J64: DS-C | K64: =(I64+I70)/2/$N$4 -> 0
A65: 1460 | B65: 2012-08-06 | C65: 7147381.55 | D65: 512988.49 | E65: =((C71-C65)^2+(D71-D65)^2)^0.5 -> 29.48591867 | F65: Reestablished | G65: =C66-C65 -> 0.02500000037 | H65: =D66-D65 -> 0.02899999998 | I65: =(G65^2+H65^2)^0.5*100 -> 3.828837967 | J65: DS-D | K65: =(I65+I71)/2/$N$5 -> 2.041088842 | M65: Delta
A66: 1460 | B66: 2014-09-11 | C66: 7147381.575 | D66: 512988.519 | G66: 1.639 | H66: 0.421 | J66: DS-E | K66: =I72/N6 -> 4.535220688 | M66: Parameter
A67: 1460 | B67: 2015-09-17 | C67: 7147383.214 | D67: 512988.94 | E67: =((C73-C67)^2+(D73-D67)^2)^0.5 -> 27.75729371 | F67: Reestablished | G67: Replaced in 2015 | M67: Bottom Width | P67: =(P37-P47)/P47 -> -0.2152439024 | S67: =(S37-S47)/S47 -> -0.1363636364 | V67: =(V37-V47)/V47 -> -0.1820512821
A68: 1461 | B68: 2006-07-28 | C68: 7147410.21 | D68: 512995.9 | G68: =C69-C68 -> -0.03000000026 | H68: =D69-D68 -> -0.02000000002 | I68: =(G68^2+H68^2)^0.5*100 -> 3.605551298 | J68: DS-A | M68: Left Side Slope
A69: 1461 | B69: 2010-07-20 | C69: 7147410.18 | D69: 512995.88 | G69: =C70-C69 -> -0.009999999776 | H69: =D70-D69 -> 0.01000000001 | I69: =(G69^2+H69^2)^0.5*100 -> 1.414213547 | J69: DS-B | M69: Right Side Slope
A70: 1461 | B70: 2010-09-25 | C70: 7147410.17 | D70: 512995.89 | J70: DS-C | M70: Average | P70: =(P40-P50)/P50 -> -0.04054054054 | S70: =(S40-S50)/S50 -> -0.11 | V70: =(V40-V50)/V50 -> -0.08333333333
A71: 1461 | B71: 2012-08-06 | C71: 7147410.1 | D71: 512995.86 | F71: Reestablished | G71: 0.03300000075 | H71: 0.03399999999 | I71: =(G71^2+H71^2)^0.5*100 -> 4.738143148 | J71: DS-D | M71: US Invert | P71: =P41-P51 -> -0.04 | S71: =S41-S51 -> 0.04 | V71: =V41-V51 -> -0.03
A72: 1461 | B72: 2014-09-11 | C72: 7147410.133 | D72: 512995.894 | G72: -0.04200000037 | H72: -0.01899999997 | I72: =(G72^2+H72^2)^0.5*100 -> 4.609772261 | J72: DS-E | M72: DS Invert | P72: =P42-P52 -> -0.11 | S72: =S42-S52 -> -0.02 | V72: =V42-V52 -> 0.11
A73: 1461 | B73: 2015-09-17 | C73: 7147410.091 | D73: 512995.875 | M73: End Area | P73: =(P43-P53)/P53 -> -0.027100271 | S73: =(S43-S53)/S53 -> 0.01035031847 | V73: =(V43-V53)/V53 -> 0.02398081535
M75: 2012
M76: US Invert | P76: 411.06 | S76: 409.57 | V76: 406.64
M77: DS Invert | P77: 409.66 | S77: 406.9 | V77: 404.49
C78: =C71-C65 -> 28.55 | D78: =D71-D65 -> 7.37 | E78: =(C78^2+D78^2)^0.5 -> 29.48591867 | N78: 2012 to 2014 | O78: 2014 to 2015
M79: DS1 U/S | N79: =(P51-P76)/$N$5*100 -> 4.288511749 | O79: =(P41-P51)/$N$6*100 -> -3.935309973
M80: DS1 D/S | N80: =(P52-P77)/$N$5*100 -> 11.43603133 | O80: =(P42-P52)/$N$6*100 -> -10.82210243
M81: DS2 U/S | N81: =(S51-S76)/$N$5*100 -> -3.335509138 | O81: =(S41-S51)/$N$6*100 -> 3.935309973
M82: DS2 D/S | N82: =(S52-S62)/$N$5*100 -> -7.147519582 | O82: =(S42-S52)/$N$6*100 -> -1.967654987
M83: DS3 U/S | N83: =(V51-V76)/$N$5*100 -> 2.382506527 | O83: =(V41-V51)/$N$6*100 -> -2.95148248
M84: DS3 D/S | N84: =(V52-V77)/$N$5*100 -> -3.335509138 | O84: =(V42-V52)/$N$6*100 -> 10.82210243
M87: Elevation | N87: Depth | O87: Flow Elevation | P87: Gabion Elevation | Q87: Freeboard
L88: DS1 U/S | M88: 411.11 | N88: 1.047414982 | O88: =M88+N88 -> 412.157415 | P88: 413.43 | Q88: =P88-O88 -> 1.272585018
L89: DS1 D/S | M89: 409.79 | N89: 1.007340033 | O89: =M89+N89 -> 410.79734 | P89: 411.56 | Q89: =P89-O89 -> 0.762659967
L90: DS2 U/S | M90: 409.54 | N90: 1.025639218 | O90: 410.5656392 | P90: 411.82 | Q90: 1.254360782
L91: DS2 D/S | M91: 406.97 | N91: 0.9400742865 | O91: 407.9100743 | P91: 409.05 | Q91: 1.139925713
L92: DS3 U/S | M92: 406.66 | N92: 1.047703312 | O92: 407.7077033 | P92: 408.79 | Q92: 1.082296688
L93: DS3 D/S | M93: 404.53 | N93: 1.0055324 | O93: 405.5355324 | P93: 406.46 | Q93: 0.9244676004
I95: Flow | J95: 33.8 | M95: Bottom Width | N95: Left side slope | O95: Right Side Slope | P95: Area | Q95: Perimeter | R95: Hydraulic Radius | S95: Depth | T95: Slope | U95: Flow
I96: Slope | J96: 0.01 | L96: DS1 U/S | M96: 6.5 | N96: 3.3 | O96: 3 | P96: =M96*S96+N96*S96*S96/2+O96*S96^2/2 -> 10.26399353 | Q96: =M96+(S96^2+(N96*S96)^2)^0.5+(S96^2+(S96*O96)^2)^0.5 -> 13.42390069 | R96: =P96/Q96 -> 0.7646058897 | S96: 1.047414982 | T96: 0.019 | U96: =1/$J$97*T96^0.5*R96^(2/3)*P96 -> 33.8000144
I97: Roughness | J97: 0.035 | L97: DS1 D/S | M97: 6.4 | N97: 3.9 | O97: 4 | P97: =M97*S97+N97*S97*S97/2+O97*S97^2/2 -> 10.45517528 | Q97: =M97+(S97^2+(N97*S97)^2)^0.5+(S97^2+(S97*O97)^2)^0.5 -> 14.60908596 | R97: =P97/Q97 -> 0.7156625204 | S97: 1.007340033 | T97: 0.02 | U97: =1/$J$97*T97^0.5*R97^(2/3)*P97 -> 33.80003272
L98: DS2 U/S | M98: 6.9 | N98: 2.5 | O98: 3.6 | P98: 10.28531481 | Q98: 13.49372247 | R98: 0.7622296096 | S98: 1.025639218 | T98: 0.019 | U98: 33.80001468
L99: DS2 D/S | M99: 6.4 | N99: 2.9 | O99: 3.5 | P99: 8.844442359 | Q99: 12.70566792 | R99: 0.6961021185 | S99: 0.9400742865 | T99: 0.029 | U99: 33.80000108
L100: DS3 U/S | M100: 7.1 | N100: 2.7 | O100: 3.2 | P100: 10.67685609 | Q100: 13.62912667 | R100: 0.7833851977 | S100: 1.047703312 | T100: 0.017 | U100: 33.80000098
L101: DS3 D/S | M101: 5.7 | N101: 3.2 | O101: 4.1 | P101: 9.422032913 | Q101: 13.31469625 | R101: 0.7076415966 | S101: 1.0055324 | T101: 0.025 | U101: 33.80042383

Sheet Drop Structures - All
K1: Average | N1: Std.dev | AD1: Standard deviation
A2: Point | B2: Date | C2: Northing | D2: Easting | E2: dn | F2: de | G2: movement | I2: Year | J2: Duration | K2: DS1 | L2: DS2 | M2: DS3 | N2: DS1 | O2: DS2 | P2: DS3 | Q2: Point | R2: 2006-07-28 | S2: 2007-07-04 | T2: 2008-07-09 | U2: 2010-07-20 | V2: 2010-09-25 | W2: 2011-08-11 | X2: 2012-08-06 | Y2: 2013-09-12 | Z2: 2014-09-11 | AA2: 2015-09-17 | AC2: Point | AD2: 2007-07-04 | AE2: 2008-07-09 | AF2: 2010-07-20 | AG2: 2010-09-25 | AH2: 2011-08-11 | AI2: 2012-08-06 | AJ2: 2013-09-12 | AK2: 2014-09-11 | AL2: 2015-09-17 | AO2: Point
A3: 1450 | B3: 2006-07-28 | C3: 7147441.3 | D3: 512890.12 | I3: 2006-07-28 | Q3: 1450 | S3: =INDIRECT("H"&TEXT(3+VLOOKUP($Q3,$AO$3:$AP$14,2,TRUE)*10+VLOOKUP(S$2,$AR$3:$AS$12,2,FALSE)*1,0)) -> 1.070381208 | T3: 1.391342169 | V3: =INDIRECT("H"&TEXT(3+VLOOKUP($Q3,$AO$3:$AP$14,2,TRUE)*10+VLOOKUP(V$2,$AR$3:$AS$12,2,FALSE)*1,0)) -> 12.18156459 | W3: 2.281249949 | X3: 2.501274624 | Y3: 0.2723880621 | Z3: 4.717177193 | AA3: 2.959669695 | AC3: DS1 | AD3: =_xlfn.STDEV.S(S3:S6) -> 2.752751178 | AE3: =_xlfn.STDEV.S(T3:T6) -> 0.9403970213 | AF3: =_xlfn.STDEV.S(U3:U6) -> 1.176030267 | AG3: 3.887763202 | AH3: 0.3857638478 | AI3: 0.7727531457 | AJ3: 0.7496017134 | AK3: 0.6949632152 | AL3: 1.047210814 | AO3: 1450 | AP3: 0 | AR3: 2006-07-28 | AS3: 0
A4: 1450 | B4: 2007-07-04 | C4: 7147441.29 | D4: 512890.12 | E4: =C4-C3 -> -0.009999999776 | F4: =D4-D3 -> 0 | G4: =(E4^2+F4^2)^0.5 -> 0.009999999776 | H4: =G4*100/$J$4 -> 1.070381208 | I4: 2007-07-04 | J4: =(I4-I3)/365 -> 0.9342465753 | K4: =AVERAGE(G4,G14,G24,G34)/J4*100 -> 3.433502534 | L4: =AVERAGE(G44,G54,G64,G74)/J4*100 -> 2.545696513 | M4: =AVERAGE(G84,G94,G104,G114)/J4*100 -> 5.436940468 | Q4: 1451 | S4: 1.070381208 | T4: 0.9838274713 | U4: =INDIRECT("H"&TEXT(3+VLOOKUP($Q4,$AO$3:$AP$14,2,TRUE)*10+VLOOKUP(U$2,$AR$3:$AS$12,2,FALSE)*1,0)) -> 2.786439678 | V4: 12.18156459 | W4: 1.613087402 | X4: 4.044321333 | Y4: 1.616577169 | Z4: 3.811758801 | AA4: 0.4399810054 | AO4: 1451 | AP4: 1 | AR4: 2007-07-04 | AS4: 1
A5: 1450 | B5: 2008-07-09 | C5: 7147441.28 | D5: 512890.13 | E5: =C5-C4 -> -0.009999999776 | F5: =D5-D4 -> 0.01000000001 | G5: =(E5^2+F5^2)^0.5 -> 0.01414213547 | H5: =G5*100/$J$5 -> 1.391342169 | I5: 2008-07-09 | J5: =(I5-I4)/365 -> 1.016438356 | K5: =AVERAGE(G5,G15,G25,G35)/J5*100 -> 1.921552627 | L5: =AVERAGE(G45,G55,G65,G75)/J5*100 -> 1.98676267 | M5: 3.625101509 | Q5: 1452 | S5: 6.241341484 | T5: 2.19990514 | U5: 2.089829734 | V5: 5.447761199 | W5: 1.613087327 | X5: 3.197316773 | Y5: 2.005749626 | Z5: 3.570681444 | AA5: 1.338150057 | AO5: 1452 | AP5: 2 | AR5: 2008-07-09 | AS5: 2
A6: 1450 | B6: 2010-07-20 | C6: 7147441.28 | D6: 512890.13 | E6: 0 | F6: 0 | G6: 0 | H6: =G6*100/$J$6 -> 0 | I6: 2010-07-20 | J6: 2.030136986 | K6: 1.34221175 | L6: 1.905972102 | M6: 2.435077306 | Q6: 1453 | S6: 5.351906238 | T6: 3.111135728 | U6: 0.4925775868 | V6: =INDIRECT("H"&TEXT(3+VLOOKUP($Q6,$AO$3:$AP$14,2,TRUE)*10+VLOOKUP(V$2,$AR$3:$AS$12,2,FALSE)*1,0)) -> 5.447761199 | Y6: =INDIRECT("H"&TEXT(3+VLOOKUP($Q6,$AO$3:$AP$14,2,TRUE)*10+VLOOKUP(Y$2,$AR$3:$AS$12,2,FALSE)*1,0)) -> 1.502941528 | Z6: 3.054678217 | AA6: 1.773620236 | AO6: 1453 | AP6: 3 | AR6: 2010-07-20 | AS6: 3
A7: 1450 | B7: 2010-09-25 | C7: 7147441.26 | D7: 512890.14 | E7: -0.02000000048 | F7: 0.01000000001 | G7: 0.02236068021 | H7: =G7*100/$J$7 -> 12.18156459 | I7: 2010-09-25 | J7: 0.1835616438 | K7: 8.814662896 | L7: 11.06224788 | M7: 11.7648193 | Q7: 1454 | S7: =INDIRECT("H"&TEXT(3+VLOOKUP($Q7,$AO$3:$AP$14,2,TRUE)*10+VLOOKUP(S$2,$AR$3:$AS$12,2,FALSE)*1,0)) -> 1.513747639 | U7: 0.6966099119 | V7: 12.18156459 | Y7: 1.511146922 | Z7: 3.722340415 | AA7: 2.701497864 | AC7: DS2 | AD7: =_xlfn.STDEV.S(S7:S10) -> 1.990506129 | AE7: =_xlfn.STDEV.S(T7:T10) -> 0.7778844195 | AF7: =_xlfn.STDEV.S(U7:U10) -> 1.88881634 | AG7: =_xlfn.STDEV.S(V7:V10) -> 2.238633229 | AH7: =_xlfn.STDEV.S(W7:W10) -> 3.303692155 | AI7: =_xlfn.STDEV.S(X7:X10) -> 2.592526043 | AJ7: =_xlfn.STDEV.S(Y7:Y10) -> 2.598987451 | AK7: =_xlfn.STDEV.S(Z7:Z10) -> 2.67333382 | AL7: =_xlfn.STDEV.S(AA7:AA10) -> 1.881651348 | AO7: 1454 | AP7: 4 | AR7: 2010-09-25 | AS7: 4
A8: 1450 | B8: 2011-08-11 | C8: 7147441.24 | D8: 512890.14 | E8: -0.01999999955 | F8: 0 | G8: 0.01999999955 | H8: =G8*100/$J$8 -> 2.281249949 | I8: 2011-08-11 | J8: 0.8767123288 | K8: 1.37685617 | L8: 3.321374284 | M8: 1.298112461 | Q8: 1455 | S8: 1.070381233 | T8: =INDIRECT("H"&TEXT(3+VLOOKUP($Q8,$AO$3:$AP$14,2,TRUE)*10+VLOOKUP(T$2,$AR$3:$AS$12,2,FALSE)*1,0)) -> 2.199905114 | U8: 1.557667146 | V8: 12.18156459 | W8: =INDIRECT("H"&TEXT(3+VLOOKUP($Q8,$AO$3:$AP$14,2,TRUE)*10+VLOOKUP(W$2,$AR$3:$AS$12,2,FALSE)*1,0)) -> 3.606972978 | X8: 4.521688712 | Y8: 1.093328854 | Z8: 4.677576797 | AA8: 3.125104438 | AO8: 1455 | AP8: 5 | AR8: 2011-08-11 | AS8: 5
A9: 1450 | B9: 2012-08-06 | C9: 7147441.216 | D9: 512890.146 | E9: -0.02400000021 | F9: 0.005999999994 | G9: 0.02473863395 | H9: =G9*100/$J$9 -> 2.501274624 | I9: 2012-08-06 | J9: 0.9890410959 | K9: 2.435728183 | L9: 4.98894056 | M9: 10.26651129 | Q9: 1456 | S9: 5.457894767 | T9: 3.547240451 | U9: 4.673001438 | V9: 7.704298041 | W9: 8.065436757 | X9: 9.538512785 | Y9: 6.766588219 | Z9: 9.756066002 | AA9: 6.876243417 | AO9: 1456 | AP9: 6 | AR9: 2012-08-06 | AS9: 6
B10: 2013-09-12 | C10: 7147441.216 | D10: 512890.143 | E10: =C10-C9 -> 0 | F10: =D10-D9 -> -0.003000000026 | G10: =(E10^2+F10^2)^0.5 -> 0.003000000026 | H10: =G10*100/$J$10 -> 0.2723880621 | I10: 2013-09-12 | J10: 1.101369863 | K10: 1.349414096 | L10: 2.973455314 | M10: 3.522797135 | Q10: 1457 | S10: 2.140762415 | T10: 2.199905114 | U10: 0.6966099119 | V10: 12.18156431 | W10: 1.613087402 | X10: 5.895560744 | Y10: 2.52275726 | Z10: 5.318343021 | AA10: 3.946362515 | AO10: 1457 | AP10: 7 | AR10: 2013-09-12 | AS10: 7
A11: 1450 | B11: 2014-09-11 | C11: 7147441.263 | D11: 512890.144 | E11: =C11-C9 -> 0.04700000025 | F11: =D11-D9 -> -0.002000000037 | G11: 0.0470425342 | H11: =G11*100/$J$11 -> 4.717177193 | I11: 2014-09-11 | J11: 0.997260274 | K11: 3.788573914 | L11: 5.868581559 | M11: =AVERAGE(G91,G101,G109,G121)/J11*100 -> 10.84549118 | Q11: 1458 | S11: 1.070381226 | T11: 1.391342165 | U11: 0.6966099119 | V11: 15.4085957 | W11: 2.281250055 | X11: 5.895560846 | Y11: 2.88554264 | Z11: 4.937957597 | AA11: 5.021376878 | AC11: DS3 | AD11: =_xlfn.STDEV.S(S11:S14) -> 4.490375097 | AE11: =_xlfn.STDEV.S(T11:T14) -> 2.320677341 | AF11: =_xlfn.STDEV.S(U11:U14) -> 2.668212035 | AG11: =_xlfn.STDEV.S(V11:V14) -> 3.869019181 | AH11: =_xlfn.STDEV.S(W11:W14) -> 0.4724623959 | AI11: =_xlfn.STDEV.S(X11:X14) -> 13.06825432 | AJ11: =_xlfn.STDEV.S(Y11:Y14) -> 0.4704551619 | AK11: =_xlfn.STDEV.S(Z11:Z14) -> 1.896345618 | AL11: =_xlfn.STDEV.S(AA11:AA14) -> 0.5162300259 | AO11: 1458 | AP11: 8 | AR11: 2014-09-11 | AS11: 8
B12: 2015-09-17 | C12: 7147441.234 | D12: 512890.136 | E12: =C12-C11 -> -0.0290000001 | F12: =D12-D11 -> -0.007999999973 | G12: =(E12^2+F12^2)^0.5 -> 0.030083218 | H12: =G12*100/$J$12 -> 2.959669695 | I12: 2015-09-17 | J12: 1.016438356 | K12: 1.627855248 | L12: 4.162302059 | M12: =AVERAGE(G92,G102,G111,G122)/J12*100 -> 4.06775884 | Q12: 1459 | S12: 5.764179321 | T12: 4.919137467 | U12: 5.50718499 | V12: 12.18156451 | Y12: 3.942053247 | Z12: 5.154159914 | AA12: 5.567107656 | AO12: 1459 | AP12: 9 | AR12: 2015-09-17 | AS12: 9
A13: 1451 | B13: 2006-07-28 | C13: 7147413.79 | D13: 512888.17 | I13: Stddev | K13: =_xlfn.STDEV.S(S3:AA6) -> 2.799263644 | L13: =_xlfn.STDEV.S(S7:AA10) -> 3.450303505 | M13: =_xlfn.STDEV.S(S11:AA14) -> 5.526394551 | Q13: 1460 | S13: 11.52835864 | T13: 6.222271369 | X13: =INDIRECT("H"&TEXT(3+VLOOKUP($Q13,$AO$3:$AP$14,2,TRUE)*10+VLOOKUP(X$2,$AR$3:$AS$12,2,FALSE)*1,0)) -> 28.77585078 | Y13: 3.802608434 | Z13: 1.169394179 | AO13: 1460 | AP13: 10
A14: 1451 | B14: 2007-07-04 | C14: 7147413.8 | D14: 512888.17 | E14: =C14-C13 -> 0.009999999776 | F14: =D14-D13 -> 0 | G14: =(E14^2+F14^2)^0.5 -> 0.009999999776 | H14: =G14*100/$J$4 -> 1.070381208 | Q14: 1461 | S14: 3.384842684 | T14: 1.967655034 | U14: =INDIRECT("H"&TEXT(3+VLOOKUP($Q14,$AO$3:$AP$14,2,TRUE)*10+VLOOKUP(U$2,$AR$3:$AS$12,2,FALSE)*1,0)) -> 1.101437015 | V14: =INDIRECT("H"&TEXT(3+VLOOKUP($Q14,$AO$3:$AP$14,2,TRUE)*10+VLOOKUP(V$2,$AR$3:$AS$12,2,FALSE)*1,0)) -> 7.704297683 | W14: =INDIRECT("H"&TEXT(3+VLOOKUP($Q14,$AO$3:$AP$14,2,TRUE)*10+VLOOKUP(W$2,$AR$3:$AS$12,2,FALSE)*1,0)) -> 1.613087327 | X14: 6.394633546 | Y14: 3.460984218 | Z14: 4.751160024 | AA14: =INDIRECT("H"&TEXT(3+VLOOKUP($Q14,$AO$3:$AP$14,2,TRUE)*10+VLOOKUP(AA$2,$AR$3:$AS$12,2,FALSE)*1,0)) -> 4.535220688 | AO14: 1461 | AP14: 11
A15: 1451 | B15: 2008-07-09 | C15: 7147413.79 | D15: 512888.17 | E15: =C15-C14 -> -0.009999999776 | F15: =D15-D14 -> 0 | G15: =(E15^2+F15^2)^0.5 -> 0.009999999776 | H15: =G15*100/$J$5 -> 0.9838274713 | S15: 39267 | T15: 39638 | U15: 40379 | V15: 40446 | W15: 40766 | X15: 41127 | Y15: 41529 | Z15: 41893 | AA15: 42264
A16: 1451 | B16: 2010-07-20 | C16: 7147413.83 | D16: 512888.13 | E16: 0.04000000004 | F16: -0.03999999998 | G16: 0.05656854251 | H16: =G16*100/$J$6 -> 2.786439678 | Q16: DS1 | R16: min | S16: =MIN(S3:S6) -> 1.070381208 | T16: =MIN(T3:T6) -> 0.9838274713 | U16: 0.4925775868 | V16: 5.447761199 | W16: 1.613087327 | X16: 2.501274624 | Y16: 0.2723880621 | Z16: 3.054678217 | AA16: 0.4399810054 | AD16: Count
A17: 1451 | B17: 2010-09-25 | C17: 7147413.81 | D17: 512888.14 | E17: -0.02000000048 | F17: 0.01000000001 | G17: 0.02236068021 | H17: =G17*100/$J$7 -> 12.18156459 | R17: Q1 | S17: =QUARTILE(S3:S6,1) -> 1.070381208 | T17: =QUARTILE(T3:T6,1) -> 1.289463495 | U17: 1.29120366 | V17: 5.447761199 | W17: 1.613087365 | X17: 2.849295699 | Y17: 1.195303161 | Z17: 3.441680637 | AA17: 1.113607794 | AC17: Point | AD17: 2007-07-04 | AE17: 2008-07-09 | AF17: 2010-07-20 | AG17: 2010-09-25 | AH17: 2011-08-11 | AI17: 2012-08-06 | AJ17: 2013-09-12 | AK17: 2014-09-11 | AL17: 2015-09-17
A18: 1451 | B18: 2011-08-11 | C18: 7147413.82 | D18: 512888.13 | E18: 0.01000000071 | F18: -0.01000000001 | G18: 0.01414213613 | H18: =G18*100/$J$8 -> 1.613087402 | R18: Average | S18: =AVERAGE(S3:S6) -> 3.433502534 | T18: =AVERAGE(T3:T6) -> 1.921552627 | U18: 1.789615666 | V18: =AVERAGE(V3:V6) -> 8.814662896 | W18: 1.835808226 | X18: 3.247637577 | Y18: 1.349414096 | Z18: 3.788573914 | AA18: 1.627855248 | AC18: DS1 | AD18: =COUNT(S3:S6) -> 4 | AE18: =COUNT(T3:T6) -> 4 | AF18: 3 | AG18: 4 | AH18: 3 | AI18: 3 | AJ18: 4 | AK18: 4 | AL18: 4
A19: 1451 | B19: 2012-08-06 | C19: 7147413.86 | D19: 512888.13 | E19: 0.04000000004 | F19: 0 | G19: 0.04000000004 | H19: =G19*100/$J$9 -> 4.044321333 | R19: Q3 | S19: =QUARTILE(S3:S6,3) -> 5.57426505 | T19: =QUARTILE(T3:T6,3) -> 2.427712787 | U19: 2.438134706 | V19: 12.18156459 | W19: 1.947168676 | X19: 3.620819053 | Y19: 1.713870283 | Z19: 4.038113399 | AA19: 2.070132601
B20: 2013-09-12 | C20: 7147413.871 | D20: 512888.144 | E20: 0.01099999994 | F20: 0.01399999997 | G20: 0.01780449375 | H20: =G20*100/$J$10 -> 1.616577169 | R20: Max | S20: =MAX(S3:S6) -> 6.241341484 | T20: =MAX(T3:T6) -> 3.111135728 | U20: 2.786439678 | V20: 12.18156459 | W20: 2.281249949 | X20: 4.044321333 | Y20: 2.005749626 | Z20: 4.717177193 | AA20: 2.959669695
A21: 1451 | B21: 2014-09-11 | C21: 7147413.822 | D21: 512888.131 | E21: =C21-C19 -> -0.03800000064 | F21: =D21-D19 -> 0.0009999999893 | G21: 0.03801315626 | H21: =G21*100/$J$11 -> 3.811758801 | R21: Bottom | S21: =S17 -> 1.070381208 | T21: =T17 -> 1.289463495 | U21: 1.29120366 | V21: 5.447761199 | W21: 1.613087365 | X21: 2.849295699 | Y21: 1.195303161 | Z21: 3.441680637 | AA21: 1.113607794
B22: 2015-09-17 | C22: 7147413.818 | D22: 512888.133 | E22: =C22-C21 -> -0.003999999724 | F22: =D22-D21 -> 0.001999999979 | G22: 0.004472135699 | H22: =G22*100/$J$12 -> 0.4399810054 | R22: 2Q Box | S22: =S18-S17 -> 2.363121327 | T22: =T18-T17 -> 0.6320891324 | U22: 0.4984120059 | V22: 3.366901697 | W22: 0.2227208614 | X22: 0.3983418782 | Y22: 0.154110935 | Z22: 0.3468932765 | AA22: 0.5142474542 | AC22: DS2 | AD22: =COUNT(S7:S10) -> 4 | AE22: =COUNT(T7:T10) -> 3 | AF22: =COUNT(U7:U10) -> 4 | AG22: =COUNT(V7:V10) -> 4 | AH22: =COUNT(W7:W10) -> 3 | AI22: =COUNT(X7:X10) -> 3 | AJ22: =COUNT(Y7:Y10) -> 4 | AK22: =COUNT(Z7:Z10) -> 4 | AL22: =COUNT(AA7:AA10) -> 4
A23: 1452 | B23: 2006-07-28 | C23: 7147411.88 | D23: 512892.07 | R23: 3Q Box | S23: =S19-S18 -> 2.140762515 | T23: =T19-T18 -> 0.5061601598 | U23: 0.6485190397 | V23: 3.366901697 | W23: 0.1113604495 | X23: 0.3731814763 | Y23: 0.364456187 | Z23: 0.2495394851 | AA23: 0.4422773522
A24: 1452 | B24: 2007-07-04 | C24: 7147411.91 | D24: 512892.02 | E24: =C24-C23 -> 0.03000000026 | F24: =D24-D23 -> -0.04999999999 | G24: =(E24^2+F24^2)^0.5 -> 0.05830951907 | H24: =G24*100/$J$4 -> 6.241341484 | R24: Whisker - | S24: =S17-S16 -> 0 | T24: =T17-T16 -> 0.3056360234 | U24: 0.7986260735 | V24: 0 | W24: 3.755761679e-08 | X24: 0.3480210745 | Y24: 0.9229150993 | Z24: 0.38700242 | AA24: 0.6736267888
A25: 1452 | B25: 2008-07-09 | C25: 7147411.9 | D25: 512892.04 | E25: =C25-C24 -> -0.009999999776 | F25: =D25-D24 -> 0.01999999996 | G25: =(E25^2+F25^2)^0.5 -> 0.02236067964 | H25: =G25*100/$J$5 -> 2.19990514 | R25: Whisker + | S25: =S20-S19 -> 0.6670764347 | T25: =T20-T19 -> 0.6834229412 | U25: 0.3483049722 | V25: 0 | W25: 0.3340812733 | X25: 0.4235022801 | Y25: 0.2918793431 | Z25: 0.6790637944 | AA25: 0.8895370947
A26: 1452 | B26: 2010-07-20 | C26: 7147411.93 | D26: 512892.01 | E26: 0.02999999933 | F26: -0.02999999997 | G26: 0.04242640638 | H26: =G26*100/$J$6 -> 2.089829734 | R26: Offset | S26: 1 | T26: 1 | U26: 1 | V26: 1 | W26: 1 | X26: 1 | Y26: 1 | Z26: 1 | AA26: 1 | AC26: DS3 | AD26: =COUNT(S11:S14) -> 4 | AE26: =COUNT(T11:T14) -> 4 | AF26: =COUNT(U11:U14) -> 3 | AG26: =COUNT(V11:V14) -> 3 | AH26: =COUNT(W11:W14) -> 2 | AI26: =COUNT(X11:X14) -> 3 | AJ26: =COUNT(Y11:Y14) -> 4 | AK26: =COUNT(Z11:Z14) -> 4 | AL26: =COUNT(AA11:AA14) -> 3
A27: 1452 | B27: 2010-09-25 | C27: 7147411.93 | D27: 512892 | E27: 0 | F27: -0.01000000001 | G27: 0.01000000001 | H27: =G27*100/$J$7 -> 5.447761199
A28: 1452 | B28: 2011-08-11 | C28: 7147411.92 | D28: 512892.01 | E28: -0.009999999776 | F28: 0.01000000001 | G28: 0.01414213547 | H28: =G28*100/$J$8 -> 1.613087327 | Q28: DS2 | R28: min | S28: =MIN(S7:S10) -> 1.070381233 | T28: =MIN(T7:T10) -> 2.199905114 | U28: 0.6966099119 | V28: 7.704298041 | W28: 1.613087402 | X28: 4.521688712 | Y28: 1.093328854 | Z28: 3.722340415 | AA28: 2.701497864
A29: 1452 | B29: 2012-08-06 | C29: 7147411.95 | D29: 512892 | E29: 0.03000000026 | F29: -0.01000000001 | G29: 0.03162277685 | H29: =G29*100/$J$9 -> 3.197316773 | R29: Q1 | S29: =QUARTILE(S7:S10,1) -> 1.402906037 | T29: =QUARTILE(T7:T10,1) -> 2.199905114 | U29: 0.6966099119 | V29: 11.06224774 | W29: 2.61003019 | X29: 5.208624728 | Y29: 1.406692405 | Z29: 4.438767701 | AA29: 3.019202795
B30: 2013-09-12 | C30: 7147411.972 | D30: 512892.002 | E30: 0.02199999988 | F30: 0.001999999979 | G30: 0.02209072191 | H30: =G30*100/$J$10 -> 2.005749626 | R30: Average | S30: =AVERAGE(S7:S10) -> 2.545696513 | T30: =AVERAGE(T7:T10) -> 2.649016893 | U30: 1.905972102 | V30: 11.06224788 | W30: 4.428499046 | X30: 6.651920747 | Y30: 2.973455314 | Z30: 5.868581559 | AA30: 4.162302059
A31: 1452 | B31: 2014-09-11 | C31: 7147411.928 | D31: 512891.972 | E31: =C31-C29 -> -0.02199999988 | F31: =D31-D29 -> -0.02799999999 | G31: 0.03560898755 | H31: =G31*100/$J$11 -> 3.570681444 | R31: Q3 | S31: =QUARTILE(S7:S10,3) -> 2.970045503 | T31: =QUARTILE(T7:T10,3) -> 2.873572783 | U31: 2.336500719 | V31: 12.18156459 | W31: 5.836204868 | X31: 7.717036764 | Y31: 3.583715 | Z31: 6.427773766 | AA31: 4.678832741 | AD31: Standard Error
B32: 2015-09-17 | C32: 7147411.939 | D32: 512891.98 | E32: =C32-C31 -> 0.01099999994 | F32: =D32-D31 -> 0.007999999973 | G32: 0.01360147044 | H32: =G32*100/$J$12 -> 1.338150057 | R32: Max | S32: =MAX(S7:S10) -> 5.457894767 | T32: =MAX(T7:T10) -> 3.547240451 | U32: 4.673001438 | V32: 12.18156459 | W32: 8.065436757 | X32: 9.538512785 | Y32: 6.766588219 | Z32: 9.756066002 | AA32: 6.876243417 | AC32: Point | AD32: 2007-07-04 | AE32: 2008-07-09 | AF32: 2010-07-20 | AG32: 2010-09-25 | AH32: 2011-08-11 | AI32: 2012-08-06 | AJ32: 2013-09-12 | AK32: 2014-09-11 | AL32: 2015-09-17
A33: 1453 | B33: 2006-07-28 | C33: 7147439.11 | D33: 512901.52 | R33: Bottom | S33: =S29 -> 1.402906037 | T33: =T29 -> 2.199905114 | U33: 0.6966099119 | V33: 11.06224774 | W33: 2.61003019 | X33: 5.208624728 | Y33: 1.406692405 | Z33: 4.438767701 | AA33: 3.019202795 | AC33: DS1 | AD33: =AD3/(AD18)^0.5 -> 1.376375589 | AE33: =AE3/(AE18)^0.5 -> 0.4701985106 | AF33: 0.6789813911 | AG33: 1.943881601 | AH33: 0.2227208614 | AI33: 0.4461492367 | AJ33: 0.3748008567 | AK33: 0.3474816076 | AL33: 0.5236054071
A34: 1453 | B34: 2007-07-04 | C34: 7147439.06 | D34: 512901.52 | E34: =C34-C33 -> -0.05000000075 | F34: =D34-D33 -> 0 | G34: =(E34^2+F34^2)^0.5 -> 0.05000000075 | H34: =G34*100/$J$4 -> 5.351906238 | R34: 2Q Box | S34: =S30-S29 -> 1.142790476 | T34: =T30-T29 -> 0.449111779 | U34: 1.20936219 | V34: 1.418120732e-07 | W34: 1.818468855 | X34: 1.443296019 | Y34: 1.566762909 | Z34: 1.429813857 | AA34: 1.143099264
A35: 1453 | B35: 2008-07-09 | C35: 7147439.09 | D35: 512901.51 | E35: =C35-C34 -> 0.03000000026 | F35: =D35-D34 -> -0.01000000001 | G35: =(E35^2+F35^2)^0.5 -> 0.03162277685 | H35: =G35*100/$J$5 -> 3.111135728 | R35: 3Q Box | S35: =S31-S30 -> 0.4243489899 | T35: =T31-T30 -> 0.2245558895 | U35: 0.430528617 | V35: 1.119316709 | W35: 1.407705822 | X35: 1.065116017 | Y35: 0.6102596858 | Z35: 0.5591922076 | AA35: 0.5165306819
A36: 1453 | B36: 2010-07-20 | C36: 7147439.08 | D36: 512901.51 | E36: -0.009999999776 | F36: 0 | G36: 0.009999999776 | H36: =G36*100/$J$6 -> 0.4925775868 | R36: Whisker - | S36: =S29-S28 -> 0.3325248044 | T36: =T29-T28 -> 0 | U36: 0 | V36: 3.357949701 | W36: 0.996942788 | X36: 0.686936016 | Y36: 0.3133635511 | Z36: 0.716427286 | AA36: 0.3177049308
A37: 1453 | B37: 2010-09-25 | C37: 7147439.08 | D37: 512901.5 | E37: 0 | F37: -0.01000000001 | G37: 0.01000000001 | H37: =G37*100/$J$7 -> 5.447761199 | R37: Whisker + | S37: =S32-S31 -> 2.487849263 | T37: =T32-T31 -> 0.6736676685 | U37: 2.336500719 | V37: 0 | W37: 2.229231889 | X37: 1.82147602 | Y37: 3.18287322 | Z37: 3.328292235 | AA37: 2.197410677 | AC37: DS2 | AD37: =AD7/(AD22)^0.5 -> 0.9952530645 | AE37: 0.449111779 | AF37: 0.9444081701 | AG37: 1.119316614 | AH37: 1.907387555 | AI37: 1.496795609 | AJ37: 1.299493725 | AK37: 1.33666691 | AL37: 0.9408256739
A38: 1453 | B38: 2011-08-11 | C38: 7147440.91 | D38: 512901.57 | G38: 0 | H38: =G38*100/$J$8 -> 0 | R38: Offset | S38: 2 | T38: 2 | U38: 2 | V38: 2 | W38: 2 | X38: 2 | Y38: 2 | Z38: 2 | AA38: 2
A39: 1453 | B39: 2012-08-06 | C39: 7147439.02 | D39: 512901.5 | G39: 0 | H39: =G39*100/$J$9 -> 0
B40: 2013-09-12 | C40: 7147439.005 | D40: 512901.493 | E40: -0.01499999966 | F40: -0.006999999983 | G40: 0.01655294505 | H40: =G40*100/$J$10 -> 1.502941528 | Q40: DS3 | R40: min | S40: =MIN(S11:S14) -> 1.070381226 | T40: =MIN(T11:T14) -> 1.391342165 | U40: 0.6966099119 | V40: 7.704297683 | W40: 1.613087327 | X40: 5.895560846 | Y40: 2.88554264 | Z40: 1.169394179 | AA40: 4.535220688
A41: 1453 | B41: 2014-09-11 | C41: 7147438.992 | D41: 512901.488 | E41: =C41-C39 -> -0.02799999993 | F41: =D41-D39 -> -0.01199999999 | G41: 0.03046309236 | H41: =G41*100/$J$11 -> 3.054678217 | R41: Q1 | S41: =QUARTILE(S11:S14,1) -> 2.806227319 | T41: =QUARTILE(T11:T14,1) -> 1.823576817 | U41: 0.8990234632 | V41: 9.942931095 | W41: 1.780128009 | X41: 6.145097196 | Y41: 3.317123824 | Z41: 3.855718563 | AA41: 4.778298783 | AC41: DS3 | AD41: =AD11/(AD26)^0.5 -> 2.245187549 | AE41: 1.160338671 | AF41: 1.540492937 | AG41: 2.233779265 | AH41: 0.334081364 | AI41: 7.544960148 | AJ41: 0.2352275809 | AK41: 0.9481728091 | AL41: 0.2980455444
B42: 2015-09-17 | C42: 7147438.975 | D42: 512901.494 | E42: =C42-C41 -> -0.01699999999 | F42: =D42-D41 -> 0.005999999994 | G42: 0.01802775637 | H42: =G42*100/$J$12 -> 1.773620236 | R42: Average | S42: =AVERAGE(S11:S14) -> 5.436940468 | T42: =AVERAGE(T11:T14) -> 3.625101509 | U42: 2.435077306 | V42: 11.7648193 | W42: 1.947168691 | X42: 13.68868172 | Y42: 3.522797135 | Z42: 4.003167928 | AA42: 5.041235074
A43: 1454 | B43: 2006-07-28 | C43: 7147423.24 | D43: 512948.59 | R43: Q3 | S43: =QUARTILE(S11:S14,3) -> 7.205224151 | T43: =QUARTILE(T11:T14,3) -> 5.244920943 | U43: 3.304311002 | V43: 13.7950801 | W43: 2.114209373 | X43: 17.58524216 | Y43: 3.837469637 | Z43: 4.992008176 | AA43: 5.294242267
A44: 1454 | B44: 2007-07-04 | C44: 7147423.23 | D44: 512948.58 | E44: =C44-C43 -> -0.009999999776 | F44: =D44-D43 -> -0.01000000001 | G44: =(E44^2+F44^2)^0.5 -> 0.01414213547 | H44: =G44*100/$J$4 -> 1.513747639 | R44: Max | S44: =MAX(S11:S14) -> 11.52835864 | T44: =MAX(T11:T14) -> 6.222271369 | U44: 5.50718499 | V44: 15.4085957 | W44: 2.281250055 | X44: 28.77585078 | Y44: 3.942053247 | Z44: 5.154159914 | AA44: 5.567107656
A45: 1454 | B45: 2008-07-09 | C45: 7147423.23 | D45: 512948.58 | E45: =C45-C44 -> 0 | F45: =D45-D44 -> 0 | G45: =(E45^2+F45^2)^0.5 -> 0 | H45: =G45*100/$J$5 -> 0 | R45: Bottom | S45: =S41 -> 2.806227319 | T45: =T41 -> 1.823576817 | U45: 0.8990234632 | V45: 9.942931095 | W45: 1.780128009 | X45: 6.145097196 | Y45: 3.317123824 | Z45: 3.855718563 | AA45: 4.778298783
A46: 1454 | B46: 2010-07-20 | C46: 7147423.24 | D46: 512948.57 | E46: 0.009999999776 | F46: -0.01000000001 | G46: 0.01414213547 | H46: =G46*100/$J$6 -> 0.6966099119 | R46: 2Q Box | S46: =S42-S41 -> 2.630713149 | T46: =T42-T41 -> 1.801524692 | U46: 1.536053842 | V46: 1.821888202 | W46: 0.167040682 | X46: 7.543584527 | Y46: 0.205673311 | Z46: 0.1474493654 | AA46: 0.2629362909 | AC46: DS1 | AD46: =AD33 -> 1.376375589 | AE46: =AE33 -> 0.4701985106 | AF46: 0.6789813911 | AG46: 1.943881601 | AH46: 0.2227208614 | AI46: 0.4461492367 | AJ46: 0.3748008567 | AK46: 0.3474816076 | AL46: 0.5236054071
A47: 1454 | B47: 2010-09-25 | C47: 7147423.22 | D47: 512948.58 | E47: -0.02000000048 | F47: 0.01000000001 | G47: 0.02236068021 | H47: =G47*100/$J$7 -> 12.18156459 | R47: 3Q Box | S47: =S43-S42 -> 1.768283683 | T47: =T43-T42 -> 1.619819434 | U47: 0.8692336969 | V47: 2.030260807 | W47: 0.167040682 | X47: 3.896560438 | Y47: 0.3146725023 | Z47: 0.9888402476 | AA47: 0.2530071931 | AC47: DS2 | AD47: =AD37 -> 0.9952530645 | AE47: =AE37 -> 0.449111779 | AF47: 0.9444081701 | AG47: 1.119316614 | AH47: 1.907387555 | AI47: 1.496795609 | AJ47: 1.299493725 | AK47: 1.33666691 | AL47: 0.9408256739
A48: 1454 | B48: 2011-08-11 | C48: 7147423.21 | D48: 512948.59 | G48: 0 | H48: =G48*100/$J$8 -> 0 | R48: Whisker - | S48: =S41-S40 -> 1.735846093 | T48: =T41-T40 -> 0.4322346518 | U48: 0.2024135513 | V48: 2.238633413 | W48: 0.167040682 | X48: 0.24953635 | Y48: 0.4315811836 | Z48: 2.686324384 | AA48: 0.2430780953 | AC48: DS3 | AD48: =AD41 -> 2.245187549 | AE48: =AE41 -> 1.160338671 | AF48: 1.540492937 | AG48: 2.233779265 | AH48: 0.334081364 | AI48: 7.544960148 | AJ48: 0.2352275809 | AK48: 0.9481728091 | AL48: 0.2980455444
A49: 1454 | B49: 2012-08-06 | C49: 7147423.17 | D49: 512948.56 | G49: 0 | H49: =G49*100/$J$9 -> 0 | R49: Whisker + | S49: =S44-S43 -> 4.323134489 | T49: =T44-T43 -> 0.9773504263 | U49: 2.202873988 | V49: 1.613515597 | W49: 0.167040682 | X49: 11.19060861 | Y49: 0.1045836095 | Z49: 0.1621517375 | AA49: 0.2728653887
B50: 2013-09-12 | C50: 7147423.161 | D50: 512948.574 | E50: -0.008999999613 | F50: 0.01400000002 | G50: 0.01664331679 | H50: =G50*100/$J$10 -> 1.511146922 | R50: Offset | S50: 3 | T50: 3 | U50: 3 | V50: 3 | W50: 3 | X50: 3 | Y50: 3 | Z50: 3 | AA50: 3
A51: 1454 | B51: 2014-09-11 | C51: 7147423.203 | D51: 512948.577 | E51: =C51-C49 -> 0.03299999982 | F51: =D51-D49 -> 0.01699999999 | G51: 0.03712142222 | H51: =G51*100/$J$11 -> 3.722340415
B52: 2015-09-17 | C52: 7147423.18 | D52: 512948.562 | E52: =C52-C51 -> -0.02300000004 | F52: =D52-D51 -> -0.01500000001 | G52: 0.02745906048 | H52: =G52*100/$J$12 -> 2.701497864
A53: 1455 | B53: 2006-07-28 | C53: 7147397.03 | D53: 512939.87
A54: 1455 | B54: 2007-07-04 | C54: 7147397.03 | D54: 512939.88 | E54: =C54-C53 -> 0 | F54: =D54-D53 -> 0.01000000001 | G54: =(E54^2+F54^2)^0.5 -> 0.01000000001 | H54: =G54*100/$J$4 -> 1.070381233
A55: 1455 | B55: 2008-07-09 | C55: 7147397.05 | D55: 512939.89 | E55: =C55-C54 -> 0.01999999955 | F55: =D55-D54 -> 0.01000000001 | G55: =(E55^2+F55^2)^0.5 -> 0.02236067938 | H55: =G55*100/$J$5 -> 2.199905114
A56: 1455 | B56: 2010-07-20 | C56: 7147397.08 | D56: 512939.9 | E56: 0.03000000026 | F56: 0.01000000001 | G56: 0.03162277685 | H56: =G56*100/$J$6 -> 1.557667146
A57: 1455 | B57: 2010-09-25 | C57: 7147397.06 | D57: 512939.89 | E57: -0.02000000048 | F57: -0.01000000001 | G57: 0.02236068021 | H57: =G57*100/$J$7 -> 12.18156459
A58: 1455 | B58: 2011-08-11 | C58: 7147397.07 | D58: 512939.92 | E58: 0.01000000071 | F58: 0.02999999997 | G58: 0.0316227768 | H58: =G58*100/$J$8 -> 3.606972978
A59: 1455 | B59: 2012-08-06 | C59: 7147397.11 | D59: 512939.94 | E59: 0.04000000004 | F59: 0.02000000002 | G59: 0.04472135959 | H59: =G59*100/$J$9 -> 4.521688712
B60: 2013-09-12 | C60: 7147397.111 | D60: 512939.928 | E60: 0.0009999992326 | F60: -0.01199999999 | G60: 0.0120415945 | H60: =G60*100/$J$10 -> 1.093328854
A61: 1455 | B61: 2014-09-11 | C61: 7147397.07 | D61: 512939.916 | E61: =C61-C59 -> -0.04000000004 | F61: =D61-D59 -> -0.02399999998 | G61: 0.04664761518 | H61: =G61*100/$J$11 -> 4.677576797
B62: 2015-09-17 | C62: 7147397.085 | D62: 512939.944 | E62: 0.01499999966 | F62: 0.02799999999 | G62: 0.03176476018 | H62: =G62*100/$J$12 -> 3.125104438
A63: 1456 | B63: 2006-07-28 | C63: 7147392.7 | D63: 512951.21
A64: 1456 | B64: 2007-07-04 | C64: 7147392.75 | D64: 512951.22 | E64: =C64-C63 -> 0.04999999981 | F64: =D64-D63 -> 0.009999999951 | G64: =(E64^2+F64^2)^0.5 -> 0.05099019494 | H64: =G64*100/$J$4 -> 5.457894767
A65: 1456 | B65: 2008-07-09 | C65: 7147392.77 | D65: 512951.25 | E65: =C65-C64 -> 0.01999999955 | F65: =D65-D64 -> 0.03000000003 | G65: =(E65^2+F65^2)^0.5 -> 0.03605551253 | H65: =G65*100/$J$5 -> 3.547240451
A66: 1456 | B66: 2010-07-20 | C66: 7147392.86 | D66: 512951.28 | E66: 0.09000000078 | F66: 0.03000000003 | G66: 0.09486833056 | H66: =G66*100/$J$6 -> 4.673001438
A67: 1456 | B67: 2010-09-25 | C67: 7147392.85 | D67: 512951.27 | E67: -0.01000000071 | F67: -0.01000000001 | G67: 0.01414213613 | H67: =G67*100/$J$7 -> 7.704298041
A68: 1456 | B68: 2011-08-11 | C68: 7147392.92 | D68: 512951.26 | E68: 0.0700000003 | F68: -0.01000000001 | G68: 0.07071067841 | H68: =G68*100/$J$8 -> 8.065436757
A69: 1456 | B69: 2012-08-06 | C69: 7147393 | D69: 512951.31 | E69: 0.08000000007 | F69: 0.04999999999 | G69: 0.09433981138 | H69: =G69*100/$J$9 -> 9.538512785
B70: 2013-09-12 | C70: 7147393.073 | D70: 512951.325 | E70: 0.07299999986 | F70: 0.01500000001 | G70: 0.0745251634 | H70: =G70*100/$J$10 -> 6.766588219
A71: 1456 | B71: 2014-09-11 | C71: 7147393.095 | D71: 512951.331 | E71: =C71-C69 -> 0.09499999974 | F71: =D71-D69 -> 0.02100000001 | G71: 0.09729337054 | H71: =G71*100/$J$11 -> 9.756066002
B72: 2015-09-17 | C72: 7147393.161 | D72: 512951.354 | E72: 0.06600000057 | F72: 0.02299999999 | G72: 0.06989277556 | H72: =G72*100/$J$12 -> 6.876243417
A73: 1457 | B73: 2006-07-28 | C73: 7147420.5 | D73: 512958
A74: 1457 | B74: 2007-07-04 | C74: 7147420.52 | D74: 512958 | E74: =C74-C73 -> 0.01999999955 | F74: =D74-D73 -> 0 | G74: =(E74^2+F74^2)^0.5 -> 0.01999999955 | H74: =G74*100/$J$4 -> 2.140762415
A75: 1457 | B75: 2008-07-09 | C75: 7147420.5 | D75: 512958.01 | E75: =C75-C74 -> -0.01999999955 | F75: =D75-D74 -> 0.01000000001 | G75: =(E75^2+F75^2)^0.5 -> 0.02236067938 | H75: =G75*100/$J$5 -> 2.199905114
A76: 1457 | B76: 2010-07-20 | C76: 7147420.49 | D76: 512958.02 | E76: -0.009999999776 | F76: 0.01000000001 | G76: 0.01414213547 | H76: =G76*100/$J$6 -> 0.6966099119
A77: 1457 | B77: 2010-09-25 | C77: 7147420.48 | D77: 512958 | E77: -0.009999999776 | F77: -0.02000000002 | G77: 0.02236067969 | H77: =G77*100/$J$7 -> 12.18156431
A78: 1457 | B78: 2011-08-11 | C78: 7147420.47 | D78: 512958.01 | E78: -0.01000000071 | F78: 0.01000000001 | G78: 0.01414213613 | H78: =G78*100/$J$8 -> 1.613087402
A79: 1457 | B79: 2012-08-06 | C79: 7147420.44 | D79: 512957.96 | E79: -0.02999999933 | F79: -0.04999999999 | G79: 0.05830951859 | H79: =G79*100/$J$9 -> 5.895560744
B80: 2013-09-12 | C80: 7147420.426 | D80: 512957.984 | E80: -0.01400000043 | F80: 0.02399999998 | G80: 0.02778488818 | H80: =G80*100/$J$10 -> 2.52275726
A81: 1457 | B81: 2014-09-11 | C81: 7147420.478 | D81: 512957.997 | E81: =C81-C79 -> 0.03799999971 | F81: =D81-D79 -> 0.03699999995 | G81: 0.05303772218 | H81: =G81*100/$J$11 -> 5.318343021
B82: 2015-09-17 | C82: 7147420.438 | D82: 512957.994 | E82: -0.04000000004 | F82: -0.002999999968 | G82: 0.04011234228 | H82: =G82*100/$J$12 -> 3.946362515
A83: 1458 | B83: 2006-07-28 | C83: 7147412.17 | D83: 512986.91
A84: 1458 | B84: 2007-07-04 | C84: 7147412.17 | D84: 512986.9 | E84: =C84-C83 -> 0 | F84: =D84-D83 -> -0.009999999951 | G84: =(E84^2+F84^2)^0.5 -> 0.009999999951 | H84: =G84*100/$J$4 -> 1.070381226
A85: 1458 | B85: 2008-07-09 | C85: 7147412.16 | D85: 512986.91 | E85: =C85-C84 -> -0.009999999776 | F85: =D85-D84 -> 0.009999999951 | G85: =(E85^2+F85^2)^0.5 -> 0.01414213543 | H85: =G85*100/$J$5 -> 1.391342165
A86: 1458 | B86: 2010-07-20 | C86: 7147412.15 | D86: 512986.92 | E86: -0.009999999776 | F86: 0.01000000001 | G86: 0.01414213547 | H86: =G86*100/$J$6 -> 0.6966099119
A87: 1458 | B87: 2010-09-25 | C87: 7147412.13 | D87: 512986.9 | E87: -0.02000000048 | F87: =D87-D86 -> -0.01999999996 | G87: 0.02828427156 | H87: =G87*100/$J$7 -> 15.4085957
A88: 1458 | B88: 2011-08-11 | C88: 7147412.15 | D88: 512986.9 | E88: 0.02000000048 | F88: 0 | G88: 0.02000000048 | H88: =G88*100/$J$8 -> 2.281250055
A89: 1458 | B89: 2012-08-06 | C89: 7147412.1 | D89: 512986.87 | E89: -0.05000000075 | F89: -0.03000000003 | G89: 0.0583095196 | H89: =G89*100/$J$9 -> 5.895560846
B90: 2013-09-12 | C90: 7147412.093 | D90: 512986.901 | E90: -0.006999999285 | F90: 0.03100000002 | G90: 0.03178049702 | H90: =G90*100/$J$10 -> 2.88554264
A91: 1458 | B91: 2014-09-11 | C91: 7147412.143 | D91: 512986.894 | E91: =C91-C89 -> 0.04300000053 | F91: =D91-D89 -> 0.02399999998 | G91: 0.04924428946 | H91: =G91*100/$J$11 -> 4.937957597
B92: 2015-09-17 | C92: 7147412.092 | D92: 512986.896 | E92: -0.05099999998 | F92: 0.002000000037 | G92: 0.0510392006 | H92: =G92*100/$J$12 -> 5.021376878
A93: 1459 | B93: 2006-07-28 | C93: 7147385.79 | D93: 512979.99
A94: 1459 | B94: 2007-07-04 | C94: 7147385.84 | D94: 512980.01 | E94: =C94-C93 -> 0.04999999981 | F94: =D94-D93 -> 0.02000000002 | G94: =(E94^2+F94^2)^0.5 -> 0.05385164791 | H94: =G94*100/$J$4 -> 5.764179321
A95: 1459 | B95: 2008-07-09 | C95: 7147385.88 | D95: 512980.04 | E95: =C95-C94 -> 0.04000000004 | F95: =D95-D94 -> 0.02999999997 | G95: =(E95^2+F95^2)^0.5 -> 0.05000000001 | H95: =G95*100/$J$5 -> 4.919137467
A96: 1459 | B96: 2010-07-20 | C96: 7147385.98 | D96: 512980.09 | E96: 0.1000000006 | F96: 0.05000000005 | G96: 0.1118033994 | H96: =G96*100/$J$6 -> 5.50718499
A97: 1459 | B97: 2010-09-25 | C97: 7147385.97 | D97: 512980.11 | E97: -0.01000000071 | F97: =D97-D96 -> 0.01999999996 | G97: 0.02236068006 | H97: =G97*100/$J$7 -> 12.18156451
A98: 1459 | B98: 2011-08-11 | C98: 7147385.92 | D98: 512980.04 | G98: 0 | H98: =G98*100/$J$8 -> 0
A99: 1459 | B99: 2012-08-06 | C99: 7147386.46 | D99: 512980.31 | G99: 0 | H99: =G99*100/$J$9 -> 0
B100: 2013-09-12 | C100: 7147386.498 | D100: 512980.331 | E100: 0.03799999971 | F100: 0.02100000001 | G100: 0.04341658644 | H100: =G100*100/$J$10 -> 3.942053247
A101: 1459 | B101: 2014-09-11 | C101: 7147386.501 | D101: 512980.341 | E101: =C101-C99 -> 0.0410000002 | F101: =D101-D99 -> 0.03100000002 | G101: 0.05140038927 | H101: =G101*100/$J$11 -> 5.154159914
B102: 2015-09-17 | C102: 7147386.542 | D102: 512980.38 | E102: 0.0410000002 | F102: 0.03899999999 | G102: 0.05658621754 | H102: =G102*100/$J$12 -> 5.567107656
A103: 1460 | B103: 2006-07-28 | C103: 7147382.48 | D103: 512988.03
A104: 1460 | B104: 2007-07-04 | C104: 7147382.58 | D104: 512988.07 | E104: =C104-C103 -> 0.09999999963 | F104: =D104-D103 -> 0.03999999998 | G104: =(E104^2+F104^2)^0.5 -> 0.1077032958 | H104: =G104*100/$J$4 -> 11.52835864
A105: 1460 | B105: 2008-07-09 | C105: 7147382.64 | D105: 512988.09 | E105: =C105-C104 -> 0.05999999959 | F105: =D105-D104 -> 0.02000000002 | G105: =(E105^2+F105^2)^0.5 -> 0.06324555282 | H105: =G105*100/$J$5 -> 6.222271369
A106: 1460 | B106: 2010-07-20 | C106: n.a | D106: n.a | H106: =G106*100/$J$6 -> 0
A107: 1460 | B107: 2010-09-25 | C107: n.a | D107: n.a | H107: =G107*100/$J$7 -> 0
A108: 1460 | B108: 2011-08-11 | C108: 7147381.82 | D108: 512988.4 | H108: =G108*100/$J$8 -> 0
A109: 1460 | B109: 2012-08-06 | C109: 7147381.55 | D109: 512988.49 | E109: =C109-C108 -> -0.2700000005 | F109: 0.08999999997 | G109: 0.2846049899 | H109: =G109*100/$J$9 -> 28.77585078
B110: 2013-09-12 | C110: 7147381.585 | D110: 512988.513 | E110: 0.03500000015 | F110: 0.02299999999 | G110: =(E110^2+F110^2)^0.5 -> 0.0418807833 | H110: =G110*100/$J$10 -> 3.802608434
A111: 1460 | B111: 2014-09-11 | C111: 7147381.575 | D111: 512988.519 | E111: -0.009999999776 | F111: 0.005999999994 | G111: 0.01166190359 | H111: =G111*100/$J$11 -> 1.169394179
B112: 2015-09-17 | C112: 7147383.214 | D112: 512988.94 | G112: 0 | H112: =G112*100/$J$12 -> 0
A113: 1461 | B113: 2006-07-28 | C113: 7147410.21 | D113: 512995.9
A114: 1461 | B114: 2007-07-04 | C114: 7147410.18 | D114: 512995.89 | E114: =C114-C113 -> -0.03000000026 | F114: =D114-D113 -> -0.01000000001 | G114: =(E114^2+F114^2)^0.5 -> 0.03162277685 | H114: =G114*100/$J$4 -> 3.384842684
A115: 1461 | B115: 2008-07-09 | C115: 7147410.2 | D115: 512995.89 | E115: =C115-C114 -> 0.02000000048 | F115: =D115-D114 -> 0 | G115: =(E115^2+F115^2)^0.5 -> 0.02000000048 | H115: =G115*100/$J$5 -> 1.967655034
A116: 1461 | B116: 2010-07-20 | C116: 7147410.18 | D116: 512995.88 | E116: -0.02000000048 | F116: -0.01000000001 | G116: 0.02236068021 | H116: =G116*100/$J$6 -> 1.101437015
A117: 1461 | B117: 2010-09-25 | C117: 7147410.17 | D117: 512995.89 | E117: -0.009999999776 | F117: 0.01000000001 | G117: 0.01414213547 | H117: =G117*100/$J$7 -> 7.704297683
A118: 1461 | B118: 2011-08-11 | C118: 7147410.16 | D118: 512995.88 | E118: -0.009999999776 | F118: -0.01000000001 | G118: 0.01414213547 | H118: =G118*100/$J$8 -> 1.613087327
A119: 1461 | B119: 2012-08-06 | C119: 7147410.1 | D119: 512995.86 | E119: -0.06000000052 | F119: -0.02000000002 | G119: 0.0632455537 | H119: =G119*100/$J$9 -> 6.394633546
B120: 2013-09-12 | C120: 7147410.103 | D120: 512995.898 | E120: 0.003000000492 | F120: 0.038 | G120: 0.03811823714 | H120: =G120*100/$J$10 -> 3.460984218
A121: 1461 | B121: 2014-09-11 | C121: 7147410.133 | D121: 512995.894 | E121: =C121-C119 -> 0.03300000075 | F121: =D121-D119 -> 0.03399999999 | G121: 0.04738143148 | H121: =G121*100/$J$11 -> 4.751160024
B122: 2015-09-17 | C122: 7147410.091 | D122: 512995.875 | E122: -0.04200000037 | F122: -0.01899999997 | G122: 0.04609772261 | H122: =G122*100/$J$12 -> 4.535220688

Sheet Clinton Stats
A1: Monitor | B1: Date | C1: Northing (m) | D1: Easting (m) | E1: duration | F1: dn | G1: de | H1: Movement | I1: Movement Rate (cm/y) | J1: N/S | K1: E/W | L1: Quadrant | M1: Azimuth | N1: Variation | P1: Point | Q1: 2004-07-28 | R1: 2006-07-28 | S1: 2008-07-09 | T1: 2010-07-20 | U1: 2010-09-25 | V1: 2011-08-11 | W1: 2012-08-06 | X1: 2014-09-11 | Y1: 2015-09-17 | Z1: Average | AA1: Stddev | AB1: Point | AD1: Date
A2: 81-1 | B2: 2001-06-19 | C2: 7147034.71 | D2: 512978.88 | P2: 81-1 | Q2: =INDIRECT("I"&TEXT(3+VLOOKUP($P2,$AB$2:$AC$11,2,FALSE)*12+VLOOKUP(Q$1,$AD$2:$AE$11,2,FALSE)*1,0)) -> 6.734417007 | R2: 2.159282268 | S2: 1.621111454 | T2: 0.4925775868 | U2: 7.704297683 | V2: 6.650929519 | W2: 5.055401661 | X2: 1.401432382 | Y2: 0.9739394819 | Z2: =AVERAGE(Q2:Y2) -> 3.643709894 | AA2: =_xlfn.STDEV.S(Q2:Y2) -> 2.860433409 | AB2: 81-1 | AC2: 0 | AD2: 2003-08-20 | AE2: 0
A3: 81-1 | B3: 2003-08-20 | C3: 7147034.82 | D3: 512978.93 | E3: =(B3-B2)/365 -> 2.169863014 | F3: =C3-C2 -> 0.1100000003 | G3: =D3-D2 -> 0.04999999999 | H3: =(F3^2+G3^2)^0.5 -> 0.12083046 | I3: =H3/E3*100 -> 5.568575494 | J3: =IF(F3>0,2,0) -> 2 | K3: =IF(G3>0,1,0) -> 1 | L3: =SUM(J3:K3) -> 3 | M3: =IF(L3=3,(ATAN(G3/F3)*180/PI()),IF(L3=1,(90+ATAN(ABS(F3)/ABS(G3))*180/PI()),IF(L3=0,(180+ATAN(ABS(G3)/ABS(F3))*180/PI()),IF(L3=2,(270+ATAN(ABS(F3)/ABS(G3))*180/PI()),"ERROR")))) -> 24.44395471 | N3: =IF(AND(ABS($M$13-M3)>0,ABS($M$13-M3)<180),ABS($M$13-M3),ABS(360-MAX($M$13,M3)+MIN($M$13,M3))) -> 29.36283861 | P3: 223 | Q3: =INDIRECT("I"&TEXT(3+VLOOKUP($P3,$AB$2:$AC$11,2,FALSE)*12+VLOOKUP(Q$1,$AD$2:$AE$11,2,FALSE)*1,0)) -> 3.047233106 | R3: =INDIRECT("I"&TEXT(3+VLOOKUP($P3,$AB$2:$AC$11,2,FALSE)*12+VLOOKUP(R$1,$AD$2:$AE$11,2,FALSE)*1,0)) -> 2.202271543 | S3: 2.292597788 | T3: 1.477732806 | U3: 19.64218248 | V3: 5.816069111 | W3: 4.289650573 | X3: 1.629885227 | Y3: 3.087714082 | Z3: =AVERAGE(Q3:Y3) -> 4.83170408 | AA3: =_xlfn.STDEV.S(Q3:Y3) -> 5.719491326 | AB3: 223 | AC3: 1 | AD3: 2004-07-28 | AE3: 1
A4: 81-1 | B4: 2004-07-28 | C4: 7147034.757 | D4: 512978.924 | E4: =(B4-B3)/365 -> 0.9397260274 | F4: =C4-C3 -> -0.06300000008 | G4: =D4-D3 -> -0.005999999994 | H4: =(F4^2+G4^2)^0.5 -> 0.06328506941 | I4: =H4/E4*100 -> 6.734417007 | J4: =IF(F4>0,2,0) -> 0 | K4: =IF(G4>0,1,0) -> 0 | L4: =SUM(J4:K4) -> 0 | M4: =IF(L4=3,(ATAN(G4/F4)*180/PI()),IF(L4=1,(90+ATAN(ABS(F4)/ABS(G4))*180/PI()),IF(L4=0,(180+ATAN(ABS(G4)/ABS(F4))*180/PI()),IF(L4=2,(270+ATAN(ABS(F4)/ABS(G4))*180/PI()),"ERROR")))) -> 185.440332 | N4: =IF(AND(ABS($M$13-M4)>0,ABS($M$13-M4)<180),ABS($M$13-M4),ABS(360-MAX($M$13,M4)+MIN($M$13,M4))) -> 131.6335387 | P4: 225 | Q4: 3.883746336 | R4: 2.209072192 | S4: 2.292597788 | T4: 1.101437015 | U4: 27.7782406 | V4: 2.550515087 | W4: 5.05540162 | X4: 0.5327446855 | Y4: 2.676300117 | Z4: 5.342228382 | AA4: 8.519956571 | AB4: 225 | AC4: 2 | AD4: 2006-07-28 | AE4: 2
A5: 81-1 | B5: 2006-07-28 | C5: 7147034.8 | D5: 512978.92 | E5: 2 | F5: 0.0429999996 | G5: -0.004000000015 | H5: 0.04318564536 | I5: 2.159282268 | J5: 2 | K5: 0 | L5: 2 | M5: =IF(L5=3,(ATAN(G5/F5)*180/PI()),IF(L5=1,(90+ATAN(ABS(F5)/ABS(G5))*180/PI()),IF(L5=0,(180+ATAN(ABS(G5)/ABS(F5))*180/PI()),IF(L5=2,(270+ATAN(ABS(F5)/ABS(G5))*180/PI()),"ERROR")))) -> 354.6854543 | N5: 59.12133906 | P5: 1195 | Q5: 1.131196233 | R5: 1.154339639 | S5: 4.227341446 | T5: 0.9851551737 | U5: 10.89552214 | V5: 2.550514992 | W5: 1.429883503 | X5: 1.820708949 | Y5: 3.28810394 | Z5: 3.053640669 | AA5: 3.140845115 | AB5: 1195 | AC5: 3 | AD5: 2008-07-09 | AE5: 3
A6: 81-1 | B6: 2008-07-09 | C6: 7147034.83 | D6: 512978.93 | E6: 1.950684932 | F6: 0.03000000026 | G6: 0.01000000001 | H6: 0.03162277685 | I6: 1.621111454 | J6: 2 | K6: 1 | L6: 3 | M6: 18.43494869 | N6: 35.37184463 | P6: 1834 | Q6: 5.48522594 | R6: 2.896981209 | S6: 2.760653299 | T6: 3.154035548 | U6: 33.13743764 | V6: 6.142453587 | W6: 6.150161557 | X6: 1.763698612 | Y6: 1.312589616 | Z6: 6.978137446 | AA6: 9.976705693 | AB6: 1834 | AC6: 4 | AD6: 2010-07-20 | AE6: 4
A7: 81-1 | B7: 2010-07-20 | C7: 7147034.84 | D7: 512978.93 | E7: 2.030136986 | F7: 0.009999999776 | G7: 0 | H7: 0.009999999776 | I7: 0.4925775868 | J7: 2 | K7: 0 | L7: 2 | M7: 0 | N7: 53.80679332 | P7: BH-4 | X7: =INDIRECT("I"&TEXT(3+VLOOKUP($P7,$AB$2:$AC$11,2,FALSE)*12+VLOOKUP(X$1,$AD$2:$AE$11,2,FALSE)*1,0)) -> 1.467902446 | Y7: 1.940411158 | Z7: 1.704156802 | AA7: =_xlfn.STDEV.S(X7:Y7) -> 0.3341141141 | AB7: BH-4 | AC7: 5 | AD7: 2010-09-25 | AE7: 5
A8: 81-1 | B8: 2010-09-25 | C8: 7147034.83 | D8: 512978.94 | E8: 0.1835616438 | F8: -0.009999999776 | G8: 0.01000000001 | H8: 0.01414213547 | I8: 7.704297683 | J8: 0 | K8: 1 | L8: 1 | M8: 134.9999993 | N8: 81.19320601 | P8: 2836 | X8: 6.611015583 | Y8: 11.74386764 | Z8: 9.17744161 | AA8: =_xlfn.STDEV.S(X8:Y8) -> 3.629474493 | AB8: 2836 | AC8: 6 | AD8: 2011-08-11 | AE8: 6
A9: 81-1 | B9: 2011-08-11 | C9: 7147034.86 | D9: 512978.99 | E9: 0.8767123288 | F9: 0.03000000026 | G9: 0.04999999999 | H9: 0.05830951907 | I9: 6.650929519 | J9: 2 | K9: 1 | L9: 3 | M9: 59.03624324 | N9: 5.22944992 | P9: 186 | X9: 8.924705357 | Y9: 5.419094729 | Z9: 7.171900043 | AA9: =_xlfn.STDEV.S(X9:Y9) -> 2.478841047 | AB9: 186 | AC9: 7 | AD9: 2012-08-06 | AE9: 7
A10: 81-1 | B10: 2012-08-06 | C10: 7147034.86 | D10: 512978.94 | E10: 0.9890410959 | F10: 0 | G10: -0.04999999999 | H10: 0.04999999999 | I10: 5.055401661 | J10: 0 | K10: 0 | L10: 0 | M10: 270 | N10: 143.8067933 | P10: 300 | X10: 1.030829941 | Y10: 4.095606595 | Z10: 2.563218268 | AA10: =_xlfn.STDEV.S(X10:Y10) -> 2.167124355 | AB10: 300 | AC10: 8 | AD10: 2014-09-11 | AE10: 8
A11: 81-1 | B11: 2014-09-11 | C11: 7147034.843 | D11: 512978.964 | E11: 2.098630137 | F11: -0.01699999999 | G11: 0.02399999998 | H11: 0.02941088232 | I11: 1.401432382 | J11: 0 | K11: 1 | L11: 1 | M11: 125.3112135 | N11: 71.50442013 | AB11: BH-4 Cable | AC11: 9 | AD11: 2015-09-17 | AE11: 9
A12: 81-1 | B12: 2015-09-17 | C12: 7147034.85 | D12: 512978.971 | E12: 1.016438356 | F12: 0.006999999285 | G12: 0.007000000041 | H12: 0.00989949446 | I12: 0.9739394819 | J12: 2 | K12: 1 | L12: 3 | M12: 45.0000031 | N12: 8.806790226
D13: Totals | E13: =SUM(E3:E12) -> 14.25479452 | F13: =C12-C3 -> 0.02999999933 | G13: =D12-D3 -> 0.04100000003 | H13: 0.05080354281 | I13: =H13*100/E13 -> 0.3563961777 | J13: =IF(G13>0,2,0) -> 2 | K13: =IF(H13>0,1,0) -> 1 | L13: 3 | M13: 53.80679332 | N13: =AVERAGE(N3:N12) -> 61.98370139 | P13: min | Q13: =MIN(Q2:Q11) -> 1.131196233 | R13: =MIN(R2:R11) -> 1.154339639 | S13: 1.621111454 | T13: 0.4925775868 | U13: 7.704297683 | V13: 2.550514992 | W13: 1.429883503 | X13: 0.5327446855 | Y13: 0.9739394819
A14: 223 | B14: 2001-06-19 | C14: N/A | D14: N/A | P14: Q1 | Q14: =QUARTILE(Q2:Q11,1) -> 3.047233106 | R14: =QUARTILE(R2:R11,1) -> 2.159282268 | S14: 2.292597788 | T14: 0.9851551737 | U14: 10.89552214 | V14: 2.550515087 | W14: 4.289650573 | X14: 1.401432382 | Y14: 1.940411158
A15: 223 | B15: 2003-08-20 | C15: 7146978.05 | D15: 512942.74 | E15: =(B15-B14)/365 -> 2.169863014 | P15: Median | Q15: =MEDIAN(Q2:Q11) -> 3.883746336 | R15: =MEDIAN(R2:R11) -> 2.202271543 | S15: 2.292597788 | T15: 1.101437015 | U15: 19.64218248 | V15: 5.816069111 | W15: 5.05540162 | X15: 1.629885227 | Y15: 3.087714082
A16: 223 | B16: 2004-07-28 | C16: 7146978.076 | D16: 512942.728 | E16: =(B16-B15)/365 -> 0.9397260274 | F16: =C16-C15 -> 0.02600000054 | G16: =D16-D15 -> -0.01199999999 | H16: =(F16^2+G16^2)^0.5 -> 0.02863564261 | I16: =H16/E16*100 -> 3.047233106 | J16: =IF(F16>0,2,0) -> 2 | K16: =IF(G16>0,1,0) -> 0 | L16: =SUM(J16:K16) -> 2 | M16: =IF(L16=3,(ATAN(G16/F16)*180/PI()),IF(L16=1,(90+ATAN(ABS(F16)/ABS(G16))*180/PI()),IF(L16=0,(180+ATAN(ABS(G16)/ABS(F16))*180/PI()),IF(L16=2,(270+ATAN(ABS(F16)/ABS(G16))*180/PI()),"ERROR")))) -> 335.2248599 | N16: =IF(AND(ABS($M$25-M16)>0,ABS($M$25-M16)<180),ABS($M$25-M16),ABS(360-MAX($M$25,M16)+MIN($M$25,M16))) -> 31.90015643 | P16: Q3 | Q16: =QUARTILE(Q2:Q11,3) -> 5.48522594 | R16: =QUARTILE(R2:R11,3) -> 2.209072192 | S16: 2.760653299 | T16: 1.477732806 | U16: 27.7782406 | V16: 6.142453587 | W16: 5.055401661 | X16: 1.820708949 | Y16: 4.095606595
A17: 223 | B17: 2006-07-28 | C17: 7146978.12 | D17: 512942.73 | E17: 2 | F17: 0.04399999976 | G17: 0.001999999979 | H17: 0.04404543085 | I17: 2.202271543 | J17: 2 | K17: 1 | L17: 3 | M17: 2.602562189 | N17: =IF(AND(ABS($M$25-M17)>0,ABS($M$25-M17)<180),ABS($M$25-M17),ABS(360-MAX($M$25,M17)+MIN($M$25,M17))) -> 4.522454147 | P17: Max | Q17: =MAX(Q2:Q11) -> 6.734417007 | R17: =MAX(R2:R11) -> 2.896981209 | S17: 4.227341446 | T17: 3.154035548 | U17: 33.13743764 | V17: 6.650929519 | W17: 6.150161557 | X17: 8.924705357 | Y17: 11.74386764
A18: 223 | B18: 2008-07-09 | C18: 7146978.16 | D18: 512942.75 | E18: 1.950684932 | F18: 0.04000000004 | G18: 0.02000000002 | H18: 0.04472135959 | I18: 2.292597788 | J18: 2 | K18: 1 | L18: 3 | M18: 26.56505118 | N18: 19.44003484 | P18: Bottom | Q18: =Q14 -> 3.047233106 | R18: =R14 -> 2.159282268 | S18: 2.292597788 | T18: 0.9851551737 | U18: 10.89552214 | V18: 2.550515087 | W18: 4.289650573 | X18: 1.401432382 | Y18: 1.940411158
A19: 223 | B19: 2010-07-20 | C19: 7146978.19 | D19: 512942.75 | E19: 2.030136986 | F19: 0.03000000026 | G19: 0 | H19: 0.03000000026 | I19: 1.477732806 | J19: 2 | K19: 0 | L19: 2 | M19: 0 | N19: 7.125016336 | P19: 2Q Box | Q19: =Q15-Q14 -> 0.8365132301 | R19: =R15-R14 -> 0.04298927439 | S19: 0 | T19: 0.1162818408 | U19: 8.746660336 | V19: 3.265554024 | W19: 0.765751047 | X19: 0.2284528455 | Y19: 1.147302924
A20: 223 | B20: 2010-09-25 | C20: 7146978.17 | D20: 512942.78 | E20: 0.1835616438 | F20: -0.02000000048 | G20: 0.03000000003 | H20: 0.03605551305 | I20: 19.64218248 | J20: 0 | K20: 1 | L20: 1 | M20: 123.6900681 | N20: 116.5650518 | P20: 3Q Box | Q20: =Q16-Q15 -> 1.601479604 | R20: =R16-R15 -> 0.006800649038 | S20: 0.4680555105 | T20: 0.3762957919 | U20: 8.136058123 | V20: 0.326384476 | W20: 4.119683439e-08 | X20: 0.1908237215 | Y20: 1.007892513
A21: 223 | B21: 2011-08-11 | C21: 7146978.22 | D21: 512942.79 | E21: 0.8767123288 | F21: 0.04999999981 | G21: 0.009999999951 | H21: 0.05099019494 | I21: 5.816069111 | J21: 2 | K21: 1 | L21: 3 | M21: 11.30993246 | N21: 4.184916126 | P21: Whisker - | Q21: =Q14-Q13 -> 1.916036872 | R21: =R14-R13 -> 1.004942629 | S21: 0.6714863343 | T21: 0.4925775868 | U21: 3.191224462 | V21: 9.501408904e-08 | W21: 2.859767069 | X21: 0.8686876964 | Y21: 0.9664716759
A22: 223 | B22: 2012-08-06 | C22: 7146978.25 | D22: 512942.76 | E22: 0.9890410959 | F22: 0.03000000026 | G22: -0.02999999997 | H22: 0.04242640703 | I22: 4.289650573 | J22: 2 | K22: 0 | L22: 2 | M22: 315.0000003 | N22: 52.12501606 | P22: Whisker + | Q22: =Q17-Q16 -> 1.249191067 | R22: =R17-R16 -> 0.6879090178 | S22: 1.466688147 | T22: 1.676302741 | U22: 5.35919704 | V22: 0.5084759325 | W22: 1.094759896 | X22: 7.103996409 | Y22: 7.648261041
A23: 223 | B23: 2014-09-11 | C23: 7146978.271 | D23: 512942.787 | E23: 2.098630137 | F23: 0.02099999972 | G23: 0.027 | H23: 0.03420526258 | I23: 1.629885227 | J23: 2 | K23: 1 | L23: 3 | M23: 52.12501673 | N23: 45.00000039 | P23: Azimuth
A24: 223 | B24: 2015-09-17 | C24: 7146978.298 | D24: 512942.771 | E24: 1.016438356 | F24: 0.0270000007 | G24: -0.016 | H24: 0.03138471026 | I24: 3.087714082 | J24: 2 | K24: 0 | L24: 2 | M24: 329.3493327 | N24: 37.77568365 | P24: Point | Q24: 2004-07-28 | R24: 2006-07-28 | S24: 2008-07-09 | T24: 2010-07-20 | U24: 2010-09-25 | V24: 2011-08-11 | W24: 2012-08-06 | X24: 2014-09-11 | Y24: 2015-09-17 | AA24: Stddev.
B25: Totals From August 2, 2003 to September 17, 2015 | E25: =SUM(E15:E24) -> 14.25479452 | F25: =C24-C15 -> 0.2480000006 | G25: =D24-D15 -> 0.03100000002 | H25: 0.2499299908 | I25: =H25*100/E25 -> 1.75330476 | J25: =IF(G25>0,2,0) -> 2 | K25: =IF(H25>0,1,0) -> 1 | L25: 3 | M25: 7.125016336 | N25: =AVERAGE(N15:N24) -> 35.40425886 | P25: 81-1 | Q25: =INDIRECT("M"&TEXT(3+VLOOKUP($P25,$AB$2:$AC$11,2,FALSE)*12+VLOOKUP(Q$24,$AD$2:$AE$11,2,FALSE)*1,0)) -> 185.440332 | R25: 354.6854543 | S25: 18.43494869 | T25: 0 | U25: 134.9999993 | V25: 59.03624324 | W25: 270 | X25: 125.3112135 | Y25: 45.0000031 | AA25: =_xlfn.STDEV.S(Q25:Y25) -> 119.7672085
A26: 225 | B26: 2001-06-19 | C26: N/A | D26: N/A | P26: 223 | Q26: =INDIRECT("M"&TEXT(3+VLOOKUP($P26,$AB$2:$AC$11,2,FALSE)*12+VLOOKUP(Q$24,$AD$2:$AE$11,2,FALSE)*1,0)) -> 335.2248599 | R26: =INDIRECT("M"&TEXT(3+VLOOKUP($P26,$AB$2:$AC$11,2,FALSE)*12+VLOOKUP(R$24,$AD$2:$AE$11,2,FALSE)*1,0)) -> 2.602562189 | S26: 26.56505118 | T26: 0 | U26: 123.6900681 | V26: 11.30993246 | W26: 315.0000003 | X26: 52.12501673 | Y26: 329.3493327 | AA26: =_xlfn.STDEV.S(Q26:Y26) -> 150.0119213
A27: 225 | B27: 2003-08-20 | C27: 7146918.72 | D27: 512905.22 | P27: 225 | Q27: 279.4623223 | R27: 354.805571 | S27: 26.56505118 | T27: 333.4349494 | U27: 78.69006777 | V27: 26.56505064 | W27: 306.869897 | X27: 333.4349504 | Y27: 53.9726269 | AA27: 147.2689538
A28: 225 | B28: 2004-07-28 | C28: 7146918.726 | D28: 512905.184 | E28: =(B28-B27)/365 -> 0.9397260274 | F28: =C28-C27 -> 0.006000000052 | G28: =D28-D27 -> -0.03599999996 | H28: =(F28^2+G28^2)^0.5 -> 0.03649657515 | I28: =H28/E28*100 -> 3.883746336 | J28: =IF(F28>0,2,0) -> 2 | K28: =IF(G28>0,1,0) -> 0 | L28: =SUM(J28:K28) -> 2 | M28: =IF(L28=3,(ATAN(G28/F28)*180/PI()),IF(L28=1,(90+ATAN(ABS(F28)/ABS(G28))*180/PI()),IF(L28=0,(180+ATAN(ABS(G28)/ABS(F28))*180/PI()),IF(L28=2,(270+ATAN(ABS(F28)/ABS(G28))*180/PI()),"ERROR")))) -> 279.4623223 | N28: =IF(AND(ABS($M$37-M28)>0,ABS($M$37-M28)<180),ABS($M$37-M28),ABS(360-MAX($M$37,M28)+MIN($M$37,M28))) -> 82.5830862 | P28: 1195 | Q28: 318.8140727 | R28: 274.9697415 | S28: 14.03624347 | T28: 0 | U28: 180 | V28: 26.56505171 | W28: 314.9999993 | X28: 47.1210958 | Y28: 321.072456 | AA28: 144.002114
A29: 225 | B29: 2006-07-28 | C29: 7146918.77 | D29: 512905.18 | E29: 2 | F29: 0.04399999976 | G29: -0.004000000015 | H29: 0.04418144383 | I29: 2.209072192 | J29: 2 | K29: 0 | L29: 2 | M29: 354.805571 | N29: =IF(AND(ABS($M$37-M29)>0,ABS($M$37-M29)<180),ABS($M$37-M29),ABS(360-MAX($M$37,M29)+MIN($M$37,M29))) -> 7.239837452 | P29: 1834 | Q29: 288.0834452 | R29: 338.7494947 | S29: 21.80140958 | T29: 321.3401917 | U29: 99.462322 | V29: 21.80140952 | W29: 260.537678 | X29: 1.548157701 | Y29: 347.0053836 | AA29: 149.5432979
A30: 225 | B30: 2008-07-09 | C30: 7146918.81 | D30: 512905.2 | E30: 1.950684932 | F30: 0.04000000004 | G30: 0.02000000002 | H30: 0.04472135959 | I30: 2.292597788 | J30: 2 | K30: 1 | L30: 3 | M30: 26.56505118 | N30: 24.51964268 | P30: BH-4 | X30: =INDIRECT("M"&TEXT(3+VLOOKUP($P30,$AB$2:$AC$11,2,FALSE)*12+VLOOKUP(X$24,$AD$2:$AE$11,2,FALSE)*1,0)) -> 125.7538861 | Y30: 239.5344533 | AA30: 80.45501062
A31: 225 | B31: 2010-07-20 | C31: 7146918.83 | D31: 512905.19 | E31: 2.030136986 | F31: 0.02000000048 | G31: -0.01000000001 | H31: 0.02236068021 | I31: 1.101437015 | J31: 2 | K31: 0 | L31: 2 | M31: 333.4349494 | N31: 28.61045914 | P31: 2836 | X31: 76.6648938 | Y31: 74.45019599 | AA31: 1.56602784
A32: 225 | B32: 2010-09-25 | C32: 7146918.84 | D32: 512905.24 | E32: 0.1835616438 | F32: 0.009999999776 | G32: 0.04999999999 | H32: 0.05099019508 | I32: 27.7782406 | J32: 2 | K32: 1 | L32: 3 | M32: 78.69006777 | N32: 76.64465927 | P32: 186 | X32: 83.25442039 | Y32: 93.12213001 | AA32: 6.977524385
A33: 225 | B33: 2011-08-11 | C33: 7146918.86 | D33: 512905.25 | E33: 0.8767123288 | F33: 0.02000000048 | G33: 0.01000000001 | H33: 0.02236068021 | I33: 2.550515087 | J33: 2 | K33: 1 | L33: 3 | M33: 26.56505064 | N33: 24.51964215 | P33: 300 | X33: 33.6900674 | Y33: 335.8977653 | AA33: 213.6931125
A34: 225 | B34: 2012-08-06 | C34: 7146918.89 | D34: 512905.21 | E34: 0.9890410959 | F34: 0.02999999933 | G34: -0.03999999998 | H34: 0.04999999958 | I34: 5.05540162 | J34: 2 | K34: 0 | L34: 2 | M34: 306.869897 | N34: 55.17551145
A35: 225 | B35: 2014-09-11 | C35: 7146918.9 | D35: 512905.205 | E35: 2.098630137 | F35: 0.01000000071 | G35: -0.005000000005 | H35: 0.01118034052 | I35: 0.5327446855 | J35: 2 | K35: 0 | L35: 2 | M35: 333.4349504 | N35: 28.61045807 | Q35: =_xlfn.STDEV.S(Q25:Q34) -> 58.20998447 | R35: =_xlfn.STDEV.S(R25:R34) -> 150.415415 | S35: 5.396773165 | T35: 179.3685362 | U35: 38.43887885 | V35: 17.87999323 | W35: 26.18213653 | X35: 97.3070221 | Y35: 134.811744
A36: 225 | B36: 2015-09-17 | C36: 7146918.916 | D36: 512905.227 | E36: 1.016438356 | F36: 0.01599999983 | G36: 0.022 | H36: 0.02720294091 | I36: 2.676300117 | J36: 2 | K36: 1 | L36: 3 | M36: 53.9726269 | N36: 51.92721841 | P36: Azimuth Variation from Principal Direction
B37: Totals From August 2, 2003 to September 17, 2015 | E37: =SUM(E27:E36) -> 12.08493151 | F37: =C36-C27 -> 0.1960000005 | G37: =D36-D27 -> 0.007000000041 | H37: 0.1961249606 | I37: =H37*100/E37 -> 1.622888475 | J37: =IF(G37>0,2,0) -> 2 | K37: =IF(H37>0,1,0) -> 1 | L37: 3 | M37: 2.045408496 | N37: =AVERAGE(N27:N36) -> 42.20339054 | P37: Point | Q37: 2004-07-28 | R37: 2006-07-28 | S37: 2008-07-09 | T37: 2010-07-20 | U37: 2010-09-25 | V37: 2011-08-11 | W37: 2012-08-06 | X37: 2014-09-11 | Y37: 2015-09-17 | AA37: Stddev. | AB37: Mean | AC37: Min | AD37: Max
A38: 1195 | B38: 2001-06-19 | C38: 7147111.83 | D38: 512899.53 | P38: 81-1 | Q38: =INDIRECT("N"&TEXT(3+VLOOKUP($P38,$AB$2:$AC$11,2,FALSE)*12+VLOOKUP(Q$37,$AD$2:$AE$11,2,FALSE)*1,0)) -> 131.6335387 | R38: 59.12133906 | S38: 35.37184463 | T38: 53.80679332 | U38: 81.19320601 | V38: 5.22944992 | W38: 143.8067933 | X38: 71.50442013 | Y38: 8.806790226 | AA38: =_xlfn.STDEV.S(Q38:Y38) -> 48.37303812 | AB38: =AVERAGE(Q38:Y38) -> 65.6082417 | AC38: =MIN(Q38:Y38) -> 5.22944992 | AD38: =MAX(Q38:Y38) -> 143.8067933
A39: 1195 | B39: 2003-08-20 | C39: 7147111.94 | D39: 512899.53 | P39: 223 | Q39: =INDIRECT("N"&TEXT(3+VLOOKUP($P39,$AB$2:$AC$11,2,FALSE)*12+VLOOKUP(Q$37,$AD$2:$AE$11,2,FALSE)*1,0)) -> 31.90015643 | R39: =INDIRECT("N"&TEXT(3+VLOOKUP($P39,$AB$2:$AC$11,2,FALSE)*12+VLOOKUP(R$37,$AD$2:$AE$11,2,FALSE)*1,0)) -> 4.522454147 | S39: 19.44003484 | T39: 7.125016336 | U39: 116.5650518 | V39: 4.184916126 | W39: 52.12501606 | X39: 45.00000039 | Y39: 37.77568365 | AA39: =_xlfn.STDEV.S(Q39:Y39) -> 35.28374964 | AB39: =AVERAGE(Q39:Y39) -> 35.40425886 | AC39: =MIN(Q39:Y39) -> 4.184916126 | AD39: =MAX(Q39:Y39) -> 116.5650518
A40: 1195 | B40: 2004-07-28 | C40: 7147111.948 | D40: 512899.523 | E40: =(B40-B39)/365 -> 0.9397260274 | F40: =C40-C39 -> 0.007999999449 | G40: =D40-D39 -> -0.007000000041 | H40: =(F40^2+G40^2)^0.5 -> 0.01063014543 | I40: =H40/E40*100 -> 1.131196233 | J40: =IF(F40>0,2,0) -> 2 | K40: =IF(G40>0,1,0) -> 0 | L40: =SUM(J40:K40) -> 2 | M40: =IF(L40=3,(ATAN(G40/F40)*180/PI()),IF(L40=1,(90+ATAN(ABS(F40)/ABS(G40))*180/PI()),IF(L40=0,(180+ATAN(ABS(G40)/ABS(F40))*180/PI()),IF(L40=2,(270+ATAN(ABS(F40)/ABS(G40))*180/PI()),"ERROR")))) -> 318.8140727 | N40: =IF(AND(ABS($M$49-M40)>0,ABS($M$49-M40)<180),ABS($M$49-M40),ABS(360-MAX($M$49,M40)+MIN($M$49,M40))) -> 40.18668361 | P40: 225 | Q40: 82.5830862 | R40: 7.239837452 | S40: 24.51964268 | T40: 28.61045914 | U40: 76.64465927 | V40: 24.51964215 | W40: 55.17551145 | X40: 28.61045807 | Y40: 51.92721841 | AA40: 25.73170491 | AB40: 42.20339054 | AC40: 7.239837452 | AD40: 82.5830862
A41: 1195 | B41: 2006-07-28 | C41: 7147111.95 | D41: 512899.5 | E41: 2 | F41: 0.002000000328 | G41: -0.02299999999 | H41: 0.02308679278 | I41: 1.154339639 | J41: 2 | K41: 0 | L41: 2 | M41: 274.9697415 | N41: =IF(AND(ABS($M$49-M41)>0,ABS($M$49-M41)<180),ABS($M$49-M41),ABS(360-MAX($M$49,M41)+MIN($M$49,M41))) -> 84.03101478 | P41: 1195 | Q41: 40.18668361 | R41: 84.03101478 | S41: 15.03548715 | T41: 0.9992436829 | U41: 179.0007563 | V41: 27.56429539 | W41: 44.00075698 | X41: 48.12033948 | Y41: 37.92830035 | AA41: 52.59230592 | AB41: 52.98520864 | AC41: 0.9992436829 | AD41: 179.0007563
A42: 1195 | B42: 2008-07-09 | C42: 7147112.03 | D42: 512899.52 | E42: 1.950684932 | F42: 0.08000000007 | G42: 0.02000000002 | H42: 0.08246211259 | I42: 4.227341446 | J42: 2 | K42: 1 | L42: 3 | M42: 14.03624347 | N42: 15.03548715 | P42: 1834 | Q42: 55.85015427 | R42: 5.184104814 | S42: 37.86781011 | T42: 22.59340781 | U42: 115.5287225 | V42: 37.86781005 | W42: 83.39592147 | X42: 17.61455823 | Y42: 3.071784134 | AA42: 37.39660473 | AB42: 42.1082526 | AC42: 3.071784134 | AD42: 115.5287225
A43: 1195 | B43: 2010-07-20 | C43: 7147112.05 | D43: 512899.52 | E43: 2.030136986 | F43: 0.01999999955 | G43: 0 | H43: 0.01999999955 | I43: 0.9851551737 | J43: 2 | K43: 0 | L43: 2 | M43: 0 | N43: 0.9992436829 | P43: BH-4 | X43: =INDIRECT("N"&TEXT(3+VLOOKUP($P43,$AB$2:$AC$11,2,FALSE)*12+VLOOKUP(X$37,$AD$2:$AE$11,2,FALSE)*1,0)) -> 38.30071799 | Y43: 75.47984918 | AA43: 26.28961578 | AB43: 56.89028359 | AC43: 38.30071799 | AD43: 75.47984918
A44: 1195 | B44: 2010-09-25 | C44: 7147112.03 | D44: 512899.52 | E44: 0.1835616438 | F44: -0.01999999955 | G44: 0 | H44: 0.01999999955 | I44: 10.89552214 | J44: 0 | K44: 0 | L44: 0 | M44: 180 | N44: 179.0007563 | P44: 2836 | X44: 1.024230194 | Y44: 1.190467616 | AA44: 0.1175476078 | AB44: 1.107348905 | AC44: 1.024230194 | AD44: 1.190467616
A45: 1195 | B45: 2011-08-11 | C45: 7147112.05 | D45: 512899.53 | E45: 0.8767123288 | F45: 0.01999999955 | G45: 0.01000000001 | H45: 0.02236067938 | I45: 2.550514992 | J45: 2 | K45: 1 | L45: 3 | M45: 26.56505171 | N45: 27.56429539 | P45: 186 | X45: 2.237808742 | Y45: 7.629900875 | AA45: 3.812784912 | AB45: 4.933854809 | AC45: 2.237808742 | AD45: 7.629900875
A46: 1195 | B46: 2012-08-06 | C46: 7147112.06 | D46: 512899.52 | E46: 0.9890410959 | F46: 0.009999999776 | G46: -0.01000000001 | H46: 0.01414213547 | I46: 1.429883503 | J46: 2 | K46: 0 | L46: 2 | M46: 314.9999993 | N46: 44.00075698 | P46: 300 | X46: 38.79223267 | Y46: 19.00006946 | AA46: 13.99517282 | AB46: 28.89615106 | AC46: 19.00006946 | AD46: 38.79223267
A47: 1195 | B47: 2014-09-11 | C47: 7147112.086 | D47: 512899.548 | E47: 2.098630137 | F47: 0.02600000054 | G47: 0.02799999999 | H47: 0.03820994671 | I47: 1.820708949 | J47: 2 | K47: 1 | L47: 3 | M47: 47.1210958 | N47: 48.12033948
A48: 1195 | B48: 2015-09-17 | C48: 7147112.112 | D48: 512899.527 | E48: 1.016438356 | F48: 0.02599999961 | G48: -0.02100000001 | H48: 0.03342154963 | I48: 3.28810394 | J48: 2 | K48: 0 | L48: 2 | M48: 321.072456 | N48: 37.92830035 | P48: Stddev. | Q48: =_xlfn.STDEV.S(Q38:Q47) -> 40.26587904 | R48: =_xlfn.STDEV.S(R38:R47) -> 37.18186719 | S48: 9.913660371 | T48: 20.71263964 | U48: 40.94354058 | V48: 14.70637643 | W48: 40.86452926 | X48: 22.74278221 | Y48: 25.53449892
B49: Totals From August 2, 2003 to September 17, 2015 | E49: =SUM(E39:E48) -> 12.08493151 | F49: =C48-C39 -> 0.1719999993 | G49: =D48-D39 -> -0.003000000026 | H49: 0.1720261601 | I49: =H49*100/E49 -> 1.423476501 | J49: =IF(F49>0,2,0) -> 2 | K49: =IF(G49>0,1,0) -> 0 | L49: 2 | M49: 359.0007563 | N49: =AVERAGE(N39:N48) -> 52.98520864 | P49: Mean | Q49: =AVERAGE(Q38:Q47) -> 68.43072384 | R49: =AVERAGE(R38:R47) -> 32.01975005 | S49: 26.44696388 | T49: 22.62698406 | U49: 113.7864792 | V49: 19.87322273 | W49: 75.70079986 | X49: 32.3560851 | Y49: 26.97889599
A50: 1834 | B50: 2001-06-19 | C50: N/A | D50: N/A | P50: Min | Q50: =MIN(Q38:Q47) -> 31.90015643 | R50: =MIN(R38:R47) -> 4.522454147 | S50: 15.03548715 | T50: 0.9992436829 | U50: 76.64465927 | V50: 4.184916126 | W50: 44.00075698 | X50: 1.024230194 | Y50: 1.190467616
A51: 1834 | B51: 2003-08-20 | C51: 7146973.62 | D51: 512893.43 | P51: Max | Q51: =MAX(Q38:Q47) -> 131.6335387 | R51: =MAX(R38:R47) -> 84.03101478 | S51: 37.86781011 | T51: 53.80679332 | U51: 179.0007563 | V51: 37.86781005 | W51: 143.8067933 | X51: 71.50442013 | Y51: 75.47984918
A52: 1834 | B52: 2004-07-28 | C52: 7146973.636 | D52: 512893.381 | E52: =(B52-B51)/365 -> 0.9397260274 | F52: =C52-C51 -> 0.01599999983 | G52: =D52-D51 -> -0.049 | H52: =(F52^2+G52^2)^0.5 -> 0.05154609582 | I52: =H52/E52*100 -> 5.48522594 | J52: =IF(F52>0,2,0) -> 2 | K52: =IF(G52>0,1,0) -> 0 | L52: =SUM(J52:K52) -> 2 | M52: =IF(L52=3,(ATAN(G52/F52)*180/PI()),IF(L52=1,(90+ATAN(ABS(F52)/ABS(G52))*180/PI()),IF(L52=0,(180+ATAN(ABS(G52)/ABS(F52))*180/PI()),IF(L52=2,(270+ATAN(ABS(F52)/ABS(G52))*180/PI()),"ERROR")))) -> 288.0834452 | N52: =IF(AND(ABS($M$61-M52)>0,ABS($M$61-M52)<180),ABS($M$61-M52),ABS(360-MAX($M$61,M52)+MIN($M$61,M52))) -> 55.85015427
A53: 1834 | B53: 2006-07-28 | C53: 7146973.69 | D53: 512893.36 | E53: 2 | F53: 0.05400000047 | G53: -0.02100000001 | H53: 0.05793962419 | I53: 2.896981209 | J53: 2 | K53: 0 | L53: 2 | M53: 338.7494947 | N53: =IF(AND(ABS($M$61-M53)>0,ABS($M$61-M53)<180),ABS($M$61-M53),ABS(360-MAX($M$61,M53)+MIN($M$61,M53))) -> 5.184104814
A54: 1834 | B54: 2008-07-09 | C54: 7146973.74 | D54: 512893.38 | E54: 1.950684932 | F54: 0.04999999981 | G54: 0.02000000002 | H54: 0.05385164791 | I54: 2.760653299 | J54: 2 | K54: 1 | L54: 3 | M54: 21.80140958 | N54: 37.86781011
A55: 1834 | B55: 2010-07-20 | C55: 7146973.79 | D55: 512893.34 | E55: 2.030136986 | F55: 0.04999999981 | G55: -0.03999999998 | H55: 0.06403124222 | I55: 3.154035548 | J55: 2 | K55: 0 | L55: 2 | M55: 321.3401917 | N55: 22.59340781
A56: 1834 | B56: 2010-09-25 | C56: 7146973.78 | D56: 512893.4 | E56: 0.1835616438 | F56: -0.009999999776 | G56: 0.06 | H56: 0.06082762526 | I56: 33.13743764 | J56: 0 | K56: 1 | L56: 1 | M56: 99.462322 | N56: 115.5287225
A57: 1834 | B57: 2011-08-11 | C57: 7146973.83 | D57: 512893.42 | E57: 0.8767123288 | F57: 0.04999999981 | G57: 0.01999999996 | H57: 0.05385164788 | I57: 6.142453587 | J57: 2 | K57: 1 | L57: 3 | M57: 21.80140952 | N57: 37.86781005
A58: 1834 | B58: 2012-08-06 | C58: 7146973.82 | D58: 512893.36 | E58: 0.9890410959 | F58: -0.009999999776 | G58: -0.06 | H58: 0.06082762526 | I58: 6.150161557 | J58: 0 | K58: 0 | L58: 0 | M58: 260.537678 | N58: 83.39592147
A59: 1834 | B59: 2014-09-11 | C59: 7146973.857 | D59: 512893.361 | E59: 2.098630137 | F59: 0.03699999955 | G59: 0.0009999999893 | H59: 0.03701351059 | I59: 1.763698612 | J59: 2 | K59: 1 | L59: 3 | M59: 1.548157701 | N59: 17.61455823
A60: 1834 | B60: 2015-09-17 | C60: 7146973.87 | D60: 512893.358 | E60: 1.016438356 | F60: 0.01300000027 | G60: -0.002999999968 | H60: 0.01334166432 | I60: 1.312589616 | J60: 2 | K60: 0 | L60: 2 | M60: 347.0053836 | N60: 3.071784134
B61: Totals From August 2, 2003 to September 17, 2015 | E61: =SUM(E51:E60) -> 12.08493151 | F61: =C60-C51 -> 0.25 | G61: =D60-D51 -> -0.07199999999 | H61: 0.2601614883 | I61: =H61*100/E61 -> 2.152775861 | J61: 2 | K61: 0 | L61: 2 | M61: 343.9335995 | N61: =AVERAGE(N51:N60) -> 42.1082526
A62: BH-4 | B62: 2001-06-19 | C62: N/A | D62: N/A
A63: BH-4 | B63: 2003-08-20 | C63: N/A | D63: N/A
A64: BH-4 | B64: 2004-07-28 | C64: N/A | D64: N/A | J64: =IF(F64>0,2,0) -> 0 | K64: =IF(G64>0,1,0) -> 0
A65: BH-4 | B65: 2006-07-28 | C65: N/A | D65: N/A | J65: 0 | K65: 0
A66: BH-4 | B66: 2008-07-09 | C66: N/A | D66: N/A | J66: 0 | K66: 0
A67: BH-4 | B67: 2010-07-20 | C67: N/A | D67: N/A | J67: 0 | K67: 0
A68: BH-4 | B68: 2010-09-25 | C68: N/A | D68: N/A | J68: 0 | K68: 0
A69: BH-4 | B69: 2011-08-11 | C69: N/A | D69: N/A | J69: 0 | K69: 0
A70: BH-4 | B70: 2012-08-06 | C70: 7146871.287 | D70: 513025.113 | J70: 0 | K70: 0
A71: BH-4 | B71: 2014-09-11 | C71: 7146871.269 | D71: 513025.138 | E71: =(B71-B70)/365 -> 2.098630137 | F71: =C71-C70 -> -0.01799999923 | G71: =D71-D70 -> 0.02499999997 | H71: =(F71^2+G71^2)^0.5 -> 0.03080584312 | I71: =H71/E71*100 -> 1.467902446 | J71: 0 | K71: 1 | L71: =SUM(J71:K71) -> 1 | M71: =IF(L71=3,(ATAN(G71/F71)*180/PI()),IF(L71=1,(90+ATAN(ABS(F71)/ABS(G71))*180/PI()),IF(L71=0,(180+ATAN(ABS(G71)/ABS(F71))*180/PI()),IF(L71=2,(270+ATAN(ABS(F71)/ABS(G71))*180/PI()),"ERROR")))) -> 125.7538861 | N71: =IF(AND(ABS($M$73-M71)>0,ABS($M$73-M71)<180),ABS($M$73-M71),ABS(360-MAX($M$73,M71)+MIN($M$73,M71))) -> 38.30071799
A72: BH-4 | B72: 2015-09-17 | C72: 7146871.259 | D72: 513025.121 | E72: 1.016438356 | F72: -0.01000000071 | G72: -0.01699999999 | H72: 0.01972308328 | I72: 1.940411158 | J72: 0 | K72: 0 | L72: 0 | M72: 239.5344533 | N72: =IF(AND(ABS($M$73-M72)>0,ABS($M$73-M72)<180),ABS($M$73-M72),ABS(360-MAX($M$73,M72)+MIN($M$73,M72))) -> 75.47984918
B73: Totals From August 2, 2003 to September 17, 2015 | E73: =SUM(E63:E72) -> 3.115068493 | F73: =C72-C70 -> -0.02799999993 | G73: =D72-D70 -> 0.007999999973 | H73: 0.02912043949 | I73: =H73*100/E73 -> 0.9348250143 | J73: 0 | K73: 1 | L73: 1 | M73: 164.0546041 | N73: =AVERAGE(N63:N72) -> 56.89028359
A74: 2836 | B74: 2001-06-19 | C74: N/A | D74: N/A
A75: 2836 | B75: 2003-08-20 | C75: N/A | D75: N/A
A76: 2836 | B76: 2004-07-28 | C76: N/A | D76: N/A | J76: =IF(F76>0,2,0) -> 0 | K76: =IF(G76>0,1,0) -> 0
A77: 2836 | B77: 2006-07-28 | C77: N/A | D77: N/A | J77: 0 | K77: 0
A78: 2836 | B78: 2008-07-09 | C78: N/A | D78: N/A | J78: 0 | K78: 0
A79: 2836 | B79: 2010-07-20 | C79: N/A | D79: N/A | J79: 0 | K79: 0
A80: 2836 | B80: 2010-09-25 | C80: N/A | D80: N/A | J80: 0 | K80: 0
A81: 2836 | B81: 2011-08-11 | C81: N/A | D81: N/A | J81: 0 | K81: 0
A82: 2836 | B82: 2012-08-06 | C82: 7146814.712 | D82: 513092.919 | J82: 0 | K82: 0
A83: 2836 | B83: 2014-09-11 | C83: 7146814.744 | D83: 513093.054 | E83: =(B83-B82)/365 -> 2.098630137 | F83: =C83-C82 -> 0.03199999966 | G83: =D83-D82 -> 0.135 | H83: =(F83^2+G83^2)^0.5 -> 0.1387407654 | I83: =H83/E83*100 -> 6.611015583 | J83: 2 | K83: 1 | L83: =SUM(J83:K83) -> 3 | M83: =IF(L83=3,(ATAN(G83/F83)*180/PI()),IF(L83=1,(90+ATAN(ABS(F83)/ABS(G83))*180/PI()),IF(L83=0,(180+ATAN(ABS(G83)/ABS(F83))*180/PI()),IF(L83=2,(270+ATAN(ABS(F83)/ABS(G83))*180/PI()),"ERROR")))) -> 76.6648938 | N83: =IF(AND(ABS($M$85-M83)>0,ABS($M$85-M83)<180),ABS($M$85-M83),ABS(360-MAX($M$85,M83)+MIN($M$85,M83))) -> 1.024230194
A84: 2836 | B84: 2015-09-17 | C84: 7146814.776 | D84: 513093.169 | E84: 1.016438356 | F84: 0.03199999966 | G84: 0.115 | H84: 0.1193691751 | I84: 11.74386764 | J84: 2 | K84: 1 | L84: 3 | M84: 74.45019599 | N84: =IF(AND(ABS($M$85-M84)>0,ABS($M$85-M84)<180),ABS($M$85-M84),ABS(360-MAX($M$85,M84)+MIN($M$85,M84))) -> 1.190467616
B85: Totals From August 2, 2003 to September 17, 2015 | E85: =SUM(E75:E84) -> 3.115068493 | F85: =C84-C82 -> 0.06399999931 | G85: 0.25 | H85: 0.2580620079 | I85: =H85*100/E85 -> 8.284312478 | J85: 2 | K85: 1 | L85: 3 | M85: 75.6406636 | N85: =AVERAGE(N75:N84) -> 1.107348905
A86: 186 | B86: 2001-06-19 | C86: N/A | D86: N/A
A87: 186 | B87: 2003-08-20 | C87: N/A | D87: N/A
A88: 186 | B88: 2004-07-28 | C88: N/A | D88: N/A | J88: =IF(F88>0,2,0) -> 0 | K88: =IF(G88>0,1,0) -> 0
A89: 186 | B89: 2006-07-28 | C89: N/A | D89: N/A | J89: 0 | K89: 0
A90: 186 | B90: 2008-07-09 | C90: N/A | D90: N/A | J90: 0 | K90: 0
A91: 186 | B91: 2010-07-20 | C91: N/A | D91: N/A | J91: 0 | K91: 0
A92: 186 | B92: 2010-09-25 | C92: N/A | D92: N/A | J92: 0 | K92: 0
A93: 186 | B93: 2011-08-11 | C93: N/A | D93: N/A | J93: 0 | K93: 0
A94: 186 | B94: 2012-08-06 | C94: 7146818.487 | D94: 513088.619 | J94: 0 | K94: 0
A95: 186 | B95: 2014-09-11 | C95: 7146818.509 | D95: 513088.805 | E95: =(B95-B94)/365 -> 2.098630137 | F95: =C95-C94 -> 0.02199999988 | G95: =D95-D94 -> 0.186 | H95: =(F95^2+G95^2)^0.5 -> 0.1872965563 | I95: =H95/E95*100 -> 8.924705357 | J95: 2 | K95: 1 | L95: =SUM(J95:K95) -> 3 | M95: =IF(L95=3,(ATAN(G95/F95)*180/PI()),IF(L95=1,(90+ATAN(ABS(F95)/ABS(G95))*180/PI()),IF(L95=0,(180+ATAN(ABS(G95)/ABS(F95))*180/PI()),IF(L95=2,(270+ATAN(ABS(F95)/ABS(G95))*180/PI()),"ERROR")))) -> 83.25442039 | N95: =IF(AND(ABS($M$97-M95)>0,ABS($M$97-M95)<180),ABS($M$97-M95),ABS(360-MAX($M$97,M95)+MIN($M$97,M95))) -> 2.237808742
A96: 186 | B96: 2015-09-17 | C96: 7146818.506 | D96: 513088.86 | E96: 1.016438356 | F96: -0.00299999956 | G96: 0.05499999999 | H96: 0.05508175738 | I96: 5.419094729 | J96: 0 | K96: 1 | L96: 1 | M96: 93.12213001 | N96: =IF(AND(ABS($M$97-M96)>0,ABS($M$97-M96)<180),ABS($M$97-M96),ABS(360-MAX($M$97,M96)+MIN($M$97,M96))) -> 7.629900875
B97: Totals From August 2, 2003 to September 17, 2015 | E97: =SUM(E87:E96) -> 3.115068493 | F97: =C96-C94 -> 0.01900000032 | G97: =D96-D94 -> 0.241 | H97: 0.2417478025 | I97: =H97*100/E97 -> 7.760593483 | J97: 2 | K97: 1 | L97: 3 | M97: 85.49222913 | N97: =AVERAGE(N87:N96) -> 4.933854809
A98: 300 | B98: 2001-06-19 | C98: N/A | D98: N/A
A99: 300 | B99: 2003-08-20 | C99: N/A | D99: N/A
A100: 300 | B100: 2004-07-28 | C100: N/A | D100: N/A | J100: =IF(F100>0,2,0) -> 0 | K100: =IF(G100>0,1,0) -> 0
A101: 300 | B101: 2006-07-28 | C101: N/A | D101: N/A | J101: 0 | K101: 0
A102: 300 | B102: 2008-07-09 | C102: N/A | D102: N/A | J102: 0 | K102: 0
A103: 300 | B103: 2010-07-20 | C103: N/A | D103: N/A | J103: 0 | K103: 0
A104: 300 | B104: 2010-09-25 | C104: N/A | D104: N/A | J104: 0 | K104: 0
A105: 300 | B105: 2011-08-11 | C105: N/A | D105: N/A | J105: 0 | K105: 0
A106: 300 | B106: 2012-08-06 | C106: 7146927.556 | D106: 513026.964 | J106: 0 | K106: 0
A107: 300 | B107: 2014-09-11 | C107: 7146927.574 | D107: 513026.976 | E107: =(B107-B106)/365 -> 2.098630137 | F107: =C107-C106 -> 0.01800000016 | G107: =D107-D106 -> 0.01200000005 | H107: =(F107^2+G107^2)^0.5 -> 0.02163330781 | I107: =H107/E107*100 -> 1.030829941 | J107: 2 | K107: 1 | L107: =SUM(J107:K107) -> 3 | M107: =IF(L107=3,(ATAN(G107/F107)*180/PI()),IF(L107=1,(90+ATAN(ABS(F107)/ABS(G107))*180/PI()),IF(L107=0,(180+ATAN(ABS(G107)/ABS(F107))*180/PI()),IF(L107=2,(270+ATAN(ABS(F107)/ABS(G107))*180/PI()),"ERROR")))) -> 33.6900674 | N107: =IF(AND(ABS($M$109-M107)>0,ABS($M$109-M107)<180),ABS($M$109-M107),ABS(360-MAX($M$109,M107)+MIN($M$109,M107))) -> 38.79223267
A108: 300 | B108: 2015-09-17 | C108: 7146927.612 | D108: 513026.959 | E108: 1.016438356 | F108: 0.03799999971 | G108: -0.01700000005 | H108: 0.04162931635 | I108: 4.095606595 | J108: 2 | K108: 0 | L108: 2 | M108: 335.8977653 | N108: =IF(AND(ABS($M$109-M108)>0,ABS($M$109-M108)<180),ABS($M$109-M108),ABS(360-MAX($M$109,M108)+MIN($M$109,M108))) -> 19.00006946
B109: Totals From August 2, 2003 to September 17, 2015 | E109: =SUM(E99:E108) -> 3.115068493 | F109: =C108-C106 -> 0.05599999987 | G109: =D108-D106 -> -0.005000000005 | H109: 0.05622277105 | I109: =H109*100/E109 -> 1.804864682 | J109: 2 | K109: 0 | L109: 2 | M109: 354.8978347 | N109: =AVERAGE(N99:N108) -> 28.89615106
A110: BH-4 Cable | B110: 2001-06-19 | C110: N/A | D110: N/A
A111: BH-4 Cable | B111: 2003-08-20 | C111: N/A | D111: N/A
A112: BH-4 Cable | B112: 2004-07-28 | C112: N/A | D112: N/A | J112: =IF(F112>0,2,0) -> 0 | K112: =IF(G112>0,1,0) -> 0
A113: BH-4 Cable | B113: 2006-07-28 | C113: N/A | D113: N/A | J113: 0 | K113: 0
A114: BH-4 Cable | B114: 2008-07-09 | C114: N/A | D114: N/A | J114: 0 | K114: 0
A115: BH-4 Cable | B115: 2010-07-20 | C115: N/A | D115: N/A | J115: 0 | K115: 0
A116: BH-4 Cable | B116: 2010-09-25 | C116: N/A | D116: N/A | J116: 0 | K116: 0
A117: BH-4 Cable | B117: 2011-08-11 | C117: N/A | D117: N/A | J117: 0 | K117: 0
A118: BH-4 Cable | B118: 2012-08-06 | C118: 7146871.327 | D118: 513025.215 | J118: 0 | K118: 0
A119: BH-4 Cable | B119: 2014-09-11 | C119: 7146871.26 | D119: 513025.107 | E119: =(B119-B118)/365 -> 2.098630137 | F119: =C119-C118 -> -0.06699999981 | G119: =D119-D118 -> -0.108 | H119: =(F119^2+G119^2)^0.5 -> 0.127094453 | I119: =H119/E119*100 -> 6.056067276 | J119: 0 | K119: 0 | L119: =SUM(J119:K119) -> 0 | M119: =IF(L119=3,(ATAN(G119/F119)*180/PI()),IF(L119=1,(90+ATAN(ABS(F119)/ABS(G119))*180/PI()),IF(L119=0,(180+ATAN(ABS(G119)/ABS(F119))*180/PI()),IF(L119=2,(270+ATAN(ABS(F119)/ABS(G119))*180/PI()),"ERROR")))) -> 238.1857614 | N119: =IF(AND(ABS($M$109-M119)>0,ABS($M$109-M119)<180),ABS($M$109-M119),ABS(360-MAX($M$109,M119)+MIN($M$109,M119))) -> 116.7120734
A120: BH-4 Cable | B120: 2015-09-17 | C120: 7146871.366 | D120: 513025.212 | E120: 1.016438356 | F120: 0.1060000006 | G120: 0.105 | H120: 0.1492012069 | I120: 14.67882493 | J120: 2 | K120: 1 | L120: 3 | M120: 44.72845788 | N120: =IF(AND(ABS($M$109-M120)>0,ABS($M$109-M120)<180),ABS($M$109-M120),ABS(360-MAX($M$109,M120)+MIN($M$109,M120))) -> 49.83062315
B121: Totals From August 2, 2003 to September 17, 2015 | E121: =SUM(E111:E120) -> 3.115068493 | F121: =C120-C118 -> 0.0390000008 | G121: =D120-D118 -> -0.003000000026 | H121: 0.03911521524 | I121: =H121*100/E121 -> 1.255677534 | J121: 2 | K121: 0 | L121: 2 | M121: 355.6012947 | N121: =AVERAGE(N111:N120) -> 83.27134825

Sheet Wolv Stats
A1: Monitor | B1: Date | C1: Northing (m) | D1: Easting (m) | E1: duration | F1: dn | G1: de | H1: Movement | I1: Movement Rate (cm/y) | J1: N/S | K1: E/W | L1: Quadrant | M1: Azimuth | N1: Variation | P1: Point | Q1: 2004-07-28 | R1: 2004-09-23 | S1: 2005-09-17 | T1: 2006-07-28 | U1: 2008-07-09 | V1: 2010-07-20 | W1: 2010-09-25 | X1: 2011-08-11 | Y1: 2012-08-06 | Z1: 2014-09-13 | AA1: 2015-09-17 | AB1: Average | AC1: Stddev | AE1: Point | AG1: Date
A2: 80-1 | B2: 2003-08-21 | C2: 7148407.98 | D2: 513543.04 | P2: 80-1 | Q2: =INDIRECT("I"&TEXT(3+VLOOKUP($P2,$AE$2:$AF$8,2,FALSE)*13+VLOOKUP(Q$1,$AG$2:$AH$13,2,FALSE)*1,0)) -> 4.527964428 | R2: 14.31868119 | S2: 6.43025821 | T2: 2.599250983 | U2: 3.732078813 | V2: 1.557667129 | W2: 17.2273335 | X2: 2.550515021 | Y2: 3.645502012 | Z2: 3.696658497 | AA2: 4.564091361 | AB2: =AVERAGE(Q2:AA2) -> 5.895454649 | AC2: =_xlfn.STDEV.S(Q2:AA2) -> 5.086629167 | AE2: 80-1 | AF2: 0 | AG2: 2004-07-28 | AH2: 0
A3: 80-1 | B3: 2004-07-28 | C3: 7148408.01 | D3: 513543.07 | E3: =(B3-B2)/365 -> 0.9369863014 | F3: =C3-C2 -> 0.02999999933 | G3: =D3-D2 -> 0.03000000003 | H3: =(F3^2+G3^2)^0.5 -> 0.04242640642 | I3: =H3/E3*100 -> 4.527964428 | J3: =IF(F3>0,2,0) -> 2 | K3: =IF(G3>0,1,0) -> 1 | L3: =SUM(J3:K3) -> 3 | M3: =IF(L3=3,(ATAN(G3/F3)*180/PI()),IF(L3=1,(90+ATAN(ABS(F3)/ABS(G3))*180/PI()),IF(L3=0,(180+ATAN(ABS(G3)/ABS(F3))*180/PI()),IF(L3=2,(270+ATAN(ABS(F3)/ABS(G3))*180/PI()),"ERROR")))) -> 45.00000067 | N3: =IF(AND(ABS($M$14-M3)>0,ABS($M$14-M3)<180),ABS($M$14-M3),ABS(360-MAX($M$14,M3)+MIN($M$14,M3))) -> 25.38965528 | P3: 80-2 | Q3: 10.51120789 | R3: 14.31868086 | S3: 9.15041783 | T3: 3.675895995 | U3: 4.642156707 | V3: 2.996232553 | W3: 17.2273335 | X3: 5.816069126 | Y3: 5.155518339 | Z3: 6.709424865 | AA3: 4.433599585 | AB3: =AVERAGE(Q3:AA3) -> 7.694230659 | AC3: =_xlfn.STDEV.S(Q3:AA3) -> 4.625221027 | AE3: 80-2 | AF3: 1 | AG3: 2004-09-23 | AH3: 1
A4: 80-1 | B4: 2004-09-23 | C4: 7148408.03 | D4: 513543.06 | E4: =(B4-B3)/365 -> 0.1561643836 | F4: =C4-C3 -> 0.02000000048 | G4: =D4-D3 -> -0.01000000001 | H4: =(F4^2+G4^2)^0.5 -> 0.02236068021 | I4: =H4/E4*100 -> 14.31868119 | J4: =IF(F4>0,2,0) -> 2 | K4: =IF(G4>0,1,0) -> 0 | L4: =SUM(J4:K4) -> 2 | M4: =IF(L4=3,(ATAN(G4/F4)*180/PI()),IF(L4=1,(90+ATAN(ABS(F4)/ABS(G4))*180/PI()),IF(L4=0,(180+ATAN(ABS(G4)/ABS(F4))*180/PI()),IF(L4=2,(270+ATAN(ABS(F4)/ABS(G4))*180/PI()),"ERROR")))) -> 333.4349494 | N4: =IF(AND(ABS($M$14-M4)>0,ABS($M$14-M4)<180),ABS($M$14-M4),ABS(360-MAX($M$14,M4)+MIN($M$14,M4))) -> 96.95470659 | P4: 26 | Q4: 3.848029891 | R4: 6.403508629 | S4: 2.875698923 | T4: 3.675896035 | U4: 1.537921347 | V4: 0.6966099119 | W4: 21.79104476 | X4: 1.140624975 | Y4: 4.289650577 | Z4: 1.679627075 | AA4: 4.309378172 | AB4: 4.7498173 | AC4: 5.901015325 | AE4: 26 | AF4: 2 | AG4: 2005-09-17 | AH4: 2
A5: 80-1 | B5: 2005-09-17 | C5: 7148408.01 | D5: 513543.12 | E5: 0.9835616438 | F5: -0.02000000048 | G5: 0.06 | H5: 0.06324555335 | I5: 6.43025821 | J5: 0 | K5: 1 | L5: 1 | M5: 108.4349492 | N5: 38.04529329 | P5: 26-A | Q5: 3.018643022 | R5: 19.21052633 | S5: 7.401783023 | T5: 2.599250983 | U5: 2.760653301 | V5: 1.101437009 | W5: 17.22733363 | X5: 2.550515087 | Y5: 2.022160667 | Z5: 2.480932223 | AA5: 7.161681622 | AB5: 6.1395379 | AC5: 6.314429561 | AE5: 26-A | AF5: 3 | AG5: 2006-07-28 | AH5: 3
A6: 80-1 | B6: 2006-07-28 | C6: 7148408.02 | D6: 513543.14 | E6: 0.8602739726 | F6: 0.009999999776 | G6: 0.02000000002 | H6: 0.02236067969 | I6: 2.599250983 | J6: 2 | K6: 1 | L6: 3 | M6: 63.43494936 | N6: 6.954706594 | P6: BH-14 | Q6: 0 | R6: 23.08817937 | S6: 12.24284685 | T6: 17.78161264 | U6: 4.003849888 | V6: 9.973936166 | W6: 16.34328357 | X6: 1.613087323 | Y6: 2.260844311 | Z6: 9.779284295 | AA6: 3.008412388 | AB6: 9.099576073 | AC6: 7.637561721 | AE6: BH-14 | AF6: 4 | AG6: 2008-07-09 | AH6: 4
A7: 80-1 | B7: 2008-07-09 | C7: 7148408.04 | D7: 513543.21 | E7: 1.950684932 | F7: 0.02000000048 | G7: 0.07000000001 | H7: 0.07280109903 | I7: 3.732078813 | J7: 2 | K7: 1 | L7: 3 | M7: 74.05460373 | N7: 3.664947784 | P7: 1483 | Q7: 2.134502926 | R7: 9.055928855 | S7: 3.215129123 | T7: 3.675895933 | U7: 2.760653298 | V7: 1.97031039 | W7: 17.22733347 | X7: 1.613087327 | Y7: 2.859767007 | Z7: 0.5954995964 | AA7: 2.502398601 | AB7: 4.328227866 | AC7: 4.796116971 | AE7: 1483 | AF7: 5 | AG7: 2010-07-20 | AH7: 5
A8: 80-1 | B8: 2010-07-20 | C8: 7148408.03 | D8: 513543.24 | E8: 2.030136986 | F8: -0.009999999776 | G8: 0.02999999997 | H8: 0.0316227765 | I8: 1.557667129 | J8: 0 | K8: 1 | L8: 1 | M8: 108.4349485 | N8: 38.04529251 | P8: 1495 | Q8: 6.223091948 | R8: 23.08817934 | S8: 5.083565458 | T8: 3.287821304 | U8: 2.760653316 | V8: 1.776013773 | W8: 7.704297683 | X8: 2.550515027 | Y8: 3.645502007 | Z8: 3.61010263 | AA8: 0.7974862372 | AB8: 5.502475339 | AC8: 6.156208197 | AE8: 1495 | AF8: 6 | AG8: 2010-09-25 | AH8: 6
A9: 80-1 | B9: 2010-09-25 | C9: 7148408.04 | D9: 513543.27 | E9: 0.1835616438 | F9: 0.009999999776 | G9: 0.03000000003 | H9: 0.03162277656 | I9: 17.2273335 | J9: 2 | K9: 1 | L9: 3 | M9: 71.56505158 | N9: 1.175395627 | AG9: 2011-08-11 | AH9: 7
A10: 80-1 | B10: 2011-08-11 | C10: 7148408.05 | D10: 513543.29 | E10: 0.8767123288 | F10: 0.009999999776 | G10: 0.01999999996 | H10: 0.02236067964 | I10: 2.550515021 | J10: 2 | K10: 1 | L10: 3 | M10: 63.43494929 | N10: 6.954706661 | AG10: 2012-08-06 | AH10: 8
A11: 80-1 | B11: 2012-08-06 | C11: 7148408.07 | D11: 513543.32 | E11: 0.9890410959 | F11: 0.02000000048 | G11: 0.03000000003 | H11: 0.03605551305 | I11: 3.645502012 | J11: 2 | K11: 1 | L11: 3 | M11: 56.30993186 | N11: 14.07972409 | AG11: 2014-09-13 | AH11: 9
A12: 80-1 | B12: 2014-09-13 | C12: 7148408.059 | D12: 513543.397 | E12: 2.104109589 | F12: -0.01099999994 | G12: 0.07699999999 | H12: 0.07778174591 | I12: 3.696658497 | J12: 0 | K12: 1 | L12: 1 | M12: 98.13010231 | N12: 27.74044636 | AG12: 2015-09-17 | AH12: 10
A13: 80-1 | B13: 2015-09-17 | C13: 7148408.099 | D13: 513543.374 | E13: 1.010958904 | F13: 0.04000000004 | G13: -0.02299999999 | H13: 0.04614108801 | I13: 4.564091361 | J13: 2 | K13: 0 | L13: 2 | M13: 330.1010982 | N13: 100.2885578 | P13: min | Q13: =MIN(Q2:Q11) -> 0 | R13: =MIN(R2:R11) -> 6.403508629 | S13: 2.875698923 | T13: 2.599250983 | U13: 1.537921347 | V13: 0.6966099119 | W13: 7.704297683 | X13: 1.140624975 | Y13: 2.022160667 | Z13: =MIN(Z2:Z11) -> 0.5954995964 | AA13: 0.7974862372
D14: Totals | E14: =SUM(E3:E13) -> 12.08219178 | F14: =C13-C2 -> 0.1189999999 | G14: =D13-D2 -> 0.334 | H14: 0.3545659318 | I14: =H14*100/E14 -> 2.934615989 | J14: =IF(G14>0,2,0) -> 2 | K14: =IF(H14>0,1,0) -> 1 | L14: 3 | M14: =IF(L14=3,(ATAN(G14/F14)*180/PI()),IF(L14=1,(90+ATAN(ABS(F14)/ABS(G14))*180/PI()),IF(L14=0,(180+ATAN(ABS(G14)/ABS(F14))*180/PI()),IF(L14=2,(270+ATAN(ABS(F14)/ABS(G14))*180/PI()),"ERROR")))) -> 70.38965595 | N14: =AVERAGE(N3:N13) -> 32.66303932 | P14: Q1 | Q14: =QUARTILE(Q2:Q11,1) -> 2.576572974 | R14: =QUARTILE(R2:R11,1) -> 11.68730486 | S14: 4.149347291 | T14: 2.943536144 | U14: 2.760653299 | V14: 1.329552069 | W14: 16.78530852 | X14: 1.613087325 | Y14: 2.560305659 | Z14: =QUARTILE(Z2:Z11,1) -> 2.080279649 | AA14: 2.755405494
A15: 80-2 | B15: 2003-08-21 | C15: 7148290.05 | D15: 513549.41 | P15: Median | Q15: =MEDIAN(Q2:Q11) -> 3.848029891 | R15: =MEDIAN(R2:R11) -> 14.31868119 | S15: 6.43025821 | T15: 3.675895933 | U15: 2.760653316 | V15: 1.776013773 | W15: 17.2273335 | X15: 2.550515021 | Y15: 3.645502007 | Z15: =MEDIAN(Z2:Z11) -> 3.61010263 | AA15: 4.309378172
A16: 80-2 | B16: 2004-07-28 | C16: 7148290.09 | D16: 513549.5 | E16: =(B16-B15)/365 -> 0.9369863014 | F16: =C16-C15 -> 0.04000000004 | G16: =D16-D15 -> 0.09000000003 | H16: =(F16^2+G16^2)^0.5 -> 0.09848857806 | I16: =H16/E16*100 -> 10.51120789 | J16: =IF(F16>0,2,0) -> 2 | K16: =IF(G16>0,1,0) -> 1 | L16: =SUM(J16:K16) -> 3 | M16: =IF(L16=3,(ATAN(G16/F16)*180/PI()),IF(L16=1,(90+ATAN(ABS(F16)/ABS(G16))*180/PI()),IF(L16=0,(180+ATAN(ABS(G16)/ABS(F16))*180/PI()),IF(L16=2,(270+ATAN(ABS(F16)/ABS(G16))*180/PI()),"ERROR")))) -> 66.03751101 | N16: =IF(AND(ABS($M$14-M16)>0,ABS($M$14-M16)<180),ABS($M$14-M16),ABS(360-MAX($M$14,M16)+MIN($M$14,M16))) -> 4.352144939 | P16: Q3 | Q16: =QUARTILE(Q2:Q11,3) -> 5.375528188 | R16: =QUARTILE(R2:R11,3) -> 21.14935284 | S16: 8.276100427 | T16: 3.675896015 | U16: 3.86796435 | V16: 2.483271472 | W16: 17.22733356 | X16: 2.550515057 | Y16: 3.967576294 | Z16: =QUARTILE(Z2:Z11,3) -> 5.203041681 | AA16: 4.498845473
A17: 80-2 | B17: 2004-09-23 | C17: 7148290.08 | D17: 513549.48 | E17: =(B17-B16)/365 -> 0.1561643836 | F17: =C17-C16 -> -0.009999999776 | G17: =D17-D16 -> -0.02000000002 | H17: =(F17^2+G17^2)^0.5 -> 0.02236067969 | I17: =H17/E17*100 -> 14.31868086 | J17: =IF(F17>0,2,0) -> 0 | K17: =IF(G17>0,1,0) -> 0 | L17: 0 | M17: =IF(L17=3,(ATAN(G17/F17)*180/PI()),IF(L17=1,(90+ATAN(ABS(F17)/ABS(G17))*180/PI()),IF(L17=0,(180+ATAN(ABS(G17)/ABS(F17))*180/PI()),IF(L17=2,(270+ATAN(ABS(F17)/ABS(G17))*180/PI()),"ERROR")))) -> 243.4349494 | N17: =IF(AND(ABS($M$14-M17)>0,ABS($M$14-M17)<180),ABS($M$14-M17),ABS(360-MAX($M$14,M17)+MIN($M$14,M17))) -> 173.0452934 | P17: Max | Q17: =MAX(Q2:Q11) -> 10.51120789 | R17: =MAX(R2:R11) -> 23.08817937 | S17: 12.24284685 | T17: 17.78161264 | U17: 4.642156707 | V17: 9.973936166 | W17: 21.79104476 | X17: 5.816069126 | Y17: 5.155518339 | Z17: =MAX(Z2:Z11) -> 9.779284295 | AA17: 7.161681622
A18: 80-2 | B18: 2005-09-17 | C18: 7148290.08 | D18: 513549.57 | E18: 0.9835616438 | F18: 0 | G18: 0.09000000003 | H18: 0.09000000003 | I18: 9.15041783 | J18: 0 | K18: 1 | L18: 1 | M18: 90 | N18: 19.61034405 | P18: Bottom | Q18: =Q14 -> 2.576572974 | R18: =R14 -> 11.68730486 | S18: 4.149347291 | T18: 2.943536144 | U18: 2.760653299 | V18: 1.329552069 | W18: 16.78530852 | X18: 1.613087325 | Y18: 2.560305659 | Z18: =Z14 -> 2.080279649 | AA18: 2.755405494
A19: 80-2 | B19: 2006-07-28 | C19: 7148290.09 | D19: 513549.6 | E19: 0.8602739726 | F19: 0.009999999776 | G19: 0.02999999997 | H19: 0.0316227765 | I19: 3.675895995 | J19: 2 | K19: 1 | L19: 3 | M19: 71.56505154 | N19: 1.175395593 | P19: 2Q Box | Q19: =Q15-Q14 -> 1.271456917 | R19: =R15-R14 -> 2.631376333 | S19: 2.280910919 | T19: 0.732359789 | U19: 1.634617064e-08 | V19: 0.4464617037 | W19: 0.4420249811 | X19: 0.9374276964 | Y19: 1.085196348 | Z19: =Z15-Z14 -> 1.529822981 | AA19: 1.553972678
A20: 80-2 | B20: 2008-07-09 | C20: 7148290.08 | D20: 513549.69 | E20: 1.950684932 | F20: -0.009999999776 | G20: 0.09000000003 | H20: 0.09055385138 | I20: 4.642156707 | J20: 0 | K20: 1 | L20: 1 | M20: 96.3401916 | N20: 25.95053565 | P20: 3Q Box | Q20: =Q16-Q15 -> 1.527498297 | R20: 6.830671651 | S20: 1.845842216 | T20: 8.237664328e-08 | U20: 1.107311034 | V20: 0.7072576992 | W20: 6.51795844e-08 | X20: 3.563028317e-08 | Y20: 0.3220742875 | Z20: =Z16-Z15 -> 1.59293905 | AA20: 0.1894673009
A21: 80-2 | B21: 2010-07-20 | C21: 7148290.09 | D21: 513549.75 | E21: 2.030136986 | F21: 0.009999999776 | G21: 0.06 | H21: 0.06082762526 | I21: 2.996232553 | J21: 2 | K21: 1 | L21: 3 | M21: 80.537678 | N21: 10.14802205 | P21: Whisker - | Q21: =Q14-Q13 -> 2.576572974 | R21: =R14-R13 -> 5.283796226 | S21: 1.273648367 | T21: 0.3442851604 | U21: 1.222731953 | V21: 0.6329421571 | W21: 9.081010834 | X21: 0.4724623505 | Y21: 0.5381449924 | Z21: =Z14-Z13 -> 1.484780053 | AA21: 1.957919257
A22: 80-2 | B22: 2010-09-25 | C22: 7148290.08 | D22: 513549.78 | E22: 0.1835616438 | F22: -0.009999999776 | G22: 0.03000000003 | H22: 0.03162277656 | I22: 17.2273335 | J22: 0 | K22: 1 | L22: 1 | M22: 108.4349484 | N22: 38.04529247 | P22: Whisker + | Q22: =Q17-Q16 -> 5.135679704 | R22: =R17-R16 -> 1.938826526 | S22: 3.966746427 | T22: 14.10571663 | U22: 0.7741923569 | V22: 7.490664694 | W22: 4.563711202 | X22: 3.265554069 | Y22: 1.187942045 | Z22: =Z17-Z16 -> 4.576242614 | AA22: 2.662836149
A23: 80-2 | B23: 2011-08-11 | C23: 7148290.09 | D23: 513549.83 | E23: 0.8767123288 | F23: 0.009999999776 | G23: 0.04999999999 | H23: 0.05099019508 | I23: 5.816069126 | J23: 2 | K23: 1 | L23: 3 | M23: 78.69006777 | N23: 8.300411819
A24: 80-2 | B24: 2012-08-06 | C24: 7148290.08 | D24: 513549.88 | E24: 0.9890410959 | F24: -0.009999999776 | G24: 0.04999999999 | H24: 0.05099019508 | I24: 5.155518339 | J24: 0 | K24: 1 | L24: 1 | M24: 101.3099322 | N24: 30.92027628 | P24: Azimuth
A25: 80-2 | B25: 2014-09-13 | C25: 7148290.073 | D25: 513550.021 | E25: 2.104109589 | F25: -0.007000000216 | G25: 0.141 | H25: 0.1411736519 | I25: 6.709424865 | J25: 0 | K25: 1 | L25: 1 | M25: 92.84213797 | N25: 22.45248202 | P25: Point | Q25: 2004-07-28 | R25: 2004-09-23 | S25: 2005-09-17 | T25: 2006-07-28 | U25: 2008-07-09 | V25: 2010-07-20 | W25: 2010-09-25 | X25: 2011-08-11 | Y25: 2012-08-06 | Z25: 2014-09-13 | AA25: 2015-09-17 | AC25: Stddev
A26: 80-2 | B26: 2015-09-17 | C26: 7148290.108 | D26: 513549.993 | E26: 1.010958904 | F26: 0.03500000015 | G26: -0.02799999999 | H26: 0.04482186977 | I26: 4.433599585 | J26: 2 | K26: 0 | L26: 2 | M26: 321.3401919 | N26: 109.0494641 | P26: 80-1 | Q26: =INDIRECT("M"&TEXT(3+VLOOKUP($P26,$AE$2:$AF$8,2,FALSE)*13+VLOOKUP(Q$25,$AG$2:$AH$12,2,FALSE)*1,0)) -> 45.00000067 | R26: =INDIRECT("M"&TEXT(3+VLOOKUP($P26,$AE$2:$AF$8,2,FALSE)*13+VLOOKUP(R$25,$AG$2:$AH$13,2,FALSE)*1,0)) -> 333.4349494 | S26: 108.4349492 | T26: 63.43494936 | U26: 74.05460373 | V26: 108.4349485 | W26: 71.56505158 | X26: 63.43494929 | Y26: 56.30993186 | Z26: 98.13010231 | AA26: 330.1010982 | AC26: =_xlfn.STDEV.S(Q26:AA26) -> 105.3020642
D27: Totals | E27: =SUM(E16:E26) -> 12.08219178 | F27: =C26-C15 -> 0.05800000019 | G27: =D26-D15 -> 0.583 | H27: 0.5858779737 | I27: =H27*100/E27 -> 4.84910341 | J27: =IF(G27>0,2,0) -> 2 | K27: =IF(H27>0,1,0) -> 1 | L27: 3 | M27: =IF(L27=3,(ATAN(G27/F27)*180/PI()),IF(L27=1,(90+ATAN(ABS(F27)/ABS(G27))*180/PI()),IF(L27=0,(180+ATAN(ABS(G27)/ABS(F27))*180/PI()),IF(L27=2,(270+ATAN(ABS(F27)/ABS(G27))*180/PI()),"ERROR")))) -> 84.31859966 | N27: =AVERAGE(N16:N26) -> 40.27724203 | P27: 80-2 | Q27: =INDIRECT("M"&TEXT(3+VLOOKUP($P27,$AE$2:$AF$8,2,FALSE)*13+VLOOKUP(Q$25,$AG$2:$AH$13,2,FALSE)*1,0)) -> 66.03751101 | R27: 243.4349494 | S27: 90 | T27: 71.56505154 | U27: 96.3401916 | V27: 80.537678 | W27: 108.4349484 | X27: 78.69006777 | Y27: 101.3099322 | Z27: 92.84213797 | AA27: 321.3401919 | AC27: 81.78715979
A28: 26 | B28: 2003-08-21 | C28: 7148341.45 | D28: 513483.53 | P28: 26 | Q28: 33.69006724 | R28: 0 | S28: 135.0000007 | T28: 18.43494869 | U28: 90 | V28: 134.9999993 | W28: 90 | X28: 0 | Y28: 44.99999978 | Z28: 115.1148358 | AA28: 9.246112612 | AC28: 53.38208957
A29: 26 | B29: 2004-07-28 | C29: 7148341.48 | D29: 513483.55 | E29: =(B29-B28)/365 -> 0.9369863014 | F29: =C29-C28 -> 0.03000000026 | G29: =D29-D28 -> 0.01999999996 | H29: =(F29^2+G29^2)^0.5 -> 0.03605551295 | I29: =H29/E29*100 -> 3.848029891 | J29: =IF(F29>0,2,0) -> 2 | K29: =IF(G29>0,1,0) -> 1 | L29: =SUM(J29:K29) -> 3 | M29: =IF(L29=3,(ATAN(G29/F29)*180/PI()),IF(L29=1,(90+ATAN(ABS(F29)/ABS(G29))*180/PI()),IF(L29=0,(180+ATAN(ABS(G29)/ABS(F29))*180/PI()),IF(L29=2,(270+ATAN(ABS(F29)/ABS(G29))*180/PI()),"ERROR")))) -> 33.69006724 | N29: =IF(AND(ABS($M$14-M29)>0,ABS($M$14-M29)<180),ABS($M$14-M29),ABS(360-MAX($M$14,M29)+MIN($M$14,M29))) -> 36.69958871 | P29: 26-A | Q29: 44.99999933 | R29: 270 | S29: 74.05460444 | T29: 243.4349494 | U29: 68.19859097 | V29: 296.5650528 | W29: 108.4349501 | X29: 26.56505064 | Y29: 90 | Z29: 126.4308585 | AA29: 327.4074188 | AC29: 109.8300629
A30: 26 | B30: 2004-09-23 | C30: 7148341.49 | D30: 513483.55 | E30: =(B30-B29)/365 -> 0.1561643836 | F30: =C30-C29 -> 0.009999999776 | G30: =D30-D29 -> 0 | H30: =(F30^2+G30^2)^0.5 -> 0.009999999776 | I30: =H30/E30*100 -> 6.403508629 | J30: =IF(F30>0,2,0) -> 2 | K30: =IF(G30>0,1,0) -> 0 | L30: 2 | M30: 0 | N30: =IF(AND(ABS($M$14-M30)>0,ABS($M$14-M30)<180),ABS($M$14-M30),ABS(360-MAX($M$14,M30)+MIN($M$14,M30))) -> 70.38965595 | P30: BH-14 | Q30: 0 | R30: 213.6900673 | S30: 274.7636416 | T30: 78.69006743 | U30: 39.80557128 | V30: 249.7751407 | W30: 90 | X30: 314.9999995 | Y30: 26.56505158 | Z30: 64.68031298 | AA30: 350.5376779 | AC30: 127.5151387
A31: 26 | B31: 2005-09-17 | C31: 7148341.47 | D31: 513483.57 | E31: 0.9835616438 | F31: -0.02000000048 | G31: 0.02000000002 | H31: 0.0282842716 | I31: 2.875698923 | J31: 0 | K31: 1 | L31: 1 | M31: =IF(L31=3,(ATAN(G31/F31)*180/PI()),IF(L31=1,(90+ATAN(ABS(F31)/ABS(G31))*180/PI()),IF(L31=0,(180+ATAN(ABS(G31)/ABS(F31))*180/PI()),IF(L31=2,(270+ATAN(ABS(F31)/ABS(G31))*180/PI()),"ERROR")))) -> 135.0000007 | N31: 64.61034472 | P31: 1483 | Q31: 90 | R31: 314.9999993 | S31: 71.56504998 | T31: 341.5650508 | U31: 111.801409 | V31: 270 | W31: 71.56505154 | X31: 134.9999993 | Y31: 45.00000067 | Z31: 118.6104599 | AA31: 18.43494861 | AC31: 111.752708
A32: 26 | B32: 2006-07-28 | C32: 7148341.5 | D32: 513483.58 | E32: 0.8602739726 | F32: 0.03000000026 | G32: 0.01000000001 | H32: 0.03162277685 | I32: 3.675896035 | J32: 2 | K32: 1 | L32: 3 | M32: 18.43494869 | N32: 51.95470726 | P32: 1495 | Q32: 59.03624324 | R32: 326.3099328 | S32: 90 | T32: 45.00000067 | U32: 68.19859003 | V32: 56.30993304 | W32: 45.00000067 | X32: 116.5650506 | Y32: 56.30993181 | Z32: 20.82089298 | AA32: 187.1250159 | AC32: 88.27769494
A33: 26 | B33: 2008-07-09 | C33: 7148341.5 | D33: 513483.61 | E33: 1.950684932 | F33: 0 | G33: 0.02999999997 | H33: 0.02999999997 | I33: 1.537921347 | J33: 0 | K33: 1 | L33: 1 | M33: 90 | N33: 19.61034405 | P33: stddev | Q33: =_xlfn.STDEV.S(Q26:Q32) -> 28.09754853 | R33: =_xlfn.STDEV.S(R26:R32) -> 116.146587 | S33: 71.37387036 | T33: 120.7268589 | U33: 23.41150548 | V33: 98.59066372 | W33: 22.7123447 | X33: 103.867422 | Y33: 26.46256629 | Z33: 37.12872596 | AA33: 151.1580023
A34: 26 | B34: 2010-07-20 | C34: 7148341.49 | D34: 513483.62 | E34: 2.030136986 | F34: -0.009999999776 | G34: 0.01000000001 | H34: 0.01414213547 | I34: 0.6966099119 | J34: 0 | K34: 1 | L34: 1 | M34: 134.9999993 | N34: 64.61034338
A35: 26 | B35: 2010-09-25 | C35: 7148341.49 | D35: 513483.66 | E35: 0.1835616438 | F35: 0 | G35: 0.03999999998 | H35: 0.03999999998 | I35: 21.79104476 | J35: 0 | K35: 1 | L35: 1 | M35: 90 | N35: 19.61034405 | P35: Azimuth Variation from Principal Direction
A36: 26 | B36: 2011-08-11 | C36: 7148341.5 | D36: 513483.66 | E36: 0.8767123288 | F36: 0.009999999776 | G36: 0 | H36: 0.009999999776 | I36: 1.140624975 | J36: 2 | K36: 0 | L36: 2 | M36: 0 | N36: 70.38965595 | P36: Point | Q36: 2004-07-28 | R36: 2004-09-23 | S36: 2005-09-17 | T36: 2006-07-28 | U36: 2008-07-09 | V36: 2010-07-20 | W36: 2010-09-25 | X36: 2011-08-11 | Y36: 2012-08-06 | Z36: 2014-09-13 | AA36: 2015-09-17 | AC36: Stddev | AD36: Mean | AE36: Min | AF36: Max
A37: 26 | B37: 2012-08-06 | C37: 7148341.53 | D37: 513483.69 | E37: 0.9890410959 | F37: 0.03000000026 | G37: 0.03000000003 | H37: 0.04242640708 | I37: 4.289650577 | J37: 2 | K37: 1 | L37: 3 | M37: 44.99999978 | N37: 25.38965617 | P37: 80-1 | Q37: =INDIRECT("N"&TEXT(3+VLOOKUP($P37,$AE$2:$AF$8,2,FALSE)*13+VLOOKUP(Q$36,$AG$2:$AH$13,2,FALSE)*1,0)) -> 25.38965528 | R37: 96.95470659 | S37: 38.04529329 | T37: 6.954706594 | U37: 3.664947784 | V37: 38.04529251 | W37: 1.175395627 | X37: 6.954706661 | Y37: 14.07972409 | Z37: 27.74044636 | AA37: 100.2885578 | AC37: =_xlfn.STDEV.S(Q37:AA37) -> 35.13009811 | AD37: =AVERAGE(Q37:AA37) -> 32.66303932 | AE37: =MIN(Q37:AA37) -> 1.175395627 | AF37: =MAX(Q37:AA37) -> 100.2885578
A38: 26 | B38: 2014-09-13 | C38: 7148341.515 | D38: 513483.722 | E38: 2.104109589 | F38: -0.0150000006 | G38: 0.03200000001 | H38: 0.03534119435 | I38: 1.679627075 | J38: 0 | K38: 1 | L38: 1 | M38: 115.1148358 | N38: 44.72517981 | P38: 80-2 | Q38: 4.352144939 | R38: 173.0452934 | S38: 19.61034405 | T38: 1.175395593 | U38: 25.95053565 | V38: 10.14802205 | W38: 38.04529247 | X38: 8.300411819 | Y38: 30.92027628 | Z38: 22.45248202 | AA38: 109.0494641 | AC38: 53.05606489 | AD38: 40.27724203 | AE38: 1.175395593 | AF38: 173.0452934
A39: 26 | B39: 2015-09-17 | C39: 7148341.558 | D39: 513483.729 | E39: 1.010958904 | F39: 0.04300000053 | G39: 0.006999999983 | H39: 0.04356604234 | I39: 4.309378172 | J39: 2 | K39: 1 | L39: 3 | M39: 9.246112612 | N39: 61.14354334 | P39: 26 | Q39: 36.69958871 | R39: 70.38965595 | S39: 64.61034472 | T39: 51.95470726 | U39: 19.61034405 | V39: 64.61034338 | W39: 19.61034405 | X39: 70.38965595 | Y39: 25.38965617 | Z39: 44.72517981 | AA39: 61.14354334 | AC39: 20.01067873 | AD39: 48.10303303 | AE39: 19.61034405 | AF39: 70.38965595
D40: Totals | E40: =SUM(E29:E39) -> 12.08219178 | F40: =C39-C28 -> 0.108 | G40: =D39-D28 -> 0.199 | H40: 0.2264177555 | I40: =H40*100/E40 -> 1.873979155 | J40: =IF(G40>0,2,0) -> 2 | K40: =IF(H40>0,1,0) -> 1 | L40: 3 | M40: =IF(L40=3,(ATAN(G40/F40)*180/PI()),IF(L40=1,(90+ATAN(ABS(F40)/ABS(G40))*180/PI()),IF(L40=0,(180+ATAN(ABS(G40)/ABS(F40))*180/PI()),IF(L40=2,(270+ATAN(ABS(F40)/ABS(G40))*180/PI()),"ERROR")))) -> 61.51071557 | N40: =AVERAGE(N29:N39) -> 48.10303303 | P40: 26-A | Q40: 25.38965662 | R40: 160.389656 | S40: 3.664948488 | T40: 173.0452934 | U40: 2.191064977 | V40: 133.8246032 | W40: 38.04529411 | X40: 43.82460531 | Y40: 19.61034405 | Z40: 56.04120253 | AA40: 102.9822372 | AC40: 62.74371807 | AD40: 69.00080962 | AE40: 2.191064977 | AF40: 173.0452934
A41: 26-A | B41: 2003-08-21 | C41: 7148339.3 | D41: 513540.5 | P41: BH-14 | Q41: 70.38965595 | R41: 143.3004114 | S41: 155.6260144 | T41: 8.300411481 | U41: 30.58408467 | V41: 179.3854848 | W41: 19.61034405 | X41: 115.3896565 | Y41: 43.82460437 | Z41: 5.70934297 | AA41: 79.85197809 | AC41: 62.39754716 | AD41: 77.45199896 | AE41: 5.70934297 | AF41: 179.3854848
A42: 26-A | B42: 2004-07-28 | C42: 7148339.32 | D42: 513540.52 | E42: =(B42-B41)/365 -> 0.9369863014 | F42: =C42-C41 -> 0.02000000048 | G42: =D42-D41 -> 0.02000000002 | H42: =(F42^2+G42^2)^0.5 -> 0.0282842716 | I42: =H42/E42*100 -> 3.018643022 | J42: =IF(F42>0,2,0) -> 2 | K42: =IF(G42>0,1,0) -> 1 | L42: =SUM(J42:K42) -> 3 | M42: =IF(L42=3,(ATAN(G42/F42)*180/PI()),IF(L42=1,(90+ATAN(ABS(F42)/ABS(G42))*180/PI()),IF(L42=0,(180+ATAN(ABS(G42)/ABS(F42))*180/PI()),IF(L42=2,(270+ATAN(ABS(F42)/ABS(G42))*180/PI()),"ERROR")))) -> 44.99999933 | N42: =IF(AND(ABS($M$14-M42)>0,ABS($M$14-M42)<180),ABS($M$14-M42),ABS(360-MAX($M$14,M42)+MIN($M$14,M42))) -> 25.38965662 | P42: 1483 | Q42: 19.61034405 | R42: 115.3896566 | S42: 1.175394026 | T42: 88.82460517 | U42: 41.4117531 | V42: 160.389656 | W42: 1.175395593 | X42: 64.61034338 | Y42: 25.38965528 | Z42: 48.22080393 | AA42: 51.95470734 | AC42: 49.13031176 | AD42: 56.19566495 | AE42: 1.175394026 | AF42: 160.389656
A43: 26-A | B43: 2004-09-23 | C43: 7148339.32 | D43: 513540.49 | E43: =(B43-B42)/365 -> 0.1561643836 | F43: =C43-C42 -> 0 | G43: =D43-D42 -> -0.03000000003 | H43: =(F43^2+G43^2)^0.5 -> 0.03000000003 | I43: =H43/E43*100 -> 19.21052633 | J43: =IF(F43>0,2,0) -> 0 | K43: =IF(G43>0,1,0) -> 0 | L43: 0 | M43: 270 | N43: =IF(AND(ABS($M$14-M43)>0,ABS($M$14-M43)<180),ABS($M$14-M43),ABS(360-MAX($M$14,M43)+MIN($M$14,M43))) -> 160.389656 | P43: 1495 | Q43: 11.35341271 | R43: 104.0797232 | S43: 19.61034405 | T43: 25.38965528 | U43: 2.19106592 | V43: 14.07972291 | W43: 25.38965528 | X43: 46.17539469 | Y43: 14.07972414 | Z43: 49.56876297 | AA43: 116.73536 | AC43: 38.14320929 | AD43: 38.96843829 | AE43: 2.19106592 | AF43: 116.73536
A44: 26-A | B44: 2005-09-17 | C44: 7148339.34 | D44: 513540.56 | E44: 0.9835616438 | F44: 0.01999999955 | G44: 0.07000000001 | H44: 0.07280109878 | I44: 7.401783023 | J44: 2 | K44: 1 | L44: 3 | M44: =IF(L44=3,(ATAN(G44/F44)*180/PI()),IF(L44=1,(90+ATAN(ABS(F44)/ABS(G44))*180/PI()),IF(L44=0,(180+ATAN(ABS(G44)/ABS(F44))*180/PI()),IF(L44=2,(270+ATAN(ABS(F44)/ABS(G44))*180/PI()),"ERROR")))) -> 74.05460444 | N44: 3.664948488 | P44: stddev | Q44: =_xlfn.STDEV.S(Q37:Q43) -> 21.57072609 | R44: =_xlfn.STDEV.S(R37:R43) -> 36.91385467 | S44: =_xlfn.STDEV.S(S37:S43) -> 54.10886194 | T44: =_xlfn.STDEV.S(T37:T43) -> 62.22007605 | U44: =_xlfn.STDEV.S(U37:U43) -> 15.69283125 | V44: =_xlfn.STDEV.S(V37:V43) -> 70.97505882 | W44: =_xlfn.STDEV.S(W37:W43) -> 15.20974632 | X44: =_xlfn.STDEV.S(X37:X43) -> 37.73806983 | Y44: =_xlfn.STDEV.S(Y37:Y43) -> 10.4630821 | Z44: =_xlfn.STDEV.S(Z37:Z43) -> 18.16431505 | AA44: =_xlfn.STDEV.S(AA37:AA43) -> 24.92002774
A45: 26-A | B45: 2006-07-28 | C45: 7148339.33 | D45: 513540.54 | E45: 0.8602739726 | F45: -0.009999999776 | G45: -0.02000000002 | H45: 0.02236067969 | I45: 2.599250983 | J45: 0 | K45: 0 | L45: 0 | M45: 243.4349494 | N45: 173.0452934 | P45: mean | Q45: =AVERAGE(Q37:Q43) -> 27.59777975 | R45: =AVERAGE(R37:R43) -> 123.3641576 | S45: 43.19181185 | T45: 50.8063964 | U45: 17.94339945 | V45: 85.78330354 | W45: 20.43596017 | X45: 50.80639632 | Y45: 24.75628348 | Z45: 36.35117437 | AA45: 88.85797825
A46: 26-A | B46: 2008-07-09 | C46: 7148339.35 | D46: 513540.59 | E46: 1.950684932 | F46: 0.01999999955 | G46: 0.05000000005 | H46: 0.05385164795 | I46: 2.760653301 | J46: 2 | K46: 1 | L46: 3 | M46: 68.19859097 | N46: 2.191064977 | P46: min | Q46: =MIN(Q37:Q43) -> 4.352144939 | R46: =MIN(R37:R43) -> 70.38965595 | S46: 1.175394026 | T46: 1.175395593 | U46: 2.191064977 | V46: 10.14802205 | W46: 1.175395593 | X46: 6.954706661 | Y46: 14.07972409 | Z46: 5.70934297 | AA46: 51.95470734
A47: 26-A | B47: 2010-07-20 | C47: 7148339.36 | D47: 513540.57 | E47: 2.030136986 | F47: 0.01000000071 | G47: -0.02000000002 | H47: 0.02236068011 | I47: 1.101437009 | J47: 2 | K47: 0 | L47: 2 | M47: 296.5650528 | N47: 133.8246032 | P47: max | Q47: =MAX(Q37:Q43) -> 70.38965595 | R47: =MAX(R37:R43) -> 173.0452934 | S47: 155.6260144 | T47: 173.0452934 | U47: 41.4117531 | V47: 179.3854848 | W47: 38.04529411 | X47: 115.3896565 | Y47: 43.82460437 | Z47: 56.04120253 | AA47: 116.73536
A48: 26-A | B48: 2010-09-25 | C48: 7148339.35 | D48: 513540.6 | E48: 0.1835616438 | F48: -0.01000000071 | G48: 0.02999999997 | H48: 0.0316227768 | I48: 17.22733363 | J48: 0 | K48: 1 | L48: 1 | M48: 108.4349501 | N48: 38.04529411
A49: 26-A | B49: 2011-08-11 | C49: 7148339.37 | D49: 513540.61 | E49: 0.8767123288 | F49: 0.02000000048 | G49: 0.01000000001 | H49: 0.02236068021 | I49: 2.550515087 | J49: 2 | K49: 1 | L49: 3 | M49: 26.56505064 | N49: 43.82460531
A50: 26-A | B50: 2012-08-06 | C50: 7148339.37 | D50: 513540.63 | E50: 0.9890410959 | F50: 0 | G50: 0.02000000002 | H50: 0.02000000002 | I50: 2.022160667 | J50: 0 | K50: 1 | L50: 1 | M50: 90 | N50: 19.61034405
A51: 26-A | B51: 2014-09-13 | C51: 7148339.339 | D51: 513540.672 | E51: 2.104109589 | F51: -0.03100000042 | G51: 0.04200000002 | H51: 0.05220153281 | I51: 2.480932223 | J51: 0 | K51: 1 | L51: 1 | M51: 126.4308585 | N51: 56.04120253
A52: 26-A | B52: 2015-09-17 | C52: 7148339.4 | D52: 513540.633 | E52: 1.010958904 | F52: 0.06100000069 | G52: -0.03900000005 | H52: 0.07240165804 | I52: 7.161681622 | J52: 2 | K52: 0 | L52: 2 | M52: 327.4074188 | N52: 102.9822372
D53: Totals | E53: =SUM(E42:E52) -> 12.08219178 | F53: =C52-C41 -> 0.1000000006 | G53: =D52-D41 -> 0.133 | H53: 0.1664001205 | I53: =H53*100/E53 -> 1.377234557 | J53: =IF(G53>0,2,0) -> 2 | K53: =IF(H53>0,1,0) -> 1 | L53: 3 | M53: =IF(L53=3,(ATAN(G53/F53)*180/PI()),IF(L53=1,(90+ATAN(ABS(F53)/ABS(G53))*180/PI()),IF(L53=0,(180+ATAN(ABS(G53)/ABS(F53))*180/PI()),IF(L53=2,(270+ATAN(ABS(F53)/ABS(G53))*180/PI()),"ERROR")))) -> 53.06123711 | N53: =AVERAGE(N42:N52) -> 69.00080962
A54: BH-14 (T7) | B54: 2003-08-21 | C54: 7148488.36 | D54: 513563.01
A55: BH-14 | B55: 2004-07-28 | C55: 7148488.36 | D55: 513563.01 | E55: =(B55-B54)/365 -> 0.9369863014 | F55: =C55-C54 -> 0 | G55: =D55-D54 -> 0 | H55: =(F55^2+G55^2)^0.5 -> 0 | I55: =H55/E55*100 -> 0 | J55: =IF(F55>0,2,0) -> 0 | K55: =IF(G55>0,1,0) -> 0 | L55: =SUM(J55:K55) -> 0 | M55: 0 | N55: =IF(AND(ABS($M$14-M55)>0,ABS($M$14-M55)<180),ABS($M$14-M55),ABS(360-MAX($M$14,M55)+MIN($M$14,M55))) -> 70.38965595
A56: BH-14 | B56: 2004-09-23 | C56: 7148488.33 | D56: 513562.99 | E56: =(B56-B55)/365 -> 0.1561643836 | F56: =C56-C55 -> -0.03000000026 | G56: =D56-D55 -> -0.02000000002 | H56: =(F56^2+G56^2)^0.5 -> 0.03605551298 | I56: =H56/E56*100 -> 23.08817937 | J56: =IF(F56>0,2,0) -> 0 | K56: =IF(G56>0,1,0) -> 0 | L56: 0 | M56: =IF(L56=3,(ATAN(G56/F56)*180/PI()),IF(L56=1,(90+ATAN(ABS(F56)/ABS(G56))*180/PI()),IF(L56=0,(180+ATAN(ABS(G56)/ABS(F56))*180/PI()),IF(L56=2,(270+ATAN(ABS(F56)/ABS(G56))*180/PI()),"ERROR")))) -> 213.6900673 | N56: =IF(AND(ABS($M$14-M56)>0,ABS($M$14-M56)<180),ABS($M$14-M56),ABS(360-MAX($M$14,M56)+MIN($M$14,M56))) -> 143.3004114
A57: BH-14 | B57: 2005-09-17 | C57: 7148488.34 | D57: 513562.87 | E57: 0.9835616438 | F57: 0.009999999776 | G57: -0.12 | H57: 0.1204159458 | I57: 12.24284685 | J57: 2 | K57: 0 | L57: 2 | M57: 274.7636416 | N57: 155.6260144
A58: BH-14 | B58: 2006-07-28 | C58: 7148488.37 | D58: 513563.02 | E58: 0.8602739726 | F58: 0.03000000026 | G58: 0.15 | H58: 0.1529705855 | I58: 17.78161264 | J58: 2 | K58: 1 | L58: 3 | M58: 78.69006743 | N58: 8.300411481
A59: BH-14 | B59: 2008-07-09 | C59: 7148488.43 | D59: 513563.07 | E59: 1.950684932 | F59: 0.05999999959 | G59: 0.04999999999 | H59: 0.07810249644 | I59: 4.003849888 | J59: 2 | K59: 1 | L59: 3 | M59: 39.80557128 | N59: 30.58408467
A60: BH-14 | B60: 2010-07-20 | C60: 7148488.36 | D60: 513562.88 | E60: 2.030136986 | F60: -0.06999999937 | G60: -0.19 | H60: 0.2024845671 | I60: 9.973936166 | J60: 0 | K60: 0 | L60: 0 | M60: 249.7751407 | N60: 179.3854848
A61: BH-14 | B61: 2010-09-25 | C61: 7148488.36 | D61: 513562.91 | E61: 0.1835616438 | F61: 0 | G61: 0.02999999997 | H61: 0.02999999997 | I61: 16.34328357 | J61: 0 | K61: 1 | L61: 1 | M61: 90 | N61: 19.61034405
A62: BH-14 | B62: 2011-08-11 | C62: 7148488.37 | D62: 513562.9 | E62: 0.8767123288 | F62: 0.009999999776 | G62: -0.009999999951 | H62: 0.01414213543 | I62: 1.613087323 | J62: 2 | K62: 0 | L62: 2 | M62: 314.9999995 | N62: 115.3896565
A63: BH-14 | B63: 2012-08-06 | C63: 7148488.39 | D63: 513562.91 | E63: 0.9890410959 | F63: 0.01999999955 | G63: 0.009999999951 | H63: 0.02236067935 | I63: 2.260844311 | J63: 2 | K63: 1 | L63: 3 | M63: 26.56505158 | N63: 43.82460437
A64: BH-14 | B64: 2014-09-13 | C64: 7148488.478 | D64: 513563.096 | E64: 2.104109589 | F64: 0.08800000045 | G64: 0.186 | H64: 0.2057668586 | I64: 9.779284295 | J64: 2 | K64: 1 | L64: 3 | M64: 64.68031298 | N64: 5.70934297
A65: BH-14 | B65: 2015-09-17 | C65: 7148488.508 | D65: 513563.091 | E65: 1.010958904 | F65: 0.03000000026 | G65: -0.005000000005 | H65: 0.03041381291 | I65: 3.008412388 | J65: 2 | K65: 0 | L65: 2 | M65: 350.5376779 | N65: 79.85197809
D66: Totals | E66: =SUM(E55:E65) -> 12.08219178 | F66: =C65-C54 -> 0.148 | G66: =D65-D54 -> 0.08100000001 | H66: 0.1687157373 | I66: =H66*100/E66 -> 1.396400093 | J66: =IF(G66>0,2,0) -> 2 | K66: =IF(H66>0,1,0) -> 1 | L66: 3 | M66: =IF(L66=3,(ATAN(G66/F66)*180/PI()),IF(L66=1,(90+ATAN(ABS(F66)/ABS(G66))*180/PI()),IF(L66=0,(180+ATAN(ABS(G66)/ABS(F66))*180/PI()),IF(L66=2,(270+ATAN(ABS(F66)/ABS(G66))*180/PI()),"ERROR")))) -> 28.69176866 | N66: =AVERAGE(N55:N65) -> 77.45199896
A67: 1483 | B67: 2003-08-21 | C67: 7148233.01 | D67: 513412.67
A68: 1483 | B68: 2004-07-28 | C68: 7148233.01 | D68: 513412.69 | E68: =(B68-B67)/365 -> 0.9369863014 | F68: =C68-C67 -> 0 | G68: =D68-D67 -> 0.02000000002 | H68: =(F68^2+G68^2)^0.5 -> 0.02000000002 | I68: =H68/E68*100 -> 2.134502926 | J68: =IF(F68>0,2,0) -> 0 | K68: =IF(G68>0,1,0) -> 1 | L68: =SUM(J68:K68) -> 1 | M68: =IF(L68=3,(ATAN(G68/F68)*180/PI()),IF(L68=1,(90+ATAN(ABS(F68)/ABS(G68))*180/PI()),IF(L68=0,(180+ATAN(ABS(G68)/ABS(F68))*180/PI()),IF(L68=2,(270+ATAN(ABS(F68)/ABS(G68))*180/PI()),"ERROR")))) -> 90 | N68: =IF(AND(ABS($M$14-M68)>0,ABS($M$14-M68)<180),ABS($M$14-M68),ABS(360-MAX($M$14,M68)+MIN($M$14,M68))) -> 19.61034405
A69: 1483 | B69: 2004-09-23 | C69: 7148233.02 | D69: 513412.68 | E69: =(B69-B68)/365 -> 0.1561643836 | F69: =C69-C68 -> 0.009999999776 | G69: =D69-D68 -> -0.01000000001 | H69: =(F69^2+G69^2)^0.5 -> 0.01414213547 | I69: =H69/E69*100 -> 9.055928855 | J69: =IF(F69>0,2,0) -> 2 | K69: =IF(G69>0,1,0) -> 0 | L69: 2 | M69: =IF(L69=3,(ATAN(G69/F69)*180/PI()),IF(L69=1,(90+ATAN(ABS(F69)/ABS(G69))*180/PI()),IF(L69=0,(180+ATAN(ABS(G69)/ABS(F69))*180/PI()),IF(L69=2,(270+ATAN(ABS(F69)/ABS(G69))*180/PI()),"ERROR")))) -> 314.9999993 | N69: =IF(AND(ABS($M$14-M69)>0,ABS($M$14-M69)<180),ABS($M$14-M69),ABS(360-MAX($M$14,M69)+MIN($M$14,M69))) -> 115.3896566
A70: 1483 | B70: 2005-09-17 | C70: 7148233.03 | D70: 513412.71 | E70: 0.9835616438 | F70: 0.01000000071 | G70: 0.03000000003 | H70: 0.03162277685 | I70: 3.215129123 | J70: 2 | K70: 1 | L70: 3 | M70: 71.56504998 | N70: 1.175394026
A71: 1483 | B71: 2006-07-28 | C71: 7148233.06 | D71: 513412.7 | E71: 0.8602739726 | F71: 0.02999999933 | G71: -0.01000000001 | H71: 0.03162277597 | I71: 3.675895933 | J71: 2 | K71: 0 | L71: 2 | M71: 341.5650508 | N71: 88.82460517
A72: 1483 | B72: 2008-07-09 | C72: 7148233.04 | D72: 513412.75 | E72: 1.950684932 | F72: -0.01999999955 | G72: 0.04999999999 | H72: 0.05385164789 | I72: 2.760653298 | J72: 0 | K72: 1 | L72: 1 | M72: 111.801409 | N72: 41.4117531
A73: 1483 | B73: 2010-07-20 | C73: 7148233.04 | D73: 513412.71 | E73: 2.030136986 | F73: 0 | G73: -0.03999999998 | H73: 0.03999999998 | I73: 1.97031039 | J73: 0 | K73: 0 | L73: 0 | M73: 270 | N73: 160.389656
A74: 1483 | B74: 2010-09-25 | C74: 7148233.05 | D74: 513412.74 | E74: 0.1835616438 | F74: 0.009999999776 | G74: 0.02999999997 | H74: 0.0316227765 | I74: 17.22733347 | J74: 2 | K74: 1 | L74: 3 | M74: 71.56505154 | N74: 1.175395593
A75: 1483 | B75: 2011-08-11 | C75: 7148233.04 | D75: 513412.75 | E75: 0.8767123288 | F75: -0.009999999776 | G75: 0.01000000001 | H75: 0.01414213547 | I75: 1.613087327 | J75: 0 | K75: 1 | L75: 1 | M75: 134.9999993 | N75: 64.61034338
A76: 1483 | B76: 2012-08-06 | C76: 7148233.06 | D76: 513412.77 | E76: 0.9890410959 | F76: 0.01999999955 | G76: 0.02000000002 | H76: 0.02828427094 | I76: 2.859767007 | J76: 2 | K76: 1 | L76: 3 | M76: 45.00000067 | N76: 25.38965528
A77: 1483 | B77: 2014-09-13 | C77: 7148233.054 | D77: 513412.781 | E77: 2.104109589 | F77: -0.006000000052 | G77: 0.011 | H77: 0.01252996411 | I77: 0.5954995964 | J77: 0 | K77: 1 | L77: 1 | M77: 118.6104599 | N77: 48.22080393
A78: 1483 | B78: 2015-09-17 | C78: 7148233.078 | D78: 513412.789 | E78: 1.010958904 | F78: 0.02400000021 | G78: 0.007999999973 | H78: 0.02529822147 | I78: 2.502398601 | J78: 2 | K78: 1 | L78: 3 | M78: 18.43494861 | N78: 51.95470734
D79: Totals | E79: =SUM(E68:E78) -> 12.08219178 | F79: =C78-C67 -> 0.06799999997 | G79: =D78-D67 -> 0.119 | H79: 0.1370583817 | I79: =H79*100/E79 -> 1.134383431 | J79: =IF(G79>0,2,0) -> 2 | K79: =IF(H79>0,1,0) -> 1 | L79: 3 | M79: =IF(L79=3,(ATAN(G79/F79)*180/PI()),IF(L79=1,(90+ATAN(ABS(F79)/ABS(G79))*180/PI()),IF(L79=0,(180+ATAN(ABS(G79)/ABS(F79))*180/PI()),IF(L79=2,(270+ATAN(ABS(F79)/ABS(G79))*180/PI()),"ERROR")))) -> 60.25511872 | N79: =AVERAGE(N68:N78) -> 56.19566495
A80: 1495 | B80: 2003-08-21 | C80: 7148526.59 | D80: 513528.92
A81: 1495 | B81: 2004-07-28 | C81: 7148526.62 | D81: 513528.97 | E81: =(B81-B80)/365 -> 0.9369863014 | F81: =C81-C80 -> 0.03000000026 | G81: =D81-D80 -> 0.04999999999 | H81: =(F81^2+G81^2)^0.5 -> 0.05830951907 | I81: =H81/E81*100 -> 6.223091948 | J81: =IF(F81>0,2,0) -> 2 | K81: =IF(G81>0,1,0) -> 1 | L81: =SUM(J81:K81) -> 3 | M81: =IF(L81=3,(ATAN(G81/F81)*180/PI()),IF(L81=1,(90+ATAN(ABS(F81)/ABS(G81))*180/PI()),IF(L81=0,(180+ATAN(ABS(G81)/ABS(F81))*180/PI()),IF(L81=2,(270+ATAN(ABS(F81)/ABS(G81))*180/PI()),"ERROR")))) -> 59.03624324 | N81: =IF(AND(ABS($M$14-M81)>0,ABS($M$14-M81)<180),ABS($M$14-M81),ABS(360-MAX($M$14,M81)+MIN($M$14,M81))) -> 11.35341271
A82: 1495 | B82: 2004-09-23 | C82: 7148526.65 | D82: 513528.95 | E82: =(B82-B81)/365 -> 0.1561643836 | F82: =C82-C81 -> 0.03000000026 | G82: =D82-D81 -> -0.01999999996 | H82: =(F82^2+G82^2)^0.5 -> 0.03605551295 | I82: =H82/E82*100 -> 23.08817934 | J82: =IF(F82>0,2,0) -> 2 | K82: =IF(G82>0,1,0) -> 0 | L82: 2 | M82: =IF(L82=3,(ATAN(G82/F82)*180/PI()),IF(L82=1,(90+ATAN(ABS(F82)/ABS(G82))*180/PI()),IF(L82=0,(180+ATAN(ABS(G82)/ABS(F82))*180/PI()),IF(L82=2,(270+ATAN(ABS(F82)/ABS(G82))*180/PI()),"ERROR")))) -> 326.3099328 | N82: =IF(AND(ABS($M$14-M82)>0,ABS($M$14-M82)<180),ABS($M$14-M82),ABS(360-MAX($M$14,M82)+MIN($M$14,M82))) -> 104.0797232
A83: 1495 | B83: 2005-09-17 | C83: 7148526.65 | D83: 513529 | E83: 0.9835616438 | F83: 0 | G83: 0.04999999999 | H83: 0.04999999999 | I83: 5.083565458 | J83: 0 | K83: 1 | L83: 1 | M83: 90 | N83: 19.61034405
A84: 1495 | B84: 2006-07-28 | C84: 7148526.67 | D84: 513529.02 | E84: 0.8602739726 | F84: 0.01999999955 | G84: 0.02000000002 | H84: 0.02828427094 | I84: 3.287821304 | J84: 2 | K84: 1 | L84: 3 | M84: 45.00000067 | N84: 25.38965528
A85: 1495 | B85: 2008-07-09 | C85: 7148526.69 | D85: 513529.07 | E85: 1.950684932 | F85: 0.02000000048 | G85: 0.04999999999 | H85: 0.05385164824 | I85: 2.760653316 | J85: 2 | K85: 1 | L85: 3 | M85: 68.19859003 | N85: 2.19106592
A86: 1495 | B86: 2010-07-20 | C86: 7148526.71 | D86: 513529.1 | E86: 2.030136986 | F86: 0.01999999955 | G86: 0.02999999997 | H86: 0.03605551248 | I86: 1.776013773 | J86: 2 | K86: 1 | L86: 3 | M86: 56.30993304 | N86: 14.07972291
A87: 1495 | B87: 2010-09-25 | C87: 7148526.72 | D87: 513529.11 | E87: 0.1835616438 | F87: 0.009999999776 | G87: 0.01000000001 | H87: 0.01414213547 | I87: 7.704297683 | J87: 2 | K87: 1 | L87: 3 | M87: 45.00000067 | N87: 25.38965528
A88: 1495 | B88: 2011-08-11 | C88: 7148526.71 | D88: 513529.13 | E88: 0.8767123288 | F88: -0.009999999776 | G88: 0.02000000002 | H88: 0.02236067969 | I88: 2.550515027 | J88: 0 | K88: 1 | L88: 1 | M88: 116.5650506 | N88: 46.17539469
A89: 1495 | B89: 2012-08-06 | C89: 7148526.73 | D89: 513529.16 | E89: 0.9890410959 | F89: 0.02000000048 | G89: 0.02999999997 | H89: 0.036055513 | I89: 3.645502007 | J89: 2 | K89: 1 | L89: 3 | M89: 56.30993181 | N89: 14.07972414
A90: 1495 | B90: 2014-09-13 | C90: 7148526.801 | D90: 513529.187 | E90: 2.104109589 | F90: 0.07099999953 | G90: 0.027 | H90: 0.07596051562 | I90: 3.61010263 | J90: 2 | K90: 1 | L90: 3 | M90: 20.82089298 | N90: 49.56876297
A91: 1495 | B91: 2015-09-17 | C91: 7148526.793 | D91: 513529.186 | E91: 1.010958904 | F91: -0.00800000038 | G91: -0.0009999999893 | H91: 0.008062258124 | I91: 0.7974862372 | J91: 0 | K91: 0 | L91: 0 | M91: 187.1250159 | N91: 116.73536
D92: Totals | E92: =SUM(E81:E91) -> 12.08219178 | F92: =C91-C80 -> 0.2029999997 | G92: =D91-D80 -> 0.266 | H92: 0.3346117151 | I92: =H92*100/E92 -> 2.769462041 | J92: =IF(G92>0,2,0) -> 2 | K92: =IF(H92>0,1,0) -> 1 | L92: 3 | M92: =IF(L92=3,(ATAN(G92/F92)*180/PI()),IF(L92=1,(90+ATAN(ABS(F92)/ABS(G92))*180/PI()),IF(L92=0,(180+ATAN(ABS(G92)/ABS(F92))*180/PI()),IF(L92=2,(270+ATAN(ABS(F92)/ABS(G92))*180/PI()),"ERROR")))) -> 52.65065099 | N92: =AVERAGE(N81:N91) -> 38.96843829

Sheet Clinton Movement Nov. 2
A2: Monitor | B2: Date | C2: Northing (m) | D2: Easting (m) | E2: dt (years) | F2: dN (cm) | G2: dE (cm) | H2: Movement (cm) | I2: Movement Rate (cm/yr) | J2: θ | K2: Projected Movement (cm) | L2: Projected Movement Rate (cm/yr) | N2: Movement Rates (cm)
A3: 81-1 | B3: 2001-06-19 | C3: =IFERROR(VLOOKUP(CONCATENATE(A3,B3),'[2]Raw Clinton'!C:F,2,FALSE),"N/A") -> 7147034.71 | D3: =IFERROR(VLOOKUP(CONCATENATE(A3,B3),'[2]Raw Clinton'!C:F,3,FALSE),"N/A") -> 512978.88 | E3: =IF(A3=A2,(B3-B2)/365,"") ->  | F3: =IFERROR(IF($A3=$A2,(C3-C2)*100,""),"") ->  | G3: =IFERROR(IF($A3=$A2,(D3-D2)*100,""),"") ->  | H3: =IFERROR(SQRT(F3^2+G3^2),"") ->  | I3: =IFERROR(SQRT(F3^2+G3^2)/E3,"") ->  | N3: Date | O3: Avg. Date | P3: dt | Q3: 81-1 | R3: 223 | S3: 225 | T3: 1195 | U3: 1834 | V3: BH-4 | W3: 2836 | X3: 186 | Y3: 300 | Z3: BH-4 Cable | AA3: Mean | AB3: Std.Dev | AC3: 95%ile | AD3: 5%ile | AG3: mean | AH3: 90% C.I. | AI3: 90% C.I. | AK3: Lookup Tables
A4: 81-1 | B4: 2003-08-20 | C4: =IFERROR(VLOOKUP(CONCATENATE(A4,B4),'[2]Raw Clinton'!C:F,2,FALSE),"N/A") -> 7147034.82 | D4: =IFERROR(VLOOKUP(CONCATENATE(A4,B4),'[2]Raw Clinton'!C:F,3,FALSE),"N/A") -> 512978.93 | E4: 2.169863014 | F4: =IFERROR(IF($A4=$A3,(C4-C3)*100,""),"") -> 11.00000003 | G4: =IFERROR(IF($A4=$A3,(D4-D3)*100,""),"") -> 4.999999999 | H4: =IFERROR(SQRT(F4^2+G4^2),"") -> 12.083046 | I4: =IFERROR(SQRT(F4^2+G4^2)/E4,"") -> 5.568575494 | J4: =IFERROR(DEGREES(IF(G4=0,IF(F4>0,PI()/2,3*PI()/2),IF(G4>0,ATAN(F4/G4),PI()+ATAN(F4/G4)))),"") -> 65.55604529 | K4: =IFERROR((F4*SIN(RADIANS($J$14))+G4*COS(RADIANS($J$14))),"") -> 10.53076152 | L4: =IFERROR(K4/E4,"") -> 4.853191862 | N4: 2003-08-20 | AF4: 2003-08-20 | AG4: =AA5 -> 0.783681957 | AH4: =AC5 -> 3.166108406 | AI4: =AD5 -> -1.598744492 | AK4: 81-1 | AL4: 0 | AN4: 2001-06-19 | AO4: 0
A5: 81-1 | B5: 2004-07-28 | C5: =IFERROR(VLOOKUP(CONCATENATE(A5,B5),'[2]Raw Clinton'!C:F,2,FALSE),"N/A") -> 7147034.76 | D5: =IFERROR(VLOOKUP(CONCATENATE(A5,B5),'[2]Raw Clinton'!C:F,3,FALSE),"N/A") -> 512978.92 | E5: 0.9397260274 | F5: =IFERROR(IF($A5=$A4,(C5-C4)*100,""),"") -> -6.000000052 | G5: -1.000000001 | H5: =IFERROR(SQRT(F5^2+G5^2),"") -> 6.082762582 | I5: =IFERROR(SQRT(F5^2+G5^2)/E5,"") -> 6.472910619 | J5: =IFERROR(DEGREES(IF(G5=0,IF(F5>0,PI()/2,3*PI()/2),IF(G5>0,ATAN(F5/G5),PI()+ATAN(F5/G5)))),"") -> 260.5376779 | K5: =IFERROR((F5*SIN(RADIANS($J$14))+G5*COS(RADIANS($J$14))),"") -> -4.350090277 | L5: =IFERROR(K5/E5,"") -> -4.629104814 | N5: 2004-07-28 | O5: =AVERAGE(N4:N5) -> 2004-02-07T12:00:00 | P5: =(N5-N4)/365 -> 0.9397260274 | Q5: =INDIRECT("L"&TEXT(3+VLOOKUP(Q$3,$AK$4:$AL$13,2,FALSE)*12+VLOOKUP($N5,$AN$4:$AO$14,2,FALSE)*1,0)) -> -4.629104814 | R5: =INDIRECT("L"&TEXT(3+VLOOKUP(R$3,$AK$4:$AL$13,2,FALSE)*12+VLOOKUP($N5,$AN$4:$AO$14,2,FALSE)*1,0)) -> 3.035777278 | S5: 0.9115388716 | T5: 1.082535847 | U5: 3.517662602 | AA5: =AVERAGE(Q5:Z5) -> 0.783681957 | AB5: =_xlfn.STDEV.S(Q5:Z5) -> 3.238460482 | AC5: =AA5+1.645*AB5/SQRT(COUNT(Q5:Z5)) -> 3.166108406 | AD5: =AA5-1.645*AB5/SQRT(COUNT(Q5:Z5)) -> -1.598744492 | AF5: 2004-07-28 | AG5: =AA5 -> 0.783681957 | AH5: =AC5 -> 3.166108406 | AI5: =AD5 -> -1.598744492 | AK5: 223 | AL5: 1 | AN5: 2003-08-20 | AO5: 1
A6: 81-1 | B6: 2006-07-28 | C6: =IFERROR(VLOOKUP(CONCATENATE(A6,B6),'[2]Raw Clinton'!C:F,2,FALSE),"N/A") -> 7147034.8 | D6: =IFERROR(VLOOKUP(CONCATENATE(A6,B6),'[2]Raw Clinton'!C:F,3,FALSE),"N/A") -> 512978.92 | E6: 2 | F6: 4.000000004 | G6: 0 | H6: 4.000000004 | I6: 2.000000002 | J6: 90 | K6: 2.362039944 | L6: 1.181019972 | N6: 2006-07-28 | O6: 2005-07-28 | P6: 2 | Q6: =INDIRECT("L"&TEXT(3+VLOOKUP(Q$3,$AK$4:$AL$13,2,FALSE)*12+VLOOKUP($N6,$AN$4:$AO$14,2,FALSE)*1,0)) -> 1.181019972 | R6: 1.984555755 | S6: 1.998725664 | T6: 0.01743920824 | U6: 2.679105251 | AA6: =AVERAGE(Q6:Z6) -> 1.57216917 | AB6: =_xlfn.STDEV.S(Q6:Z6) -> 1.018271031 | AC6: =AA6+1.645*AB6/SQRT(COUNT(Q6:Z6)) -> 2.321276918 | AD6: =AA6-1.645*AB6/SQRT(COUNT(Q6:Z6)) -> 0.8230614222 | AF6: 2004-07-28 | AG6: =AA6 -> 1.57216917 | AH6: =AC6 -> 2.321276918 | AI6: =AD6 -> 0.8230614222 | AK6: 225 | AL6: 2 | AN6: 2004-07-28 | AO6: 2
A7: 81-1 | B7: 2008-07-09 | C7: =IFERROR(VLOOKUP(CONCATENATE(A7,B7),'[2]Raw Clinton'!C:F,2,FALSE),"N/A") -> 7147034.83 | D7: =IFERROR(VLOOKUP(CONCATENATE(A7,B7),'[2]Raw Clinton'!C:F,3,FALSE),"N/A") -> 512978.93 | E7: 1.950684932 | F7: 3.000000026 | G7: 1.000000001 | H7: 3.162277685 | I7: 1.621111454 | J7: 71.56505131 | K7: 2.578560305 | L7: 1.321874314 | N7: 2008-07-09 | O7: 2007-07-19 | P7: 1.950684932 | Q7: 1.321874314 | R7: 2.161897553 | S7: 2.085849138 | T7: 4.082619836 | U7: 2.179339987 | AA7: 2.366316165 | AB7: 1.023714546 | AC7: 3.119428524 | AD7: 1.613203807 | AF7: 2006-07-28 | AG7: =AA6 -> 1.57216917 | AH7: =AC6 -> 2.321276918 | AI7: =AD6 -> 0.8230614222 | AK7: 1195 | AL7: 3 | AN7: 2006-07-28 | AO7: 3
A8: 81-1 | B8: 2010-07-20 | C8: =IFERROR(VLOOKUP(CONCATENATE(A8,B8),'[2]Raw Clinton'!C:F,2,FALSE),"N/A") -> 7147034.84 | D8: =IFERROR(VLOOKUP(CONCATENATE(A8,B8),'[2]Raw Clinton'!C:F,3,FALSE),"N/A") -> 512978.93 | E8: 2.030136986 | F8: 0.9999999776 | G8: 0 | H8: 0.9999999776 | I8: 0.4925775868 | J8: 90 | K8: 0.5905099723 | L8: 0.2908719837 | N8: 2010-07-20 | O8: 2009-07-14T12:00:00 | P8: 2.030136986 | Q8: 0.2908719837 | R8: 1.466321571 | S8: 0.9669466837 | T8: 0.9850053566 | U8: 2.91197728 | AA8: 1.324224575 | AB8: 0.9812855034 | AC8: 2.046123314 | AD8: 0.6023258362 | AF8: 2006-07-28 | AG8: =AA7 -> 2.366316165 | AH8: =AC7 -> 3.119428524 | AI8: =AD7 -> 1.613203807 | AK8: 1834 | AL8: 4 | AN8: 2008-07-09 | AO8: 4
A9: 81-1 | B9: 2010-09-25 | C9: =IFERROR(VLOOKUP(CONCATENATE(A9,B9),'[2]Raw Clinton'!C:F,2,FALSE),"N/A") -> 7147034.83 | D9: =IFERROR(VLOOKUP(CONCATENATE(A9,B9),'[2]Raw Clinton'!C:F,3,FALSE),"N/A") -> 512978.94 | E9: 0.1835616438 | F9: -0.9999999776 | G9: 1.000000001 | H9: 1.414213547 | I9: 7.704297683 | J9: -44.99999933 | K9: 0.2165203605 | L9: 1.179551218 | N9: 2010-09-25 | O9: 2010-08-22T12:00:00 | P9: 0.1835616438 | Q9: 1.179551218 | R9: -8.784251243 | S9: 6.416484733 | T9: -10.89386521 | U9: -14.28102648 | AA9: -5.272621397 | AB9: 8.708430138 | AC9: 1.133877744 | AD9: -11.67912054 | AF9: 2008-07-09 | AG9: =AA7 -> 2.366316165 | AH9: =AC7 -> 3.119428524 | AI9: =AD7 -> 1.613203807 | AK9: BH-4 | AL9: 5 | AN9: 2010-07-20 | AO9: 5
A10: 81-1 | B10: 2011-08-11 | C10: =IFERROR(VLOOKUP(CONCATENATE(A10,B10),'[2]Raw Clinton'!C:F,2,FALSE),"N/A") -> 7147034.86 | D10: =IFERROR(VLOOKUP(CONCATENATE(A10,B10),'[2]Raw Clinton'!C:F,3,FALSE),"N/A") -> 512978.99 | E10: 0.8767123288 | F10: 3.000000026 | G10: 4.999999999 | H10: 5.830951907 | I10: 6.650929519 | J10: 30.96375676 | K10: 5.806681632 | L10: 6.623246236 | N10: 2011-08-11 | O10: 2011-03-04 | P10: 0.8767123288 | Q10: 6.623246236 | R10: 5.800561863 | S10: 2.320507219 | T10: 2.261011432 | U10: 4.849031474 | AA10: 4.370871645 | AB10: 2.000084163 | AC10: 5.84226629 | AD10: 2.899477 | AF10: 2008-07-09 | AG10: =AA8 -> 1.324224575 | AH10: =AC8 -> 2.046123314 | AI10: =AD8 -> 0.6023258362 | AK10: 2836 | AL10: 6 | AN10: 2010-09-25 | AO10: 6
A11: 81-1 | B11: 2012-08-06 | C11: =IFERROR(VLOOKUP(CONCATENATE(A11,B11),'[2]Raw Clinton'!C:F,2,FALSE),"N/A") -> 7147034.86 | D11: =IFERROR(VLOOKUP(CONCATENATE(A11,B11),'[2]Raw Clinton'!C:F,3,FALSE),"N/A") -> 512978.94 | E11: 0.9890410959 | F11: 0 | G11: -4.999999999 | H11: 4.999999999 | I11: 5.055401661 | J11: 180 | K11: -4.03515166 | L11: -4.079862481 | N11: 2012-08-06 | O11: 2012-02-07T12:00:00 | P11: 0.9890410959 | Q11: -4.079862481 | R11: 2.633590722 | S11: 2.886960295 | T11: 1.028558991 | U11: 0.7073169332 | AA11: 0.6353128917 | AB11: 2.80427068 | AC11: 2.698320508 | AD11: -1.427694725 | AF11: 2010-07-20 | AG11: =AA8 -> 1.324224575 | AH11: =AC8 -> 2.046123314 | AI11: =AD8 -> 0.6023258362 | AK11: 186 | AL11: 7 | AN11: 2011-08-11 | AO11: 7
A12: 81-1 | B12: 2014-09-11 | C12: =IFERROR(VLOOKUP(CONCATENATE(A12,B12),'[2]Raw Clinton'!C:F,2,FALSE),"N/A") -> 7147034.843 | D12: =IFERROR(VLOOKUP(CONCATENATE(A12,B12),'[2]Raw Clinton'!C:F,3,FALSE),"N/A") -> 512978.964 | E12: 2.098630137 | F12: -1.699999999 | G12: 2.399999998 | H12: 2.941088232 | I12: 1.401432382 | J12: -35.31121346 | K12: 0.9330058202 | L12: 0.4445784913 | N12: 2014-09-11 | O12: 2013-08-24 | P12: 2.098630137 | Q12: 0.4445784913 | R12: 1.152502889 | S12: 0.467694208 | T12: 1.215447559 | U12: 1.6810055 | V12: 1.151963753 | W12: 6.609959309 | X12: 8.917899085 | Y12: 0.803452466 | Z12: -2.78845841 | AA12: 1.965604485 | AB12: 3.339665252 | AC12: 3.702880566 | AD12: 0.2283284042 | AF12: 2010-07-20 | AG12: =AA9 -> -5.272621397 | AH12: =AC9 -> 1.133877744 | AI12: =AD9 -> -11.67912054 | AK12: 300 | AL12: 8 | AN12: 2012-08-06 | AO12: 8
A13: 81-1 | B13: 2015-09-17 | C13: =IFERROR(VLOOKUP(CONCATENATE(A13,B13),'[2]Raw Clinton'!C:F,2,FALSE),"N/A") -> 7147034.85 | D13: =IFERROR(VLOOKUP(CONCATENATE(A13,B13),'[2]Raw Clinton'!C:F,3,FALSE),"N/A") -> 512978.971 | E13: 1.016438356 | F13: 0.6999999285 | G13: 0.7000000041 | H13: 0.989949446 | I13: 0.9739394819 | J13: 44.9999969 | K13: 0.9782781835 | L13: 0.962456973 | N13: 2015-09-17 | O13: 2015-03-15T12:00:00 | P13: 1.016438356 | Q13: 0.962456973 | R13: 2.440575709 | S13: 1.650372506 | T13: 2.593592507 | U13: 1.310703662 | V13: 0.4865008252 | W13: 11.74133277 | X13: 5.37111615 | Y13: 3.872470497 | Z13: 9.605564686 | AA13: 4.003468628 | AB13: 3.829431142 | AC13: 5.995518317 | AD13: 2.01141894 | AF13: 2010-09-25 | AG13: =AA9 -> -5.272621397 | AH13: =AC9 -> 1.133877744 | AI13: =AD9 -> -11.67912054 | AK13: BH-4 Cable | AL13: 9 | AN13: 2014-09-11 | AO13: 9
B14: Totals From August 2, 2003 to September 17, 2015 | F14: =IFERROR(IF($A13=$A4,(C13-C4)*100,""),"") -> 2.999999933 | G14: =IFERROR(IF($A13=$A4,(D13-D4)*100,""),"") -> 4.100000003 | H14: 5.080354281 | I14: =IFERROR(SQRT(G14^2+H14^2)/F14,"") -> 2.176133205 | J14: =DEGREES(IF(G14=0,IF(F14>0,PI()/2,3*PI()/2),IF(G14>0,ATAN(F14/G14),PI()+ATAN(F14/G14)))) -> 36.19320668 | K14: =SUM(K5:K13) -> 5.080354281 | P14: Total Movement | Q14: =SUMPRODUCT($P$5:$P$13,Q5:Q13) -> 5.080354281 | R14: 24.99299908 | S14: 19.61249606 | T14: 17.20261601 | U14: 26.01614883 | V14: 2.912043949 | W14: 25.80620079 | X14: 24.17478025 | Y14: 5.622277105 | Z14: 3.911521524 | AA14: 22.87193169 | AF14: 2010-09-25 | AG14: =AA10 -> 4.370871645 | AH14: =AC10 -> 5.84226629 | AI14: =AD10 -> 2.899477 | AN14: 2015-09-17 | AO14: 10
A15: 223 | B15: 2001-06-19 | C15: =IFERROR(VLOOKUP(CONCATENATE(A15,B15),'[2]Raw Clinton'!C:F,2,FALSE),"N/A") -> N/A | D15: =IFERROR(VLOOKUP(CONCATENATE(A15,B15),'[2]Raw Clinton'!C:F,3,FALSE),"N/A") -> N/A | E15: =IF(A15=A13,(B15-B13)/365,"") ->  | F15: =IFERROR(IF($A15=$A13,(C15-C13)*100,""),"") ->  | G15: =IFERROR(IF($A15=$A13,(D15-D13)*100,""),"") ->  | P15: Average Movement | Q15: =Q14/SUM($P5:$P13) -> 0.4203875113 | R15: =R14/SUM($P5:$P13) -> 2.068112597 | S15: 1.622888475 | T15: 1.423476501 | U15: 2.152775861 | V15: =V14/SUM($P12:$P13) -> 0.9348250143 | W15: =W14/SUM($P12:$P13) -> 8.284312478 | X15: 7.760593483 | Y15: 1.804864682 | Z15: 1.255677534 | AA15: =AA14/SUM(Y5:Y13) -> 4.891426115 | AF15: 2011-08-11 | AG15: =AA10 -> 4.370871645 | AH15: =AC10 -> 5.84226629 | AI15: =AD10 -> 2.899477
A16: 223 | B16: 2003-08-20 | C16: =IFERROR(VLOOKUP(CONCATENATE(A16,B16),'[2]Raw Clinton'!C:F,2,FALSE),"N/A") -> 7146978.05 | D16: =IFERROR(VLOOKUP(CONCATENATE(A16,B16),'[2]Raw Clinton'!C:F,3,FALSE),"N/A") -> 512942.74 | E16: 2.169863014 | J16: =IFERROR(DEGREES(IF(G16=0,IF(F16>0,PI()/2,3*PI()/2),IF(G16>0,ATAN(F16/G16),PI()+ATAN(F16/G16)))),"") ->  | K16: =IFERROR((F16*SIN(RADIANS($J$26))+G16*COS(RADIANS($J$26))),"") ->  | L16: =IFERROR(K16/E16,"") ->  | P16: Direction of Movement | Q16: =J14 -> 36.19320668 | R16: =J26 -> 82.87498366 | S16: =J38 -> 87.9545915 | T16: =J50 -> 90.99924368 | U16: =J62 -> 106.0664005 | V16: =J74 -> -74.05460411 | W16: =J86 -> 14.3593364 | X16: =J98 -> 4.507770869 | Y16: =J110 -> 95.10216527 | Z16: =J122 -> 94.3987053 | AF16: 2011-08-11 | AG16: =AA11 -> 0.6353128917 | AH16: =AC11 -> 2.698320508 | AI16: =AD11 -> -1.427694725
A17: 223 | B17: 2004-07-28 | C17: =IFERROR(VLOOKUP(CONCATENATE(A17,B17),'[2]Raw Clinton'!C:F,2,FALSE),"N/A") -> 7146978.08 | D17: =IFERROR(VLOOKUP(CONCATENATE(A17,B17),'[2]Raw Clinton'!C:F,3,FALSE),"N/A") -> 512942.73 | E17: 0.9397260274 | F17: 3.000000026 | G17: -1.000000001 | H17: 3.162277685 | I17: 3.365105992 | J17: =IFERROR(DEGREES(IF(G17=0,IF(F17>0,PI()/2,3*PI()/2),IF(G17>0,ATAN(F17/G17),PI()+ATAN(F17/G17)))),"") -> 108.4349487 | K17: =IFERROR((F17*SIN(RADIANS($J$26))+G17*COS(RADIANS($J$26))),"") -> 2.852798922 | L17: =IFERROR(K17/E17,"") -> 3.035777278 | AF17: 2012-08-06 | AG17: =AA11 -> 0.6353128917 | AH17: =AC11 -> 2.698320508 | AI17: =AD11 -> -1.427694725
A18: 223 | B18: 2006-07-28 | C18: =IFERROR(VLOOKUP(CONCATENATE(A18,B18),'[2]Raw Clinton'!C:F,2,FALSE),"N/A") -> 7146978.12 | D18: =IFERROR(VLOOKUP(CONCATENATE(A18,B18),'[2]Raw Clinton'!C:F,3,FALSE),"N/A") -> 512942.73 | E18: 2 | F18: 4.000000004 | G18: 0 | H18: 4.000000004 | I18: 2.000000002 | J18: 90 | K18: =IFERROR((F18*SIN(RADIANS($J$26))+G18*COS(RADIANS($J$26))),"") -> 3.969111511 | L18: 1.984555755 | AA18: =SUMPRODUCT(AA5:AA8,P5:P8)/SUM(P5:P8) -> 1.616212955 | AF18: 2012-08-06 | AG18: =AA12 -> 1.965604485 | AH18: =AC12 -> 3.702880566 | AI18: =AD12 -> 0.2283284042
A19: 223 | B19: 2008-07-09 | C19: =IFERROR(VLOOKUP(CONCATENATE(A19,B19),'[2]Raw Clinton'!C:F,2,FALSE),"N/A") -> 7146978.16 | D19: =IFERROR(VLOOKUP(CONCATENATE(A19,B19),'[2]Raw Clinton'!C:F,3,FALSE),"N/A") -> 512942.75 | E19: 1.950684932 | F19: 4.000000004 | G19: 2.000000002 | H19: 4.472135959 | I19: 2.292597788 | J19: 63.43494882 | K19: 4.21718098 | L19: 2.161897553 | AA19: =SUMPRODUCT(AA9:AA11,P9:P11)/SUM(P9:P11) -> 1.704226266 | AF19: 2014-09-11 | AG19: =AA12 -> 1.965604485 | AH19: =AC12 -> 3.702880566 | AI19: =AD12 -> 0.2283284042
A20: 223 | B20: 2010-07-20 | C20: =IFERROR(VLOOKUP(CONCATENATE(A20,B20),'[2]Raw Clinton'!C:F,2,FALSE),"N/A") -> 7146978.19 | D20: =IFERROR(VLOOKUP(CONCATENATE(A20,B20),'[2]Raw Clinton'!C:F,3,FALSE),"N/A") -> 512942.75 | E20: 2.030136986 | F20: 3.000000026 | G20: 0 | H20: 3.000000026 | I20: 1.477732806 | J20: 90 | K20: 2.976833656 | L20: 1.466321571 | AA20: =SUMPRODUCT(AA12,P12)/SUM(P12) -> 1.965604485 | AF20: 2014-09-11 | AG20: =AA13 -> 4.003468628 | AH20: =AC13 -> 5.995518317 | AI20: =AD13 -> 2.01141894
A21: 223 | B21: 2010-09-25 | C21: =IFERROR(VLOOKUP(CONCATENATE(A21,B21),'[2]Raw Clinton'!C:F,2,FALSE),"N/A") -> 7146978.17 | D21: =IFERROR(VLOOKUP(CONCATENATE(A21,B21),'[2]Raw Clinton'!C:F,3,FALSE),"N/A") -> 512942.78 | E21: 0.1835616438 | F21: =IFERROR(IF($A21=$A20,(C21-C20)*100,""),"") -> -2.000000048 | G21: 3.000000003 | H21: 3.605551305 | I21: 19.64218248 | J21: -33.69006814 | K21: -1.612451598 | L21: -8.784251243 | AA21: =SUMPRODUCT(AA13,P13)/SUM(P13) -> 4.003468628 | AF21: 2015-09-17 | AG21: =AA13 -> 4.003468628 | AH21: =AC13 -> 5.995518317 | AI21: =AD13 -> 2.01141894
A22: 223 | B22: 2011-08-11 | C22: =IFERROR(VLOOKUP(CONCATENATE(A22,B22),'[2]Raw Clinton'!C:F,2,FALSE),"N/A") -> 7146978.22 | D22: =IFERROR(VLOOKUP(CONCATENATE(A22,B22),'[2]Raw Clinton'!C:F,3,FALSE),"N/A") -> 512942.79 | E22: 0.8767123288 | F22: 4.999999981 | G22: 0.9999999951 | H22: 5.099019494 | I22: 5.816069111 | J22: 78.69006754 | K22: 5.085424099 | L22: 5.800561863
A23: 223 | B23: 2012-08-06 | C23: =IFERROR(VLOOKUP(CONCATENATE(A23,B23),'[2]Raw Clinton'!C:F,2,FALSE),"N/A") -> 7146978.25 | D23: =IFERROR(VLOOKUP(CONCATENATE(A23,B23),'[2]Raw Clinton'!C:F,3,FALSE),"N/A") -> 512942.76 | E23: 0.9890410959 | F23: 3.000000026 | G23: -2.999999997 | H23: 4.242640703 | I23: 4.289650573 | J23: 134.9999997 | K23: 2.604729453 | L23: 2.633590722
A24: 223 | B24: 2014-09-11 | C24: =IFERROR(VLOOKUP(CONCATENATE(A24,B24),'[2]Raw Clinton'!C:F,2,FALSE),"N/A") -> 7146978.271 | D24: =IFERROR(VLOOKUP(CONCATENATE(A24,B24),'[2]Raw Clinton'!C:F,3,FALSE),"N/A") -> 512942.787 | E24: 2.098630137 | F24: 2.099999972 | G24: 2.7 | H24: 3.420526258 | I24: 1.629885227 | J24: 37.87498327 | K24: 2.418677296 | L24: 1.152502889
A25: 223 | B25: 2015-09-17 | C25: =IFERROR(VLOOKUP(CONCATENATE(A25,B25),'[2]Raw Clinton'!C:F,2,FALSE),"N/A") -> 7146978.298 | D25: =IFERROR(VLOOKUP(CONCATENATE(A25,B25),'[2]Raw Clinton'!C:F,3,FALSE),"N/A") -> 512942.771 | E25: 1.016438356 | F25: 2.70000007 | G25: -1.6 | H25: 3.138471026 | I25: 3.087714082 | J25: 120.6506673 | K25: 2.480694762 | L25: 2.440575709 | Z25: Movement(cm) | AA25: Movement Rate (cm/y) | AB25: Azimuth (CW from N)
B26: Totals From August 2, 2003 to September 17, 2015 | F26: =IFERROR(IF($A25=$A16,(C25-C16)*100,""),"") -> 24.80000006 | G26: =IFERROR(IF($A25=$A16,(D25-D16)*100,""),"") -> 3.100000002 | H26: 24.99299908 | I26: =IFERROR(SQRT(G26^2+H26^2)/F26,"") -> 1.015504801 | J26: =DEGREES(IF(G26=0,IF(F26>0,PI()/2,3*PI()/2),IF(G26>0,ATAN(F26/G26),PI()+ATAN(F26/G26)))) -> 82.87498366 | K26: =SUM(K17:K25) -> 24.99299908 | Y26: 81-1 | Z26: 5.080354281 | AA26: 0.4203875113 | AB26: 53.80679332
A27: 225 | B27: 2001-06-19 | C27: =IFERROR(VLOOKUP(CONCATENATE(A27,B27),'[2]Raw Clinton'!C:F,2,FALSE),"N/A") -> N/A | D27: =IFERROR(VLOOKUP(CONCATENATE(A27,B27),'[2]Raw Clinton'!C:F,3,FALSE),"N/A") -> N/A | E27: =IF(A27=A25,(B27-B25)/365,"") ->  | F27: =IFERROR(IF($A27=$A25,(C27-C25)*100,""),"") ->  | G27: =IFERROR(IF($A27=$A25,(D27-D25)*100,""),"") ->  | Y27: 223 | Z27: 24.99299908 | AA27: 2.068112597 | AB27: 7.125016336
A28: 225 | B28: 2003-08-20 | C28: =IFERROR(VLOOKUP(CONCATENATE(A28,B28),'[2]Raw Clinton'!C:F,2,FALSE),"N/A") -> 7146918.72 | D28: =IFERROR(VLOOKUP(CONCATENATE(A28,B28),'[2]Raw Clinton'!C:F,3,FALSE),"N/A") -> 512905.22 | E28: 2.169863014 | J28: =IFERROR(DEGREES(IF(G28=0,IF(F28>0,PI()/2,3*PI()/2),IF(G28>0,ATAN(F28/G28),PI()+ATAN(F28/G28)))),"") ->  | K28: =IFERROR((F28*SIN(RADIANS($J$38))+G28*COS(RADIANS($J$38))),"") ->  | L28: =IFERROR(K28/E28,"") ->  | Y28: 225 | Z28: 19.61249606 | AA28: 1.622888475 | AB28: 2.045408496
A29: 225 | B29: 2004-07-28 | C29: =IFERROR(VLOOKUP(CONCATENATE(A29,B29),'[2]Raw Clinton'!C:F,2,FALSE),"N/A") -> 7146918.73 | D29: =IFERROR(VLOOKUP(CONCATENATE(A29,B29),'[2]Raw Clinton'!C:F,3,FALSE),"N/A") -> 512905.18 | E29: 0.9397260274 | F29: 1.000000071 | G29: -3.999999998 | H29: 4.123105641 | I29: 4.387561396 | J29: =IFERROR(DEGREES(IF(G29=0,IF(F29>0,PI()/2,3*PI()/2),IF(G29>0,ATAN(F29/G29),PI()+ATAN(F29/G29)))),"") -> 165.9637556 | K29: =IFERROR((F29*SIN(RADIANS($J$38))+G29*COS(RADIANS($J$38))),"") -> 0.8565968026 | L29: =IFERROR(K29/E29,"") -> 0.9115388716 | Y29: 1195 | Z29: 17.20261601 | AA29: 1.423476501 | AB29: 359.0007563
A30: 225 | B30: 2006-07-28 | C30: =IFERROR(VLOOKUP(CONCATENATE(A30,B30),'[2]Raw Clinton'!C:F,2,FALSE),"N/A") -> 7146918.77 | D30: =IFERROR(VLOOKUP(CONCATENATE(A30,B30),'[2]Raw Clinton'!C:F,3,FALSE),"N/A") -> 512905.18 | E30: 2 | F30: 3.999999911 | G30: 0 | H30: 3.999999911 | I30: 1.999999955 | J30: 90 | K30: =IFERROR((F30*SIN(RADIANS($J$38))+G30*COS(RADIANS($J$38))),"") -> 3.997451328 | L30: 1.998725664 | Y30: 1834 | Z30: 26.01614883 | AA30: 2.152775861 | AB30: 343.9335995
A31: 225 | B31: 2008-07-09 | C31: =IFERROR(VLOOKUP(CONCATENATE(A31,B31),'[2]Raw Clinton'!C:F,2,FALSE),"N/A") -> 7146918.81 | D31: =IFERROR(VLOOKUP(CONCATENATE(A31,B31),'[2]Raw Clinton'!C:F,3,FALSE),"N/A") -> 512905.2 | E31: 1.950684932 | F31: 4.000000004 | G31: 2.000000002 | H31: 4.472135959 | I31: 2.292597788 | J31: 63.43494882 | K31: 4.068834482 | L31: 2.085849138 | Y31: BH-4 | Z31: 2.912043949 | AA31: 0.9348250143 | AB31: 164.0546041
A32: 225 | B32: 2010-07-20 | C32: =IFERROR(VLOOKUP(CONCATENATE(A32,B32),'[2]Raw Clinton'!C:F,2,FALSE),"N/A") -> 7146918.83 | D32: =IFERROR(VLOOKUP(CONCATENATE(A32,B32),'[2]Raw Clinton'!C:F,3,FALSE),"N/A") -> 512905.19 | E32: 2.030136986 | F32: 2.000000048 | G32: -1.000000001 | H32: 2.236068021 | I32: 1.101437015 | J32: 116.5650506 | K32: 1.963034226 | L32: 0.9669466837 | Y32: 2836 | Z32: 25.80620079 | AA32: 8.284312478 | AB32: 75.6406636
A33: 225 | B33: 2010-09-25 | C33: =IFERROR(VLOOKUP(CONCATENATE(A33,B33),'[2]Raw Clinton'!C:F,2,FALSE),"N/A") -> 7146918.84 | D33: =IFERROR(VLOOKUP(CONCATENATE(A33,B33),'[2]Raw Clinton'!C:F,3,FALSE),"N/A") -> 512905.24 | E33: 0.1835616438 | F33: 0.9999999776 | G33: 4.999999999 | H33: 5.099019508 | I33: 27.7782406 | J33: 11.30993223 | K33: 1.177820485 | L33: 6.416484733 | Y33: 186 | Z33: 24.17478025 | AA33: 7.760593483 | AB33: 85.49222913
A34: 225 | B34: 2011-08-11 | C34: =IFERROR(VLOOKUP(CONCATENATE(A34,B34),'[2]Raw Clinton'!C:F,2,FALSE),"N/A") -> 7146918.86 | D34: =IFERROR(VLOOKUP(CONCATENATE(A34,B34),'[2]Raw Clinton'!C:F,3,FALSE),"N/A") -> 512905.25 | E34: 0.8767123288 | F34: 2.000000048 | G34: 1.000000001 | H34: 2.236068021 | I34: 2.550515087 | J34: 63.43494936 | K34: 2.034417288 | L34: 2.320507219 | Y34: 300 | Z34: 5.622277105 | AA34: 1.804864682 | AB34: 354.8978347
A35: 225 | B35: 2012-08-06 | C35: =IFERROR(VLOOKUP(CONCATENATE(A35,B35),'[2]Raw Clinton'!C:F,2,FALSE),"N/A") -> 7146918.89 | D35: =IFERROR(VLOOKUP(CONCATENATE(A35,B35),'[2]Raw Clinton'!C:F,3,FALSE),"N/A") -> 512905.21 | E35: 0.9890410959 | F35: 2.999999933 | G35: -3.999999998 | H35: 4.999999958 | I35: 5.05540162 | J35: 143.130103 | K35: 2.855322374 | L35: 2.886960295 | Y35: BH-4 Cable | Z35: 3.911521524 | AA35: 1.255677534 | AB35: 355.6012947
A36: 225 | B36: 2014-09-11 | C36: =IFERROR(VLOOKUP(CONCATENATE(A36,B36),'[2]Raw Clinton'!C:F,2,FALSE),"N/A") -> 7146918.9 | D36: =IFERROR(VLOOKUP(CONCATENATE(A36,B36),'[2]Raw Clinton'!C:F,3,FALSE),"N/A") -> 512905.205 | E36: 2.098630137 | F36: 1.000000071 | G36: -0.5000000005 | H36: 1.118034052 | I36: 0.5327446855 | J36: 116.5650496 | K36: 0.9815171597 | L36: 0.467694208
A37: 225 | B37: 2015-09-17 | C37: =IFERROR(VLOOKUP(CONCATENATE(A37,B37),'[2]Raw Clinton'!C:F,2,FALSE),"N/A") -> 7146918.916 | D37: =IFERROR(VLOOKUP(CONCATENATE(A37,B37),'[2]Raw Clinton'!C:F,3,FALSE),"N/A") -> 512905.227 | E37: 1.016438356 | F37: =IFERROR(IF($A37=$A36,(C37-C36)*100,""),"") -> 1.599999983 | G37: 2.2 | H37: 2.720294091 | I37: 2.676300117 | J37: 36.0273731 | K37: 1.677501917 | L37: 1.650372506
B38: Totals From August 2, 2003 to September 17, 2015 | F38: =IFERROR(IF($A37=$A28,(C37-C28)*100,""),"") -> 19.60000005 | G38: =IFERROR(IF($A37=$A28,(D37-D28)*100,""),"") -> 0.7000000041 | H38: 19.61249606 | I38: =IFERROR(SQRT(G38^2+H38^2)/F38,"") -> 1.001274698 | J38: =DEGREES(IF(G38=0,IF(F38>0,PI()/2,3*PI()/2),IF(G38>0,ATAN(F38/G38),PI()+ATAN(F38/G38)))) -> 87.9545915 | K38: =SUM(K29:K37) -> 19.61249606
A39: 1195 | B39: 2001-06-19 | C39: =IFERROR(VLOOKUP(CONCATENATE(A39,B39),'[2]Raw Clinton'!C:F,2,FALSE),"N/A") -> 7147111.83 | D39: =IFERROR(VLOOKUP(CONCATENATE(A39,B39),'[2]Raw Clinton'!C:F,3,FALSE),"N/A") -> 512899.53 | E39: =IF(A39=A37,(B39-B37)/365,"") ->  | F39: =IFERROR(IF($A39=$A37,(C39-C37)*100,""),"") ->  | G39: =IFERROR(IF($A39=$A37,(D39-D37)*100,""),"") -> 
A40: 1195 | B40: 2003-08-20 | C40: =IFERROR(VLOOKUP(CONCATENATE(A40,B40),'[2]Raw Clinton'!C:F,2,FALSE),"N/A") -> 7147111.94 | D40: =IFERROR(VLOOKUP(CONCATENATE(A40,B40),'[2]Raw Clinton'!C:F,3,FALSE),"N/A") -> 512899.53 | E40: 2.169863014 | F40: 11.00000003 | G40: 0 | H40: 11.00000003 | I40: 5.06944446 | J40: =IFERROR(DEGREES(IF(G40=0,IF(F40>0,PI()/2,3*PI()/2),IF(G40>0,ATAN(F40/G40),PI()+ATAN(F40/G40)))),"") -> 90 | K40: =IFERROR((F40*SIN(RADIANS($J$50))+G40*COS(RADIANS($J$50))),"") -> 10.99832721 | L40: =IFERROR(K40/E40,"") -> 5.068673526
A41: 1195 | B41: 2004-07-28 | C41: =IFERROR(VLOOKUP(CONCATENATE(A41,B41),'[2]Raw Clinton'!C:F,2,FALSE),"N/A") -> 7147111.95 | D41: =IFERROR(VLOOKUP(CONCATENATE(A41,B41),'[2]Raw Clinton'!C:F,3,FALSE),"N/A") -> 512899.52 | E41: 0.9397260274 | F41: 0.9999999776 | G41: -1.000000001 | H41: 1.414213547 | I41: 1.504921122 | J41: =IFERROR(DEGREES(IF(G41=0,IF(F41>0,PI()/2,3*PI()/2),IF(G41>0,ATAN(F41/G41),PI()+ATAN(F41/G41)))),"") -> 135.0000007 | K41: =IFERROR((F41*SIN(RADIANS($J$50))+G41*COS(RADIANS($J$50))),"") -> 1.017287111 | L41: =IFERROR(K41/E41,"") -> 1.082535847
A42: 1195 | B42: 2006-07-28 | C42: =IFERROR(VLOOKUP(CONCATENATE(A42,B42),'[2]Raw Clinton'!C:F,2,FALSE),"N/A") -> 7147111.95 | D42: =IFERROR(VLOOKUP(CONCATENATE(A42,B42),'[2]Raw Clinton'!C:F,3,FALSE),"N/A") -> 512899.5 | E42: 2 | F42: 0 | G42: -2.000000002 | H42: 2.000000002 | I42: 1.000000001 | J42: 180 | K42: 0.03487841648 | L42: 0.01743920824
A43: 1195 | B43: 2008-07-09 | C43: =IFERROR(VLOOKUP(CONCATENATE(A43,B43),'[2]Raw Clinton'!C:F,2,FALSE),"N/A") -> 7147112.03 | D43: =IFERROR(VLOOKUP(CONCATENATE(A43,B43),'[2]Raw Clinton'!C:F,3,FALSE),"N/A") -> 512899.52 | E43: 1.950684932 | F43: 8.000000007 | G43: 2.000000002 | H43: 8.246211259 | I43: 4.227341446 | J43: 75.96375653 | K43: 7.963904995 | L43: 4.082619836
A44: 1195 | B44: 2010-07-20 | C44: =IFERROR(VLOOKUP(CONCATENATE(A44,B44),'[2]Raw Clinton'!C:F,2,FALSE),"N/A") -> 7147112.05 | D44: =IFERROR(VLOOKUP(CONCATENATE(A44,B44),'[2]Raw Clinton'!C:F,3,FALSE),"N/A") -> 512899.52 | E44: 2.030136986 | F44: 1.999999955 | G44: 0 | H44: 1.999999955 | I44: 0.9851551737 | J44: 90 | K44: 1.999695806 | L44: 0.9850053566
A45: 1195 | B45: 2010-09-25 | C45: =IFERROR(VLOOKUP(CONCATENATE(A45,B45),'[2]Raw Clinton'!C:F,2,FALSE),"N/A") -> 7147112.03 | D45: =IFERROR(VLOOKUP(CONCATENATE(A45,B45),'[2]Raw Clinton'!C:F,3,FALSE),"N/A") -> 512899.52 | E45: 0.1835616438 | F45: -1.999999955 | G45: 0 | H45: 1.999999955 | I45: 10.89552214 | J45: 270 | K45: -1.999695806 | L45: -10.89386521
A46: 1195 | B46: 2011-08-11 | C46: =IFERROR(VLOOKUP(CONCATENATE(A46,B46),'[2]Raw Clinton'!C:F,2,FALSE),"N/A") -> 7147112.05 | D46: =IFERROR(VLOOKUP(CONCATENATE(A46,B46),'[2]Raw Clinton'!C:F,3,FALSE),"N/A") -> 512899.53 | E46: 0.8767123288 | F46: 1.999999955 | G46: 1.000000001 | H46: 2.236067938 | I46: 2.550514992 | J46: 63.43494829 | K46: 1.982256598 | L46: 2.261011432
A47: 1195 | B47: 2012-08-06 | C47: =IFERROR(VLOOKUP(CONCATENATE(A47,B47),'[2]Raw Clinton'!C:F,2,FALSE),"N/A") -> 7147112.06 | D47: =IFERROR(VLOOKUP(CONCATENATE(A47,B47),'[2]Raw Clinton'!C:F,3,FALSE),"N/A") -> 512899.52 | E47: 0.9890410959 | F47: 0.9999999776 | G47: -1.000000001 | H47: 1.414213547 | I47: 1.429883503 | J47: 135.0000007 | K47: 1.017287111 | L47: 1.028558991
A48: 1195 | B48: 2014-09-11 | C48: =IFERROR(VLOOKUP(CONCATENATE(A48,B48),'[2]Raw Clinton'!C:F,2,FALSE),"N/A") -> 7147112.086 | D48: =IFERROR(VLOOKUP(CONCATENATE(A48,B48),'[2]Raw Clinton'!C:F,3,FALSE),"N/A") -> 512899.548 | E48: 2.098630137 | F48: 2.600000054 | G48: 2.799999999 | H48: 3.820994671 | I48: 1.820708949 | J48: 42.8789042 | K48: 2.550774877 | L48: 1.215447559
A49: 1195 | B49: 2015-09-17 | C49: =IFERROR(VLOOKUP(CONCATENATE(A49,B49),'[2]Raw Clinton'!C:F,2,FALSE),"N/A") -> 7147112.112 | D49: =IFERROR(VLOOKUP(CONCATENATE(A49,B49),'[2]Raw Clinton'!C:F,3,FALSE),"N/A") -> 512899.527 | E49: 1.016438356 | F49: 2.599999961 | G49: -2.100000001 | H49: 3.342154963 | I49: 3.28810394 | J49: 128.927544 | K49: 2.636226904 | L49: 2.593592507
B50: Totals From August 2, 2003 to September 17, 2015 | F50: =IFERROR(IF($A49=$A40,(C49-C40)*100,""),"") -> 17.19999993 | G50: =IFERROR(IF($A49=$A40,(D49-D40)*100,""),"") -> -0.3000000026 | H50: 17.20261601 | I50: =IFERROR(SQRT(G50^2+H50^2)/F50,"") -> 1.000304172 | J50: =DEGREES(IF(G50=0,IF(F50>0,PI()/2,3*PI()/2),IF(G50>0,ATAN(F50/G50),PI()+ATAN(F50/G50)))) -> 90.99924368 | K50: =SUM(K41:K49) -> 17.20261601
A51: 1834 | B51: 2001-06-19 | C51: =IFERROR(VLOOKUP(CONCATENATE(A51,B51),'[2]Raw Clinton'!C:F,2,FALSE),"N/A") -> N/A | D51: =IFERROR(VLOOKUP(CONCATENATE(A51,B51),'[2]Raw Clinton'!C:F,3,FALSE),"N/A") -> N/A | E51: =IF(A51=A49,(B51-B49)/365,"") ->  | F51: =IFERROR(IF($A51=$A49,(C51-C49)*100,""),"") ->  | G51: =IFERROR(IF($A51=$A49,(D51-D49)*100,""),"") -> 
A52: 1834 | B52: 2003-08-20 | C52: =IFERROR(VLOOKUP(CONCATENATE(A52,B52),'[2]Raw Clinton'!C:F,2,FALSE),"N/A") -> 7146973.62 | D52: =IFERROR(VLOOKUP(CONCATENATE(A52,B52),'[2]Raw Clinton'!C:F,3,FALSE),"N/A") -> 512893.43 | E52: 2.169863014 | J52: =IFERROR(DEGREES(IF(G52=0,IF(F52>0,PI()/2,3*PI()/2),IF(G52>0,ATAN(F52/G52),PI()+ATAN(F52/G52)))),"") ->  | K52: =IFERROR((F52*SIN(RADIANS($J$62))+G52*COS(RADIANS($J$62))),"") ->  | L52: =IFERROR(K52/E52,"") -> 
A53: 1834 | B53: 2004-07-28 | C53: =IFERROR(VLOOKUP(CONCATENATE(A53,B53),'[2]Raw Clinton'!C:F,2,FALSE),"N/A") -> 7146973.64 | D53: =IFERROR(VLOOKUP(CONCATENATE(A53,B53),'[2]Raw Clinton'!C:F,3,FALSE),"N/A") -> 512893.38 | E53: 0.9397260274 | F53: =IFERROR(IF($A53=$A52,(C53-C52)*100,""),"") -> 1.999999955 | G53: -4.999999999 | H53: 5.385164789 | I53: 5.730568945 | J53: =IFERROR(DEGREES(IF(G53=0,IF(F53>0,PI()/2,3*PI()/2),IF(G53>0,ATAN(F53/G53),PI()+ATAN(F53/G53)))),"") -> 158.198591 | K53: =IFERROR((F53*SIN(RADIANS($J$62))+G53*COS(RADIANS($J$62))),"") -> 3.305639102 | L53: =IFERROR(K53/E53,"") -> 3.517662602
A54: 1834 | B54: 2006-07-28 | C54: =IFERROR(VLOOKUP(CONCATENATE(A54,B54),'[2]Raw Clinton'!C:F,2,FALSE),"N/A") -> 7146973.69 | D54: =IFERROR(VLOOKUP(CONCATENATE(A54,B54),'[2]Raw Clinton'!C:F,3,FALSE),"N/A") -> 512893.36 | E54: 2 | F54: 5.000000075 | G54: -2.000000002 | H54: 5.385164877 | I54: 2.692582439 | J54: 111.8014092 | K54: 5.358210502 | L54: 2.679105251
A55: 1834 | B55: 2008-07-09 | C55: =IFERROR(VLOOKUP(CONCATENATE(A55,B55),'[2]Raw Clinton'!C:F,2,FALSE),"N/A") -> 7146973.74 | D55: =IFERROR(VLOOKUP(CONCATENATE(A55,B55),'[2]Raw Clinton'!C:F,3,FALSE),"N/A") -> 512893.38 | E55: 1.950684932 | F55: 4.999999981 | G55: 2.000000002 | H55: 5.385164791 | I55: 2.760653299 | J55: 68.19859042 | K55: 4.251205674 | L55: 2.179339987
A56: 1834 | B56: 2010-07-20 | C56: =IFERROR(VLOOKUP(CONCATENATE(A56,B56),'[2]Raw Clinton'!C:F,2,FALSE),"N/A") -> 7146973.79 | D56: =IFERROR(VLOOKUP(CONCATENATE(A56,B56),'[2]Raw Clinton'!C:F,3,FALSE),"N/A") -> 512893.34 | E56: 2.030136986 | F56: 4.999999981 | G56: -3.999999998 | H56: 6.403124222 | I56: 3.154035548 | J56: 128.6598083 | K56: 5.911712779 | L56: 2.91197728
A57: 1834 | B57: 2010-09-25 | C57: =IFERROR(VLOOKUP(CONCATENATE(A57,B57),'[2]Raw Clinton'!C:F,2,FALSE),"N/A") -> 7146973.78 | D57: =IFERROR(VLOOKUP(CONCATENATE(A57,B57),'[2]Raw Clinton'!C:F,3,FALSE),"N/A") -> 512893.4 | E57: 0.1835616438 | F57: -0.9999999776 | G57: 6 | H57: 6.082762526 | I57: 33.13743764 | J57: -9.462322001 | K57: -2.621448696 | L57: -14.28102648
A58: 1834 | B58: 2011-08-11 | C58: =IFERROR(VLOOKUP(CONCATENATE(A58,B58),'[2]Raw Clinton'!C:F,2,FALSE),"N/A") -> 7146973.83 | D58: =IFERROR(VLOOKUP(CONCATENATE(A58,B58),'[2]Raw Clinton'!C:F,3,FALSE),"N/A") -> 512893.42 | E58: 0.8767123288 | F58: 4.999999981 | G58: 1.999999996 | H58: 5.385164788 | I58: 6.142453587 | J58: 68.19859048 | K58: 4.251205676 | L58: 4.849031474
A59: 1834 | B59: 2012-08-06 | C59: =IFERROR(VLOOKUP(CONCATENATE(A59,B59),'[2]Raw Clinton'!C:F,2,FALSE),"N/A") -> 7146973.82 | D59: =IFERROR(VLOOKUP(CONCATENATE(A59,B59),'[2]Raw Clinton'!C:F,3,FALSE),"N/A") -> 512893.36 | E59: 0.9890410959 | F59: -0.9999999776 | G59: -6 | H59: 6.082762526 | I59: 6.150161557 | J59: 189.462322 | K59: 0.6995655147 | L59: 0.7073169332
A60: 1834 | B60: 2014-09-11 | C60: =IFERROR(VLOOKUP(CONCATENATE(A60,B60),'[2]Raw Clinton'!C:F,2,FALSE),"N/A") -> 7146973.857 | D60: =IFERROR(VLOOKUP(CONCATENATE(A60,B60),'[2]Raw Clinton'!C:F,3,FALSE),"N/A") -> 512893.361 | E60: 2.098630137 | F60: 3.699999955 | G60: 0.09999999893 | H60: 3.701351059 | I60: 1.763698612 | J60: 88.4518423 | K60: 3.527808803 | L60: 1.6810055
A61: 1834 | B61: 2015-09-17 | C61: =IFERROR(VLOOKUP(CONCATENATE(A61,B61),'[2]Raw Clinton'!C:F,2,FALSE),"N/A") -> 7146973.87 | D61: =IFERROR(VLOOKUP(CONCATENATE(A61,B61),'[2]Raw Clinton'!C:F,3,FALSE),"N/A") -> 512893.358 | E61: 1.016438356 | F61: 1.300000027 | G61: -0.2999999968 | H61: 1.334166432 | I61: 1.312589616 | J61: 102.9946164 | K61: 1.332249476 | L61: 1.310703662
B62: Totals From August 2, 2003 to September 17, 2015 | F62: =IFERROR(IF($A61=$A52,(C61-C52)*100,""),"") -> 25 | G62: =IFERROR(IF($A61=$A52,(D61-D52)*100,""),"") -> -7.199999999 | H62: 26.01614883 | I62: =IFERROR(SQRT(G62^2+H62^2)/F62,"") -> 1.079762937 | J62: =DEGREES(IF(G62=0,IF(F62>0,PI()/2,3*PI()/2),IF(G62>0,ATAN(F62/G62),PI()+ATAN(F62/G62)))) -> 106.0664005 | K62: =SUM(K53:K61) -> 26.01614883
A63: BH-4 | B63: 2001-06-19 | C63: =IFERROR(VLOOKUP(CONCATENATE(A63,B63),'[2]Raw Clinton'!C:F,2,FALSE),"N/A") -> N/A | D63: =IFERROR(VLOOKUP(CONCATENATE(A63,B63),'[2]Raw Clinton'!C:F,3,FALSE),"N/A") -> N/A | E63: =IF(A63=A61,(B63-B61)/365,"") ->  | F63: =IFERROR(IF($A63=$A61,(C63-C61)*100,""),"") ->  | G63: =IFERROR(IF($A63=$A61,(D63-D61)*100,""),"") -> 
A64: BH-4 | B64: 2003-08-20 | C64: =IFERROR(VLOOKUP(CONCATENATE(A64,B64),'[2]Raw Clinton'!C:F,2,FALSE),"N/A") -> N/A | D64: =IFERROR(VLOOKUP(CONCATENATE(A64,B64),'[2]Raw Clinton'!C:F,3,FALSE),"N/A") -> N/A | E64: 2.169863014 | J64: =IFERROR(DEGREES(IF(G64=0,IF(F64>0,PI()/2,3*PI()/2),IF(G64>0,ATAN(F64/G64),PI()+ATAN(F64/G64)))),"") ->  | K64: =IFERROR((F64*SIN(RADIANS($J$74))+G64*COS(RADIANS($J$74))),"") ->  | L64: =IFERROR(K64/E64,"") -> 
A65: BH-4 | B65: 2004-07-28 | C65: =IFERROR(VLOOKUP(CONCATENATE(A65,B65),'[2]Raw Clinton'!C:F,2,FALSE),"N/A") -> N/A | D65: =IFERROR(VLOOKUP(CONCATENATE(A65,B65),'[2]Raw Clinton'!C:F,3,FALSE),"N/A") -> N/A | E65: 0.9397260274 | J65: =IFERROR(DEGREES(IF(G65=0,IF(F65>0,PI()/2,3*PI()/2),IF(G65>0,ATAN(F65/G65),PI()+ATAN(F65/G65)))),"") ->  | K65: =IFERROR((F65*SIN(RADIANS($J$74))+G65*COS(RADIANS($J$74))),"") ->  | L65: =IFERROR(K65/E65,"") -> 
A66: BH-4 | B66: 2006-07-28 | C66: =IFERROR(VLOOKUP(CONCATENATE(A66,B66),'[2]Raw Clinton'!C:F,2,FALSE),"N/A") -> N/A | D66: =IFERROR(VLOOKUP(CONCATENATE(A66,B66),'[2]Raw Clinton'!C:F,3,FALSE),"N/A") -> N/A | E66: 2
A67: BH-4 | B67: 2008-07-09 | C67: =IFERROR(VLOOKUP(CONCATENATE(A67,B67),'[2]Raw Clinton'!C:F,2,FALSE),"N/A") -> N/A | D67: =IFERROR(VLOOKUP(CONCATENATE(A67,B67),'[2]Raw Clinton'!C:F,3,FALSE),"N/A") -> N/A | E67: =IF(A67=A66,(B67-B66)/365,"") -> 1.950684932
A68: BH-4 | B68: 2010-07-20 | C68: =IFERROR(VLOOKUP(CONCATENATE(A68,B68),'[2]Raw Clinton'!C:F,2,FALSE),"N/A") -> N/A | D68: =IFERROR(VLOOKUP(CONCATENATE(A68,B68),'[2]Raw Clinton'!C:F,3,FALSE),"N/A") -> N/A | E68: 2.030136986
A69: BH-4 | B69: 2010-09-25 | C69: =IFERROR(VLOOKUP(CONCATENATE(A69,B69),'[2]Raw Clinton'!C:F,2,FALSE),"N/A") -> N/A | D69: =IFERROR(VLOOKUP(CONCATENATE(A69,B69),'[2]Raw Clinton'!C:F,3,FALSE),"N/A") -> N/A | E69: 0.1835616438 | F69: =IFERROR(IF($A69=$A68,(C69-C68)*100,""),"") -> 
A70: BH-4 | B70: 2011-08-11 | C70: =IFERROR(VLOOKUP(CONCATENATE(A70,B70),'[2]Raw Clinton'!C:F,2,FALSE),"N/A") -> N/A | D70: =IFERROR(VLOOKUP(CONCATENATE(A70,B70),'[2]Raw Clinton'!C:F,3,FALSE),"N/A") -> N/A | E70: 0.8767123288
A71: BH-4 | B71: 2012-08-06 | C71: =IFERROR(VLOOKUP(CONCATENATE(A71,B71),'[2]Raw Clinton'!C:F,2,FALSE),"N/A") -> 7146871.287 | D71: =IFERROR(VLOOKUP(CONCATENATE(A71,B71),'[2]Raw Clinton'!C:F,3,FALSE),"N/A") -> 513025.113 | E71: 0.9890410959
A72: BH-4 | B72: 2014-09-11 | C72: =IFERROR(VLOOKUP(CONCATENATE(A72,B72),'[2]Raw Clinton'!C:F,2,FALSE),"N/A") -> 7146871.269 | D72: =IFERROR(VLOOKUP(CONCATENATE(A72,B72),'[2]Raw Clinton'!C:F,3,FALSE),"N/A") -> 513025.138 | E72: 2.098630137 | F72: -1.799999923 | G72: 2.499999997 | H72: 3.080584312 | I72: 1.467902446 | J72: -35.75388612 | K72: 2.41754585 | L72: 1.151963753
A73: BH-4 | B73: 2015-09-17 | C73: =IFERROR(VLOOKUP(CONCATENATE(A73,B73),'[2]Raw Clinton'!C:F,2,FALSE),"N/A") -> 7146871.259 | D73: =IFERROR(VLOOKUP(CONCATENATE(A73,B73),'[2]Raw Clinton'!C:F,3,FALSE),"N/A") -> 513025.121 | E73: 1.016438356 | F73: -1.000000071 | G73: -1.699999999 | H73: 1.972308328 | I73: 1.940411158 | J73: 210.4655467 | K73: 0.494498099 | L73: 0.4865008252
B74: Totals From August 2, 2003 to September 17, 2015 | F74: =IFERROR(IF($A73=$A71,(C73-C71)*100,""),"") -> -2.799999993 | G74: =IFERROR(IF($A73=$A71,(D73-D71)*100,""),"") -> 0.7999999973 | H74: =IFERROR(SQRT(F74^2+G74^2),"") -> 2.912043949 | I74: =IFERROR(SQRT(G74^2+H74^2)/F74,"") -> -1.078547776 | J74: =DEGREES(IF(G74=0,IF(F74>0,PI()/2,3*PI()/2),IF(G74>0,ATAN(F74/G74),PI()+ATAN(F74/G74)))) -> -74.05460411 | K74: =SUM(K65:K73) -> 2.912043949
A75: 2836 | B75: 2001-06-19 | C75: =IFERROR(VLOOKUP(CONCATENATE(A75,B75),'[2]Raw Clinton'!C:F,2,FALSE),"N/A") -> N/A | D75: =IFERROR(VLOOKUP(CONCATENATE(A75,B75),'[2]Raw Clinton'!C:F,3,FALSE),"N/A") -> N/A | E75: =IF(A75=A73,(B75-B73)/365,"") ->  | F75: =IFERROR(IF($A75=$A73,(C75-C73)*100,""),"") ->  | G75: =IFERROR(IF($A75=$A73,(D75-D73)*100,""),"") ->  | I75: =IFERROR(SQRT(F75^2+G75^2)/E75,"") -> 
A76: 2836 | B76: 2003-08-20 | C76: =IFERROR(VLOOKUP(CONCATENATE(A76,B76),'[2]Raw Clinton'!C:F,2,FALSE),"N/A") -> N/A | D76: =IFERROR(VLOOKUP(CONCATENATE(A76,B76),'[2]Raw Clinton'!C:F,3,FALSE),"N/A") -> N/A | E76: 2.169863014 | F76: =IFERROR(IF($A76=$A75,(C76-C75)*100,""),"") ->  | J76: =IFERROR(DEGREES(IF(G76=0,IF(F76>0,PI()/2,3*PI()/2),IF(G76>0,ATAN(F76/G76),PI()+ATAN(F76/G76)))),"") ->  | K76: =IFERROR((F76*SIN(RADIANS($J$86))+G76*COS(RADIANS($J$86))),"") ->  | L76: =IFERROR(K76/E76,"") -> 
A77: 2836 | B77: 2004-07-28 | C77: =IFERROR(VLOOKUP(CONCATENATE(A77,B77),'[2]Raw Clinton'!C:F,2,FALSE),"N/A") -> N/A | D77: =IFERROR(VLOOKUP(CONCATENATE(A77,B77),'[2]Raw Clinton'!C:F,3,FALSE),"N/A") -> N/A | E77: 0.9397260274 | J77: =IFERROR(DEGREES(IF(G77=0,IF(F77>0,PI()/2,3*PI()/2),IF(G77>0,ATAN(F77/G77),PI()+ATAN(F77/G77)))),"") ->  | K77: =IFERROR((F77*SIN(RADIANS($J$86))+G77*COS(RADIANS($J$86))),"") ->  | L77: =IFERROR(K77/E77,"") -> 
A78: 2836 | B78: 2006-07-28 | C78: =IFERROR(VLOOKUP(CONCATENATE(A78,B78),'[2]Raw Clinton'!C:F,2,FALSE),"N/A") -> N/A | D78: =IFERROR(VLOOKUP(CONCATENATE(A78,B78),'[2]Raw Clinton'!C:F,3,FALSE),"N/A") -> N/A | E78: 2
A79: 2836 | B79: 2008-07-09 | C79: =IFERROR(VLOOKUP(CONCATENATE(A79,B79),'[2]Raw Clinton'!C:F,2,FALSE),"N/A") -> N/A | D79: =IFERROR(VLOOKUP(CONCATENATE(A79,B79),'[2]Raw Clinton'!C:F,3,FALSE),"N/A") -> N/A | E79: 1.950684932
A80: 2836 | B80: 2010-07-20 | C80: =IFERROR(VLOOKUP(CONCATENATE(A80,B80),'[2]Raw Clinton'!C:F,2,FALSE),"N/A") -> N/A | D80: =IFERROR(VLOOKUP(CONCATENATE(A80,B80),'[2]Raw Clinton'!C:F,3,FALSE),"N/A") -> N/A | E80: 2.030136986
A81: 2836 | B81: 2010-09-25 | C81: =IFERROR(VLOOKUP(CONCATENATE(A81,B81),'[2]Raw Clinton'!C:F,2,FALSE),"N/A") -> N/A | D81: =IFERROR(VLOOKUP(CONCATENATE(A81,B81),'[2]Raw Clinton'!C:F,3,FALSE),"N/A") -> N/A | E81: 0.1835616438
A82: 2836 | B82: 2011-08-11 | C82: =IFERROR(VLOOKUP(CONCATENATE(A82,B82),'[2]Raw Clinton'!C:F,2,FALSE),"N/A") -> N/A | D82: =IFERROR(VLOOKUP(CONCATENATE(A82,B82),'[2]Raw Clinton'!C:F,3,FALSE),"N/A") -> N/A | E82: 0.8767123288
A83: 2836 | B83: 2012-08-06 | C83: =IFERROR(VLOOKUP(CONCATENATE(A83,B83),'[2]Raw Clinton'!C:F,2,FALSE),"N/A") -> 7146814.712 | D83: =IFERROR(VLOOKUP(CONCATENATE(A83,B83),'[2]Raw Clinton'!C:F,3,FALSE),"N/A") -> 513092.919 | E83: 0.9890410959
A84: 2836 | B84: 2014-09-11 | C84: =IFERROR(VLOOKUP(CONCATENATE(A84,B84),'[2]Raw Clinton'!C:F,2,FALSE),"N/A") -> 7146814.744 | D84: =IFERROR(VLOOKUP(CONCATENATE(A84,B84),'[2]Raw Clinton'!C:F,3,FALSE),"N/A") -> 513093.054 | E84: 2.098630137 | F84: 3.199999966 | G84: 13.5 | H84: 13.87407654 | I84: 6.611015583 | J84: 13.3351062 | K84: 13.87185981 | L84: 6.609959309
A85: 2836 | B85: 2015-09-17 | C85: =IFERROR(VLOOKUP(CONCATENATE(A85,B85),'[2]Raw Clinton'!C:F,2,FALSE),"N/A") -> 7146814.776 | D85: =IFERROR(VLOOKUP(CONCATENATE(A85,B85),'[2]Raw Clinton'!C:F,3,FALSE),"N/A") -> 513093.169 | E85: 1.016438356 | F85: 3.199999966 | G85: 11.5 | H85: 11.93691751 | I85: 11.74386764 | J85: 15.54980401 | K85: 11.93434098 | L85: 11.74133277
B86: Totals From August 2, 2003 to September 17, 2015 | F86: =IFERROR(IF($A85=$A83,(C85-C83)*100,""),"") -> 6.399999931 | G86: =IFERROR(IF($A85=$A83,(D85-D83)*100,""),"") -> 25 | H86: 25.80620079 | I86: =IFERROR(SQRT(G86^2+H86^2)/F86,"") -> 5.614051904 | J86: =DEGREES(IF(G86=0,IF(F86>0,PI()/2,3*PI()/2),IF(G86>0,ATAN(F86/G86),PI()+ATAN(F86/G86)))) -> 14.3593364 | K86: =SUM(K77:K85) -> 25.80620079
A87: 186 | B87: 2001-06-19 | C87: =IFERROR(VLOOKUP(CONCATENATE(A87,B87),'[2]Raw Clinton'!C:F,2,FALSE),"N/A") -> N/A | D87: =IFERROR(VLOOKUP(CONCATENATE(A87,B87),'[2]Raw Clinton'!C:F,3,FALSE),"N/A") -> N/A | E87: =IF(A87=A85,(B87-B85)/365,"") ->  | F87: =IFERROR(IF($A87=$A85,(C87-C85)*100,""),"") ->  | G87: =IFERROR(IF($A87=$A85,(D87-D85)*100,""),"") -> 
A88: 186 | B88: 2003-08-20 | C88: =IFERROR(VLOOKUP(CONCATENATE(A88,B88),'[2]Raw Clinton'!C:F,2,FALSE),"N/A") -> N/A | D88: =IFERROR(VLOOKUP(CONCATENATE(A88,B88),'[2]Raw Clinton'!C:F,3,FALSE),"N/A") -> N/A | E88: 2.169863014 | J88: =IFERROR(DEGREES(IF(G88=0,IF(F88>0,PI()/2,3*PI()/2),IF(G88>0,ATAN(F88/G88),PI()+ATAN(F88/G88)))),"") ->  | K88: =IFERROR((F88*SIN(RADIANS($J$98))+G88*COS(RADIANS($J$98))),"") ->  | L88: =IFERROR(K88/E88,"") -> 
A89: 186 | B89: 2004-07-28 | C89: =IFERROR(VLOOKUP(CONCATENATE(A89,B89),'[2]Raw Clinton'!C:F,2,FALSE),"N/A") -> N/A | D89: =IFERROR(VLOOKUP(CONCATENATE(A89,B89),'[2]Raw Clinton'!C:F,3,FALSE),"N/A") -> N/A | E89: 0.9397260274 | J89: =IFERROR(DEGREES(IF(G89=0,IF(F89>0,PI()/2,3*PI()/2),IF(G89>0,ATAN(F89/G89),PI()+ATAN(F89/G89)))),"") ->  | K89: =IFERROR((F89*SIN(RADIANS($J$98))+G89*COS(RADIANS($J$98))),"") ->  | L89: =IFERROR(K89/E89,"") -> 
A90: 186 | B90: 2006-07-28 | C90: =IFERROR(VLOOKUP(CONCATENATE(A90,B90),'[2]Raw Clinton'!C:F,2,FALSE),"N/A") -> N/A | D90: =IFERROR(VLOOKUP(CONCATENATE(A90,B90),'[2]Raw Clinton'!C:F,3,FALSE),"N/A") -> N/A | E90: 2
A91: 186 | B91: 2008-07-09 | C91: =IFERROR(VLOOKUP(CONCATENATE(A91,B91),'[2]Raw Clinton'!C:F,2,FALSE),"N/A") -> N/A | D91: =IFERROR(VLOOKUP(CONCATENATE(A91,B91),'[2]Raw Clinton'!C:F,3,FALSE),"N/A") -> N/A | E91: 1.950684932
A92: 186 | B92: 2010-07-20 | C92: =IFERROR(VLOOKUP(CONCATENATE(A92,B92),'[2]Raw Clinton'!C:F,2,FALSE),"N/A") -> N/A | D92: =IFERROR(VLOOKUP(CONCATENATE(A92,B92),'[2]Raw Clinton'!C:F,3,FALSE),"N/A") -> N/A | E92: 2.030136986 | F92: =IFERROR(IF($A92=$A91,(C92-C91)*100,""),"") -> 
A93: 186 | B93: 2010-09-25 | C93: =IFERROR(VLOOKUP(CONCATENATE(A93,B93),'[2]Raw Clinton'!C:F,2,FALSE),"N/A") -> N/A | D93: =IFERROR(VLOOKUP(CONCATENATE(A93,B93),'[2]Raw Clinton'!C:F,3,FALSE),"N/A") -> N/A | E93: 0.1835616438
A94: 186 | B94: 2011-08-11 | C94: =IFERROR(VLOOKUP(CONCATENATE(A94,B94),'[2]Raw Clinton'!C:F,2,FALSE),"N/A") -> N/A | D94: =IFERROR(VLOOKUP(CONCATENATE(A94,B94),'[2]Raw Clinton'!C:F,3,FALSE),"N/A") -> N/A | E94: 0.8767123288
A95: 186 | B95: 2012-08-06 | C95: =IFERROR(VLOOKUP(CONCATENATE(A95,B95),'[2]Raw Clinton'!C:F,2,FALSE),"N/A") -> 7146818.487 | D95: =IFERROR(VLOOKUP(CONCATENATE(A95,B95),'[2]Raw Clinton'!C:F,3,FALSE),"N/A") -> 513088.619 | E95: 0.9890410959
A96: 186 | B96: 2014-09-11 | C96: =IFERROR(VLOOKUP(CONCATENATE(A96,B96),'[2]Raw Clinton'!C:F,2,FALSE),"N/A") -> 7146818.509 | D96: =IFERROR(VLOOKUP(CONCATENATE(A96,B96),'[2]Raw Clinton'!C:F,3,FALSE),"N/A") -> 513088.805 | E96: 2.098630137 | F96: 2.199999988 | G96: 18.6 | H96: 18.72965563 | I96: 8.924705357 | J96: 6.745579612 | K96: 18.71537178 | L96: 8.917899085
A97: 186 | B97: 2015-09-17 | C97: =IFERROR(VLOOKUP(CONCATENATE(A97,B97),'[2]Raw Clinton'!C:F,2,FALSE),"N/A") -> 7146818.506 | D97: =IFERROR(VLOOKUP(CONCATENATE(A97,B97),'[2]Raw Clinton'!C:F,3,FALSE),"N/A") -> 513088.86 | E97: 1.016438356 | F97: -0.299999956 | G97: 5.499999999 | H97: 5.508175738 | I97: 5.419094729 | J97: -3.122130006 | K97: 5.45940847 | L97: 5.37111615
B98: Totals From August 2, 2003 to September 17, 2015 | F98: =IFERROR(IF($A97=$A95,(C97-C95)*100,""),"") -> 1.900000032 | G98: =IFERROR(IF($A97=$A95,(D97-D95)*100,""),"") -> 24.1 | H98: 24.17478025 | I98: =IFERROR(SQRT(G98^2+H98^2)/F98,"") -> 17.96603413 | J98: =DEGREES(IF(G98=0,IF(F98>0,PI()/2,3*PI()/2),IF(G98>0,ATAN(F98/G98),PI()+ATAN(F98/G98)))) -> 4.507770869 | K98: =SUM(K89:K97) -> 24.17478025
A99: 300 | B99: 2001-06-19 | C99: =IFERROR(VLOOKUP(CONCATENATE(A99,B99),'[2]Raw Clinton'!C:F,2,FALSE),"N/A") -> N/A | D99: =IFERROR(VLOOKUP(CONCATENATE(A99,B99),'[2]Raw Clinton'!C:F,3,FALSE),"N/A") -> N/A | E99: =IF(A99=A97,(B99-B97)/365,"") ->  | F99: =IFERROR(IF($A99=$A97,(C99-C97)*100,""),"") ->  | G99: =IFERROR(IF($A99=$A97,(D99-D97)*100,""),"") -> 
A100: 300 | B100: 2003-08-20 | C100: =IFERROR(VLOOKUP(CONCATENATE(A100,B100),'[2]Raw Clinton'!C:F,2,FALSE),"N/A") -> N/A | D100: =IFERROR(VLOOKUP(CONCATENATE(A100,B100),'[2]Raw Clinton'!C:F,3,FALSE),"N/A") -> N/A | E100: 2.169863014 | J100: =IFERROR(DEGREES(IF(G100=0,IF(F100>0,PI()/2,3*PI()/2),IF(G100>0,ATAN(F100/G100),PI()+ATAN(F100/G100)))),"") ->  | K100: =IFERROR((F100*SIN(RADIANS($J$110))+G100*COS(RADIANS($J$110))),"") ->  | L100: =IFERROR(K100/E100,"") -> 
A101: 300 | B101: 2004-07-28 | C101: =IFERROR(VLOOKUP(CONCATENATE(A101,B101),'[2]Raw Clinton'!C:F,2,FALSE),"N/A") -> N/A | D101: =IFERROR(VLOOKUP(CONCATENATE(A101,B101),'[2]Raw Clinton'!C:F,3,FALSE),"N/A") -> N/A | E101: 0.9397260274 | J101: =IFERROR(DEGREES(IF(G101=0,IF(F101>0,PI()/2,3*PI()/2),IF(G101>0,ATAN(F101/G101),PI()+ATAN(F101/G101)))),"") ->  | K101: =IFERROR((F101*SIN(RADIANS($J$110))+G101*COS(RADIANS($J$110))),"") ->  | L101: =IFERROR(K101/E101,"") -> 
A102: 300 | B102: 2006-07-28 | C102: =IFERROR(VLOOKUP(CONCATENATE(A102,B102),'[2]Raw Clinton'!C:F,2,FALSE),"N/A") -> N/A | D102: =IFERROR(VLOOKUP(CONCATENATE(A102,B102),'[2]Raw Clinton'!C:F,3,FALSE),"N/A") -> N/A | E102: 2
A103: 300 | B103: 2008-07-09 | C103: =IFERROR(VLOOKUP(CONCATENATE(A103,B103),'[2]Raw Clinton'!C:F,2,FALSE),"N/A") -> N/A | D103: =IFERROR(VLOOKUP(CONCATENATE(A103,B103),'[2]Raw Clinton'!C:F,3,FALSE),"N/A") -> N/A | E103: 1.950684932
A104: 300 | B104: 2010-07-20 | C104: =IFERROR(VLOOKUP(CONCATENATE(A104,B104),'[2]Raw Clinton'!C:F,2,FALSE),"N/A") -> N/A | D104: =IFERROR(VLOOKUP(CONCATENATE(A104,B104),'[2]Raw Clinton'!C:F,3,FALSE),"N/A") -> N/A | E104: 2.030136986
A105: 300 | B105: 2010-09-25 | C105: =IFERROR(VLOOKUP(CONCATENATE(A105,B105),'[2]Raw Clinton'!C:F,2,FALSE),"N/A") -> N/A | D105: =IFERROR(VLOOKUP(CONCATENATE(A105,B105),'[2]Raw Clinton'!C:F,3,FALSE),"N/A") -> N/A | E105: 0.1835616438
A106: 300 | B106: 2011-08-11 | C106: =IFERROR(VLOOKUP(CONCATENATE(A106,B106),'[2]Raw Clinton'!C:F,2,FALSE),"N/A") -> N/A | D106: =IFERROR(VLOOKUP(CONCATENATE(A106,B106),'[2]Raw Clinton'!C:F,3,FALSE),"N/A") -> N/A | E106: 0.8767123288
A107: 300 | B107: 2012-08-06 | C107: =IFERROR(VLOOKUP(CONCATENATE(A107,B107),'[2]Raw Clinton'!C:F,2,FALSE),"N/A") -> 7146927.556 | D107: =IFERROR(VLOOKUP(CONCATENATE(A107,B107),'[2]Raw Clinton'!C:F,3,FALSE),"N/A") -> 513026.964 | E107: 0.9890410959
A108: 300 | B108: 2014-09-11 | C108: =IFERROR(VLOOKUP(CONCATENATE(A108,B108),'[2]Raw Clinton'!C:F,2,FALSE),"N/A") -> 7146927.574 | D108: =IFERROR(VLOOKUP(CONCATENATE(A108,B108),'[2]Raw Clinton'!C:F,3,FALSE),"N/A") -> 513026.976 | E108: 2.098630137 | F108: =IFERROR(IF($A108=$A107,(C108-C107)*100,""),"") -> 1.800000016 | G108: 1.200000005 | H108: 2.163330781 | I108: 1.030829941 | J108: 56.3099326 | K108: 1.686149559 | L108: 0.803452466
A109: 300 | B109: 2015-09-17 | C109: =IFERROR(VLOOKUP(CONCATENATE(A109,B109),'[2]Raw Clinton'!C:F,2,FALSE),"N/A") -> 7146927.612 | D109: =IFERROR(VLOOKUP(CONCATENATE(A109,B109),'[2]Raw Clinton'!C:F,3,FALSE),"N/A") -> 513026.959 | E109: 1.016438356 | F109: 3.799999971 | G109: -1.700000005 | H109: 4.162931635 | I109: 4.095606595 | J109: 114.1022347 | K109: 3.936127547 | L109: 3.872470497
B110: Totals From August 2, 2003 to September 17, 2015 | F110: =IFERROR(IF($A109=$A107,(C109-C107)*100,""),"") -> 5.599999987 | G110: =IFERROR(IF($A109=$A107,(D109-D107)*100,""),"") -> -0.5000000005 | H110: 5.622277105 | I110: =IFERROR(SQRT(G110^2+H110^2)/F110,"") -> 1.007940414 | J110: =DEGREES(IF(G110=0,IF(F110>0,PI()/2,3*PI()/2),IF(G110>0,ATAN(F110/G110),PI()+ATAN(F110/G110)))) -> 95.10216527 | K110: =SUM(K101:K109) -> 5.622277105
A111: BH-4 Cable | B111: 2001-06-19 | C111: =IFERROR(VLOOKUP(CONCATENATE(A111,B111),'[2]Raw Clinton'!C:F,2,FALSE),"N/A") -> N/A | D111: =IFERROR(VLOOKUP(CONCATENATE(A111,B111),'[2]Raw Clinton'!C:F,3,FALSE),"N/A") -> N/A | F111: =IFERROR(IF($A111=$A109,(C111-C109)*100,""),"") ->  | G111: =IFERROR(IF($A111=$A109,(D111-D109)*100,""),"") ->  | I111: =IFERROR(SQRT(F111^2+G111^2)/E111,"") -> 
A112: BH-4 Cable | B112: 2003-08-20 | C112: =IFERROR(VLOOKUP(CONCATENATE(A112,B112),'[2]Raw Clinton'!C:F,2,FALSE),"N/A") -> N/A | D112: =IFERROR(VLOOKUP(CONCATENATE(A112,B112),'[2]Raw Clinton'!C:F,3,FALSE),"N/A") -> N/A | E112: 2.169863014 | F112: =IFERROR(IF($A112=$A111,(C112-C111)*100,""),"") ->  | J112: =IFERROR(DEGREES(IF(G112=0,IF(F112>0,PI()/2,3*PI()/2),IF(G112>0,ATAN(F112/G112),PI()+ATAN(F112/G112)))),"") ->  | K112: =IFERROR((F112*SIN(RADIANS($J$122))+G112*COS(RADIANS($J$122))),"") ->  | L112: =IFERROR(K112/E112,"") -> 
A113: BH-4 Cable | B113: 2004-07-28 | C113: =IFERROR(VLOOKUP(CONCATENATE(A113,B113),'[2]Raw Clinton'!C:F,2,FALSE),"N/A") -> N/A | D113: =IFERROR(VLOOKUP(CONCATENATE(A113,B113),'[2]Raw Clinton'!C:F,3,FALSE),"N/A") -> N/A | E113: 0.9397260274 | J113: =IFERROR(DEGREES(IF(G113=0,IF(F113>0,PI()/2,3*PI()/2),IF(G113>0,ATAN(F113/G113),PI()+ATAN(F113/G113)))),"") ->  | K113: =IFERROR((F113*SIN(RADIANS($J$122))+G113*COS(RADIANS($J$122))),"") ->  | L113: =IFERROR(K113/E113,"") -> 
A114: BH-4 Cable | B114: 2006-07-28 | C114: =IFERROR(VLOOKUP(CONCATENATE(A114,B114),'[2]Raw Clinton'!C:F,2,FALSE),"N/A") -> N/A | D114: =IFERROR(VLOOKUP(CONCATENATE(A114,B114),'[2]Raw Clinton'!C:F,3,FALSE),"N/A") -> N/A | E114: 2
A115: BH-4 Cable | B115: 2008-07-09 | C115: =IFERROR(VLOOKUP(CONCATENATE(A115,B115),'[2]Raw Clinton'!C:F,2,FALSE),"N/A") -> N/A | D115: =IFERROR(VLOOKUP(CONCATENATE(A115,B115),'[2]Raw Clinton'!C:F,3,FALSE),"N/A") -> N/A | E115: 1.950684932
A116: BH-4 Cable | B116: 2010-07-20 | C116: =IFERROR(VLOOKUP(CONCATENATE(A116,B116),'[2]Raw Clinton'!C:F,2,FALSE),"N/A") -> N/A | D116: =IFERROR(VLOOKUP(CONCATENATE(A116,B116),'[2]Raw Clinton'!C:F,3,FALSE),"N/A") -> N/A | E116: 2.030136986
A117: BH-4 Cable | B117: 2010-09-25 | C117: =IFERROR(VLOOKUP(CONCATENATE(A117,B117),'[2]Raw Clinton'!C:F,2,FALSE),"N/A") -> N/A | D117: =IFERROR(VLOOKUP(CONCATENATE(A117,B117),'[2]Raw Clinton'!C:F,3,FALSE),"N/A") -> N/A | E117: 0.1835616438
A118: BH-4 Cable | B118: 2011-08-11 | C118: =IFERROR(VLOOKUP(CONCATENATE(A118,B118),'[2]Raw Clinton'!C:F,2,FALSE),"N/A") -> N/A | D118: =IFERROR(VLOOKUP(CONCATENATE(A118,B118),'[2]Raw Clinton'!C:F,3,FALSE),"N/A") -> N/A | E118: 0.8767123288
A119: BH-4 Cable | B119: 2012-08-06 | C119: =IFERROR(VLOOKUP(CONCATENATE(A119,B119),'[2]Raw Clinton'!C:F,2,FALSE),"N/A") -> 7146871.327 | D119: =IFERROR(VLOOKUP(CONCATENATE(A119,B119),'[2]Raw Clinton'!C:F,3,FALSE),"N/A") -> 513025.215 | E119: 0.9890410959
A120: BH-4 Cable | B120: 2014-09-11 | C120: =IFERROR(VLOOKUP(CONCATENATE(A120,B120),'[2]Raw Clinton'!C:F,2,FALSE),"N/A") -> 7146871.26 | D120: =IFERROR(VLOOKUP(CONCATENATE(A120,B120),'[2]Raw Clinton'!C:F,3,FALSE),"N/A") -> 513025.107 | E120: 2.098630137 | F120: -6.699999981 | G120: -10.8 | H120: 12.7094453 | I120: 6.056067276 | J120: 211.8142386 | K120: -5.851942856 | L120: -2.78845841
A121: BH-4 Cable | B121: 2015-09-17 | C121: =IFERROR(VLOOKUP(CONCATENATE(A121,B121),'[2]Raw Clinton'!C:F,2,FALSE),"N/A") -> 7146871.366 | D121: =IFERROR(VLOOKUP(CONCATENATE(A121,B121),'[2]Raw Clinton'!C:F,3,FALSE),"N/A") -> 513025.212 | E121: 1.016438356 | F121: 10.60000006 | G121: 10.5 | H121: 14.92012069 | I121: 14.67882493 | J121: 45.27154212 | K121: 9.763464379 | L121: 9.605564686
B122: Totals From August 2, 2003 to September 17, 2015 | F122: =IFERROR(IF($A121=$A119,(C121-C119)*100,""),"") -> 3.90000008 | G122: =IFERROR(IF($A121=$A119,(D121-D119)*100,""),"") -> -0.3000000026 | H122: 3.911521524 | I122: =IFERROR(SQRT(G122^2+H122^2)/F122,"") -> 1.005899756 | J122: =DEGREES(IF(G122=0,IF(F122>0,PI()/2,3*PI()/2),IF(G122>0,ATAN(F122/G122),PI()+ATAN(F122/G122)))) -> 94.3987053 | K122: =SUM(K113:K121) -> 3.911521524
J124: =90-J120+360 -> 238.1857614
J125: =90-J121 -> 44.72845788

Sheet Wolverine Movement Nov. 2
A2: Monitor | B2: Date | C2: Northing (m) | D2: Easting (m) | E2: dt (years) | F2: dN (cm) | G2: dE (cm) | H2: Movement (cm) | I2: Movement Rate (cm/yr) | J2: θ | K2: Projected Movement (cm) | L2: Projected Movement Rate (cm/yr) | N2: Movement Rates (cm)
A3: 80-1 | B3: 2003-08-21 | C3: =IFERROR(VLOOKUP(CONCATENATE(A3,B3),'[2]Raw Wolverine'!C:F,2,FALSE),"N/A") -> 7148407.98 | D3: =IFERROR(VLOOKUP(CONCATENATE(A3,B3),'[2]Raw Wolverine'!C:F,3,FALSE),"N/A") -> 513543.04 | E3: =IF(A3=A2,(B3-B2)/365,"") ->  | F3: =IFERROR(IF($A3=$A2,(C3-C2)*100,""),"") ->  | G3: =IFERROR(IF($A3=$A2,(D3-D2)*100,""),"") ->  | H3: =IFERROR(SQRT(F3^2+G3^2),"") ->  | I3: =IFERROR(SQRT(F3^2+G3^2)/E3,"") ->  | N3: Date | O3: Avg. Date | P3: dt | Q3: 80-1 | R3: 80-2 | S3: 26 | T3: 26-A | U3: BH-14 | V3: 1483 | W3: 1495 | X3: Mean | Y3: Std.Dev | Z3: 95%ile | AA3: 5%ile | AD3: mean | AE3: 90% C.I. | AF3: 90% C.I. | AH3: Lookup Tables
A4: 80-1 | B4: 2004-07-28 | C4: =IFERROR(VLOOKUP(CONCATENATE(A4,B4),'[2]Raw Wolverine'!C:F,2,FALSE),"N/A") -> 7148408.01 | D4: =IFERROR(VLOOKUP(CONCATENATE(A4,B4),'[2]Raw Wolverine'!C:F,3,FALSE),"N/A") -> 513543.07 | E4: 0.9369863014 | F4: =IFERROR(IF($A4=$A3,(C4-C3)*100,""),"") -> 2.999999933 | G4: =IFERROR(IF($A4=$A3,(D4-D3)*100,""),"") -> 3.000000003 | H4: =IFERROR(SQRT(F4^2+G4^2),"") -> 4.242640642 | I4: =IFERROR(SQRT(F4^2+G4^2)/E4,"") -> 4.527964428 | J4: =IFERROR(DEGREES(IF(G4=0,IF(F4>0,PI()/2,3*PI()/2),IF(G4>0,ATAN(F4/G4),PI()+ATAN(F4/G4)))),"") -> 44.99999933 | K4: =IFERROR((F4*SIN(RADIANS($J$15))+G4*COS(RADIANS($J$15))),"") -> 3.832855531 | L4: =IFERROR(K4/E4,"") -> 4.090620669 | N4: 2003-08-21 | AC4: =N4 -> 2003-08-21 | AD4: =X5 -> 4.071590154 | AE4: =Z5 -> 6.078286514 | AF4: =AA5 -> 2.064893794 | AH4: 80-1 | AI4: 0 | AK4: 2003-08-21 | AL4: 0
A5: 80-1 | B5: 2004-09-23 | C5: =IFERROR(VLOOKUP(CONCATENATE(A5,B5),'[2]Raw Wolverine'!C:F,2,FALSE),"N/A") -> 7148408.03 | D5: =IFERROR(VLOOKUP(CONCATENATE(A5,B5),'[2]Raw Wolverine'!C:F,3,FALSE),"N/A") -> 513543.06 | E5: 0.1561643836 | F5: =IFERROR(IF($A5=$A4,(C5-C4)*100,""),"") -> 2.000000048 | G5: -1.000000001 | H5: =IFERROR(SQRT(F5^2+G5^2),"") -> 2.236068021 | I5: =IFERROR(SQRT(F5^2+G5^2)/E5,"") -> 14.31868119 | J5: =IFERROR(DEGREES(IF(G5=0,IF(F5>0,PI()/2,3*PI()/2),IF(G5>0,ATAN(F5/G5),PI()+ATAN(F5/G5)))),"") -> 116.5650506 | K5: -0.270753578 | L5: =IFERROR(K5/E5,"") -> -1.733772912 | N5: 2004-07-28 | O5: =AVERAGE(N4:N5) -> 2004-02-08 | P5: =(N5-N4)/365 -> 0.9369863014 | Q5: =INDIRECT("L"&TEXT(3+VLOOKUP(Q$3,$AH$4:$AI$10,2,FALSE)*13+VLOOKUP($N5,$AK$4:$AL$15,2,FALSE)*1,0)) -> 4.090620669 | R5: =INDIRECT("L"&TEXT(3+VLOOKUP(R$3,$AH$4:$AI$10,2,FALSE)*13+VLOOKUP($N5,$AK$4:$AL$15,2,FALSE)*1,0)) -> 9.98069739 | S5: 3.403247047 | T5: 2.98881507 | U5: 0 | V5: 1.853267528 | W5: 6.184483375 | X5: =AVERAGE(Q5:W5) -> 4.071590154 | Y5: =_xlfn.STDEV.S(Q5:W5) -> 3.227489073 | Z5: =X5+1.645*Y5/SQRT(COUNT(Q5:W5)) -> 6.078286514 | AA5: =X5-1.645*Y5/SQRT(COUNT(Q5:W5)) -> 2.064893794 | AC5: =N5 -> 2004-07-28 | AD5: =X5 -> 4.071590154 | AE5: =Z5 -> 6.078286514 | AF5: =AA5 -> 2.064893794 | AH5: 80-2 | AI5: 1 | AK5: 2004-07-28 | AL5: 1
A6: 80-1 | B6: 2005-09-17 | C6: =IFERROR(VLOOKUP(CONCATENATE(A6,B6),'[2]Raw Wolverine'!C:F,2,FALSE),"N/A") -> 7148408.01 | D6: =IFERROR(VLOOKUP(CONCATENATE(A6,B6),'[2]Raw Wolverine'!C:F,3,FALSE),"N/A") -> 513543.12 | E6: 0.9835616438 | F6: -2.000000048 | G6: 6 | H6: 6.324555335 | I6: 6.43025821 | J6: -18.43494924 | K6: 4.980737956 | L6: 5.063981487 | N6: 2004-09-23 | O6: 2004-08-25T12:00:00 | P6: 0.1561643836 | Q6: =INDIRECT("L"&TEXT(3+VLOOKUP(Q$3,$AH$4:$AI$10,2,FALSE)*13+VLOOKUP($N6,$AK$4:$AL$15,2,FALSE)*1,0)) -> -1.733772912 | R6: -13.37803278 | S6: 3.054437716 | T6: -15.3545562 | U6: -23.00038161 | V6: -2.382772611 | W6: 1.473559319 | X6: -7.331645583 | Y6: 9.896675061 | Z6: =X6+1.645*Y6/SQRT(COUNT(Q6:W6)) -> -1.178372444 | AA6: =X6-1.645*Y6/SQRT(COUNT(Q6:W6)) -> -13.48491872 | AC6: =N5 -> 2004-07-28 | AD6: =X6 -> -7.331645583 | AE6: =Z6 -> -1.178372444 | AF6: =AA6 -> -13.48491872 | AH6: 26 | AI6: 2 | AK6: 2004-09-23 | AL6: 2
A7: 80-1 | B7: 2006-07-28 | C7: =IFERROR(VLOOKUP(CONCATENATE(A7,B7),'[2]Raw Wolverine'!C:F,2,FALSE),"N/A") -> 7148408.02 | D7: =IFERROR(VLOOKUP(CONCATENATE(A7,B7),'[2]Raw Wolverine'!C:F,3,FALSE),"N/A") -> 513543.14 | E7: 0.8602739726 | F7: 0.9999999776 | G7: 2.000000002 | H7: 2.236067969 | I7: 2.599250983 | J7: 26.56505064 | K7: 2.219615387 | L7: 2.580126166 | N7: 2005-09-17 | O7: 2005-03-21T12:00:00 | P7: 0.9835616438 | Q7: 5.063981487 | R7: 9.105468774 | S7: 0.817258246 | T7: 6.910466771 | U7: -4.965580594 | V7: 3.152693501 | W7: 4.041186697 | X7: 3.446496412 | Y7: 4.559883522 | Z7: 6.281611096 | AA7: 0.6113817274 | AC7: =N6 -> 2004-09-23 | AD7: =X6 -> -7.331645583 | AE7: =Z6 -> -1.178372444 | AF7: =AA6 -> -13.48491872 | AH7: 26-A | AI7: 3 | AK7: 2005-09-17 | AL7: 3
A8: 80-1 | B8: 2008-07-09 | C8: =IFERROR(VLOOKUP(CONCATENATE(A8,B8),'[2]Raw Wolverine'!C:F,2,FALSE),"N/A") -> 7148408.04 | D8: =IFERROR(VLOOKUP(CONCATENATE(A8,B8),'[2]Raw Wolverine'!C:F,3,FALSE),"N/A") -> 513543.21 | E8: 1.950684932 | F8: 2.000000048 | G8: 7.000000001 | H8: 7.280109903 | I8: 3.732078813 | J8: 15.94539627 | K8: 7.26522143 | L8: 3.724446379 | N8: 2006-07-28 | O8: 2006-02-21 | P8: 0.8602739726 | Q8: 2.580126166 | R8: 3.585206684 | S8: 2.685062671 | T8: -2.556764123 | U8: 11.43020473 | V8: 0.7209024775 | W8: 3.258553896 | X8: 3.100470358 | Y8: 4.237813928 | Z8: 5.735337771 | AA8: 0.4656029449 | AC8: =N6 -> 2004-09-23 | AD8: =X7 -> 3.446496412 | AE8: =Z7 -> 6.281611096 | AF8: =AA7 -> 0.6113817274 | AH8: BH-14 | AI8: 4 | AK8: 2006-07-28 | AL8: 4
A9: 80-1 | B9: 2010-07-20 | C9: =IFERROR(VLOOKUP(CONCATENATE(A9,B9),'[2]Raw Wolverine'!C:F,2,FALSE),"N/A") -> 7148408.03 | D9: =IFERROR(VLOOKUP(CONCATENATE(A9,B9),'[2]Raw Wolverine'!C:F,3,FALSE),"N/A") -> 513543.24 | E9: 2.030136986 | F9: -0.9999999776 | G9: 2.999999997 | H9: 3.16227765 | I9: 1.557667129 | J9: -18.43494846 | K9: 2.490368991 | L9: 1.226699975 | N9: 2008-07-09 | O9: 2007-07-19 | P9: 1.950684932 | Q9: 3.724446379 | R9: 4.540350402 | S9: 1.351688817 | T9: 2.664865782 | U9: 3.928762715 | V9: 1.716801008 | W9: 2.659631401 | X9: 2.940935215 | Y9: 1.178090029 | Z9: 3.673414526 | AA9: 2.208455904 | AC9: =N7 -> 2005-09-17 | AD9: =X7 -> 3.446496412 | AE9: =Z7 -> 6.281611096 | AF9: =AA7 -> 0.6113817274 | AH9: 1483 | AI9: 5 | AK9: 2008-07-09 | AL9: 5
A10: 80-1 | B10: 2010-09-25 | C10: =IFERROR(VLOOKUP(CONCATENATE(A10,B10),'[2]Raw Wolverine'!C:F,2,FALSE),"N/A") -> 7148408.04 | D10: =IFERROR(VLOOKUP(CONCATENATE(A10,B10),'[2]Raw Wolverine'!C:F,3,FALSE),"N/A") -> 513543.27 | E10: 0.1835616438 | F10: 0.9999999776 | G10: 3.000000003 | H10: 3.162277656 | I10: 17.2273335 | J10: 18.43494842 | K10: 3.161612264 | L10: 17.2237086 | N10: 2010-07-20 | O10: 2009-07-14T12:00:00 | P10: 2.030136986 | Q10: 1.226699975 | R10: 2.989711196 | S10: 0.1979728249 | T10: -0.4913931392 | U10: -7.517895665 | V10: -1.710708484 | W10: 1.772392884 | X10: -0.5047457726 | Y10: 3.452706753 | Z10: 1.641980031 | AA10: -2.651471576 | AC10: =N7 -> 2005-09-17 | AD10: =X8 -> 3.100470358 | AE10: =Z8 -> 5.735337771 | AF10: =AA8 -> 0.4656029449 | AH10: 1495 | AI10: 6 | AK10: 2010-07-20 | AL10: 6
A11: 80-1 | B11: 2011-08-11 | C11: =IFERROR(VLOOKUP(CONCATENATE(A11,B11),'[2]Raw Wolverine'!C:F,2,FALSE),"N/A") -> 7148408.05 | D11: =IFERROR(VLOOKUP(CONCATENATE(A11,B11),'[2]Raw Wolverine'!C:F,3,FALSE),"N/A") -> 513543.29 | E11: 0.8767123288 | F11: 0.9999999776 | G11: 1.999999996 | H11: 2.236067964 | I11: 2.550515021 | J11: 26.56505071 | K11: 2.219615382 | L11: 2.531748795 | N11: 2010-09-25 | O11: 2010-08-22T12:00:00 | P11: 0.1835616438 | Q11: 17.2237086 | R11: 15.72369095 | S11: 19.15228732 | T11: 9.788938541 | U11: 7.846369225 | V11: 16.89279027 | W11: 7.635715845 | X11: 13.46621439 | Y11: 4.871473792 | Z11: 16.49506081 | AA11: 10.43736797 | AC11: =N8 -> 2006-07-28 | AD11: =X8 -> 3.100470358 | AE11: =Z8 -> 5.735337771 | AF11: =AA8 -> 0.4656029449 | AK11: 2010-09-25 | AL11: 7
A12: 80-1 | B12: 2012-08-06 | C12: =IFERROR(VLOOKUP(CONCATENATE(A12,B12),'[2]Raw Wolverine'!C:F,2,FALSE),"N/A") -> 7148408.07 | D12: =IFERROR(VLOOKUP(CONCATENATE(A12,B12),'[2]Raw Wolverine'!C:F,3,FALSE),"N/A") -> 513543.32 | E12: 0.9890410959 | F12: 2.000000048 | G12: 3.000000003 | H12: 3.605551305 | I12: 3.645502012 | J12: 33.69006814 | K12: 3.497233929 | L12: 3.535984443 | N12: 2011-08-11 | O12: 2011-03-04 | P12: 0.8767123288 | Q12: 2.531748795 | R12: 5.788028012 | S12: 0.5440717182 | T12: 2.282619332 | U12: 0.4529623196 | V12: 0.4244313713 | W12: 1.121495794 | X12: 1.877908192 | Y12: 1.931091259 | Z12: 3.078567191 | AA12: 0.6772491924 | AC12: =N8 -> 2006-07-28 | AD12: =X9 -> 2.940935215 | AE12: =Z9 -> 3.673414526 | AF12: =AA9 -> 2.208455904 | AK12: 2011-08-11 | AL12: 8
A13: 80-1 | B13: 2014-09-13 | C13: =IFERROR(VLOOKUP(CONCATENATE(A13,B13),'[2]Raw Wolverine'!C:F,2,FALSE),"N/A") -> 7148408.059 | D13: =IFERROR(VLOOKUP(CONCATENATE(A13,B13),'[2]Raw Wolverine'!C:F,3,FALSE),"N/A") -> 513543.397 | E13: 2.104109589 | F13: -1.099999994 | G13: 7.699999999 | H13: 7.778174591 | I13: 3.696658497 | J13: -8.130102312 | K13: 6.884192139 | L13: 3.271784024 | N13: 2012-08-06 | O13: 2012-02-07T12:00:00 | P13: 0.9890410959 | Q13: 3.535984443 | R13: 4.930474672 | S13: 4.112773698 | T13: 1.616269074 | U13: 2.259287038 | V13: 2.758999754 | W13: 3.638069661 | X13: 3.264551191 | Y13: 1.132176866 | Z13: 3.968483922 | AA13: 2.560618461 | AC13: =N9 -> 2008-07-09 | AD13: =X9 -> 2.940935215 | AE13: =Z9 -> 3.673414526 | AF13: =AA9 -> 2.208455904 | AK13: 2012-08-06 | AL13: 9
A14: 80-1 | B14: 2015-09-17 | C14: =IFERROR(VLOOKUP(CONCATENATE(A14,B14),'[2]Raw Wolverine'!C:F,2,FALSE),"N/A") -> 7148408.099 | D14: =IFERROR(VLOOKUP(CONCATENATE(A14,B14),'[2]Raw Wolverine'!C:F,3,FALSE),"N/A") -> 513543.374 | E14: =IF(A14=A12,(B14-B12)/365,"") -> 3.115068493 | F14: 4.000000004 | G14: -2.299999999 | H14: 4.614108801 | I14: 1.481222262 | J14: 119.8989018 | K14: -0.824106247 | L14: -0.2645547759 | N14: 2014-09-13 | O14: 2013-08-25 | P14: 2.104109589 | Q14: 3.271784024 | R14: 6.635319647 | S14: 0.9966252086 | T14: 0.7100339617 | U14: 7.912756305 | V14: 0.3124286369 | W14: 3.067211392 | X14: 3.272308454 | Y14: 2.983022487 | Z14: 5.127007333 | AA14: 1.417609574 | AC14: =N9 -> 2008-07-09 | AD14: =X10 -> -0.5047457726 | AE14: =Z10 -> 1.641980031 | AF14: =AA10 -> -2.651471576 | AK14: 2014-09-13 | AL14: 10
B15: Totals From August 21, 2003 to September 17, 2015 | F15: =IFERROR(IF($A14=$A3,(C14-C3)*100,""),"") -> 11.89999999 | G15: =IFERROR(IF($A14=$A3,(D14-D3)*100,""),"") -> 33.4 | H15: 35.45659318 | I15: =IFERROR(SQRT(G15^2+H15^2)/F15,"") -> 4.093334157 | J15: =DEGREES(IF(G15=0,IF(F15>0,PI()/2,3*PI()/2),IF(G15>0,ATAN(F15/G15),PI()+ATAN(F15/G15)))) -> 19.61034405 | K15: =SUM(K4:K14) -> 35.45659318 | N15: 2015-09-17 | O15: 2015-03-16T12:00:00 | P15: 1.010958904 | Q15: =INDIRECT("L"&TEXT(3+VLOOKUP(Q$3,$AH$4:$AI$10,2,FALSE)*13+VLOOKUP($N15,$AK$4:$AL$15,2,FALSE)*1,0)) -> -0.2645547759 | R15: -0.7832114106 | S15: 2.637407259 | T15: 0.5427298217 | U15: 2.365671552 | V15: 1.864890814 | W15: -0.5587109423 | X15: 0.8291746169 | Y15: 1.443811264 | Z15: 1.72686652 | AA15: -0.06851728603 | AC15: =N10 -> 2010-07-20 | AD15: =X10 -> -0.5047457726 | AE15: =Z10 -> 1.641980031 | AF15: =AA10 -> -2.651471576 | AK15: 2015-09-17 | AL15: 11
A16: 80-2 | B16: 2003-08-21 | C16: =IFERROR(VLOOKUP(CONCATENATE(A16,B16),'[2]Raw Wolverine'!C:F,2,FALSE),"N/A") -> 7148290.05 | D16: =IFERROR(VLOOKUP(CONCATENATE(A16,B16),'[2]Raw Wolverine'!C:F,3,FALSE),"N/A") -> 513549.41 | E16: =IF(A16=A14,(B16-B14)/365,"") ->  | F16: =IFERROR(IF($A16=$A14,(C16-C14)*100,""),"") ->  | G16: =IFERROR(IF($A16=$A14,(D16-D14)*100,""),"") ->  | L16: =IFERROR(K16/E16,"") ->  | P16: Total Movement | Q16: =SUMPRODUCT($P$5:$P$15,Q5:Q15) -> 36.01324542 | R16: =SUMPRODUCT($P$5:$P$15,R5:R15) -> 60.23576001 | S16: 22.64177555 | T16: 16.64001205 | U16: 16.87157373 | V16: 13.70583817 | W16: 33.46117151 | X16: =SUMPRODUCT($P$5:$P$13,X5:X13) -> 20.78635386 | AC16: =N10 -> 2010-07-20 | AD16: =X11 -> 13.46621439 | AE16: =Z11 -> 16.49506081 | AF16: =AA11 -> 10.43736797
A17: 80-2 | B17: 2004-07-28 | C17: =IFERROR(VLOOKUP(CONCATENATE(A17,B17),'[2]Raw Wolverine'!C:F,2,FALSE),"N/A") -> 7148290.09 | D17: =IFERROR(VLOOKUP(CONCATENATE(A17,B17),'[2]Raw Wolverine'!C:F,3,FALSE),"N/A") -> 513549.5 | E17: 0.9369863014 | F17: 4.000000004 | G17: 9.000000003 | H17: 9.848857806 | I17: 10.51120789 | J17: =IFERROR(DEGREES(IF(G17=0,IF(F17>0,PI()/2,3*PI()/2),IF(G17>0,ATAN(F17/G17),PI()+ATAN(F17/G17)))),"") -> 23.96248899 | K17: =IFERROR((F17*SIN(RADIANS($J$28))+G17*COS(RADIANS($J$28))),"") -> 9.351776733 | L17: 9.98069739 | P17: Average Movement | Q17: =Q16/SUM($P5:$P15) -> 2.980688113 | R17: =R16/SUM($P5:$P15) -> 4.985499411 | S17: 1.873979155 | T17: 1.377234557 | U17: 1.396400093 | V17: 1.134383431 | W17: 2.769462041 | AC17: =N11 -> 2010-09-25 | AD17: =X11 -> 13.46621439 | AE17: =Z11 -> 16.49506081 | AF17: =AA11 -> 10.43736797
A18: 80-2 | B18: 2004-09-23 | C18: =IFERROR(VLOOKUP(CONCATENATE(A18,B18),'[2]Raw Wolverine'!C:F,2,FALSE),"N/A") -> 7148290.08 | D18: =IFERROR(VLOOKUP(CONCATENATE(A18,B18),'[2]Raw Wolverine'!C:F,3,FALSE),"N/A") -> 513549.48 | E18: 0.1561643836 | F18: -0.9999999776 | G18: -2.000000002 | H18: 2.236067969 | I18: 14.31868086 | J18: =IFERROR(DEGREES(IF(G18=0,IF(F18>0,PI()/2,3*PI()/2),IF(G18>0,ATAN(F18/G18),PI()+ATAN(F18/G18)))),"") -> 206.5650506 | K18: -2.089172242 | L18: -13.37803278 | P18: Direction of Movement | Q18: =J15 -> 19.61034405 | R18: =J28 -> 5.681400336 | S18: =J41 -> 28.48928443 | T18: =J54 -> 36.93876289 | U18: =J67 -> 61.30823134 | V18: =J80 -> 29.74488128 | W18: =J93 -> 37.34934901 | AC18: =N11 -> 2010-09-25 | AD18: =X12 -> 1.877908192 | AE18: =Z12 -> 3.078567191 | AF18: =AA12 -> 0.6772491924
A19: 80-2 | B19: 2005-09-17 | C19: =IFERROR(VLOOKUP(CONCATENATE(A19,B19),'[2]Raw Wolverine'!C:F,2,FALSE),"N/A") -> 7148290.08 | D19: =IFERROR(VLOOKUP(CONCATENATE(A19,B19),'[2]Raw Wolverine'!C:F,3,FALSE),"N/A") -> 513549.57 | E19: 0.9835616438 | F19: 0 | G19: 9.000000003 | H19: 9.000000003 | I19: 9.15041783 | J19: 0 | K19: 8.955789836 | L19: 9.105468774 | AC19: =N12 -> 2011-08-11 | AD19: =X12 -> 1.877908192 | AE19: =Z12 -> 3.078567191 | AF19: =AA12 -> 0.6772491924
A20: 80-2 | B20: 2006-07-28 | C20: =IFERROR(VLOOKUP(CONCATENATE(A20,B20),'[2]Raw Wolverine'!C:F,2,FALSE),"N/A") -> 7148290.09 | D20: =IFERROR(VLOOKUP(CONCATENATE(A20,B20),'[2]Raw Wolverine'!C:F,3,FALSE),"N/A") -> 513549.6 | E20: 0.8602739726 | F20: 0.9999999776 | G20: 2.999999997 | H20: 3.16227765 | I20: 3.675895995 | J20: 18.43494846 | K20: 3.084259997 | L20: 3.585206684 | X20: =SUMPRODUCT(X5:X10,P5:P10)/SUM(P5:P10) -> 1.942712552 | AC20: =N12 -> 2011-08-11 | AD20: =X13 -> 3.264551191 | AE20: =Z13 -> 3.968483922 | AF20: =AA13 -> 2.560618461
A21: 80-2 | B21: 2008-07-09 | C21: =IFERROR(VLOOKUP(CONCATENATE(A21,B21),'[2]Raw Wolverine'!C:F,2,FALSE),"N/A") -> 7148290.08 | D21: =IFERROR(VLOOKUP(CONCATENATE(A21,B21),'[2]Raw Wolverine'!C:F,3,FALSE),"N/A") -> 513549.69 | E21: 1.950684932 | F21: =IFERROR(IF($A21=$A20,(C21-C20)*100,""),"") -> -0.9999999776 | G21: 9.000000003 | H21: 9.055385138 | I21: 4.642156707 | J21: -6.340191604 | K21: 8.856793114 | L21: 4.540350402 | X21: =SUMPRODUCT(X11:X13,P11:P13)/SUM(P11:P13) -> 3.585120275 | AC21: =N13 -> 2012-08-06 | AD21: =X13 -> 3.264551191 | AE21: =Z13 -> 3.968483922 | AF21: =AA13 -> 2.560618461
A22: 80-2 | B22: 2010-07-20 | C22: =IFERROR(VLOOKUP(CONCATENATE(A22,B22),'[2]Raw Wolverine'!C:F,2,FALSE),"N/A") -> 7148290.09 | D22: =IFERROR(VLOOKUP(CONCATENATE(A22,B22),'[2]Raw Wolverine'!C:F,3,FALSE),"N/A") -> 513549.75 | E22: 2.030136986 | F22: 0.9999999776 | G22: 6 | H22: 6.082762526 | I22: 2.996232553 | J22: 9.462322001 | K22: 6.069523277 | L22: 2.989711196 | X22: =SUMPRODUCT(X14,P14)/SUM(P14) -> 3.272308454 | AC22: =N13 -> 2012-08-06 | AD22: =X14 -> 3.272308454 | AE22: =Z14 -> 5.127007333 | AF22: =AA14 -> 1.417609574
A23: 80-2 | B23: 2010-09-25 | C23: =IFERROR(VLOOKUP(CONCATENATE(A23,B23),'[2]Raw Wolverine'!C:F,2,FALSE),"N/A") -> 7148290.08 | D23: =IFERROR(VLOOKUP(CONCATENATE(A23,B23),'[2]Raw Wolverine'!C:F,3,FALSE),"N/A") -> 513549.78 | E23: 0.1835616438 | F23: -0.9999999776 | G23: 3.000000003 | H23: 3.162277656 | I23: 17.2273335 | J23: -18.43494842 | K23: 2.886266558 | L23: 15.72369095 | X23: =SUMPRODUCT(X15,P15)/SUM(P15) -> 0.8291746169 | AC23: =N14 -> 2014-09-13 | AD23: =X14 -> 3.272308454 | AE23: =Z14 -> 5.127007333 | AF23: =AA14 -> 1.417609574
A24: 80-2 | B24: 2011-08-11 | C24: =IFERROR(VLOOKUP(CONCATENATE(A24,B24),'[2]Raw Wolverine'!C:F,2,FALSE),"N/A") -> 7148290.09 | D24: =IFERROR(VLOOKUP(CONCATENATE(A24,B24),'[2]Raw Wolverine'!C:F,3,FALSE),"N/A") -> 513549.83 | E24: 0.8767123288 | F24: 0.9999999776 | G24: 4.999999999 | H24: 5.099019508 | I24: 5.816069126 | J24: 11.30993223 | K24: 5.074435517 | L24: 5.788028012 | AC24: =N14 -> 2014-09-13 | AD24: =X15 -> 0.8291746169 | AE24: =Z15 -> 1.72686652 | AF24: =AA15 -> -0.06851728603
A25: 80-2 | B25: 2012-08-06 | C25: =IFERROR(VLOOKUP(CONCATENATE(A25,B25),'[2]Raw Wolverine'!C:F,2,FALSE),"N/A") -> 7148290.08 | D25: =IFERROR(VLOOKUP(CONCATENATE(A25,B25),'[2]Raw Wolverine'!C:F,3,FALSE),"N/A") -> 513549.88 | E25: 0.9890410959 | F25: -0.9999999776 | G25: 4.999999999 | H25: 5.099019508 | I25: 5.155518339 | J25: -11.30993223 | K25: 4.876442073 | L25: 4.930474672 | AC25: =N15 -> 2015-09-17 | AD25: =X15 -> 0.8291746169 | AE25: =Z15 -> 1.72686652 | AF25: =AA15 -> -0.06851728603
A26: 80-2 | B26: 2014-09-13 | C26: =IFERROR(VLOOKUP(CONCATENATE(A26,B26),'[2]Raw Wolverine'!C:F,2,FALSE),"N/A") -> 7148290.073 | D26: =IFERROR(VLOOKUP(CONCATENATE(A26,B26),'[2]Raw Wolverine'!C:F,3,FALSE),"N/A") -> 513550.021 | E26: 2.104109589 | F26: -0.7000000216 | G26: 14.1 | H26: 14.11736519 | I26: 6.709424865 | J26: -2.842137971 | K26: 13.9614397 | L26: 6.635319647
A27: 80-2 | B27: 2015-09-17 | C27: =IFERROR(VLOOKUP(CONCATENATE(A27,B27),'[2]Raw Wolverine'!C:F,2,FALSE),"N/A") -> 7148290.108 | D27: =IFERROR(VLOOKUP(CONCATENATE(A27,B27),'[2]Raw Wolverine'!C:F,3,FALSE),"N/A") -> 513549.993 | E27: =IF(A27=A25,(B27-B25)/365,"") -> 3.115068493 | F27: 3.500000015 | G27: -2.799999999 | H27: 4.482186977 | I27: 1.438872688 | J27: 128.6598081 | K27: -2.439757189 | L27: -0.7832114106
B28: Totals From August 21, 2003 to September 17, 2015 | F28: =IFERROR(IF($A27=$A16,(C27-C16)*100,""),"") -> 5.800000019 | G28: =IFERROR(IF($A27=$A16,(D27-D16)*100,""),"") -> 58.3 | H28: 58.58779737 | I28: =IFERROR(SQRT(G28^2+H28^2)/F28,"") -> 14.25041455 | J28: =DEGREES(IF(G28=0,IF(F28>0,PI()/2,3*PI()/2),IF(G28>0,ATAN(F28/G28),PI()+ATAN(F28/G28)))) -> 5.681400336 | K28: =SUM(K17:K27) -> 58.58779737 | AF28: 80-1 | AG28: 80-2 | AH28: 26 | AI28: 26-A | AJ28: BH-14 | AK28: 1483 | AL28: 1495
A29: 26 | B29: 2003-08-21 | C29: =IFERROR(VLOOKUP(CONCATENATE(A29,B29),'[2]Raw Wolverine'!C:F,2,FALSE),"N/A") -> 7148341.45 | D29: =IFERROR(VLOOKUP(CONCATENATE(A29,B29),'[2]Raw Wolverine'!C:F,3,FALSE),"N/A") -> 513483.53 | E29: =IF(A29=A27,(B29-B27)/365,"") ->  | F29: =IFERROR(IF($A29=$A27,(C29-C27)*100,""),"") ->  | G29: =IFERROR(IF($A29=$A27,(D29-D27)*100,""),"") ->  | Z29: Movement(cm) | AA29: Movement Rate (cm/y) | AB29: Azimuth (CW from N) | AF29: 36.01324542 | AG29: 60.23576001 | AH29: 22.64177555 | AI29: 16.64001205 | AJ29: 16.87157373 | AK29: 13.70583817 | AL29: 33.46117151
A30: 26 | B30: 2004-07-28 | C30: =IFERROR(VLOOKUP(CONCATENATE(A30,B30),'[2]Raw Wolverine'!C:F,2,FALSE),"N/A") -> 7148341.48 | D30: =IFERROR(VLOOKUP(CONCATENATE(A30,B30),'[2]Raw Wolverine'!C:F,3,FALSE),"N/A") -> 513483.55 | E30: 0.9369863014 | F30: 3.000000026 | G30: 1.999999996 | H30: 3.605551295 | I30: 3.848029891 | J30: =IFERROR(DEGREES(IF(G30=0,IF(F30>0,PI()/2,3*PI()/2),IF(G30>0,ATAN(F30/G30),PI()+ATAN(F30/G30)))),"") -> 56.30993276 | K30: =IFERROR((F30*SIN(RADIANS($J$41))+G30*COS(RADIANS($J$41))),"") -> 3.188795863 | L30: 3.403247047 | Y30: 80-1 | Z30: 36.01324542 | AA30: 2.980688113 | AB30: =IF(90-AI33<0,90-AI33+360,90-AI33) -> 70.38965595 | AF30: 2.980688113 | AG30: 4.985499411 | AH30: 1.873979155 | AI30: 1.377234557 | AJ30: 1.396400093 | AK30: 1.134383431 | AL30: 2.769462041
A31: 26 | B31: 2004-09-23 | C31: =IFERROR(VLOOKUP(CONCATENATE(A31,B31),'[2]Raw Wolverine'!C:F,2,FALSE),"N/A") -> 7148341.49 | D31: =IFERROR(VLOOKUP(CONCATENATE(A31,B31),'[2]Raw Wolverine'!C:F,3,FALSE),"N/A") -> 513483.55 | E31: 0.1561643836 | F31: 0.9999999776 | G31: 0 | H31: 0.9999999776 | I31: 6.403508629 | J31: =IFERROR(DEGREES(IF(G31=0,IF(F31>0,PI()/2,3*PI()/2),IF(G31>0,ATAN(F31/G31),PI()+ATAN(F31/G31)))),"") -> 90 | K31: 0.4769943831 | L31: 3.054437716 | Y31: 80-2 | Z31: 60.23576001 | AA31: 4.985499411 | AB31: =IF(90-AI34<0,90-AI34+360,90-AI34) -> 84.31859966 | AF31: 19.61034405 | AG31: 5.681400336 | AH31: 28.48928443 | AI31: 36.93876289 | AJ31: 61.30823134 | AK31: 29.74488128 | AL31: 37.34934901
A32: 26 | B32: 2005-09-17 | C32: =IFERROR(VLOOKUP(CONCATENATE(A32,B32),'[2]Raw Wolverine'!C:F,2,FALSE),"N/A") -> 7148341.47 | D32: =IFERROR(VLOOKUP(CONCATENATE(A32,B32),'[2]Raw Wolverine'!C:F,3,FALSE),"N/A") -> 513483.57 | E32: 0.9835616438 | F32: -2.000000048 | G32: 2.000000002 | H32: 2.82842716 | I32: 2.875698923 | J32: -45.00000067 | K32: 0.8038238639 | L32: 0.817258246 | Y32: 26 | Z32: 22.64177555 | AA32: 1.873979155 | AB32: 61.51071557
A33: 26 | B33: 2006-07-28 | C33: =IFERROR(VLOOKUP(CONCATENATE(A33,B33),'[2]Raw Wolverine'!C:F,2,FALSE),"N/A") -> 7148341.5 | D33: =IFERROR(VLOOKUP(CONCATENATE(A33,B33),'[2]Raw Wolverine'!C:F,3,FALSE),"N/A") -> 513483.58 | E33: 0.8602739726 | F33: 3.000000026 | G33: 1.000000001 | H33: 3.162277685 | I33: 3.675896035 | J33: 71.56505131 | K33: 2.309889531 | L33: 2.685062671 | Y33: 26-A | Z33: 16.64001205 | AA33: 1.377234557 | AB33: 53.06123711 | AF33: 80-1 | AG33: 36.01324542 | AH33: 2.980688113 | AI33: 19.61034405
A34: 26 | B34: 2008-07-09 | C34: =IFERROR(VLOOKUP(CONCATENATE(A34,B34),'[2]Raw Wolverine'!C:F,2,FALSE),"N/A") -> 7148341.5 | D34: =IFERROR(VLOOKUP(CONCATENATE(A34,B34),'[2]Raw Wolverine'!C:F,3,FALSE),"N/A") -> 513483.61 | E34: 1.950684932 | F34: 0 | G34: 2.999999997 | H34: 2.999999997 | I34: 1.537921347 | J34: 0 | K34: 2.636719007 | L34: 1.351688817 | Y34: BH-14 | Z34: 16.87157373 | AA34: 1.396400093 | AB34: 28.69176866 | AF34: 80-2 | AG34: 60.23576001 | AH34: 4.985499411 | AI34: 5.681400336
A35: 26 | B35: 2010-07-20 | C35: =IFERROR(VLOOKUP(CONCATENATE(A35,B35),'[2]Raw Wolverine'!C:F,2,FALSE),"N/A") -> 7148341.49 | D35: =IFERROR(VLOOKUP(CONCATENATE(A35,B35),'[2]Raw Wolverine'!C:F,3,FALSE),"N/A") -> 513483.62 | E35: 2.030136986 | F35: -0.9999999776 | G35: 1.000000001 | H35: 1.414213547 | I35: 0.6966099119 | J35: -44.99999933 | K35: 0.4019119542 | L35: 0.1979728249 | Y35: 1483 | Z35: 13.70583817 | AA35: 1.134383431 | AB35: 60.25511872 | AF35: 26 | AG35: 22.64177555 | AH35: 1.873979155 | AI35: 28.48928443
A36: 26 | B36: 2010-09-25 | C36: =IFERROR(VLOOKUP(CONCATENATE(A36,B36),'[2]Raw Wolverine'!C:F,2,FALSE),"N/A") -> 7148341.49 | D36: =IFERROR(VLOOKUP(CONCATENATE(A36,B36),'[2]Raw Wolverine'!C:F,3,FALSE),"N/A") -> 513483.66 | E36: 0.1835616438 | F36: 0 | G36: 3.999999998 | H36: 3.999999998 | I36: 21.79104476 | J36: 0 | K36: 3.515625344 | L36: 19.15228732 | Y36: 1495 | Z36: 33.46117151 | AA36: 2.769462041 | AB36: 52.65065099 | AF36: 26-A | AG36: 16.64001205 | AH36: 1.377234557 | AI36: 36.93876289
A37: 26 | B37: 2011-08-11 | C37: =IFERROR(VLOOKUP(CONCATENATE(A37,B37),'[2]Raw Wolverine'!C:F,2,FALSE),"N/A") -> 7148341.5 | D37: =IFERROR(VLOOKUP(CONCATENATE(A37,B37),'[2]Raw Wolverine'!C:F,3,FALSE),"N/A") -> 513483.66 | E37: 0.8767123288 | F37: =IFERROR(IF($A37=$A36,(C37-C36)*100,""),"") -> 0.9999999776 | G37: 0 | H37: 0.9999999776 | I37: 1.140624975 | J37: 90 | K37: 0.4769943831 | L37: 0.5440717182 | AF37: BH-14 | AG37: 16.87157373 | AH37: 1.396400093 | AI37: 61.30823134
A38: 26 | B38: 2012-08-06 | C38: =IFERROR(VLOOKUP(CONCATENATE(A38,B38),'[2]Raw Wolverine'!C:F,2,FALSE),"N/A") -> 7148341.53 | D38: =IFERROR(VLOOKUP(CONCATENATE(A38,B38),'[2]Raw Wolverine'!C:F,3,FALSE),"N/A") -> 513483.69 | E38: 0.9890410959 | F38: 3.000000026 | G38: 3.000000003 | H38: 4.242640708 | I38: 4.289650577 | J38: 45.00000022 | K38: 4.067702206 | L38: 4.112773698 | AF38: 1483 | AG38: 13.70583817 | AH38: 1.134383431 | AI38: 29.74488128
A39: 26 | B39: 2014-09-13 | C39: =IFERROR(VLOOKUP(CONCATENATE(A39,B39),'[2]Raw Wolverine'!C:F,2,FALSE),"N/A") -> 7148341.515 | D39: =IFERROR(VLOOKUP(CONCATENATE(A39,B39),'[2]Raw Wolverine'!C:F,3,FALSE),"N/A") -> 513483.722 | E39: 2.104109589 | F39: -1.50000006 | G39: 3.200000001 | H39: 3.534119435 | I39: 1.679627075 | J39: -25.11483576 | K39: 2.097008658 | L39: 0.9966252086 | AF39: 1495 | AG39: 33.46117151 | AH39: 2.769462041 | AI39: 37.34934901
A40: 26 | B40: 2015-09-17 | C40: =IFERROR(VLOOKUP(CONCATENATE(A40,B40),'[2]Raw Wolverine'!C:F,2,FALSE),"N/A") -> 7148341.558 | D40: =IFERROR(VLOOKUP(CONCATENATE(A40,B40),'[2]Raw Wolverine'!C:F,3,FALSE),"N/A") -> 513483.729 | E40: 1.010958904 | F40: 4.300000053 | G40: 0.6999999983 | H40: 4.356604234 | I40: 4.309378172 | J40: 80.75388739 | K40: 2.666310353 | L40: 2.637407259
B41: Totals From August 21, 2003 to September 17, 2015 | F41: =IFERROR(IF($A40=$A29,(C40-C29)*100,""),"") -> 10.8 | G41: =IFERROR(IF($A40=$A29,(D40-D29)*100,""),"") -> 19.9 | H41: 22.64177555 | I41: =IFERROR(SQRT(G41^2+H41^2)/F41,"") -> 2.79110998 | J41: =DEGREES(IF(G41=0,IF(F41>0,PI()/2,3*PI()/2),IF(G41>0,ATAN(F41/G41),PI()+ATAN(F41/G41)))) -> 28.48928443 | K41: =SUM(K30:K40) -> 22.64177555
A42: 26-A | B42: 2003-08-21 | C42: =IFERROR(VLOOKUP(CONCATENATE(A42,B42),'[2]Raw Wolverine'!C:F,2,FALSE),"N/A") -> 7148339.3 | D42: =IFERROR(VLOOKUP(CONCATENATE(A42,B42),'[2]Raw Wolverine'!C:F,3,FALSE),"N/A") -> 513540.5 | E42: =IF(A42=A40,(B42-B40)/365,"") ->  | F42: =IFERROR(IF($A42=$A40,(C42-C40)*100,""),"") ->  | G42: =IFERROR(IF($A42=$A40,(D42-D40)*100,""),"") ->  | Y42: =0.8/3.3 -> 0.2424242424 | Z42: =1-Y42 -> 0.7575757576
A43: 26-A | B43: 2004-07-28 | C43: =IFERROR(VLOOKUP(CONCATENATE(A43,B43),'[2]Raw Wolverine'!C:F,2,FALSE),"N/A") -> 7148339.32 | D43: =IFERROR(VLOOKUP(CONCATENATE(A43,B43),'[2]Raw Wolverine'!C:F,3,FALSE),"N/A") -> 513540.52 | E43: 0.9369863014 | F43: =IFERROR(IF($A43=$A42,(C43-C42)*100,""),"") -> 2.000000048 | G43: 2.000000002 | H43: 2.82842716 | I43: 3.018643022 | J43: =IFERROR(DEGREES(IF(G43=0,IF(F43>0,PI()/2,3*PI()/2),IF(G43>0,ATAN(F43/G43),PI()+ATAN(F43/G43)))),"") -> 45.00000067 | K43: =IFERROR((F43*SIN(RADIANS($J$54))+G43*COS(RADIANS($J$54))),"") -> 2.800478778 | L43: 2.98881507
A44: 26-A | B44: 2004-09-23 | C44: =IFERROR(VLOOKUP(CONCATENATE(A44,B44),'[2]Raw Wolverine'!C:F,2,FALSE),"N/A") -> 7148339.32 | D44: =IFERROR(VLOOKUP(CONCATENATE(A44,B44),'[2]Raw Wolverine'!C:F,3,FALSE),"N/A") -> 513540.49 | E44: 0.1561643836 | F44: 0 | G44: -3.000000003 | H44: 3.000000003 | I44: 19.21052633 | J44: =IFERROR(DEGREES(IF(G44=0,IF(F44>0,PI()/2,3*PI()/2),IF(G44>0,ATAN(F44/G44),PI()+ATAN(F44/G44)))),"") -> 180 | K44: -2.397834804 | L44: -15.3545562
A45: 26-A | B45: 2005-09-17 | C45: =IFERROR(VLOOKUP(CONCATENATE(A45,B45),'[2]Raw Wolverine'!C:F,2,FALSE),"N/A") -> 7148339.34 | D45: =IFERROR(VLOOKUP(CONCATENATE(A45,B45),'[2]Raw Wolverine'!C:F,3,FALSE),"N/A") -> 513540.56 | E45: 0.9835616438 | F45: 1.999999955 | G45: 7.000000001 | H45: 7.280109878 | I45: 7.401783023 | J45: 15.94539556 | K45: 6.796870057 | L45: 6.910466771
A46: 26-A | B46: 2006-07-28 | C46: =IFERROR(VLOOKUP(CONCATENATE(A46,B46),'[2]Raw Wolverine'!C:F,2,FALSE),"N/A") -> 7148339.33 | D46: =IFERROR(VLOOKUP(CONCATENATE(A46,B46),'[2]Raw Wolverine'!C:F,3,FALSE),"N/A") -> 513540.54 | E46: 0.8602739726 | F46: -0.9999999776 | G46: -2.000000002 | H46: 2.236067969 | I46: 2.599250983 | J46: 206.5650506 | K46: -2.199517629 | L46: -2.556764123
A47: 26-A | B47: 2008-07-09 | C47: =IFERROR(VLOOKUP(CONCATENATE(A47,B47),'[2]Raw Wolverine'!C:F,2,FALSE),"N/A") -> 7148339.35 | D47: =IFERROR(VLOOKUP(CONCATENATE(A47,B47),'[2]Raw Wolverine'!C:F,3,FALSE),"N/A") -> 513540.59 | E47: 1.950684932 | F47: 1.999999955 | G47: 5.000000005 | H47: 5.385164795 | I47: 2.760653301 | J47: 21.80140903 | K47: 5.198313526 | L47: 2.664865782
A48: 26-A | B48: 2010-07-20 | C48: =IFERROR(VLOOKUP(CONCATENATE(A48,B48),'[2]Raw Wolverine'!C:F,2,FALSE),"N/A") -> 7148339.36 | D48: =IFERROR(VLOOKUP(CONCATENATE(A48,B48),'[2]Raw Wolverine'!C:F,3,FALSE),"N/A") -> 513540.57 | E48: 2.030136986 | F48: 1.000000071 | G48: -2.000000002 | H48: 2.236068011 | I48: 1.101437009 | J48: 153.4349472 | K48: -0.9975953867 | L48: -0.4913931392
A49: 26-A | B49: 2010-09-25 | C49: =IFERROR(VLOOKUP(CONCATENATE(A49,B49),'[2]Raw Wolverine'!C:F,2,FALSE),"N/A") -> 7148339.35 | D49: =IFERROR(VLOOKUP(CONCATENATE(A49,B49),'[2]Raw Wolverine'!C:F,3,FALSE),"N/A") -> 513540.6 | E49: 0.1835616438 | F49: -1.000000071 | G49: 2.999999997 | H49: 3.16227768 | I49: 17.22733363 | J49: -18.43495006 | K49: 1.79687365 | L49: 9.788938541
A50: 26-A | B50: 2011-08-11 | C50: =IFERROR(VLOOKUP(CONCATENATE(A50,B50),'[2]Raw Wolverine'!C:F,2,FALSE),"N/A") -> 7148339.37 | D50: =IFERROR(VLOOKUP(CONCATENATE(A50,B50),'[2]Raw Wolverine'!C:F,3,FALSE),"N/A") -> 513540.61 | E50: 0.8767123288 | F50: 2.000000048 | G50: 1.000000001 | H50: 2.236068021 | I50: 2.550515087 | J50: 63.43494936 | K50: 2.00120051 | L50: 2.282619332
A51: 26-A | B51: 2012-08-06 | C51: =IFERROR(VLOOKUP(CONCATENATE(A51,B51),'[2]Raw Wolverine'!C:F,2,FALSE),"N/A") -> 7148339.37 | D51: =IFERROR(VLOOKUP(CONCATENATE(A51,B51),'[2]Raw Wolverine'!C:F,3,FALSE),"N/A") -> 513540.63 | E51: 0.9890410959 | F51: 0 | G51: 2.000000002 | H51: 2.000000002 | I51: 2.022160667 | J51: 0 | K51: 1.598556536 | L51: 1.616269074
A52: 26-A | B52: 2014-09-13 | C52: =IFERROR(VLOOKUP(CONCATENATE(A52,B52),'[2]Raw Wolverine'!C:F,2,FALSE),"N/A") -> 7148339.339 | D52: =IFERROR(VLOOKUP(CONCATENATE(A52,B52),'[2]Raw Wolverine'!C:F,3,FALSE),"N/A") -> 513540.672 | E52: 2.104109589 | F52: -3.100000042 | G52: 4.200000002 | H52: 5.220153281 | I52: 2.480932223 | J52: -36.43085848 | K52: 1.493989267 | L52: 0.7100339617
A53: 26-A | B53: 2015-09-17 | C53: =IFERROR(VLOOKUP(CONCATENATE(A53,B53),'[2]Raw Wolverine'!C:F,2,FALSE),"N/A") -> 7148339.4 | D53: =IFERROR(VLOOKUP(CONCATENATE(A53,B53),'[2]Raw Wolverine'!C:F,3,FALSE),"N/A") -> 513540.633 | E53: 1.010958904 | F53: 6.100000069 | G53: -3.900000005 | H53: 7.240165804 | I53: 7.161681622 | J53: 122.5925812 | K53: 0.5486775458 | L53: 0.5427298217
B54: Totals From August 21, 2003 to September 17, 2015 | F54: =IFERROR(IF($A53=$A42,(C53-C42)*100,""),"") -> 10.00000006 | G54: =IFERROR(IF($A53=$A42,(D53-D42)*100,""),"") -> 13.3 | H54: 16.64001205 | I54: =IFERROR(SQRT(G54^2+H54^2)/F54,"") -> 2.130211248 | J54: =DEGREES(IF(G54=0,IF(F54>0,PI()/2,3*PI()/2),IF(G54>0,ATAN(F54/G54),PI()+ATAN(F54/G54)))) -> 36.93876289 | K54: =SUM(K43:K53) -> 16.64001205
A55: BH-14 | B55: 2003-08-21 | C55: =IFERROR(VLOOKUP(CONCATENATE(A55,B55),'[2]Raw Wolverine'!C:F,2,FALSE),"N/A") -> 7148488.36 | D55: =IFERROR(VLOOKUP(CONCATENATE(A55,B55),'[2]Raw Wolverine'!C:F,3,FALSE),"N/A") -> 513563.01 | E55: =IF(A55=A53,(B55-B53)/365,"") ->  | F55: =IFERROR(IF($A55=$A53,(C55-C53)*100,""),"") ->  | G55: =IFERROR(IF($A55=$A53,(D55-D53)*100,""),"") -> 
A56: BH-14 | B56: 2004-07-28 | C56: =IFERROR(VLOOKUP(CONCATENATE(A56,B56),'[2]Raw Wolverine'!C:F,2,FALSE),"N/A") -> 7148488.36 | D56: =IFERROR(VLOOKUP(CONCATENATE(A56,B56),'[2]Raw Wolverine'!C:F,3,FALSE),"N/A") -> 513563.01 | E56: 0.9369863014 | F56: 0 | G56: 0 | H56: 0 | I56: 0 | J56: =IFERROR(DEGREES(IF(G56=0,IF(F56>0,PI()/2,3*PI()/2),IF(G56>0,ATAN(F56/G56),PI()+ATAN(F56/G56)))),"") -> 270 | K56: =IFERROR((F56*SIN(RADIANS($J$67))+G56*COS(RADIANS($J$67))),"") -> 0 | L56: 0
A57: BH-14 | B57: 2004-09-23 | C57: =IFERROR(VLOOKUP(CONCATENATE(A57,B57),'[2]Raw Wolverine'!C:F,2,FALSE),"N/A") -> 7148488.33 | D57: =IFERROR(VLOOKUP(CONCATENATE(A57,B57),'[2]Raw Wolverine'!C:F,3,FALSE),"N/A") -> 513562.99 | E57: 0.1561643836 | F57: -3.000000026 | G57: -2.000000002 | H57: 3.605551298 | I57: 23.08817937 | J57: =IFERROR(DEGREES(IF(G57=0,IF(F57>0,PI()/2,3*PI()/2),IF(G57>0,ATAN(F57/G57),PI()+ATAN(F57/G57)))),"") -> 236.3099327 | K57: -3.591840417 | L57: -23.00038161
A58: BH-14 | B58: 2005-09-17 | C58: =IFERROR(VLOOKUP(CONCATENATE(A58,B58),'[2]Raw Wolverine'!C:F,2,FALSE),"N/A") -> 7148488.34 | D58: =IFERROR(VLOOKUP(CONCATENATE(A58,B58),'[2]Raw Wolverine'!C:F,3,FALSE),"N/A") -> 513562.87 | E58: 0.9835616438 | F58: 0.9999999776 | G58: -12 | H58: 12.04159458 | I58: 12.24284685 | J58: 175.2363584 | K58: -4.883954612 | L58: -4.965580594
A59: BH-14 | B59: 2006-07-28 | C59: =IFERROR(VLOOKUP(CONCATENATE(A59,B59),'[2]Raw Wolverine'!C:F,2,FALSE),"N/A") -> 7148488.37 | D59: =IFERROR(VLOOKUP(CONCATENATE(A59,B59),'[2]Raw Wolverine'!C:F,3,FALSE),"N/A") -> 513563.02 | E59: 0.8602739726 | F59: =IFERROR(IF($A59=$A58,(C59-C58)*100,""),"") -> 3.000000026 | G59: 15 | H59: 15.29705855 | I59: 17.78161264 | J59: 11.30993257 | K59: 9.833107633 | L59: 11.43020473
A60: BH-14 | B60: 2008-07-09 | C60: =IFERROR(VLOOKUP(CONCATENATE(A60,B60),'[2]Raw Wolverine'!C:F,2,FALSE),"N/A") -> 7148488.43 | D60: =IFERROR(VLOOKUP(CONCATENATE(A60,B60),'[2]Raw Wolverine'!C:F,3,FALSE),"N/A") -> 513563.07 | E60: 1.950684932 | F60: 5.999999959 | G60: 4.999999999 | H60: 7.810249644 | I60: 4.003849888 | J60: 50.19442872 | K60: 7.663778227 | L60: 3.928762715
A61: BH-14 | B61: 2010-07-20 | C61: =IFERROR(VLOOKUP(CONCATENATE(A61,B61),'[2]Raw Wolverine'!C:F,2,FALSE),"N/A") -> 7148488.36 | D61: =IFERROR(VLOOKUP(CONCATENATE(A61,B61),'[2]Raw Wolverine'!C:F,3,FALSE),"N/A") -> 513562.88 | E61: 2.030136986 | F61: -6.999999937 | G61: -19 | H61: 20.24845671 | I61: 9.973936166 | J61: 200.2248593 | K61: -15.26235805 | L61: -7.517895665
A62: BH-14 | B62: 2010-09-25 | C62: =IFERROR(VLOOKUP(CONCATENATE(A62,B62),'[2]Raw Wolverine'!C:F,2,FALSE),"N/A") -> 7148488.36 | D62: =IFERROR(VLOOKUP(CONCATENATE(A62,B62),'[2]Raw Wolverine'!C:F,3,FALSE),"N/A") -> 513562.91 | E62: 0.1835616438 | F62: 0 | G62: 2.999999997 | H62: 2.999999997 | I62: 16.34328357 | J62: 0 | K62: 1.440292433 | L62: 7.846369225
A63: BH-14 | B63: 2011-08-11 | C63: =IFERROR(VLOOKUP(CONCATENATE(A63,B63),'[2]Raw Wolverine'!C:F,2,FALSE),"N/A") -> 7148488.37 | D63: =IFERROR(VLOOKUP(CONCATENATE(A63,B63),'[2]Raw Wolverine'!C:F,3,FALSE),"N/A") -> 513562.9 | E63: 0.8767123288 | F63: 0.9999999776 | G63: -0.9999999951 | H63: 1.414213543 | I63: 1.613087323 | J63: 135.0000005 | K63: 0.3971176501 | L63: 0.4529623196
A64: BH-14 | B64: 2012-08-06 | C64: =IFERROR(VLOOKUP(CONCATENATE(A64,B64),'[2]Raw Wolverine'!C:F,2,FALSE),"N/A") -> 7148488.39 | D64: =IFERROR(VLOOKUP(CONCATENATE(A64,B64),'[2]Raw Wolverine'!C:F,3,FALSE),"N/A") -> 513562.91 | E64: 0.9890410959 | F64: 1.999999955 | G64: 0.9999999951 | H64: 2.236067935 | I64: 2.260844311 | J64: 63.43494842 | K64: 2.234527728 | L64: 2.259287038
A65: BH-14 | B65: 2014-09-13 | C65: =IFERROR(VLOOKUP(CONCATENATE(A65,B65),'[2]Raw Wolverine'!C:F,2,FALSE),"N/A") -> 7148488.478 | D65: =IFERROR(VLOOKUP(CONCATENATE(A65,B65),'[2]Raw Wolverine'!C:F,3,FALSE),"N/A") -> 513563.096 | E65: 2.104109589 | F65: 8.800000045 | G65: 18.6 | H65: 20.57668586 | I65: 9.779284295 | J65: 25.31968702 | K65: 16.64930642 | L65: 7.912756305
A66: BH-14 | B66: 2015-09-17 | C66: =IFERROR(VLOOKUP(CONCATENATE(A66,B66),'[2]Raw Wolverine'!C:F,2,FALSE),"N/A") -> 7148488.508 | D66: =IFERROR(VLOOKUP(CONCATENATE(A66,B66),'[2]Raw Wolverine'!C:F,3,FALSE),"N/A") -> 513563.091 | E66: 1.010958904 | F66: 3.000000026 | G66: -0.5000000005 | H66: 3.041381291 | I66: 3.008412388 | J66: 99.46232214 | K66: 2.39159672 | L66: 2.365671552
B67: Totals From August 21, 2003 to September 17, 2015 | F67: =IFERROR(IF($A66=$A55,(C66-C55)*100,""),"") -> 14.8 | G67: =IFERROR(IF($A66=$A55,(D66-D55)*100,""),"") -> 8.100000001 | H67: 16.87157373 | I67: =IFERROR(SQRT(G67^2+H67^2)/F67,"") -> 1.264542867 | J67: =DEGREES(IF(G67=0,IF(F67>0,PI()/2,3*PI()/2),IF(G67>0,ATAN(F67/G67),PI()+ATAN(F67/G67)))) -> 61.30823134 | K67: =SUM(K56:K66) -> 16.87157373
A68: 1483 | B68: 2003-08-21 | C68: =IFERROR(VLOOKUP(CONCATENATE(A68,B68),'[2]Raw Wolverine'!C:F,2,FALSE),"N/A") -> 7148233.01 | D68: =IFERROR(VLOOKUP(CONCATENATE(A68,B68),'[2]Raw Wolverine'!C:F,3,FALSE),"N/A") -> 513412.67 | E68: =IF(A68=A66,(B68-B66)/365,"") ->  | F68: =IFERROR(IF($A68=$A66,(C68-C66)*100,""),"") ->  | G68: =IFERROR(IF($A68=$A66,(D68-D66)*100,""),"") -> 
A69: 1483 | B69: 2004-07-28 | C69: =IFERROR(VLOOKUP(CONCATENATE(A69,B69),'[2]Raw Wolverine'!C:F,2,FALSE),"N/A") -> 7148233.01 | D69: =IFERROR(VLOOKUP(CONCATENATE(A69,B69),'[2]Raw Wolverine'!C:F,3,FALSE),"N/A") -> 513412.69 | E69: 0.9369863014 | F69: 0 | G69: 2.000000002 | H69: 2.000000002 | I69: 2.134502926 | J69: =IFERROR(DEGREES(IF(G69=0,IF(F69>0,PI()/2,3*PI()/2),IF(G69>0,ATAN(F69/G69),PI()+ATAN(F69/G69)))),"") -> 0 | K69: =IFERROR((F69*SIN(RADIANS($J$80))+G69*COS(RADIANS($J$80))),"") -> 1.736486286 | L69: =IFERROR(K69/E69,"") -> 1.853267528
A70: 1483 | B70: 2004-09-23 | C70: =IFERROR(VLOOKUP(CONCATENATE(A70,B70),'[2]Raw Wolverine'!C:F,2,FALSE),"N/A") -> 7148233.02 | D70: =IFERROR(VLOOKUP(CONCATENATE(A70,B70),'[2]Raw Wolverine'!C:F,3,FALSE),"N/A") -> 513412.68 | E70: 0.1561643836 | F70: 0.9999999776 | G70: -1.000000001 | H70: 1.414213547 | I70: 9.055928855 | J70: =IFERROR(DEGREES(IF(G70=0,IF(F70>0,PI()/2,3*PI()/2),IF(G70>0,ATAN(F70/G70),PI()+ATAN(F70/G70)))),"") -> 135.0000007 | K70: -0.372104216 | L70: -2.382772611
A71: 1483 | B71: 2005-09-17 | C71: =IFERROR(VLOOKUP(CONCATENATE(A71,B71),'[2]Raw Wolverine'!C:F,2,FALSE),"N/A") -> 7148233.03 | D71: =IFERROR(VLOOKUP(CONCATENATE(A71,B71),'[2]Raw Wolverine'!C:F,3,FALSE),"N/A") -> 513412.71 | E71: 0.9835616438 | F71: 1.000000071 | G71: 3.000000003 | H71: 3.162277685 | I71: 3.215129123 | J71: 18.43495002 | K71: 3.100868402 | L71: 3.152693501
A72: 1483 | B72: 2006-07-28 | C72: =IFERROR(VLOOKUP(CONCATENATE(A72,B72),'[2]Raw Wolverine'!C:F,2,FALSE),"N/A") -> 7148233.06 | D72: =IFERROR(VLOOKUP(CONCATENATE(A72,B72),'[2]Raw Wolverine'!C:F,3,FALSE),"N/A") -> 513412.7 | E72: =IF(A72=A71,(B72-B71)/365,"") -> 0.8602739726 | F72: 2.999999933 | G72: -1.000000001 | H72: 3.162277597 | I72: 3.675895933 | J72: 108.4349492 | K72: 0.6201736382 | L72: 0.7209024775
A73: 1483 | B73: 2008-07-09 | C73: =IFERROR(VLOOKUP(CONCATENATE(A73,B73),'[2]Raw Wolverine'!C:F,2,FALSE),"N/A") -> 7148233.04 | D73: =IFERROR(VLOOKUP(CONCATENATE(A73,B73),'[2]Raw Wolverine'!C:F,3,FALSE),"N/A") -> 513412.75 | E73: 1.950684932 | F73: -1.999999955 | G73: 4.999999999 | H73: 5.385164789 | I73: 2.760653298 | J73: -21.80140905 | K73: 3.348937856 | L73: 1.716801008
A74: 1483 | B74: 2010-07-20 | C74: =IFERROR(VLOOKUP(CONCATENATE(A74,B74),'[2]Raw Wolverine'!C:F,2,FALSE),"N/A") -> 7148233.04 | D74: =IFERROR(VLOOKUP(CONCATENATE(A74,B74),'[2]Raw Wolverine'!C:F,3,FALSE),"N/A") -> 513412.71 | E74: 2.030136986 | F74: 0 | G74: -3.999999998 | H74: =IFERROR(SQRT(F74^2+G74^2),"") -> 3.999999998 | I74: 1.97031039 | J74: 180 | K74: -3.472972567 | L74: -1.710708484
A75: 1483 | B75: 2010-09-25 | C75: =IFERROR(VLOOKUP(CONCATENATE(A75,B75),'[2]Raw Wolverine'!C:F,2,FALSE),"N/A") -> 7148233.05 | D75: =IFERROR(VLOOKUP(CONCATENATE(A75,B75),'[2]Raw Wolverine'!C:F,3,FALSE),"N/A") -> 513412.74 | E75: 0.1835616438 | F75: =IFERROR(IF($A75=$A74,(C75-C74)*100,""),"") -> 0.9999999776 | G75: 2.999999997 | H75: 3.16227765 | I75: 17.22733347 | J75: 18.43494846 | K75: 3.100868351 | L75: 16.89279027
A76: 1483 | B76: 2011-08-11 | C76: =IFERROR(VLOOKUP(CONCATENATE(A76,B76),'[2]Raw Wolverine'!C:F,2,FALSE),"N/A") -> 7148233.04 | D76: =IFERROR(VLOOKUP(CONCATENATE(A76,B76),'[2]Raw Wolverine'!C:F,3,FALSE),"N/A") -> 513412.75 | E76: 0.8767123288 | F76: -0.9999999776 | G76: 1.000000001 | H76: 1.414213547 | I76: 1.613087327 | J76: -44.99999933 | K76: 0.372104216 | L76: 0.4244313713
A77: 1483 | B77: 2012-08-06 | C77: =IFERROR(VLOOKUP(CONCATENATE(A77,B77),'[2]Raw Wolverine'!C:F,2,FALSE),"N/A") -> 7148233.06 | D77: =IFERROR(VLOOKUP(CONCATENATE(A77,B77),'[2]Raw Wolverine'!C:F,3,FALSE),"N/A") -> 513412.77 | E77: 0.9890410959 | F77: 1.999999955 | G77: 2.000000002 | H77: 2.828427094 | I77: 2.859767007 | J77: 44.99999933 | K77: 2.72876414 | L77: 2.758999754
